Workbook

Sheet Guidance
C1: THE CONTENTS OF THE WORKBOOK INCLUDE ESTIMATES
C2: BASED ON SMALL SAMPLE SIZES WHICH MAY BE UNRELIABLE
C3: THEY ARE PROVIDED ON A CAVEAT EMPTOR BASIS
G5: Users should follow the guidelines set out in general terms below
G6: and in more detail in the Working Futures technical documentation available on line at:
G7: https://www.gov.uk/government/publications/working-futures-2012-to-2022
G9: If in doubt about what to do please contact:
G11: UKCES: Peter Glover, UK Commission for Employment and Skills, email: peter.glover@ukces.org.uk, tel: 01709 774942
G12: All other enquiries: Rob Wilson, IER, University of Warwick, email: r.a.wilson@warwick.ac.uk, tel: 024 7652 3530
G14: Copyright: Warwick Institute for Employment Research / Cambridge Econometrics, 2013
G17: REPORTING
G18: The projections presented in this Workbook are calculated from a number of different data sources, using
G19: a variety of econometric and statistical techniques. As a result, precise margins of error cannot be assigned
G20: to the estimates. For further details, see the Working Futures Technical Report.
G22: However, as a general rule of thumb, it is not advisable to use any statistics or analyses in published reports etc which are not
G23: based on data for at least 10,000 individuals. This should provide a reasonable degree of statistical robustness to
G24: the estimates whether historic or forecast.
G26: For unpublished analyses, a more lenient criterion can be used. However, the uncertainties associated with
G27: projections involving fewer than 1,000 individuals are probably too great to make such estimates useful.
G28: However, there is inevitably some degree of judgement required on the part of the researcher.
G30: For cases in between 1,000 and 10,000 individuals, it is difficult to prescribe general rules, and an element of
G31: judgement by on behalf of the user is needed.
G33: Thus, in summary, CE/IER advise:
G35: PUBLISHED ANALYSIS: Ideally, a minimum of 10,000 individuals per cell
G36: UNPUBLISHED ANALYSIS: A minimum of 1,000 individuals per cell

Sheet Info
A1: Yorkshire and the Humber
A2: c132 | B2: <-MDM forecast identifier
A3: Occupational forecast: Friday, 9 October 2013 at 17:09

Sheet Table 3.2
A1: Table 3.2 | B1: =CONCATENATE("Employment by Sector, ",B3,"-",F3) -> Employment by Sector, 1992-2022
B3: =All!D7 -> 1992 | C3: =All!N7 -> 2002 | D3: =All!X7 -> 2012 | E3: =All!AC7 -> 2017 | F3: =All!AH7 -> 2022
A4: Levels (000s)
A5: =names!A4 -> Primary sector and utilities | B5: =All!D36/1000 -> 84.195 | C5: =All!N36/1000 -> 48.738 | D5: =All!X36/1000 -> 62.761 | E5: =All!AC36/1000 -> 58.551 | F5: =All!AH36/1000 -> 58.394
A6: =names!A5 -> Manufacturing | B6: =All!D64/1000 -> 416.431 | C6: =All!N64/1000 -> 361.402 | D6: =All!X64/1000 -> 266.428 | E6: =All!AC64/1000 -> 253.398 | F6: =All!AH64/1000 -> 237.184
A7: =names!A6 -> Construction | B7: =All!D92/1000 -> 158.013 | C7: =All!N92/1000 -> 161.9 | D7: =All!X92/1000 -> 160.354 | E7: =All!AC92/1000 -> 170.857 | F7: =All!AH92/1000 -> 182.206
A8: =names!A7 -> Trade, accomod. and transport | B8: =All!D120/1000 -> 630.795 | C8: =All!N120/1000 -> 663.587 | D8: =All!X120/1000 -> 692.887 | E8: =All!AC120/1000 -> 697.983 | F8: =All!AH120/1000 -> 718.806
A9: =names!A8 -> Business and other services | B9: =All!D148/1000 -> 437.14 | C9: =All!N148/1000 -> 535.892 | D9: =All!X148/1000 -> 661.473 | E9: =All!AC148/1000 -> 702.299 | F9: =All!AH148/1000 -> 730.014
A10: =names!A9 -> Non-market services | B10: =All!D176/1000 -> 523.166 | C10: =All!N176/1000 -> 604.579 | D10: =All!X176/1000 -> 687.326 | E10: =All!AC176/1000 -> 687.217 | F10: =All!AH176/1000 -> 717.444
A12: Total | B12: =All!D8/1000 -> 2249.74 | C12: =All!N8/1000 -> 2376.098 | D12: =All!X8/1000 -> 2531.229 | E12: =All!AC8/1000 -> 2570.305 | F12: =All!AH8/1000 -> 2644.048
A14: Shares (%) | B14: =B3 -> 1992 | C14: =C3 -> 2002 | D14: =D3 -> 2012 | E14: =E3 -> 2017 | F14: =F3 -> 2022
A15: =A5 -> Primary sector and utilities | B15: =B5/B$12*100 -> 3.742432459 | C15: =C5/C$12*100 -> 2.051178024 | D15: =D5/D$12*100 -> 2.479467484 | E15: =E5/E$12*100 -> 2.277978683 | F15: =F5/F$12*100 -> 2.208507561
A16: Manufacturing | B16: =B6/B$12*100 -> 18.5101834 | C16: 15.20989454 | D16: 10.52563794 | E16: 9.85867436 | F16: 8.970487676
A17: Construction | B17: 7.023611617 | C17: 6.813692028 | D17: 6.335025397 | E17: 6.647343409 | F17: 6.891175954
A18: Trade, accomod. and transport | B18: 28.03857335 | C18: 27.9275939 | D18: 27.37354068 | E18: 27.15564884 | F18: 27.18581508
A19: Business and other services | B19: 19.43068977 | C19: 22.55344687 | D19: 26.13248347 | E19: 27.32356666 | F19: 27.60971057
A20: Non-market services | B20: 23.25450941 | C20: 25.44419464 | D20: 27.15384503 | E20: 26.73678805 | F20: 27.13430316
A22: Total | B22: 100 | C22: 100 | D22: 100 | E22: 100 | F22: 100
A24: Growth (% pa) | B24: =CONCATENATE(B3,"-",C3) -> 1992-2002 | C24: =CONCATENATE(C3,"-",D3) -> 2002-2012 | D24: =CONCATENATE(D3,"-",E3) -> 2012-2017 | E24: =CONCATENATE(E3,"-",F3) -> 2017-2022 | F24: =CONCATENATE(D3,"-",F3) -> 2012-2022
A25: =A15 -> Primary sector and utilities | B25: =(EXP(LN(C5/B5)/(C$3-B$3))-1)*100 -> -5.320023768 | C25: =(EXP(LN(D5/C5)/(D$3-C$3))-1)*100 -> 2.560992543 | D25: =(EXP(LN(E5/D5)/(E$3-D$3))-1)*100 -> -1.379115694 | E25: =(EXP(LN(F5/E5)/(F$3-E$3))-1)*100 -> -0.05368607361 | F25: =(EXP(LN(F5/D5)/(F$3-D$3))-1)*100 -> -0.7186127082
A26: Manufacturing | B26: =(EXP(LN(C6/B6)/(C$3-B$3))-1)*100 -> -1.407302298 | C26: =(EXP(LN(D6/C6)/(D$3-C$3))-1)*100 -> -3.002859509 | D26: -0.9978414554 | E26: -1.313796629 | F26: -1.155945286
A27: Construction | B27: =(EXP(LN(C7/B7)/(C$3-B$3))-1)*100 -> 0.2433110477 | C27: -0.09590387704 | D27: 1.276945766 | E27: 1.294526695 | F27: 1.285735849
A28: Trade, accomod. and transport | B28: =(EXP(LN(C8/B8)/(C$3-B$3))-1)*100 -> 0.5080767486 | C28: 0.4330043537 | D28: 0.1466638551 | E28: 0.5896668297 | F28: 0.3679209274
A29: Business and other services | B29: =(EXP(LN(C9/B9)/(C$3-B$3))-1)*100 -> 2.057675527 | C29: 2.127684353 | D29: 1.205003827 | E29: 0.7770932736 | F29: 0.9908219119
A30: Non-market services | B30: =(EXP(LN(C10/B10)/(C$3-B$3))-1)*100 -> 1.456845386 | C30: 1.29102629 | D30: -0.003171913037 | E30: 0.864612112 | F30: 0.4297828207
A32: Total | B32: =(EXP(LN(C12/B12)/(C$3-B$3))-1)*100 -> 0.5479456855 | C32: =(EXP(LN(D12/C12)/(D$3-C$3))-1)*100 -> 0.6344572986 | D32: =(EXP(LN(E12/D12)/(E$3-D$3))-1)*100 -> 0.3068621282 | E32: =(EXP(LN(F12/E12)/(F$3-E$3))-1)*100 -> 0.5673334195 | F32: =(EXP(LN(F12/D12)/(F$3-D$3))-1)*100 -> 0.4370133363
A34: Change (000s) | B34: =B24 -> 1992-2002 | C34: =C24 -> 2002-2012 | D34: =D24 -> 2012-2017 | E34: =E24 -> 2017-2022 | F34: =F24 -> 2012-2022
A35: =A25 -> Primary sector and utilities | B35: =C5-B5 -> -35.457 | C35: =D5-C5 -> 14.023 | D35: =E5-D5 -> -4.21 | E35: =F5-E5 -> -0.157 | F35: =F5-D5 -> -4.367
A36: Manufacturing | B36: =C6-B6 -> -55.029 | C36: -94.974 | D36: -13.03 | E36: -16.214 | F36: =F6-D6 -> -29.244
A37: Construction | B37: 3.887 | C37: -1.546 | D37: 10.503 | E37: 11.349 | F37: 21.852
A38: Trade, accomod. and transport | B38: 32.792 | C38: 29.3 | D38: 5.096 | E38: 20.823 | F38: 25.919
A39: Business and other services | B39: 98.752 | C39: 125.581 | D39: 40.826 | E39: 27.715 | F39: 68.541
A40: Non-market services | B40: 81.413 | C40: 82.747 | D40: -0.109 | E40: 30.227 | F40: 30.118
A42: Total | B42: 126.358 | C42: =D12-C12 -> 155.131 | D42: =E12-D12 -> 39.076 | E42: =F12-E12 -> 73.743 | F42: 112.819
A44: =CELL("filename",$A$1) -> R:\Research Info\Individual research project info\Working Futures 2012-2022\Working Futures quant projections 2012-2022\04 Reporting and outputs\Final outputs\Workbooks\Files for gov.uk\YH\[6YHv2.xlsm]Table 3.2

Sheet Table 3.3
A1: Table 3.3 | B1: Projections of Employment for 6 Broad Industrial Sectors
G2: Absolute levels and changes (000s)
B3: Levels | E3: Changes
B4: =All!X7 -> 2012 | C4: =All!AC7 -> 2017 | D4: =All!AH7 -> 2022 | E4: =CONCATENATE(B4,"-",C4) -> 2012-2017 | F4: =CONCATENATE(C4,"-",D4) -> 2017-2022 | G4: =CONCATENATE(B4,"-",D4) -> 2012-2022
A6: =All!A35 -> Primary sector and utilities | B6: =All!X36/1000 -> 62.761 | C6: =All!AC36/1000 -> 58.551 | D6: =All!AH36/1000 -> 58.394 | E6: =C6-B6 -> -4.21 | F6: -0.157 | G6: =D6-B6 -> -4.367
A7: =All!A63 -> Manufacturing | B7: =All!X64/1000 -> 266.428 | C7: =All!AC64/1000 -> 253.398 | D7: =All!AH64/1000 -> 237.184 | E7: -13.03 | F7: -16.214 | G7: -29.244
A8: =All!A91 -> Construction | B8: =All!X92/1000 -> 160.354 | C8: =All!AC92/1000 -> 170.857 | D8: =All!AH92/1000 -> 182.206 | E8: 10.503 | F8: 11.349 | G8: 21.852
A9: =All!A119 -> Trade, accomod. and transport | B9: =All!X120/1000 -> 692.887 | C9: =All!AC120/1000 -> 697.983 | D9: =All!AH120/1000 -> 718.806 | E9: 5.096 | F9: 20.823 | G9: 25.919
A10: =All!A147 -> Business and other services | B10: =All!X148/1000 -> 661.473 | C10: =All!AC148/1000 -> 702.299 | D10: =All!AH148/1000 -> 730.014 | E10: 40.826 | F10: 27.715 | G10: 68.541
A11: =All!A175 -> Non-market services | B11: =All!X176/1000 -> 687.326 | C11: =All!AC176/1000 -> 687.217 | D11: =All!AH176/1000 -> 717.444 | E11: -0.109 | F11: 30.227 | G11: 30.118
A13: =All!A7 -> All industries | B13: =All!X8/1000 -> 2531.229 | C13: =All!AC8/1000 -> 2570.305 | D13: =All!AH8/1000 -> 2644.048 | E13: =C13-B13 -> 39.076 | F13: =D13-C13 -> 73.743 | G13: =D13-B13 -> 112.819
A15: =CELL("filename",$A$1) -> R:\Research Info\Individual research project info\Working Futures 2012-2022\Working Futures quant projections 2012-2022\04 Reporting and outputs\Final outputs\Workbooks\Files for gov.uk\YH\[6YHv2.xlsm]Table 3.3

Sheet Table 3.8
A1: Table 3.8 Composition of Employment by Broad Industrial Sector
F2: Shares of total employment (%)
B3: =All!D7 -> 1992 | C3: =All!N7 -> 2002 | D3: =All!X7 -> 2012 | E3: =All!AC7 -> 2017 | F3: =All!AH7 -> 2022
A4: Primary sector & utilities, of which: | B4: =(All!D36/All!D8)*100 -> 3.742432459 | C4: =(All!N36/All!N8)*100 -> 2.051178024 | D4: =(All!X36/All!X8)*100 -> 2.479467484 | E4: =(All!AC36/All!AC8)*100 -> 2.277978683 | F4: =(All!AH36/All!AH8)*100 -> 2.208507561
A6: Female employees | B6: =Females!D36/All!D36*100 -> 25.36967753 | C6: =Females!N36/All!N36*100 -> 23.9812877 | D6: =Females!X36/All!X36*100 -> 21.6408279 | E6: =Females!AC36/All!AC36*100 -> 22.18407884 | F6: =Females!AH36/All!AH36*100 -> 22.70952495
A7: Self-employed | B7: =SE!D36/All!D36*100 -> 22.1521468 | C7: =SE!N36/All!N36*100 -> 15.17706923 | D7: =SE!X36/All!X36*100 -> 40.02644955 | E7: =SE!AC36/All!AC36*100 -> 35.87641543 | F7: =SE!AH36/All!AH36*100 -> 34.38880707
A8: Part-time employees | B8: =PT!D36/All!D36*100 -> 10.76548489 | C8: =PT!N36/All!N36*100 -> 10.74520908 | D8: =PT!X36/All!X36*100 -> 7.968324278 | E8: =PT!AC36/All!AC36*100 -> 9.069016755 | F8: =PT!AH36/All!AH36*100 -> 10.02329006
A10: Manufacturing, of which: | B10: =All!D64/All!D8*100 -> 18.5101834 | C10: =All!N64/All!N8*100 -> 15.20989454 | D10: =All!X64/All!X8*100 -> 10.52563794 | E10: =All!AC64/All!AC8*100 -> 9.85867436 | F10: =All!AH64/All!AH8*100 -> 8.970487676
A12: Female employees | B12: =Females!D64/All!D64*100 -> 30.30850249 | C12: =Females!N64/All!N64*100 -> 23.8789492 | D12: =Females!X64/All!X64*100 -> 23.4464846 | E12: =Females!AC64/All!AC64*100 -> 23.84549207 | F12: =Females!AH64/All!AH64*100 -> 24.76347477
A13: Self-employed | B13: =SE!D64/All!D64*100 -> 3.435142917 | C13: =SE!N64/All!N64*100 -> 3.677345449 | D13: =SE!X64/All!X64*100 -> 6.787199544 | E13: =SE!AC64/All!AC64*100 -> 6.563587716 | F13: =SE!AH64/All!AH64*100 -> 6.434245143
A14: Part-time employees | B14: =PT!D64/All!D64*100 -> 11.37115152 | C14: =PT!N64/All!N64*100 -> 10.29241675 | D14: =PT!X64/All!X64*100 -> 7.549131473 | E14: =PT!AC64/All!AC64*100 -> 8.119243246 | F14: =PT!AH64/All!AH64*100 -> 8.835334593
A16: Construction, of which: | B16: =All!D92/All!D8*100 -> 7.023611617 | C16: =All!N92/All!N8*100 -> 6.813692028 | D16: =All!X92/All!X8*100 -> 6.335025397 | E16: =All!AC92/All!AC8*100 -> 6.647343409 | F16: =All!AH92/All!AH8*100 -> 6.891175954
A18: Female employees | B18: =Females!D92/All!D92*100 -> 13.40269471 | C18: =Females!N92/All!N92*100 -> 12.4990735 | D18: =Females!X92/All!X92*100 -> 12.43561121 | E18: =Females!AC92/All!AC92*100 -> 12.68780325 | F18: =Females!AH92/All!AH92*100 -> 12.95456791
A19: Self-employed | B19: =SE!D92/All!D92*100 -> 34.00036706 | C19: =SE!N92/All!N92*100 -> 31.67634342 | D19: =SE!X92/All!X92*100 -> 35.68791549 | E19: =SE!AC92/All!AC92*100 -> 34.35387488 | F19: =SE!AH92/All!AH92*100 -> 33.07794474
A20: Part-time employees | B20: =PT!D92/All!D92*100 -> 6.067222317 | C20: =PT!N92/All!N92*100 -> 7.631871526 | D20: =PT!X92/All!X92*100 -> 6.890380034 | E20: =PT!AC92/All!AC92*100 -> 7.046828634 | F20: =PT!AH92/All!AH92*100 -> 7.196250398
A22: Distribution, transport etc, of which: | B22: =All!D120/All!D8*100 -> 28.03857335 | C22: =All!N120/All!N8*100 -> 27.9275939 | D22: =All!X120/All!X8*100 -> 27.37354068 | E22: =All!AC120/All!AC8*100 -> 27.15564884 | F22: =All!AH120/All!AH8*100 -> 27.18581508
A24: Female employees | B24: =Females!D120/All!D120*100 -> 50.21663139 | C24: =Females!N120/All!N120*100 -> 48.3618576 | D24: =Females!X120/All!X120*100 -> 42.17946072 | E24: =Females!AC120/All!AC120*100 -> 42.37137581 | F24: =Females!AH120/All!AH120*100 -> 42.64752938
A25: Self-employed | B25: =SE!D120/All!D120*100 -> 12.84458501 | C25: =SE!N120/All!N120*100 -> 8.634286085 | D25: =SE!X120/All!X120*100 -> 8.845886847 | E25: =SE!AC120/All!AC120*100 -> 8.27398375 | F25: =SE!AH120/All!AH120*100 -> 7.746735559
A26: Part-time employees | B26: =PT!D120/All!D120*100 -> 33.62154107 | C26: =PT!N120/All!N120*100 -> 40.03634791 | D26: =PT!X120/All!X120*100 -> 36.24400516 | E26: =PT!AC120/All!AC120*100 -> 36.52381218 | F26: =PT!AH120/All!AH120*100 -> 37.03669697
A28: Business & other services, of which: | B28: =All!D148/All!D8*100 -> 19.43068977 | C28: =All!N148/All!N8*100 -> 22.55344687 | D28: =All!X148/All!X8*100 -> 26.13248347 | E28: =All!AC148/All!AC8*100 -> 27.32356666 | F28: =All!AH148/All!AH8*100 -> 27.60971057
A30: Female employees | B30: =Females!D148/All!D148*100 -> 51.49723201 | C30: =Females!N148/All!N148*100 -> 49.93599457 | D30: =Females!X148/All!X148*100 -> 44.8666839 | E30: =Females!AC148/All!AC148*100 -> 44.694781 | F30: =Females!AH148/All!AH148*100 -> 44.50284515
A31: Self-employed | B31: =SE!D148/All!D148*100 -> 14.70123988 | C31: =SE!N148/All!N148*100 -> 12.41294888 | D31: =SE!X148/All!X148*100 -> 15.08648123 | E31: =SE!AC148/All!AC148*100 -> 14.75240603 | F31: =SE!AH148/All!AH148*100 -> 14.37424488
A32: Part-time employees | B32: =PT!D148/All!D148*100 -> 23.77476323 | C32: =PT!N148/All!N148*100 -> 29.57349615 | D32: =PT!X148/All!X148*100 -> 24.66223111 | E32: =PT!AC148/All!AC148*100 -> 24.60732537 | F32: =PT!AH148/All!AH148*100 -> 24.62856877
A34: Non-marketed services services, of which: | B34: =All!D176/All!D8*100 -> 23.25450941 | C34: =All!N176/All!N8*100 -> 25.44419464 | D34: =All!X176/All!X8*100 -> 27.15384503 | E34: =All!AC176/All!AC8*100 -> 26.73678805 | F34: =All!AH176/All!AH8*100 -> 27.13430316
A36: Female employees | B36: =Females!D176/All!D176*100 -> 73.00034788 | C36: =Females!N176/All!N176*100 -> 71.19929736 | D36: =Females!X176/All!X176*100 -> 71.86822556 | E36: =Females!AC176/All!AC176*100 -> 72.70352742 | F36: =Females!AH176/All!AH176*100 -> 73.14480294
A37: Self-employed | B37: =SE!D176/All!D176*100 -> 4.802299844 | C37: =SE!N176/All!N176*100 -> 5.764507203 | D37: =SE!X176/All!X176*100 -> 5.550350198 | E37: =SE!AC176/All!AC176*100 -> 5.428561866 | F37: =SE!AH176/All!AH176*100 -> 5.299507697
A38: Part-time employees | B38: =PT!D176/All!D176*100 -> 43.90021523 | C38: =PT!N176/All!N176*100 -> 40.791526 | D38: =PT!X176/All!X176*100 -> 42.71844801 | E38: =PT!AC176/All!AC176*100 -> 44.10106269 | F38: =PT!AH176/All!AH176*100 -> 45.13272116
A40: =CELL("filename",$A$1) -> R:\Research Info\Individual research project info\Working Futures 2012-2022\Working Futures quant projections 2012-2022\04 Reporting and outputs\Final outputs\Workbooks\Files for gov.uk\YH\[6YHv2.xlsm]Table 3.8

Sheet Figure 3.2
B4: Figure 3.2: Changes in Employment Structure by Broad Sector, (per cent p.a.)
M12: Primary sector and utilities
M14: Manufacturing
M16: Construction
M18: Trade, accomod. and transport
M20: Business and other services
M22: Non-market services
A29: =CELL("filename",$A$1) -> R:\Research Info\Individual research project info\Working Futures 2012-2022\Working Futures quant projections 2012-2022\04 Reporting and outputs\Final outputs\Workbooks\Files for gov.uk\YH\[6YHv2.xlsm]Figure 3.2
B35: ='Table 3.2'!B34 -> 1992-2002 | C35: ='Table 3.2'!C34 -> 2002-2012 | D35: ='Table 3.2'!D34 -> 2012-2017 | E35: ='Table 3.2'!E34 -> 2017-2022 | F35: ='Table 3.2'!F34 -> 2012-2022
A37: All Industries | B37: ='Table 3.2'!B32 -> 0.5479456855 | C37: ='Table 3.2'!C32 -> 0.6344572986 | D37: ='Table 3.2'!D32 -> 0.3068621282 | E37: ='Table 3.2'!E32 -> 0.5673334195 | F37: ='Table 3.2'!F32 -> 0.4370133363
A38: Non-marketed services | B38: ='Table 3.2'!B30 -> 1.456845386 | C38: ='Table 3.2'!C30 -> 1.29102629 | D38: ='Table 3.2'!D30 -> -0.003171913037 | E38: ='Table 3.2'!E30 -> 0.864612112 | F38: ='Table 3.2'!F30 -> 0.4297828207
A39: Business & other services | B39: ='Table 3.2'!B29 -> 2.057675527 | C39: ='Table 3.2'!C29 -> 2.127684353 | D39: ='Table 3.2'!D29 -> 1.205003827 | E39: ='Table 3.2'!E29 -> 0.7770932736 | F39: ='Table 3.2'!F29 -> 0.9908219119
A40: Distribution, transport etc | B40: ='Table 3.2'!B28 -> 0.5080767486 | C40: ='Table 3.2'!C28 -> 0.4330043537 | D40: ='Table 3.2'!D28 -> 0.1466638551 | E40: ='Table 3.2'!E28 -> 0.5896668297 | F40: ='Table 3.2'!F28 -> 0.3679209274
A41: Construction | B41: ='Table 3.2'!B27 -> 0.2433110477 | C41: ='Table 3.2'!C27 -> -0.09590387704 | D41: ='Table 3.2'!D27 -> 1.276945766 | E41: ='Table 3.2'!E27 -> 1.294526695 | F41: ='Table 3.2'!F27 -> 1.285735849
A42: Manufacturing | B42: ='Table 3.2'!B26 -> -1.407302298 | C42: ='Table 3.2'!C26 -> -3.002859509 | D42: ='Table 3.2'!D26 -> -0.9978414554 | E42: ='Table 3.2'!E26 -> -1.313796629 | F42: ='Table 3.2'!F26 -> -1.155945286
A43: Primary sector & utilities | B43: ='Table 3.2'!B25 -> -5.320023768 | C43: ='Table 3.2'!C25 -> 2.560992543 | D43: ='Table 3.2'!D25 -> -1.379115694 | E43: ='Table 3.2'!E25 -> -0.05368607361 | F43: ='Table 3.2'!F25 -> -0.7186127082

Sheet Figure 3.3
B4: Figure 3.3: Changes in Employment Structure by Broad Sector, (000s)
A29: =CELL("filename",$A$1) -> R:\Research Info\Individual research project info\Working Futures 2012-2022\Working Futures quant projections 2012-2022\04 Reporting and outputs\Final outputs\Workbooks\Files for gov.uk\YH\[6YHv2.xlsm]Figure 3.3
A35: LEVELS | B35: =All!D7 -> 1992 | C35: =All!N7 -> 2002 | D35: =All!X7 -> 2012 | E35: =All!AC7 -> 2017 | F35: =All!AH7 -> 2022
A37: All Industries | B37: =0.001*All!D8 -> 2249.74 | C37: =0.001*All!N8 -> 2376.098 | D37: =0.001*All!X8 -> 2531.229 | E37: =0.001*All!AC8 -> 2570.305 | F37: =0.001*All!AH8 -> 2644.048
A38: Non-marketed services | B38: =0.001*All!D176 -> 523.166 | C38: =0.001*All!N176 -> 604.579 | D38: =0.001*All!X176 -> 687.326 | E38: =0.001*All!AC176 -> 687.217 | F38: =0.001*All!AH176 -> 717.444
A39: Business and other services | B39: =0.001*All!D148 -> 437.14 | C39: =0.001*All!N148 -> 535.892 | D39: =0.001*All!X148 -> 661.473 | E39: =0.001*All!AC148 -> 702.299 | F39: =0.001*All!AH148 -> 730.014
A40: Distribution, transport etc | B40: =0.001*All!D120 -> 630.795 | C40: =0.001*All!N120 -> 663.587 | D40: =0.001*All!X120 -> 692.887 | E40: =0.001*All!AC120 -> 697.983 | F40: =0.001*All!AH120 -> 718.806
A41: Construction | B41: =0.001*All!D92 -> 158.013 | C41: =0.001*All!N92 -> 161.9 | D41: =0.001*All!X92 -> 160.354 | E41: =0.001*All!AC92 -> 170.857 | F41: =0.001*All!AH92 -> 182.206
A42: Manufacturing | B42: =0.001*All!D64 -> 416.431 | C42: =0.001*All!N64 -> 361.402 | D42: =0.001*All!X64 -> 266.428 | E42: =0.001*All!AC64 -> 253.398 | F42: =0.001*All!AH64 -> 237.184
A43: Primary sector and utilities | B43: =0.001*All!D36 -> 84.195 | C43: =0.001*All!N36 -> 48.738 | D43: =0.001*All!X36 -> 62.761 | E43: =0.001*All!AC36 -> 58.551 | F43: =0.001*All!AH36 -> 58.394
A45: CHANGE | C45: =CONCATENATE(B35,"-",C35) -> 1992-2002 | D45: =CONCATENATE(C35,"-",D35) -> 2002-2012 | E45: =CONCATENATE(D35,"-",E35) -> 2012-2017 | F45: =CONCATENATE(E35,"-",F35) -> 2017-2022 | G45: =CONCATENATE(D35,"-",F35) -> 2012-2022
A46: All Industries | C46: =C37-B37 -> 126.358 | D46: =D37-C37 -> 155.131 | E46: =E37-D37 -> 39.076 | F46: =F37-E37 -> 73.743 | G46: =E46+F46 -> 112.819
A47: Non-marketed services | C47: =C38-B38 -> 81.413 | D47: 82.747 | E47: -0.109 | F47: 30.227 | G47: =E47+F47 -> 30.118
A48: Business and other services | C48: 98.752 | D48: 125.581 | E48: 40.826 | F48: 27.715 | G48: 68.541
A49: Distribution, transport etc | C49: 32.792 | D49: 29.3 | E49: 5.096 | F49: 20.823 | G49: 25.919
A50: Construction | C50: 3.887 | D50: -1.546 | E50: 10.503 | F50: 11.349 | G50: 21.852
A51: Manufacturing | C51: -55.029 | D51: -94.974 | E51: -13.03 | F51: -16.214 | G51: -29.244
A52: Primary sector and utilities | C52: -35.457 | D52: 14.023 | E52: -4.21 | F52: -0.157 | G52: -4.367

Sheet Figure 3.6
M2: Total Employment (FT+PT+SE) by Gender
M4: =CONCATENATE($M$2,CHAR(13),O4) -> Total Employment (FT+PT+SE) by Gender Primary sector and utilities | O4: =names!A4 -> Primary sector and utilities | P4: =All!D7 -> 1992 | Q4: =All!E7 -> 1993 | R4: =All!F7 -> 1994 | S4: =All!G7 -> 1995 | T4: =All!H7 -> 1996 | U4: =All!I7 -> 1997 | V4: =All!J7 -> 1998 | W4: =All!K7 -> 1999 | X4: =All!L7 -> 2000 | Y4: =All!M7 -> 2001 | Z4: =All!N7 -> 2002 | AA4: =All!O7 -> 2003 | AB4: =All!P7 -> 2004 | AC4: =All!Q7 -> 2005 | AD4: =All!R7 -> 2006 | AE4: =All!S7 -> 2007 | AF4: =All!T7 -> 2008 | AG4: =All!U7 -> 2009 | AH4: =All!V7 -> 2010 | AI4: =All!W7 -> 2011 | AJ4: =All!X7 -> 2012 | AK4: =All!Y7 -> 2013 | AL4: =All!Z7 -> 2014 | AM4: =All!AA7 -> 2015 | AN4: =All!AB7 -> 2016 | AO4: =All!AC7 -> 2017 | AP4: =All!AD7 -> 2018 | AQ4: =All!AE7 -> 2019 | AR4: =All!AF7 -> 2020 | AS4: =All!AG7 -> 2021 | AT4: =All!AH7 -> 2022
O5: Women | P5: =Females!D36/1000 -> 21.36 | Q5: =Females!E36/1000 -> 21.103 | R5: =Females!F36/1000 -> 15.604 | S5: =Females!G36/1000 -> 12.138 | T5: =Females!H36/1000 -> 13.815 | U5: =Females!I36/1000 -> 13.767 | V5: =Females!J36/1000 -> 13.805 | W5: =Females!K36/1000 -> 14.058 | X5: =Females!L36/1000 -> 11.458 | Y5: =Females!M36/1000 -> 12.795 | Z5: =Females!N36/1000 -> 11.688 | AA5: =Females!O36/1000 -> 6.307 | AB5: =Females!P36/1000 -> 7.541 | AC5: =Females!Q36/1000 -> 13.229 | AD5: =Females!R36/1000 -> 11.09 | AE5: =Females!S36/1000 -> 10.422 | AF5: =Females!T36/1000 -> 9.354 | AG5: =Females!U36/1000 -> 10.414 | AH5: =Females!V36/1000 -> 9.619 | AI5: =Females!W36/1000 -> 15.601 | AJ5: =Females!X36/1000 -> 13.582 | AK5: =Females!Y36/1000 -> 12.565 | AL5: =Females!Z36/1000 -> 12.688 | AM5: =Females!AA36/1000 -> 12.79 | AN5: =Females!AB36/1000 -> 12.876 | AO5: =Females!AC36/1000 -> 12.989 | AP5: =Females!AD36/1000 -> 13.008 | AQ5: =Females!AE36/1000 -> 13.074 | AR5: =Females!AF36/1000 -> 13.128 | AS5: =Females!AG36/1000 -> 13.184 | AT5: =Females!AH36/1000 -> 13.261
O6: Men | P6: =Males!D36/1000 -> 62.835 | Q6: =Males!E36/1000 -> 63.156 | R6: =Males!F36/1000 -> 52.293 | S6: =Males!G36/1000 -> 48.526 | T6: =Males!H36/1000 -> 49.637 | U6: =Males!I36/1000 -> 50.068 | V6: =Males!J36/1000 -> 51.338 | W6: =Males!K36/1000 -> 42.041 | X6: =Males!L36/1000 -> 41.677 | Y6: =Males!M36/1000 -> 41.969 | Z6: =Males!N36/1000 -> 37.05 | AA6: =Males!O36/1000 -> 33.929 | AB6: =Males!P36/1000 -> 30.249 | AC6: =Males!Q36/1000 -> 42.562 | AD6: =Males!R36/1000 -> 37.349 | AE6: =Males!S36/1000 -> 36.608 | AF6: =Males!T36/1000 -> 33.195 | AG6: =Males!U36/1000 -> 39.218 | AH6: =Males!V36/1000 -> 46.489 | AI6: =Males!W36/1000 -> 51.253 | AJ6: =Males!X36/1000 -> 49.179 | AK6: =Males!Y36/1000 -> 45.276 | AL6: =Males!Z36/1000 -> 45.319 | AM6: =Males!AA36/1000 -> 45.386 | AN6: =Males!AB36/1000 -> 45.425 | AO6: =Males!AC36/1000 -> 45.562 | AP6: =Males!AD36/1000 -> 45.36 | AQ6: =Males!AE36/1000 -> 45.319 | AR6: =Males!AF36/1000 -> 45.237 | AS6: =Males!AG36/1000 -> 45.155 | AT6: =Males!AH36/1000 -> 45.133
M7: =CONCATENATE($M$2,CHAR(13),O7) -> Total Employment (FT+PT+SE) by Gender Manufacturing | O7: =names!A5 -> Manufacturing
O8: Women | P8: =Females!D64/1000 -> 126.214 | Q8: =Females!E64/1000 -> 122.654 | R8: =Females!F64/1000 -> 116.88 | S8: =Females!G64/1000 -> 115.092 | T8: =Females!H64/1000 -> 123.921 | U8: =Females!I64/1000 -> 124.983 | V8: =Females!J64/1000 -> 115.69 | W8: =Females!K64/1000 -> 104.241 | X8: =Females!L64/1000 -> 98.328 | Y8: =Females!M64/1000 -> 96.916 | Z8: =Females!N64/1000 -> 86.299 | AA8: =Females!O64/1000 -> 80.442 | AB8: =Females!P64/1000 -> 79.234 | AC8: =Females!Q64/1000 -> 72.563 | AD8: =Females!R64/1000 -> 65.344 | AE8: =Females!S64/1000 -> 70.142 | AF8: =Females!T64/1000 -> 68.501 | AG8: =Females!U64/1000 -> 60.819 | AH8: =Females!V64/1000 -> 60.167 | AI8: =Females!W64/1000 -> 59.285 | AJ8: =Females!X64/1000 -> 62.468 | AK8: =Females!Y64/1000 -> 61.674 | AL8: =Females!Z64/1000 -> 61.33 | AM8: =Females!AA64/1000 -> 60.781 | AN8: =Females!AB64/1000 -> 60.649 | AO8: =Females!AC64/1000 -> 60.424 | AP8: =Females!AD64/1000 -> 60.046 | AQ8: =Females!AE64/1000 -> 59.638 | AR8: =Females!AF64/1000 -> 59.301 | AS8: =Females!AG64/1000 -> 58.978 | AT8: =Females!AH64/1000 -> 58.735
O9: Men | P9: =Males!D64/1000 -> 290.217 | Q9: =Males!E64/1000 -> 288.253 | R9: =Males!F64/1000 -> 291.629 | S9: =Males!G64/1000 -> 296.634 | T9: =Males!H64/1000 -> 296.404 | U9: =Males!I64/1000 -> 300.102 | V9: =Males!J64/1000 -> 306.539 | W9: =Males!K64/1000 -> 306.956 | X9: =Males!L64/1000 -> 291.158 | Y9: =Males!M64/1000 -> 279.227 | Z9: =Males!N64/1000 -> 275.103 | AA9: =Males!O64/1000 -> 265.986 | AB9: =Males!P64/1000 -> 251.634 | AC9: =Males!Q64/1000 -> 239.773 | AD9: =Males!R64/1000 -> 239.696 | AE9: =Males!S64/1000 -> 230.775 | AF9: =Males!T64/1000 -> 223.2 | AG9: =Males!U64/1000 -> 205.599 | AH9: =Males!V64/1000 -> 201.262 | AI9: =Males!W64/1000 -> 203.126 | AJ9: =Males!X64/1000 -> 203.96 | AK9: =Males!Y64/1000 -> 201.097 | AL9: =Males!Z64/1000 -> 199.562 | AM9: =Males!AA64/1000 -> 197.072 | AN9: =Males!AB64/1000 -> 195.239 | AO9: =Males!AC64/1000 -> 192.974 | AP9: =Males!AD64/1000 -> 190.148 | AQ9: =Males!AE64/1000 -> 187.134 | AR9: =Males!AF64/1000 -> 184.138 | AS9: =Males!AG64/1000 -> 181.206 | AT9: =Males!AH64/1000 -> 178.449
M10: =CONCATENATE($M$2,CHAR(13),O10) -> Total Employment (FT+PT+SE) by Gender Construction | O10: =names!A6 -> Construction
O11: Women | P11: =Females!D92/1000 -> 21.178 | Q11: =Females!E92/1000 -> 19.773 | R11: =Females!F92/1000 -> 20.105 | S11: =Females!G92/1000 -> 21.079 | T11: =Females!H92/1000 -> 26.386 | U11: =Females!I92/1000 -> 18.378 | V11: =Females!J92/1000 -> 22.742 | W11: =Females!K92/1000 -> 20.923 | X11: =Females!L92/1000 -> 22.715 | Y11: =Females!M92/1000 -> 20.317 | Z11: =Females!N92/1000 -> 20.236 | AA11: =Females!O92/1000 -> 21.326 | AB11: =Females!P92/1000 -> 24.137 | AC11: =Females!Q92/1000 -> 25.801 | AD11: =Females!R92/1000 -> 26.058 | AE11: =Females!S92/1000 -> 26.226 | AF11: =Females!T92/1000 -> 21.531 | AG11: =Females!U92/1000 -> 17.861 | AH11: =Females!V92/1000 -> 20.143 | AI11: =Females!W92/1000 -> 20.96 | AJ11: =Females!X92/1000 -> 19.941 | AK11: =Females!Y92/1000 -> 19.819 | AL11: =Females!Z92/1000 -> 20.215 | AM11: =Females!AA92/1000 -> 20.757 | AN11: =Females!AB92/1000 -> 21.262 | AO11: =Females!AC92/1000 -> 21.678 | AP11: =Females!AD92/1000 -> 22.089 | AQ11: =Females!AE92/1000 -> 22.547 | AR11: =Females!AF92/1000 -> 22.971 | AS11: =Females!AG92/1000 -> 23.295 | AT11: =Females!AH92/1000 -> 23.604
O12: Men | P12: =Males!D92/1000 -> 136.835 | Q12: =Males!E92/1000 -> 135.983 | R12: =Males!F92/1000 -> 136.663 | S12: =Males!G92/1000 -> 126.989 | T12: =Males!H92/1000 -> 144.342 | U12: =Males!I92/1000 -> 125.341 | V12: =Males!J92/1000 -> 120.363 | W12: =Males!K92/1000 -> 131.402 | X12: =Males!L92/1000 -> 136.76 | Y12: =Males!M92/1000 -> 148.961 | Z12: =Males!N92/1000 -> 141.664 | AA12: =Males!O92/1000 -> 157.125 | AB12: =Males!P92/1000 -> 154.263 | AC12: =Males!Q92/1000 -> 167.271 | AD12: =Males!R92/1000 -> 173.25 | AE12: =Males!S92/1000 -> 179.355 | AF12: =Males!T92/1000 -> 161.247 | AG12: =Males!U92/1000 -> 161.016 | AH12: =Males!V92/1000 -> 158.636 | AI12: =Males!W92/1000 -> 148.567 | AJ12: =Males!X92/1000 -> 140.413 | AK12: =Males!Y92/1000 -> 139.215 | AL12: =Males!Z92/1000 -> 141.249 | AM12: =Males!AA92/1000 -> 144.278 | AN12: =Males!AB92/1000 -> 147.056 | AO12: =Males!AC92/1000 -> 149.179 | AP12: =Males!AD92/1000 -> 151.25 | AQ12: =Males!AE92/1000 -> 153.628 | AR12: =Males!AF92/1000 -> 155.786 | AS12: =Males!AG92/1000 -> 157.247 | AT12: =Males!AH92/1000 -> 158.602
M13: =CONCATENATE($M$2,CHAR(13),O13) -> Total Employment (FT+PT+SE) by Gender Trade, accomod. and transport | O13: =names!A7 -> Trade, accomod. and transport
O14: Women | P14: =Females!D120/1000 -> 316.764 | Q14: =Females!E120/1000 -> 311.256 | R14: =Females!F120/1000 -> 316.793 | S14: =Females!G120/1000 -> 316.226 | T14: =Females!H120/1000 -> 338.677 | U14: =Females!I120/1000 -> 337.199 | V14: =Females!J120/1000 -> 328.956 | W14: =Females!K120/1000 -> 306.459 | X14: =Females!L120/1000 -> 311.363 | Y14: =Females!M120/1000 -> 319.249 | Z14: =Females!N120/1000 -> 320.923 | AA14: =Females!O120/1000 -> 331.122 | AB14: =Females!P120/1000 -> 336.418 | AC14: =Females!Q120/1000 -> 329.588 | AD14: =Females!R120/1000 -> 319.995 | AE14: =Females!S120/1000 -> 324.933 | AF14: =Females!T120/1000 -> 315.217 | AG14: =Females!U120/1000 -> 319.499 | AH14: =Females!V120/1000 -> 289.684 | AI14: =Females!W120/1000 -> 296.662 | AJ14: =Females!X120/1000 -> 292.256 | AK14: =Females!Y120/1000 -> 292.282 | AL14: =Females!Z120/1000 -> 292.756 | AM14: =Females!AA120/1000 -> 292.931 | AN14: =Females!AB120/1000 -> 294.146 | AO14: =Females!AC120/1000 -> 295.745 | AP14: =Females!AD120/1000 -> 297.759 | AQ14: =Females!AE120/1000 -> 300.085 | AR14: =Females!AF120/1000 -> 302.589 | AS14: =Females!AG120/1000 -> 304.717 | AT14: =Females!AH120/1000 -> 306.553
O15: Men | P15: =Males!D120/1000 -> 314.031 | Q15: =Males!E120/1000 -> 310.946 | R15: =Males!F120/1000 -> 324.809 | S15: =Males!G120/1000 -> 354.775 | T15: =Males!H120/1000 -> 334.991 | U15: =Males!I120/1000 -> 344.722 | V15: =Males!J120/1000 -> 351.804 | W15: =Males!K120/1000 -> 344.414 | X15: =Males!L120/1000 -> 341.049 | Y15: =Males!M120/1000 -> 332.858 | Z15: =Males!N120/1000 -> 342.664 | AA15: =Males!O120/1000 -> 362.896 | AB15: =Males!P120/1000 -> 389.458 | AC15: =Males!Q120/1000 -> 376.603 | AD15: =Males!R120/1000 -> 371.341 | AE15: =Males!S120/1000 -> 394.069 | AF15: =Males!T120/1000 -> 393.625 | AG15: =Males!U120/1000 -> 390.791 | AH15: =Males!V120/1000 -> 373.917 | AI15: =Males!W120/1000 -> 371.884 | AJ15: =Males!X120/1000 -> 400.631 | AK15: =Males!Y120/1000 -> 401.602 | AL15: =Males!Z120/1000 -> 400.912 | AM15: =Males!AA120/1000 -> 400.292 | AN15: =Males!AB120/1000 -> 400.957 | AO15: =Males!AC120/1000 -> 402.238 | AP15: =Males!AD120/1000 -> 404.107 | AQ15: =Males!AE120/1000 -> 406.335 | AR15: =Males!AF120/1000 -> 408.855 | AS15: =Males!AG120/1000 -> 410.753 | AT15: =Males!AH120/1000 -> 412.253
M16: =CONCATENATE($M$2,CHAR(13),O16) -> Total Employment (FT+PT+SE) by Gender Business and other services | O16: =names!A8 -> Business and other services
O17: Women | P17: =Females!D148/1000 -> 225.115 | Q17: =Females!E148/1000 -> 228.865 | R17: =Females!F148/1000 -> 234.935 | S17: =Females!G148/1000 -> 250.698 | T17: =Females!H148/1000 -> 259.161 | U17: =Females!I148/1000 -> 257.173 | V17: =Females!J148/1000 -> 246.1 | W17: =Females!K148/1000 -> 243.312 | X17: =Females!L148/1000 -> 255.964 | Y17: =Females!M148/1000 -> 260.904 | Z17: =Females!N148/1000 -> 267.603 | AA17: =Females!O148/1000 -> 267.522 | AB17: =Females!P148/1000 -> 275.085 | AC17: =Females!Q148/1000 -> 286.765 | AD17: =Females!R148/1000 -> 301.833 | AE17: =Females!S148/1000 -> 305.56 | AF17: =Females!T148/1000 -> 302.388 | AG17: =Females!U148/1000 -> 291.887 | AH17: =Females!V148/1000 -> 287.079 | AI17: =Females!W148/1000 -> 289.654 | AJ17: =Females!X148/1000 -> 296.781 | AK17: =Females!Y148/1000 -> 302.495 | AL17: =Females!Z148/1000 -> 305.754 | AM17: =Females!AA148/1000 -> 308.992 | AN17: =Females!AB148/1000 -> 311.544 | AO17: =Females!AC148/1000 -> 313.891 | AP17: =Females!AD148/1000 -> 316.159 | AQ17: =Females!AE148/1000 -> 318.461 | AR17: =Females!AF148/1000 -> 320.62 | AS17: =Females!AG148/1000 -> 322.707 | AT17: =Females!AH148/1000 -> 324.877
O18: Men | P18: =Males!D148/1000 -> 212.025 | Q18: =Males!E148/1000 -> 209.235 | R18: =Males!F148/1000 -> 215.59 | S18: =Males!G148/1000 -> 231.689 | T18: =Males!H148/1000 -> 209.583 | U18: =Males!I148/1000 -> 219.043 | V18: =Males!J148/1000 -> 245.209 | W18: =Males!K148/1000 -> 251.987 | X18: =Males!L148/1000 -> 259.888 | Y18: =Males!M148/1000 -> 256.246 | Z18: =Males!N148/1000 -> 268.289 | AA18: =Males!O148/1000 -> 282.988 | AB18: =Males!P148/1000 -> 308.528 | AC18: =Males!Q148/1000 -> 315.785 | AD18: =Males!R148/1000 -> 327.124 | AE18: =Males!S148/1000 -> 320.036 | AF18: =Males!T148/1000 -> 335.217 | AG18: =Males!U148/1000 -> 328.137 | AH18: =Males!V148/1000 -> 325.601 | AI18: =Males!W148/1000 -> 338.587 | AJ18: =Males!X148/1000 -> 364.692 | AK18: =Males!Y148/1000 -> 372.608 | AL18: =Males!Z148/1000 -> 377.007 | AM18: =Males!AA148/1000 -> 381.315 | AN18: =Males!AB148/1000 -> 385.079 | AO18: =Males!AC148/1000 -> 388.408 | AP18: =Males!AD148/1000 -> 391.783 | AQ18: =Males!AE148/1000 -> 395.237 | AR18: =Males!AF148/1000 -> 398.525 | AS18: =Males!AG148/1000 -> 401.795 | AT18: =Males!AH148/1000 -> 405.137
M19: =CONCATENATE($M$2,CHAR(13),O19) -> Total Employment (FT+PT+SE) by Gender Non-market services | O19: =names!A9 -> Non-market services
O20: Women | P20: =Females!D176/1000 -> 381.913 | Q20: =Females!E176/1000 -> 383.755 | R20: =Females!F176/1000 -> 390.673 | S20: =Females!G176/1000 -> 385.424 | T20: =Females!H176/1000 -> 381.493 | U20: =Females!I176/1000 -> 384.089 | V20: =Females!J176/1000 -> 386.715 | W20: =Females!K176/1000 -> 377.757 | X20: =Females!L176/1000 -> 409.086 | Y20: =Females!M176/1000 -> 426.698 | Z20: =Females!N176/1000 -> 430.456 | AA20: =Females!O176/1000 -> 444.763 | AB20: =Females!P176/1000 -> 468.282 | AC20: =Females!Q176/1000 -> 468.537 | AD20: =Females!R176/1000 -> 469.235 | AE20: =Females!S176/1000 -> 476.393 | AF20: =Females!T176/1000 -> 477.259 | AG20: =Females!U176/1000 -> 495.832 | AH20: =Females!V176/1000 -> 527.854 | AI20: =Females!W176/1000 -> 496.263 | AJ20: =Females!X176/1000 -> 493.969 | AK20: =Females!Y176/1000 -> 503.924 | AL20: =Females!Z176/1000 -> 501.375 | AM20: =Females!AA176/1000 -> 499.336 | AN20: =Females!AB176/1000 -> 496.744 | AO20: =Females!AC176/1000 -> 499.631 | AP20: =Females!AD176/1000 -> 505.193 | AQ20: =Females!AE176/1000 -> 510.114 | AR20: =Females!AF176/1000 -> 514.728 | AS20: =Females!AG176/1000 -> 519.704 | AT20: =Females!AH176/1000 -> 524.773
O21: Men | P21: =Males!D176/1000 -> 141.253 | Q21: =Males!E176/1000 -> 135.622 | R21: =Males!F176/1000 -> 135.851 | S21: =Males!G176/1000 -> 141.236 | T21: =Males!H176/1000 -> 141.564 | U21: =Males!I176/1000 -> 142.258 | V21: =Males!J176/1000 -> 132.952 | W21: =Males!K176/1000 -> 159.377 | X21: =Males!L176/1000 -> 164.702 | Y21: =Males!M176/1000 -> 162.964 | Z21: =Males!N176/1000 -> 174.123 | AA21: =Males!O176/1000 -> 177.113 | AB21: =Males!P176/1000 -> 187.501 | AC21: =Males!Q176/1000 -> 180.696 | AD21: =Males!R176/1000 -> 189.662 | AE21: =Males!S176/1000 -> 184.402 | AF21: =Males!T176/1000 -> 196.31 | AG21: =Males!U176/1000 -> 201.873 | AH21: =Males!V176/1000 -> 197.709 | AI21: =Males!W176/1000 -> 196.014 | AJ21: =Males!X176/1000 -> 193.357 | AK21: =Males!Y176/1000 -> 195.175 | AL21: =Males!Z176/1000 -> 192.245 | AM21: =Males!AA176/1000 -> 190.064 | AN21: =Males!AB176/1000 -> 187.503 | AO21: =Males!AC176/1000 -> 187.586 | AP21: =Males!AD176/1000 -> 188.761 | AQ21: =Males!AE176/1000 -> 189.908 | AR21: =Males!AF176/1000 -> 190.821 | AS21: =Males!AG176/1000 -> 191.734 | AT21: =Males!AH176/1000 -> 192.671
M22: =CONCATENATE($M$2,CHAR(13),O22) -> Total Employment (FT+PT+SE) by Gender All industries | O22: =names!A3 -> All industries
O23: Women | P23: =P5+P8+P11+P14+P17+P20 -> 1092.544 | Q23: 1087.406 | R23: 1094.99 | S23: 1100.657 | T23: 1143.453 | U23: 1135.589 | V23: 1114.008 | W23: 1066.75 | X23: 1108.914 | Y23: 1136.879 | Z23: 1137.205 | AA23: 1151.482 | AB23: 1190.697 | AC23: 1196.483 | AD23: 1193.555 | AE23: 1213.676 | AF23: 1194.25 | AG23: 1196.312 | AH23: 1194.546 | AI23: 1178.425 | AJ23: 1178.997 | AK23: 1192.759 | AL23: 1194.118 | AM23: 1195.587 | AN23: 1197.221 | AO23: 1204.358 | AP23: 1214.254 | AQ23: 1223.919 | AR23: 1233.337 | AS23: 1242.585 | AT23: 1251.803
O24: Men | P24: =P6+P9+P12+P15+P18+P21 -> 1157.196 | Q24: 1143.195 | R24: 1156.835 | S24: 1199.849 | T24: 1176.521 | U24: 1181.534 | V24: 1208.205 | W24: 1236.177 | X24: 1235.234 | Y24: 1222.225 | Z24: 1238.893 | AA24: 1280.037 | AB24: 1321.633 | AC24: 1322.69 | AD24: 1338.422 | AE24: 1345.245 | AF24: 1342.794 | AG24: 1326.634 | AH24: 1303.614 | AI24: 1309.431 | AJ24: 1352.232 | AK24: 1354.973 | AL24: 1356.294 | AM24: 1358.407 | AN24: 1361.259 | AO24: 1365.947 | AP24: 1371.409 | AQ24: 1377.561 | AR24: 1383.362 | AS24: 1387.89 | AT24: 1392.245
B57: =CELL("filename",$A$1) -> R:\Research Info\Individual research project info\Working Futures 2012-2022\Working Futures quant projections 2012-2022\04 Reporting and outputs\Final outputs\Workbooks\Files for gov.uk\YH\[6YHv2.xlsm]Figure 3.6
B115: =$B$57 -> R:\Research Info\Individual research project info\Working Futures 2012-2022\Working Futures quant projections 2012-2022\04 Reporting and outputs\Final outputs\Workbooks\Files for gov.uk\YH\[6YHv2.xlsm]Figure 3.6
B173: =$B$57 -> R:\Research Info\Individual research project info\Working Futures 2012-2022\Working Futures quant projections 2012-2022\04 Reporting and outputs\Final outputs\Workbooks\Files for gov.uk\YH\[6YHv2.xlsm]Figure 3.6
B203: =$B$57 -> R:\Research Info\Individual research project info\Working Futures 2012-2022\Working Futures quant projections 2012-2022\04 Reporting and outputs\Final outputs\Workbooks\Files for gov.uk\YH\[6YHv2.xlsm]Figure 3.6

Sheet Figure 3.7
M2: Total Employment by Status
M4: =CONCATENATE($M$2,CHAR(13),O4) -> Total Employment by Status Primary sector and utilities | O4: =names!A4 -> Primary sector and utilities | P4: =All!D7 -> 1992 | Q4: =All!E7 -> 1993 | R4: =All!F7 -> 1994 | S4: =All!G7 -> 1995 | T4: =All!H7 -> 1996 | U4: =All!I7 -> 1997 | V4: =All!J7 -> 1998 | W4: =All!K7 -> 1999 | X4: =All!L7 -> 2000 | Y4: =All!M7 -> 2001 | Z4: =All!N7 -> 2002 | AA4: =All!O7 -> 2003 | AB4: =All!P7 -> 2004 | AC4: =All!Q7 -> 2005 | AD4: =All!R7 -> 2006 | AE4: =All!S7 -> 2007 | AF4: =All!T7 -> 2008 | AG4: =All!U7 -> 2009 | AH4: =All!V7 -> 2010 | AI4: =All!W7 -> 2011 | AJ4: =All!X7 -> 2012 | AK4: =All!Y7 -> 2013 | AL4: =All!Z7 -> 2014 | AM4: =All!AA7 -> 2015 | AN4: =All!AB7 -> 2016 | AO4: =All!AC7 -> 2017 | AP4: =All!AD7 -> 2018 | AQ4: =All!AE7 -> 2019 | AR4: =All!AF7 -> 2020 | AS4: =All!AG7 -> 2021 | AT4: =All!AH7 -> 2022
O5: FT | P5: =FT!D36/1000 -> 56.48 | Q5: =FT!E36/1000 -> 54.736 | R5: =FT!F36/1000 -> 43.475 | S5: =FT!G36/1000 -> 37.772 | T5: =FT!H36/1000 -> 38.991 | U5: =FT!I36/1000 -> 44.629 | V5: =FT!J36/1000 -> 41.167 | W5: =FT!K36/1000 -> 40.81 | X5: =FT!L36/1000 -> 41.186 | Y5: =FT!M36/1000 -> 41.017 | Z5: =FT!N36/1000 -> 36.104 | AA5: =FT!O36/1000 -> 28.803 | AB5: =FT!P36/1000 -> 26.164 | AC5: =FT!Q36/1000 -> 40.976 | AD5: =FT!R36/1000 -> 33.004 | AE5: =FT!S36/1000 -> 26.118 | AF5: =FT!T36/1000 -> 28.014 | AG5: =FT!U36/1000 -> 31.96 | AH5: =FT!V36/1000 -> 34.31 | AI5: =FT!W36/1000 -> 35.311 | AJ5: =FT!X36/1000 -> 32.639 | AK5: =FT!Y36/1000 -> 31.549 | AL5: =FT!Z36/1000 -> 31.664 | AM5: =FT!AA36/1000 -> 31.84 | AN5: =FT!AB36/1000 -> 32.002 | AO5: =FT!AC36/1000 -> 32.235 | AP5: =FT!AD36/1000 -> 32.252 | AQ5: =FT!AE36/1000 -> 32.338 | AR5: =FT!AF36/1000 -> 32.394 | AS5: =FT!AG36/1000 -> 32.414 | AT5: =FT!AH36/1000 -> 32.46
O6: PT | P6: =PT!D36/1000 -> 9.064 | Q6: =PT!E36/1000 -> 9.389 | R6: =PT!F36/1000 -> 5.67 | S6: =PT!G36/1000 -> 4.397 | T6: =PT!H36/1000 -> 5.435 | U6: =PT!I36/1000 -> 5.487 | V6: =PT!J36/1000 -> 6.396 | W6: =PT!K36/1000 -> 6.81 | X6: =PT!L36/1000 -> 5.297 | Y6: =PT!M36/1000 -> 5.619 | Z6: =PT!N36/1000 -> 5.237 | AA6: =PT!O36/1000 -> 2.255 | AB6: =PT!P36/1000 -> 4.267 | AC6: =PT!Q36/1000 -> 3.354 | AD6: =PT!R36/1000 -> 4.148 | AE6: =PT!S36/1000 -> 5.468 | AF6: =PT!T36/1000 -> 5.363 | AG6: =PT!U36/1000 -> 5.465 | AH6: =PT!V36/1000 -> 6.318 | AI6: =PT!W36/1000 -> 8.629 | AJ6: =PT!X36/1000 -> 5.001 | AK6: =PT!Y36/1000 -> 4.844 | AL6: =PT!Z36/1000 -> 4.958 | AM6: =PT!AA36/1000 -> 5.073 | AN6: =PT!AB36/1000 -> 5.184 | AO6: =PT!AC36/1000 -> 5.31 | AP6: =PT!AD36/1000 -> 5.407 | AQ6: =PT!AE36/1000 -> 5.522 | AR6: =PT!AF36/1000 -> 5.629 | AS6: =PT!AG36/1000 -> 5.739 | AT6: =PT!AH36/1000 -> 5.853
O7: SE | P7: =SE!D36/1000 -> 18.651 | Q7: =SE!E36/1000 -> 20.134 | R7: =SE!F36/1000 -> 18.752 | S7: =SE!G36/1000 -> 18.495 | T7: =SE!H36/1000 -> 19.026 | U7: =SE!I36/1000 -> 13.719 | V7: =SE!J36/1000 -> 17.58 | W7: =SE!K36/1000 -> 8.479 | X7: =SE!L36/1000 -> 6.652 | Y7: =SE!M36/1000 -> 8.128 | Z7: =SE!N36/1000 -> 7.397 | AA7: =SE!O36/1000 -> 9.178 | AB7: =SE!P36/1000 -> 7.359 | AC7: =SE!Q36/1000 -> 11.461 | AD7: =SE!R36/1000 -> 11.287 | AE7: =SE!S36/1000 -> 15.444 | AF7: =SE!T36/1000 -> 9.172 | AG7: =SE!U36/1000 -> 12.207 | AH7: =SE!V36/1000 -> 15.48 | AI7: =SE!W36/1000 -> 22.914 | AJ7: =SE!X36/1000 -> 25.121 | AK7: =SE!Y36/1000 -> 21.448 | AL7: =SE!Z36/1000 -> 21.385 | AM7: =SE!AA36/1000 -> 21.263 | AN7: =SE!AB36/1000 -> 21.115 | AO7: =SE!AC36/1000 -> 21.006 | AP7: =SE!AD36/1000 -> 20.709 | AQ7: =SE!AE36/1000 -> 20.533 | AR7: =SE!AF36/1000 -> 20.342 | AS7: =SE!AG36/1000 -> 20.186 | AT7: =SE!AH36/1000 -> 20.081
M8: =CONCATENATE($M$2,CHAR(13),O8) -> Total Employment by Status Manufacturing | O8: =names!A5 -> Manufacturing
O9: FT | P9: =FT!D64/1000 -> 354.773 | Q9: =FT!E64/1000 -> 353.889 | R9: =FT!F64/1000 -> 354.853 | S9: =FT!G64/1000 -> 360.11 | T9: =FT!H64/1000 -> 363.78 | U9: =FT!I64/1000 -> 358.951 | V9: =FT!J64/1000 -> 365.599 | W9: =FT!K64/1000 -> 353.11 | X9: =FT!L64/1000 -> 338.966 | Y9: =FT!M64/1000 -> 325.556 | Z9: =FT!N64/1000 -> 310.915 | AA9: =FT!O64/1000 -> 302.696 | AB9: =FT!P64/1000 -> 290.548 | AC9: =FT!Q64/1000 -> 272.485 | AD9: =FT!R64/1000 -> 263.329 | AE9: =FT!S64/1000 -> 259.344 | AF9: =FT!T64/1000 -> 248.858 | AG9: =FT!U64/1000 -> 232.669 | AH9: =FT!V64/1000 -> 225.379 | AI9: =FT!W64/1000 -> 229.592 | AJ9: =FT!X64/1000 -> 228.232 | AK9: =FT!Y64/1000 -> 224.997 | AL9: =FT!Z64/1000 -> 223.26 | AM9: =FT!AA64/1000 -> 220.467 | AN9: =FT!AB64/1000 -> 218.569 | AO9: =FT!AC64/1000 -> 216.192 | AP9: =FT!AD64/1000 -> 213.17 | AQ9: =FT!AE64/1000 -> 209.981 | AR9: =FT!AF64/1000 -> 206.882 | AS9: =FT!AG64/1000 -> 203.824 | AT9: =FT!AH64/1000 -> 200.967
O10: PT | P10: =PT!D64/1000 -> 47.353 | Q10: =PT!E64/1000 -> 43.471 | R10: =PT!F64/1000 -> 40.075 | S10: =PT!G64/1000 -> 37.542 | T10: =PT!H64/1000 -> 41.078 | U10: =PT!I64/1000 -> 46.329 | V10: =PT!J64/1000 -> 40.154 | W10: =PT!K64/1000 -> 33.499 | X10: =PT!L64/1000 -> 34.051 | Y10: =PT!M64/1000 -> 33.179 | Z10: =PT!N64/1000 -> 37.197 | AA10: =PT!O64/1000 -> 29.414 | AB10: =PT!P64/1000 -> 25.928 | AC10: =PT!Q64/1000 -> 25.596 | AD10: =PT!R64/1000 -> 25.36 | AE10: =PT!S64/1000 -> 25.258 | AF10: =PT!T64/1000 -> 24.369 | AG10: =PT!U64/1000 -> 18.754 | AH10: =PT!V64/1000 -> 23.801 | AI10: =PT!W64/1000 -> 19.954 | AJ10: =PT!X64/1000 -> 20.113 | AK10: =PT!Y64/1000 -> 20.144 | AL10: =PT!Z64/1000 -> 20.259 | AM10: =PT!AA64/1000 -> 20.305 | AN10: =PT!AB64/1000 -> 20.464 | AO10: =PT!AC64/1000 -> 20.574 | AP10: =PT!AD64/1000 -> 20.635 | AQ10: =PT!AE64/1000 -> 20.688 | AR10: =PT!AF64/1000 -> 20.755 | AS10: =PT!AG64/1000 -> 20.846 | AT10: =PT!AH64/1000 -> 20.956
O11: SE | P11: =SE!D64/1000 -> 14.305 | Q11: =SE!E64/1000 -> 13.547 | R11: =SE!F64/1000 -> 13.581 | S11: =SE!G64/1000 -> 14.074 | T11: =SE!H64/1000 -> 15.467 | U11: =SE!I64/1000 -> 19.805 | V11: =SE!J64/1000 -> 16.476 | W11: =SE!K64/1000 -> 24.588 | X11: =SE!L64/1000 -> 16.469 | Y11: =SE!M64/1000 -> 17.408 | Z11: =SE!N64/1000 -> 13.29 | AA11: =SE!O64/1000 -> 14.318 | AB11: =SE!P64/1000 -> 14.392 | AC11: =SE!Q64/1000 -> 14.255 | AD11: =SE!R64/1000 -> 16.351 | AE11: =SE!S64/1000 -> 16.315 | AF11: =SE!T64/1000 -> 18.474 | AG11: =SE!U64/1000 -> 14.995 | AH11: =SE!V64/1000 -> 12.249 | AI11: =SE!W64/1000 -> 12.865 | AJ11: =SE!X64/1000 -> 18.083 | AK11: =SE!Y64/1000 -> 17.63 | AL11: =SE!Z64/1000 -> 17.373 | AM11: =SE!AA64/1000 -> 17.081 | AN11: =SE!AB64/1000 -> 16.855 | AO11: =SE!AC64/1000 -> 16.632 | AP11: =SE!AD64/1000 -> 16.389 | AQ11: =SE!AE64/1000 -> 16.103 | AR11: =SE!AF64/1000 -> 15.802 | AS11: =SE!AG64/1000 -> 15.514 | AT11: =SE!AH64/1000 -> 15.261
M12: =CONCATENATE($M$2,CHAR(13),O12) -> Total Employment by Status Construction | O12: =names!A6 -> Construction
O13: FT | P13: =FT!D92/1000 -> 94.701 | Q13: =FT!E92/1000 -> 93.061 | R13: =FT!F92/1000 -> 95.077 | S13: =FT!G92/1000 -> 81.013 | T13: =FT!H92/1000 -> 100.029 | U13: =FT!I92/1000 -> 80.28 | V13: =FT!J92/1000 -> 88.926 | W13: =FT!K92/1000 -> 100.139 | X13: =FT!L92/1000 -> 100.205 | Y13: =FT!M92/1000 -> 103.17 | Z13: =FT!N92/1000 -> 98.26 | AA13: =FT!O92/1000 -> 114.253 | AB13: =FT!P92/1000 -> 103.549 | AC13: =FT!Q92/1000 -> 114.446 | AD13: =FT!R92/1000 -> 114.274 | AE13: =FT!S92/1000 -> 129.293 | AF13: =FT!T92/1000 -> 111.649 | AG13: =FT!U92/1000 -> 102.295 | AH13: =FT!V92/1000 -> 104.179 | AI13: =FT!W92/1000 -> 92.002 | AJ13: =FT!X92/1000 -> 92.078 | AK13: =FT!Y92/1000 -> 91.586 | AL13: =FT!Z92/1000 -> 93.401 | AM13: =FT!AA92/1000 -> 95.893 | AN13: =FT!AB92/1000 -> 98.227 | AO13: =FT!AC92/1000 -> 100.121 | AP13: =FT!AD92/1000 -> 101.984 | AQ13: =FT!AE92/1000 -> 104.063 | AR13: =FT!AF92/1000 -> 105.993 | AS13: =FT!AG92/1000 -> 107.444 | AT13: =FT!AH92/1000 -> 108.824
O14: PT | P14: =PT!D92/1000 -> 9.587 | Q14: =PT!E92/1000 -> 8.001 | R14: =PT!F92/1000 -> 7.749 | S14: =PT!G92/1000 -> 8.99 | T14: =PT!H92/1000 -> 9.108 | U14: =PT!I92/1000 -> 9.925 | V14: =PT!J92/1000 -> 11.788 | W14: =PT!K92/1000 -> 10.035 | X14: =PT!L92/1000 -> 13.052 | Y14: =PT!M92/1000 -> 10.92 | Z14: =PT!N92/1000 -> 12.356 | AA14: =PT!O92/1000 -> 10.023 | AB14: =PT!P92/1000 -> 11.96 | AC14: =PT!Q92/1000 -> 11.904 | AD14: =PT!R92/1000 -> 13.179 | AE14: =PT!S92/1000 -> 9.997 | AF14: =PT!T92/1000 -> 7.983 | AG14: =PT!U92/1000 -> 12.046 | AH14: =PT!V92/1000 -> 11.122 | AI14: =PT!W92/1000 -> 11.018 | AJ14: =PT!X92/1000 -> 11.049 | AK14: =PT!Y92/1000 -> 10.992 | AL14: =PT!Z92/1000 -> 11.217 | AM14: =PT!AA92/1000 -> 11.522 | AN14: =PT!AB92/1000 -> 11.806 | AO14: =PT!AC92/1000 -> 12.04 | AP14: =PT!AD92/1000 -> 12.27 | AQ14: =PT!AE92/1000 -> 12.525 | AR14: =PT!AF92/1000 -> 12.761 | AS14: =PT!AG92/1000 -> 12.942 | AT14: =PT!AH92/1000 -> 13.112
O15: SE | P15: =SE!D92/1000 -> 53.725 | Q15: =SE!E92/1000 -> 54.694 | R15: =SE!F92/1000 -> 53.942 | S15: =SE!G92/1000 -> 58.065 | T15: =SE!H92/1000 -> 61.591 | U15: =SE!I92/1000 -> 53.514 | V15: =SE!J92/1000 -> 42.391 | W15: =SE!K92/1000 -> 42.151 | X15: =SE!L92/1000 -> 46.218 | Y15: =SE!M92/1000 -> 55.188 | Z15: =SE!N92/1000 -> 51.284 | AA15: =SE!O92/1000 -> 54.175 | AB15: =SE!P92/1000 -> 62.891 | AC15: =SE!Q92/1000 -> 66.722 | AD15: =SE!R92/1000 -> 71.855 | AE15: =SE!S92/1000 -> 66.291 | AF15: =SE!T92/1000 -> 63.146 | AG15: =SE!U92/1000 -> 64.536 | AH15: =SE!V92/1000 -> 63.478 | AI15: =SE!W92/1000 -> 66.507 | AJ15: =SE!X92/1000 -> 57.227 | AK15: =SE!Y92/1000 -> 56.456 | AL15: =SE!Z92/1000 -> 56.846 | AM15: =SE!AA92/1000 -> 57.62 | AN15: =SE!AB92/1000 -> 58.285 | AO15: =SE!AC92/1000 -> 58.696 | AP15: =SE!AD92/1000 -> 59.085 | AQ15: =SE!AE92/1000 -> 59.587 | AR15: =SE!AF92/1000 -> 60.003 | AS15: =SE!AG92/1000 -> 60.156 | AT15: =SE!AH92/1000 -> 60.27
M16: =CONCATENATE($M$2,CHAR(13),O16) -> Total Employment by Status Trade, accomod. and transport | O16: =names!A7 -> Trade, accomod. and transport
O17: FT | P17: =FT!D120/1000 -> 337.689 | Q17: =FT!E120/1000 -> 332.574 | R17: =FT!F120/1000 -> 346.182 | S17: =FT!G120/1000 -> 360.627 | T17: =FT!H120/1000 -> 330.658 | U17: =FT!I120/1000 -> 338.185 | V17: =FT!J120/1000 -> 344.949 | W17: =FT!K120/1000 -> 338.447 | X17: =FT!L120/1000 -> 337.323 | Y17: =FT!M120/1000 -> 338.045 | Z17: =FT!N120/1000 -> 340.615 | AA17: =FT!O120/1000 -> 366.725 | AB17: =FT!P120/1000 -> 375.676 | AC17: =FT!Q120/1000 -> 377.803 | AD17: =FT!R120/1000 -> 366.883 | AE17: =FT!S120/1000 -> 385.799 | AF17: =FT!T120/1000 -> 379.119 | AG17: =FT!U120/1000 -> 374.452 | AH17: =FT!V120/1000 -> 336.726 | AI17: =FT!W120/1000 -> 347.284 | AJ17: =FT!X120/1000 -> 380.465 | AK17: =FT!Y120/1000 -> 382.706 | AL17: =FT!Z120/1000 -> 382.516 | AM17: =FT!AA120/1000 -> 382.372 | AN17: =FT!AB120/1000 -> 383.572 | AO17: =FT!AC120/1000 -> 385.302 | AP17: =FT!AD120/1000 -> 387.551 | AQ17: =FT!AE120/1000 -> 390.071 | AR17: =FT!AF120/1000 -> 392.853 | AS17: =FT!AG120/1000 -> 395.084 | AT17: =FT!AH120/1000 -> 396.9
O18: PT | P18: =PT!D120/1000 -> 212.083 | Q18: =PT!E120/1000 -> 208.051 | R18: =PT!F120/1000 -> 220.199 | S18: =PT!G120/1000 -> 231.795 | T18: =PT!H120/1000 -> 270.972 | U18: =PT!I120/1000 -> 267.837 | V18: =PT!J120/1000 -> 261.12 | W18: =PT!K120/1000 -> 245.867 | X18: =PT!L120/1000 -> 247.636 | Y18: =PT!M120/1000 -> 259.763 | Z18: =PT!N120/1000 -> 265.676 | AA18: =PT!O120/1000 -> 266.934 | AB18: =PT!P120/1000 -> 279.856 | AC18: =PT!Q120/1000 -> 268.62 | AD18: =PT!R120/1000 -> 271.404 | AE18: =PT!S120/1000 -> 266.695 | AF18: =PT!T120/1000 -> 271.386 | AG18: =PT!U120/1000 -> 266.323 | AH18: =PT!V120/1000 -> 247.538 | AI18: =PT!W120/1000 -> 248.624 | AJ18: =PT!X120/1000 -> 251.13 | AK18: =PT!Y120/1000 -> 250.698 | AL18: =PT!Z120/1000 -> 251.423 | AM18: =PT!AA120/1000 -> 251.915 | AN18: =PT!AB120/1000 -> 253.228 | AO18: =PT!AC120/1000 -> 254.93 | AP18: =PT!AD120/1000 -> 257.022 | AQ18: =PT!AE120/1000 -> 259.442 | AR18: =PT!AF120/1000 -> 262.03 | AS18: =PT!AG120/1000 -> 264.244 | AT18: =PT!AH120/1000 -> 266.222
O19: SE | P19: =SE!D120/1000 -> 81.023 | Q19: =SE!E120/1000 -> 81.577 | R19: =SE!F120/1000 -> 75.221 | S19: =SE!G120/1000 -> 78.579 | T19: =SE!H120/1000 -> 72.038 | U19: =SE!I120/1000 -> 75.899 | V19: =SE!J120/1000 -> 74.691 | W19: =SE!K120/1000 -> 66.559 | X19: =SE!L120/1000 -> 67.453 | Y19: =SE!M120/1000 -> 54.299 | Z19: =SE!N120/1000 -> 57.296 | AA19: =SE!O120/1000 -> 60.359 | AB19: =SE!P120/1000 -> 70.344 | AC19: =SE!Q120/1000 -> 59.768 | AD19: =SE!R120/1000 -> 53.049 | AE19: =SE!S120/1000 -> 66.508 | AF19: =SE!T120/1000 -> 58.337 | AG19: =SE!U120/1000 -> 69.515 | AH19: =SE!V120/1000 -> 79.337 | AI19: =SE!W120/1000 -> 72.638 | AJ19: =SE!X120/1000 -> 61.292 | AK19: =SE!Y120/1000 -> 60.48 | AL19: =SE!Z120/1000 -> 59.729 | AM19: =SE!AA120/1000 -> 58.936 | AN19: =SE!AB120/1000 -> 58.303 | AO19: =SE!AC120/1000 -> 57.751 | AP19: =SE!AD120/1000 -> 57.293 | AQ19: =SE!AE120/1000 -> 56.907 | AR19: =SE!AF120/1000 -> 56.561 | AS19: =SE!AG120/1000 -> 56.142 | AT19: =SE!AH120/1000 -> 55.684
M20: =CONCATENATE($M$2,CHAR(13),O20) -> Total Employment by Status Business and other services | O20: =names!A8 -> Business and other services
O21: FT | P21: =FT!D148/1000 -> 268.946 | Q21: =FT!E148/1000 -> 271.093 | R21: =FT!F148/1000 -> 274.201 | S21: =FT!G148/1000 -> 295.074 | T21: =FT!H148/1000 -> 256.832 | U21: =FT!I148/1000 -> 275.293 | V21: =FT!J148/1000 -> 290.129 | W21: =FT!K148/1000 -> 300.634 | X21: =FT!L148/1000 -> 309.679 | Y21: =FT!M148/1000 -> 310.579 | Z21: =FT!N148/1000 -> 310.89 | AA21: =FT!O148/1000 -> 326.807 | AB21: =FT!P148/1000 -> 344.924 | AC21: =FT!Q148/1000 -> 367.8 | AD21: =FT!R148/1000 -> 378.483 | AE21: =FT!S148/1000 -> 374.043 | AF21: =FT!T148/1000 -> 394.701 | AG21: =FT!U148/1000 -> 381.443 | AH21: =FT!V148/1000 -> 359.308 | AI21: =FT!W148/1000 -> 362.487 | AJ21: =FT!X148/1000 -> 398.546 | AK21: =FT!Y148/1000 -> 407.264 | AL21: =FT!Z148/1000 -> 412.46 | AM21: =FT!AA148/1000 -> 417.494 | AN21: =FT!AB148/1000 -> 421.906 | AO21: =FT!AC148/1000 -> 425.876 | AP21: =FT!AD148/1000 -> 429.838 | AQ21: =FT!AE148/1000 -> 433.876 | AR21: =FT!AF148/1000 -> 437.704 | AS21: =FT!AG148/1000 -> 441.448 | AT21: =FT!AH148/1000 -> 445.288
O22: PT | P22: =PT!D148/1000 -> 103.929 | Q22: =PT!E148/1000 -> 105.072 | R22: =PT!F148/1000 -> 109.849 | S22: =PT!G148/1000 -> 114.878 | T22: =PT!H148/1000 -> 136.646 | U22: =PT!I148/1000 -> 139.398 | V22: =PT!J148/1000 -> 129.834 | W22: =PT!K148/1000 -> 130.469 | X22: =PT!L148/1000 -> 130.852 | Y22: =PT!M148/1000 -> 147.785 | Z22: =PT!N148/1000 -> 158.482 | AA22: =PT!O148/1000 -> 153.763 | AB22: =PT!P148/1000 -> 161.476 | AC22: =PT!Q148/1000 -> 159.141 | AD22: =PT!R148/1000 -> 166.766 | AE22: =PT!S148/1000 -> 168.027 | AF22: =PT!T148/1000 -> 164.379 | AG22: =PT!U148/1000 -> 158.698 | AH22: =PT!V148/1000 -> 161.324 | AI22: =PT!W148/1000 -> 169.642 | AJ22: =PT!X148/1000 -> 163.134 | AK22: =PT!Y148/1000 -> 165.58 | AL22: =PT!Z148/1000 -> 167.613 | AM22: =PT!AA148/1000 -> 169.689 | AN22: =PT!AB148/1000 -> 171.357 | AO22: =PT!AC148/1000 -> 172.817 | AP22: =PT!AD148/1000 -> 174.244 | AQ22: =PT!AE148/1000 -> 175.676 | AR22: =PT!AF148/1000 -> 177.039 | AS22: =PT!AG148/1000 -> 178.392 | AT22: =PT!AH148/1000 -> 179.792
O23: SE | P23: =SE!D148/1000 -> 64.265 | Q23: =SE!E148/1000 -> 61.935 | R23: =SE!F148/1000 -> 66.475 | S23: =SE!G148/1000 -> 72.435 | T23: =SE!H148/1000 -> 75.266 | U23: =SE!I148/1000 -> 61.525 | V23: =SE!J148/1000 -> 71.346 | W23: =SE!K148/1000 -> 64.196 | X23: =SE!L148/1000 -> 75.321 | Y23: =SE!M148/1000 -> 58.786 | Z23: =SE!N148/1000 -> 66.52 | AA23: =SE!O148/1000 -> 69.94 | AB23: =SE!P148/1000 -> 77.213 | AC23: =SE!Q148/1000 -> 75.609 | AD23: =SE!R148/1000 -> 83.708 | AE23: =SE!S148/1000 -> 83.526 | AF23: =SE!T148/1000 -> 78.525 | AG23: =SE!U148/1000 -> 79.883 | AH23: =SE!V148/1000 -> 92.048 | AI23: =SE!W148/1000 -> 96.112 | AJ23: =SE!X148/1000 -> 99.793 | AK23: =SE!Y148/1000 -> 102.259 | AL23: =SE!Z148/1000 -> 102.688 | AM23: =SE!AA148/1000 -> 103.124 | AN23: =SE!AB148/1000 -> 103.36 | AO23: =SE!AC148/1000 -> 103.606 | AP23: =SE!AD148/1000 -> 103.86 | AQ23: =SE!AE148/1000 -> 104.146 | AR23: =SE!AF148/1000 -> 104.402 | AS23: =SE!AG148/1000 -> 104.662 | AT23: =SE!AH148/1000 -> 104.934
M24: =CONCATENATE($M$2,CHAR(13),O24) -> Total Employment by Status Non-market services | O24: =names!A9 -> Non-market services
O25: FT | P25: =FT!D176/1000 -> 268.371 | Q25: =FT!E176/1000 -> 266.233 | R25: =FT!F176/1000 -> 264.833 | S25: =FT!G176/1000 -> 264.923 | T25: =FT!H176/1000 -> 270.033 | U25: =FT!I176/1000 -> 278.907 | V25: =FT!J176/1000 -> 276.893 | W25: =FT!K176/1000 -> 291.354 | X25: =FT!L176/1000 -> 298.76 | Y25: =FT!M176/1000 -> 310.845 | Z25: =FT!N176/1000 -> 323.111 | AA25: =FT!O176/1000 -> 326.294 | AB25: =FT!P176/1000 -> 343.883 | AC25: =FT!Q176/1000 -> 338.734 | AD25: =FT!R176/1000 -> 350.874 | AE25: =FT!S176/1000 -> 353.774 | AF25: =FT!T176/1000 -> 354.282 | AG25: =FT!U176/1000 -> 358.706 | AH25: =FT!V176/1000 -> 356.813 | AI25: =FT!W176/1000 -> 346.516 | AJ25: =FT!X176/1000 -> 355.562 | AK25: =FT!Y176/1000 -> 359.881 | AL25: =FT!Z176/1000 -> 355.01 | AM25: =FT!AA176/1000 -> 350.974 | AN25: =FT!AB176/1000 -> 346.689 | AO25: =FT!AC176/1000 -> 346.841 | AP25: =FT!AD176/1000 -> 349.048 | AQ25: =FT!AE176/1000 -> 350.834 | AR25: =FT!AF176/1000 -> 352.31 | AS25: =FT!AG176/1000 -> 353.931 | AT25: =FT!AH176/1000 -> 355.621
O26: PT | P26: =PT!D176/1000 -> 229.671 | Q26: =PT!E176/1000 -> 227.459 | R26: =PT!F176/1000 -> 234.189 | S26: =PT!G176/1000 -> 233.15 | T26: =PT!H176/1000 -> 221.897 | U26: =PT!I176/1000 -> 221.853 | V26: =PT!J176/1000 -> 217.815 | W26: =PT!K176/1000 -> 223.072 | X26: =PT!L176/1000 -> 248.935 | Y26: =PT!M176/1000 -> 256.229 | Z26: =PT!N176/1000 -> 246.617 | AA26: =PT!O176/1000 -> 264.791 | AB26: =PT!P176/1000 -> 282.209 | AC26: =PT!Q176/1000 -> 281.754 | AD26: =PT!R176/1000 -> 277.482 | AE26: =PT!S176/1000 -> 275.541 | AF26: =PT!T176/1000 -> 280.124 | AG26: =PT!U176/1000 -> 306.325 | AH26: =PT!V176/1000 -> 327.502 | AI26: =PT!W176/1000 -> 309.681 | AJ26: =PT!X176/1000 -> 293.615 | AK26: =PT!Y176/1000 -> 300.632 | AL26: =PT!Z176/1000 -> 300.448 | AM26: =PT!AA176/1000 -> 300.636 | AN26: =PT!AB176/1000 -> 300.213 | AO26: =PT!AC176/1000 -> 303.07 | AP26: =PT!AD176/1000 -> 307.447 | AQ26: =PT!AE176/1000 -> 311.591 | AR26: =PT!AF176/1000 -> 315.523 | AS26: =PT!AG176/1000 -> 319.646 | AT26: =PT!AH176/1000 -> 323.802
O27: SE | P27: =SE!D176/1000 -> 25.124 | Q27: =SE!E176/1000 -> 25.685 | R27: =SE!F176/1000 -> 27.502 | S27: =SE!G176/1000 -> 28.587 | T27: =SE!H176/1000 -> 31.127 | U27: =SE!I176/1000 -> 25.587 | V27: =SE!J176/1000 -> 24.959 | W27: =SE!K176/1000 -> 22.708 | X27: =SE!L176/1000 -> 26.093 | Y27: =SE!M176/1000 -> 22.588 | Z27: =SE!N176/1000 -> 34.851 | AA27: =SE!O176/1000 -> 30.791 | AB27: =SE!P176/1000 -> 29.691 | AC27: =SE!Q176/1000 -> 28.745 | AD27: =SE!R176/1000 -> 30.541 | AE27: =SE!S176/1000 -> 31.48 | AF27: =SE!T176/1000 -> 39.163 | AG27: =SE!U176/1000 -> 32.674 | AH27: =SE!V176/1000 -> 41.248 | AI27: =SE!W176/1000 -> 36.08 | AJ27: =SE!X176/1000 -> 38.149 | AK27: =SE!Y176/1000 -> 38.586 | AL27: =SE!Z176/1000 -> 38.162 | AM27: =SE!AA176/1000 -> 37.79 | AN27: =SE!AB176/1000 -> 37.345 | AO27: =SE!AC176/1000 -> 37.306 | AP27: =SE!AD176/1000 -> 37.459 | AQ27: =SE!AE176/1000 -> 37.597 | AR27: =SE!AF176/1000 -> 37.716 | AS27: =SE!AG176/1000 -> 37.861 | AT27: =SE!AH176/1000 -> 38.021
M28: =CONCATENATE($M$2,CHAR(13),O28) -> Total Employment by Status All industries | O28: =names!A3 -> All industries
O29: FT | P29: =P5+P9+P13+P17+P21+P25 -> 1380.96 | Q29: 1371.586 | R29: 1378.621 | S29: 1399.519 | T29: 1360.323 | U29: 1376.245 | V29: 1407.663 | W29: 1424.494 | X29: 1426.119 | Y29: 1429.212 | Z29: 1419.895 | AA29: 1465.578 | AB29: 1484.744 | AC29: 1512.244 | AD29: 1506.847 | AE29: 1528.371 | AF29: 1516.623 | AG29: 1481.525 | AH29: 1416.715 | AI29: 1413.192 | AJ29: 1487.522 | AK29: 1497.983 | AL29: 1498.311 | AM29: 1499.04 | AN29: 1500.965 | AO29: 1506.567 | AP29: 1513.843 | AQ29: 1521.163 | AR29: 1528.136 | AS29: 1534.145 | AT29: 1540.06
O30: PT | P30: =P6+P10+P14+P18+P22+P26 -> 611.687 | Q30: 601.443 | R30: 617.731 | S30: 630.752 | T30: 685.136 | U30: 690.829 | V30: 667.107 | W30: 649.752 | X30: 679.823 | Y30: 713.495 | Z30: 725.565 | AA30: 727.18 | AB30: 765.696 | AC30: 750.369 | AD30: 758.339 | AE30: 750.986 | AF30: 753.604 | AG30: 767.611 | AH30: 777.605 | AI30: 767.548 | AJ30: 744.042 | AK30: 752.89 | AL30: 755.918 | AM30: 759.14 | AN30: 762.252 | AO30: 768.741 | AP30: 777.025 | AQ30: 785.444 | AR30: 793.737 | AS30: 801.809 | AT30: 809.737
O31: SE | P31: =P7+P11+P15+P19+P23+P27 -> 257.093 | Q31: 257.572 | R31: 255.473 | S31: 270.235 | T31: 274.515 | U31: 250.049 | V31: 247.443 | W31: 228.681 | X31: 238.206 | Y31: 216.397 | Z31: 230.638 | AA31: 238.761 | AB31: 261.89 | AC31: 256.56 | AD31: 266.791 | AE31: 279.564 | AF31: 266.817 | AG31: 273.81 | AH31: 303.84 | AI31: 307.116 | AJ31: 299.665 | AK31: 296.859 | AL31: 296.183 | AM31: 295.814 | AN31: 295.263 | AO31: 294.997 | AP31: 294.795 | AQ31: 294.873 | AR31: 294.826 | AS31: 294.521 | AT31: 294.251
B57: =CELL("filename",$A$1) -> R:\Research Info\Individual research project info\Working Futures 2012-2022\Working Futures quant projections 2012-2022\04 Reporting and outputs\Final outputs\Workbooks\Files for gov.uk\YH\[6YHv2.xlsm]Figure 3.7
B112: =$B$57 -> R:\Research Info\Individual research project info\Working Futures 2012-2022\Working Futures quant projections 2012-2022\04 Reporting and outputs\Final outputs\Workbooks\Files for gov.uk\YH\[6YHv2.xlsm]Figure 3.7
B167: =$B$57 -> R:\Research Info\Individual research project info\Working Futures 2012-2022\Working Futures quant projections 2012-2022\04 Reporting and outputs\Final outputs\Workbooks\Files for gov.uk\YH\[6YHv2.xlsm]Figure 3.7
B196: =$B$57 -> R:\Research Info\Individual research project info\Working Futures 2012-2022\Working Futures quant projections 2012-2022\04 Reporting and outputs\Final outputs\Workbooks\Files for gov.uk\YH\[6YHv2.xlsm]Figure 3.7

Sheet Table 6.x.3
A1: Table 6.0.4 | B1: Changing Composition of Employment by Occupation
B2: =names!A3 -> All industries | H2: =D4&" - "&F4 -> 2012 - 2022
A3: SOC2010 Major Groups | H3: Net Change | I3: Replacement | J3: Total
A4: Employment Levels (000s) | B4: =All!D7 -> 1992 | C4: =All!N7 -> 2002 | D4: =All!X7 -> 2012 | E4: =All!AC7 -> 2017 | F4: =All!AH7 -> 2022 | I4: Demands | J4: Requirement
A5: ="1. "&names!B4 -> 1. Managers, directors and senior officials | B5: =(All!D9+All!D10)/1000 -> 172.824086 | C5: =(All!N9+All!N10)/1000 -> 193.984052 | D5: =(All!X9+All!X10)/1000 -> 246.010942 | E5: =(All!AC9+All!AC10)/1000 -> 263.057717 | F5: =(All!AH9+All!AH10)/1000 -> 285.222371 | H5: =F5-D5 -> 39.211429 | I5: =D5*I17/100 -> 102.5003654 | J5: =I5+H5 -> 141.7117944
A6: ="2. "&names!B5 -> 2. Professional occupations | B6: =(All!D11+All!D12+All!D13+All!D14)/1000 -> 297.441669 | C6: =(All!N11+All!N12+All!N13+All!N14)/1000 -> 353.540244 | D6: =(All!X11+All!X12+All!X13+All!X14)/1000 -> 430.314062 | E6: =(All!AC11+All!AC12+All!AC13+All!AC14)/1000 -> 471.190082 | F6: =(All!AH11+All!AH12+All!AH13+All!AH14)/1000 -> 507.979201 | H6: 77.665139 | I6: 173.9838539 | J6: 251.6489929
A7: ="3. "&names!B6 -> 3. Associate professional and technical | B7: =(All!D15+All!D16+All!D17+All!D18+All!D19)/1000 -> 220.652109 | C7: =(All!N15+All!N16+All!N17+All!N18+All!N19)/1000 -> 253.90174 | D7: =(All!X15+All!X16+All!X17+All!X18+All!X19)/1000 -> 288.624967 | E7: =(All!AC15+All!AC16+All!AC17+All!AC18+All!AC19)/1000 -> 306.054492 | F7: =(All!AH15+All!AH16+All!AH17+All!AH18+All!AH19)/1000 -> 327.883036 | H7: 39.258069 | I7: 104.8322243 | J7: 144.0902933
A8: ="4. "&names!B7 -> 4. Administrative and secretarial | B8: =(All!D20+All!D21)/1000 -> 332.68334 | C8: =(All!N20+All!N21)/1000 -> 329.192623 | D8: =(All!X20+All!X21)/1000 -> 329.846942 | E8: =(All!AC20+All!AC21)/1000 -> 313.095911 | F8: =(All!AH20+All!AH21)/1000 -> 297.471326 | H8: -32.375616 | I8: 141.3175219 | J8: 108.9419059
A9: ="5. "&names!B8 -> 5. Skilled trades occupations | B9: =(All!D22+All!D23+All!D24+All!D25)/1000 -> 350.495217 | C9: =(All!N22+All!N23+All!N24+All!N25)/1000 -> 316.529944 | D9: =(All!X22+All!X23+All!X24+All!X25)/1000 -> 296.50401 | E9: =(All!AC22+All!AC23+All!AC24+All!AC25)/1000 -> 277.570095 | F9: =(All!AH22+All!AH23+All!AH24+All!AH25)/1000 -> 264.616375 | H9: -31.887635 | I9: 99.81823372 | J9: 67.93059872
A10: ="6. "&names!B9 -> 6. Caring, leisure and other service | B10: =(All!D26+All!D27)/1000 -> 137.421036 | C10: =(All!N26+All!N27)/1000 -> 198.209627 | D10: =(All!X26+All!X27)/1000 -> 243.750589 | E10: =(All!AC26+All!AC27)/1000 -> 273.353337 | F10: =(All!AH26+All!AH27)/1000 -> 301.22023 | H10: 57.469641 | I10: 113.4259652 | J10: 170.8956062
A11: ="7. "&names!B10 -> 7. Sales and customer service | B11: =(All!D28+All!D29)/1000 -> 193.291135 | C11: =(All!N28+All!N29)/1000 -> 223.253797 | D11: =(All!X28+All!X29)/1000 -> 226.617037 | E11: =(All!AC28+All!AC29)/1000 -> 221.208957 | F11: =(All!AH28+All!AH29)/1000 -> 221.698417 | H11: -4.91862 | I11: 79.45127224 | J11: 74.53265224
A12: ="8. "&names!B11 -> 8. Process, plant and machine operatives | B12: =(All!D30+All!D31)/1000 -> 244.293814 | C12: =(All!N30+All!N31)/1000 -> 215.788912 | D12: =(All!X30+All!X31)/1000 -> 194.802199 | E12: =(All!AC30+All!AC31)/1000 -> 180.197201 | F12: =(All!AH30+All!AH31)/1000 -> 168.45353 | H12: -26.348669 | I12: 69.70220163 | J12: 43.35353263
A13: ="9. "&names!B12 -> 9. Elementary occupations | B13: =(All!D32+All!D33)/1000 -> 300.637594 | C13: =(All!N32+All!N33)/1000 -> 291.697063 | D13: =(All!X32+All!X33)/1000 -> 274.758253 | E13: =(All!AC32+All!AC33)/1000 -> 264.577207 | F13: =(All!AH32+All!AH33)/1000 -> 269.503513 | H13: -5.25474 | I13: 100.014862 | J13: 94.760122
A14: Total | B14: =All!D8/1000 -> 2249.74 | C14: =All!N8/1000 -> 2376.098 | D14: =All!X8/1000 -> 2531.229 | E14: =All!AC8/1000 -> 2570.305 | F14: =All!AH8/1000 -> 2644.048 | H14: 112.819 | I14: =SUM(I5:I13) -> 985.0465005 | J14: 1097.8655
A16: Percentage Shares | B16: =B$4 -> 1992 | C16: =C$4 -> 2002 | D16: =D$4 -> 2012 | E16: =E$4 -> 2017 | F16: =F$4 -> 2022 | H16: Percentage Changes
A17: =A$5 -> 1. Managers, directors and senior officials | B17: =B5/B$14*100 -> 7.681958182 | C17: 8.163975223 | D17: 9.719031427 | E17: 10.23449423 | F17: 10.78733711 | H17: =H5/D5*100 -> 15.93889633 | I17: 41.66496197 | J17: =J5/D5*100 -> 57.6038583
A18: =A$6 -> 2. Professional occupations | B18: 13.22115751 | C18: 14.8790262 | D18: 17.00020275 | E18: 18.33206884 | F18: 19.21217773 | H18: 18.04847804 | I18: 40.43183091 | J18: 58.48030896
A19: =A$7 -> 3. Associate professional and technical | B19: 9.807893757 | C19: 10.68565943 | D19: 11.40256243 | E19: 11.90732197 | F19: 12.40079741 | H19: 13.60175781 | I19: 36.32125987 | J19: 49.92301768
A20: =A$8 -> 4. Administrative and secretarial | B20: 14.78763502 | C20: 13.85433694 | D20: 13.03109841 | E20: 12.18127463 | F20: 11.25060233 | H20: -9.815345203 | I20: 42.84336277 | J20: 33.02801757
A21: =A$9 -> 5. Skilled trades occupations | B21: 15.57936548 | C21: 13.32141789 | D21: 11.71383585 | E21: 10.79911119 | F21: 10.00800193 | H21: -10.75453752 | I21: 33.66505354 | J21: 22.91051602
A22: =A$10 -> 6. Caring, leisure and other service | B22: 6.108307449 | C22: 8.341811954 | D22: 9.62973279 | E22: 10.63505448 | F22: 11.39238887 | H22: 23.57723164 | I22: 46.53361688 | J22: 70.11084853
A23: =A$11 -> 7. Sales and customer service | B23: 8.591709931 | C23: 9.39581604 | D23: 8.952846108 | E23: 8.606331039 | F23: 8.384810601 | H23: -2.170454642 | I23: 35.05970835 | J23: 32.8892537
A24: =A$12 -> 8. Process, plant and machine operatives | B24: 10.85875763 | C24: 9.081650336 | D24: 7.695953191 | E24: 7.010732228 | F24: 6.371046592 | H24: -13.52585809 | I24: 35.78101376 | J24: 22.25515567
A25: =A$13 -> 9. Elementary occupations | B25: 13.36321504 | C25: 12.27630607 | D25: 10.85473709 | E25: 10.29361134 | F25: 10.19283738 | H25: -1.912495782 | I25: 36.40104015 | J25: 34.48854437
A26: Total | B26: 100 | C26: 100 | D26: 100 | E26: 100 | F26: 100 | H26: 4.457083891 | I26: 38.91574016 | J26: 43.37282405
A27: =CELL("filename",$A$1) -> R:\Research Info\Individual research project info\Working Futures 2012-2022\Working Futures quant projections 2012-2022\04 Reporting and outputs\Final outputs\Workbooks\Files for gov.uk\YH\[6YHv2.xlsm]Table 6.x.3
A29: Table 6.1.4 | B29: Changing Composition of Employment by Occupation
B30: =names!A4 -> Primary sector and utilities | H30: =H$2 -> 2012 - 2022
A31: SOC2010 Major Groups | H31: Net Change | I31: Replacement | J31: Total
A32: Employment Levels (000s) | B32: =B$4 -> 1992 | C32: =C$4 -> 2002 | D32: =D$4 -> 2012 | E32: =E$4 -> 2017 | F32: =F$4 -> 2022 | I32: Demands | J32: Requirement
A33: =A$5 -> 1. Managers, directors and senior officials | B33: =(All!D37+All!D38)/1000 -> 6.179041 | C33: =(All!N37+All!N38)/1000 -> 3.344216 | D33: =(All!X37+All!X38)/1000 -> 5.482995 | E33: =(All!AC37+All!AC38)/1000 -> 5.618303 | F33: =(All!AH37+All!AH38)/1000 -> 5.988646 | H33: =F33-D33 -> 0.505651 | I33: =D33*I45/100 -> 2.172889456 | J33: =I33+H33 -> 2.678540456
A34: =A$6 -> 2. Professional occupations | B34: =(All!D39+All!D40+All!D41+All!D42)/1000 -> 6.981057 | C34: =(All!N39+All!N40+All!N41+All!N42)/1000 -> 3.994434 | D34: =(All!X39+All!X40+All!X41+All!X42)/1000 -> 5.069989 | E34: =(All!AC39+All!AC40+All!AC41+All!AC42)/1000 -> 5.545484 | F34: =(All!AH39+All!AH40+All!AH41+All!AH42)/1000 -> 6.132412 | H34: 1.062423 | I34: 1.853638407 | J34: 2.916061407
A35: =A$7 -> 3. Associate professional and technical | B35: =(All!D43+All!D44+All!D45+All!D46+All!D47)/1000 -> 6.256793 | C35: =(All!N43+All!N44+All!N45+All!N46+All!N47)/1000 -> 3.951711 | D35: =(All!X43+All!X44+All!X45+All!X46+All!X47)/1000 -> 4.321398 | E35: =(All!AC43+All!AC44+All!AC45+All!AC46+All!AC47)/1000 -> 4.563147 | F35: =(All!AH43+All!AH44+All!AH45+All!AH46+All!AH47)/1000 -> 4.836136 | H35: 0.514738 | I35: 1.517280997 | J35: 2.032018997
A36: =A$8 -> 4. Administrative and secretarial | B36: =(All!D48+All!D49)/1000 -> 8.801899 | C36: =(All!N48+All!N49)/1000 -> 3.953397 | D36: =(All!X48+All!X49)/1000 -> 3.907578 | E36: =(All!AC48+All!AC49)/1000 -> 3.817749 | F36: =(All!AH48+All!AH49)/1000 -> 3.877337 | H36: -0.030241 | I36: 1.679116759 | J36: 1.648875759
A37: =A$9 -> 5. Skilled trades occupations | B37: =(All!D50+All!D51+All!D52+All!D53)/1000 -> 27.189485 | C37: =(All!N50+All!N51+All!N52+All!N53)/1000 -> 14.339054 | D37: =(All!X50+All!X51+All!X52+All!X53)/1000 -> 25.810863 | E37: =(All!AC50+All!AC51+All!AC52+All!AC53)/1000 -> 22.243086 | F37: =(All!AH50+All!AH51+All!AH52+All!AH53)/1000 -> 21.40193 | H37: -4.408933 | I37: 11.28544397 | J37: 6.876510967
A38: =A$10 -> 6. Caring, leisure and other service | B38: =(All!D54+All!D55)/1000 -> 2.18653 | C38: =(All!N54+All!N55)/1000 -> 1.601667 | D38: =(All!X54+All!X55)/1000 -> 1.276258 | E38: =(All!AC54+All!AC55)/1000 -> 1.244041 | F38: =(All!AH54+All!AH55)/1000 -> 1.201589 | H38: -0.074669 | I38: 0.4780007303 | J38: 0.4033317303
A39: =A$11 -> 7. Sales and customer service | B39: =(All!D56+All!D57)/1000 -> 3.975194 | C39: =(All!N56+All!N57)/1000 -> 2.06953 | D39: =(All!X56+All!X57)/1000 -> 2.228627 | E39: =(All!AC56+All!AC57)/1000 -> 2.304574 | F39: =(All!AH56+All!AH57)/1000 -> 2.411375 | H39: 0.182748 | I39: 0.7107307484 | J39: 0.8934787484
A40: =A$12 -> 8. Process, plant and machine operatives | B40: =(All!D58+All!D59)/1000 -> 11.046252 | C40: =(All!N58+All!N59)/1000 -> 7.067058 | D40: =(All!X58+All!X59)/1000 -> 7.705285 | E40: =(All!AC58+All!AC59)/1000 -> 7.450474 | F40: =(All!AH58+All!AH59)/1000 -> 7.297252 | H40: -0.408033 | I40: 2.824457582 | J40: 2.416424582
A41: =A$13 -> 9. Elementary occupations | B41: =(All!D60+All!D61)/1000 -> 11.578748 | C41: =(All!N60+All!N61)/1000 -> 8.416934 | D41: =(All!X60+All!X61)/1000 -> 6.958007 | E41: =(All!AC60+All!AC61)/1000 -> 5.764141 | F41: =(All!AH60+All!AH61)/1000 -> 5.247323 | H41: -1.710684 | I41: 1.947033146 | J41: 0.2363491464
A42: Total | B42: =All!D36/1000 -> 84.195 | C42: =All!N36/1000 -> 48.738 | D42: =All!X36/1000 -> 62.761 | E42: =All!AC36/1000 -> 58.551 | F42: =All!AH36/1000 -> 58.394 | H42: -4.367 | I42: =SUM(I33:I41) -> 24.46859179 | J42: 20.10159179
A44: Percentage Shares | B44: =B$4 -> 1992 | C44: =C$4 -> 2002 | D44: =D$4 -> 2012 | E44: =E$4 -> 2017 | F44: =F$4 -> 2022 | H44: Percentage Changes
A45: =A$5 -> 1. Managers, directors and senior officials | B45: =B33/B$42*100 -> 7.338964309 | C45: 6.86161927 | D45: 8.736309173 | E45: 9.595571382 | F45: 10.25558448 | H45: =H33/D33*100 -> 9.222167812 | I45: 39.62960856 | J45: =J33/D33*100 -> 48.85177637
A46: =A$6 -> 2. Professional occupations | B46: 8.291533939 | C46: 8.195728179 | D46: 8.078247638 | E46: 9.471202883 | F46: 10.50178443 | H46: 20.95513422 | I46: 36.56099464 | J46: 57.51612886
A47: =A$7 -> 3. Associate professional and technical | B47: 7.431311836 | C47: 8.108069679 | D47: 6.885483023 | E47: 7.793456986 | F47: 8.281905675 | H47: 11.91137683 | I47: 35.11088303 | J47: 47.02225986
A48: =A$8 -> 4. Administrative and secretarial | B48: 10.45418255 | C48: 8.111528992 | D48: 6.226124504 | E48: 6.520382231 | F48: 6.639957872 | H48: -0.7739064966 | I48: 42.97078033 | J48: 42.19687383
A49: =A$9 -> 5. Skilled trades occupations | B49: 32.29346755 | C49: 29.42068612 | D49: 41.12564013 | E49: 37.9892504 | F49: 36.65090591 | H49: -17.08169541 | I49: 43.7236212 | J49: 26.64192579
A50: =A$10 -> 6. Caring, leisure and other service | B50: 2.596983194 | C50: 3.2862797 | D50: 2.033520817 | E50: 2.124713498 | F50: 2.057726821 | H50: -5.850619546 | I50: 37.45329943 | J50: 31.60267989
A51: =A$11 -> 7. Sales and customer service | B51: 4.721413386 | C51: 4.246234971 | D51: 3.550974331 | E51: 3.936011341 | F51: 4.129491044 | H51: 8.200026294 | I51: 31.89096912 | J51: 40.09099542
A52: =A$12 -> 8. Process, plant and machine operatives | B52: 13.11984322 | C52: 14.50009849 | D52: 12.27718647 | E52: 12.72475961 | F52: 12.49657842 | H52: -5.295495235 | I52: 36.65610788 | J52: 31.36061264
A53: =A$13 -> 9. Elementary occupations | B53: 13.75229883 | C53: 17.26975666 | D53: 11.08651392 | E53: 9.844649963 | F53: 8.986065349 | H53: -24.58583327 | I53: 27.98262701 | J53: 3.396793742
A54: Total | B54: 100 | C54: 100 | D54: 100 | E54: 100 | F54: 100 | H54: -6.958142796 | I54: 38.98693789 | J54: 32.02879462
A55: =$A$27 -> R:\Research Info\Individual research project info\Working Futures 2012-2022\Working Futures quant projections 2012-2022\04 Reporting and outputs\Final outputs\Workbooks\Files for gov.uk\YH\[6YHv2.xlsm]Table 6.x.3
A57: Table 6.2.4 | B57: Changing Composition of Employment by Occupation
B58: =names!A5 -> Manufacturing | H58: =H$2 -> 2012 - 2022
A59: SOC2010 Major Groups | H59: Net Change | I59: Replacement | J59: Total
A60: Employment Levels (000s) | B60: =B$4 -> 1992 | C60: =C$4 -> 2002 | D60: =D$4 -> 2012 | E60: =E$4 -> 2017 | F60: =F$4 -> 2022 | I60: Demands | J60: Requirement
A61: =A$5 -> 1. Managers, directors and senior officials | B61: =(All!D65+All!D66)/1000 -> 27.27898 | C61: =(All!N65+All!N66)/1000 -> 31.983169 | D61: =(All!X65+All!X66)/1000 -> 27.661542 | E61: =(All!AC65+All!AC66)/1000 -> 29.214975 | F61: =(All!AH65+All!AH66)/1000 -> 30.133228 | H61: =F61-D61 -> 2.471686 | I61: =D61*I73/100 -> 10.12513136 | J61: =I61+H61 -> 12.59681736
A62: =A$6 -> 2. Professional occupations | B62: =(All!D67+All!D68+All!D69+All!D70)/1000 -> 26.046244 | C62: =(All!N67+All!N68+All!N69+All!N70)/1000 -> 29.041914 | D62: =(All!X67+All!X68+All!X69+All!X70)/1000 -> 25.94809 | E62: =(All!AC67+All!AC68+All!AC69+All!AC70)/1000 -> 28.082251 | F62: =(All!AH67+All!AH68+All!AH69+All!AH70)/1000 -> 28.862977 | H62: 2.914887 | I62: 8.880101825 | J62: 11.79498883
A63: =A$7 -> 3. Associate professional and technical | B63: =(All!D71+All!D72+All!D73+All!D74+All!D75)/1000 -> 33.766217 | C63: =(All!N71+All!N72+All!N73+All!N74+All!N75)/1000 -> 34.072287 | D63: =(All!X71+All!X72+All!X73+All!X74+All!X75)/1000 -> 26.080872 | E63: =(All!AC71+All!AC72+All!AC73+All!AC74+All!AC75)/1000 -> 26.997001 | F63: =(All!AH71+All!AH72+All!AH73+All!AH74+All!AH75)/1000 -> 27.327251 | H63: 1.246379 | I63: 9.0296119 | J63: 10.2759909
A64: =A$8 -> 4. Administrative and secretarial | B64: =(All!D76+All!D77)/1000 -> 33.144169 | C64: =(All!N76+All!N77)/1000 -> 27.692982 | D64: =(All!X76+All!X77)/1000 -> 18.621713 | E64: =(All!AC76+All!AC77)/1000 -> 17.729811 | F64: =(All!AH76+All!AH77)/1000 -> 16.690308 | H64: -1.931405 | I64: 7.947707718 | J64: 6.016302718
A65: =A$9 -> 5. Skilled trades occupations | B65: =(All!D78+All!D79+All!D80+All!D81)/1000 -> 121.151095 | C65: =(All!N78+All!N79+All!N80+All!N81)/1000 -> 101.916204 | D65: =(All!X78+All!X79+All!X80+All!X81)/1000 -> 75.765071 | E65: =(All!AC78+All!AC79+All!AC80+All!AC81)/1000 -> 69.518735 | F65: =(All!AH78+All!AH79+All!AH80+All!AH81)/1000 -> 61.713192 | H65: -14.051879 | I65: 23.14073086 | J65: 9.08885186
A66: =A$10 -> 6. Caring, leisure and other service | B66: =(All!D82+All!D83)/1000 -> 2.608001 | C66: =(All!N82+All!N83)/1000 -> 2.833133 | D66: =(All!X82+All!X83)/1000 -> 2.458859 | E66: =(All!AC82+All!AC83)/1000 -> 2.818107 | F66: =(All!AH82+All!AH83)/1000 -> 3.049752 | H66: 0.590893 | I66: 1.151130632 | J66: 1.742023632
A67: =A$11 -> 7. Sales and customer service | B67: =(All!D84+All!D85)/1000 -> 8.337735 | C67: =(All!N84+All!N85)/1000 -> 8.583486 | D67: =(All!X84+All!X85)/1000 -> 7.395452 | E67: =(All!AC84+All!AC85)/1000 -> 7.176289 | F67: =(All!AH84+All!AH85)/1000 -> 7.117486 | H67: -0.277966 | I67: 2.473904244 | J67: 2.195938244
A68: =A$12 -> 8. Process, plant and machine operatives | B68: =(All!D86+All!D87)/1000 -> 122.232176 | C68: =(All!N86+All!N87)/1000 -> 93.052582 | D68: =(All!X86+All!X87)/1000 -> 58.964917 | E68: =(All!AC86+All!AC87)/1000 -> 50.336986 | F68: =(All!AH86+All!AH87)/1000 -> 41.862165 | H68: -17.102752 | I68: 17.36886909 | J68: 0.2661170859
A69: =A$13 -> 9. Elementary occupations | B69: =(All!D88+All!D89)/1000 -> 41.866382 | C69: =(All!N88+All!N89)/1000 -> 32.226243 | D69: =(All!X88+All!X89)/1000 -> 23.531482 | E69: =(All!AC88+All!AC89)/1000 -> 21.523845 | F69: =(All!AH88+All!AH89)/1000 -> 20.427642 | H69: -3.10384 | I69: 8.089918687 | J69: 4.986078687
A70: Total | B70: =All!D64/1000 -> 416.431 | C70: =All!N64/1000 -> 361.402 | D70: =All!X64/1000 -> 266.428 | E70: =All!AC64/1000 -> 253.398 | F70: =All!AH64/1000 -> 237.184 | H70: -29.244 | I70: =SUM(I61:I69) -> 88.20710632 | J70: 58.96310632
A72: Percentage Shares | B72: =B$4 -> 1992 | C72: =C$4 -> 2002 | D72: =D$4 -> 2012 | E72: =E$4 -> 2017 | F72: =F$4 -> 2022 | H72: Percentage Changes
A73: =A$5 -> 1. Managers, directors and senior officials | B73: =B61/B$70*100 -> 6.550660253 | C73: 8.849748756 | D73: 10.38237047 | E73: 11.52928397 | F73: 12.70457872 | H73: =H61/D61*100 -> 8.935459925 | I73: 36.6036404 | J73: =J61/D61*100 -> 45.53910033
A74: =A$6 -> 2. Professional occupations | B74: 6.254636182 | C74: 8.035902956 | D74: 9.739250379 | E74: 11.08227018 | F74: 12.16902363 | H74: 11.23353202 | I74: 34.22256446 | J74: 45.45609648
A75: =A$7 -> 3. Associate professional and technical | B75: 8.108478235 | C75: 9.427808092 | D75: 9.789088234 | E75: 10.65399135 | F75: 11.52154066 | H75: 4.778900797 | I75: 34.62158742 | J75: 39.40048822
A76: =A$8 -> 4. Administrative and secretarial | B76: 7.959102228 | C76: 7.662653223 | D76: 6.989397886 | E76: 6.996823574 | F76: 7.036860834 | H76: -10.37179018 | I76: 42.67978847 | J76: 32.30799829
A77: =A$9 -> 5. Skilled trades occupations | B77: 29.09271764 | C77: 28.20023243 | D77: 28.43735306 | E77: 27.43460288 | F77: 26.01912102 | H77: -18.54664533 | I77: 30.54274292 | J77: 11.9960976
A78: =A$10 -> 6. Caring, leisure and other service | B78: 0.6262744608 | C78: 0.7839284232 | D78: 0.9228981188 | E78: 1.112126773 | F78: 1.285816919 | H78: 24.03118682 | I78: 46.81564223 | J78: 70.84682906
A79: =A$11 -> 7. Sales and customer service | B79: 2.002188838 | C79: 2.375052158 | D79: 2.775778822 | E79: 2.832022747 | F79: 3.000828892 | H79: -3.758607317 | I79: 33.45169767 | J79: 29.69309035
A80: =A$12 -> 8. Process, plant and machine operatives | B80: 29.35232391 | C80: 25.74766659 | D80: 22.1316517 | E80: 19.86479215 | F80: 17.64965807 | H80: -29.00496239 | I80: 29.45627666 | J80: 0.451314272
A81: =A$13 -> 9. Elementary occupations | B81: 10.05361801 | C81: 8.917007377 | D81: 8.832210578 | E81: 8.494086378 | F81: 8.612571674 | H81: -13.19015946 | I81: 34.37912957 | J81: 21.18897011
A82: Total | B82: 100 | C82: 100 | D82: 100 | E82: 100 | F82: 100 | H82: -10.97632381 | I82: 33.10729625 | J82: 22.13097209
A83: =$A$27 -> R:\Research Info\Individual research project info\Working Futures 2012-2022\Working Futures quant projections 2012-2022\04 Reporting and outputs\Final outputs\Workbooks\Files for gov.uk\YH\[6YHv2.xlsm]Table 6.x.3
A85: Table 6.3.4 | B85: Changing Composition of Employment by Occupation
B86: =names!A6 -> Construction | H86: =H$2 -> 2012 - 2022
A87: SOC2010 Major Groups | H87: Net Change | I87: Replacement | J87: Total
A88: Employment Levels (000s) | B88: =B$4 -> 1992 | C88: 1992 | D88: 2002 | E88: 2007 | F88: 2012 | I88: Demands | J88: Requirement
A89: =A$5 -> 1. Managers, directors and senior officials | B89: =(All!D93+All!D94)/1000 -> 9.283367 | C89: =(All!N93+All!N94)/1000 -> 10.375 | D89: =(All!X93+All!X94)/1000 -> 13.983902 | E89: =(All!AC93+All!AC94)/1000 -> 16.860043 | F89: =(All!AH93+All!AH94)/1000 -> 19.69842 | H89: =F89-D89 -> 5.714518 | I89: =D89*I101/100 -> 5.853290682 | J89: =I89+H89 -> 11.56780868
A90: =A$6 -> 2. Professional occupations | B90: =(All!D95+All!D96+All!D97+All!D98)/1000 -> 9.248865 | C90: =(All!N95+All!N96+All!N97+All!N98)/1000 -> 10.502897 | D90: =(All!X95+All!X96+All!X97+All!X98)/1000 -> 12.323801 | E90: =(All!AC95+All!AC96+All!AC97+All!AC98)/1000 -> 14.951637 | F90: =(All!AH95+All!AH96+All!AH97+All!AH98)/1000 -> 17.161242 | H90: 4.837441 | I90: 4.843304244 | J90: 9.680745244
A91: =A$7 -> 3. Associate professional and technical | B91: =(All!D99+All!D100+All!D101+All!D102+All!D103)/1000 -> 8.211346 | C91: =(All!N99+All!N100+All!N101+All!N102+All!N103)/1000 -> 9.100549 | D91: =(All!X99+All!X100+All!X101+All!X102+All!X103)/1000 -> 10.25343 | E91: =(All!AC99+All!AC100+All!AC101+All!AC102+All!AC103)/1000 -> 12.197966 | F91: =(All!AH99+All!AH100+All!AH101+All!AH102+All!AH103)/1000 -> 13.978727 | H91: 3.725297 | I91: 3.926136863 | J91: 7.651433863
A92: =A$8 -> 4. Administrative and secretarial | B92: =(All!D104+All!D105)/1000 -> 16.708715 | C92: =(All!N104+All!N105)/1000 -> 14.815189 | D92: =(All!X104+All!X105)/1000 -> 12.683416 | E92: =(All!AC104+All!AC105)/1000 -> 13.07956 | F92: =(All!AH104+All!AH105)/1000 -> 13.304009 | H92: 0.620593 | I92: 5.690784106 | J92: 6.311377106
A93: =A$9 -> 5. Skilled trades occupations | B93: =(All!D106+All!D107+All!D108+All!D109)/1000 -> 85.283399 | C93: =(All!N106+All!N107+All!N108+All!N109)/1000 -> 86.466707 | D93: =(All!X106+All!X107+All!X108+All!X109)/1000 -> 84.841159 | E93: =(All!AC106+All!AC107+All!AC108+All!AC109)/1000 -> 86.444498 | F93: =(All!AH106+All!AH107+All!AH108+All!AH109)/1000 -> 89.782456 | H93: 4.941297 | I93: 27.92153344 | J93: 32.86283044
A94: =A$10 -> 6. Caring, leisure and other service | B94: =(All!D110+All!D111)/1000 -> 0.126387 | C94: =(All!N110+All!N111)/1000 -> 0.182691 | D94: =(All!X110+All!X111)/1000 -> 0.307787 | E94: =(All!AC110+All!AC111)/1000 -> 0.383616 | F94: =(All!AH110+All!AH111)/1000 -> 0.438575 | H94: 0.130788 | I94: 0.1643146377 | J94: 0.2951026377
A95: =A$11 -> 7. Sales and customer service | B95: =(All!D112+All!D113)/1000 -> 1.713199 | C95: =(All!N112+All!N113)/1000 -> 2.109674 | D95: =(All!X112+All!X113)/1000 -> 2.934219 | E95: =(All!AC112+All!AC113)/1000 -> 3.3754 | F95: =(All!AH112+All!AH113)/1000 -> 3.828588 | H95: 0.894369 | I95: 1.059104609 | J95: 1.953473609
A96: =A$12 -> 8. Process, plant and machine operatives | B96: =(All!D114+All!D115)/1000 -> 14.856361 | C96: =(All!N114+All!N115)/1000 -> 15.564365 | D96: =(All!X114+All!X115)/1000 -> 13.368814 | E96: =(All!AC114+All!AC115)/1000 -> 13.690503 | F96: =(All!AH114+All!AH115)/1000 -> 13.757781 | H96: 0.388967 | I96: 4.605576738 | J96: 4.994543738
A97: =A$13 -> 9. Elementary occupations | B97: =(All!D116+All!D117)/1000 -> 12.581361 | C97: =(All!N116+All!N117)/1000 -> 12.782926 | D97: =(All!X116+All!X117)/1000 -> 9.657469 | E97: =(All!AC116+All!AC117)/1000 -> 9.873778 | F97: =(All!AH116+All!AH117)/1000 -> 10.256202 | H97: 0.598733 | I97: 3.129953355 | J97: 3.728686355
A98: Total | B98: =All!D92/1000 -> 158.013 | C98: =All!N92/1000 -> 161.9 | D98: =All!X92/1000 -> 160.354 | E98: =All!AC92/1000 -> 170.857 | F98: =All!AH92/1000 -> 182.206 | H98: 21.852 | I98: =SUM(I89:I97) -> 57.19399867 | J98: 79.04599867
A100: Percentage Shares | B100: =B$4 -> 1992 | C100: =C$4 -> 2002 | D100: =D$4 -> 2012 | E100: =E$4 -> 2017 | F100: =F$4 -> 2022 | H100: Percentage Changes
A101: =A$5 -> 1. Managers, directors and senior officials | B101: =B89/B$98*100 -> 5.875065343 | C101: 6.408276714 | D101: 8.720644324 | E101: 9.867926395 | F101: 10.81107099 | H101: =H89/D89*100 -> 40.8649746 | I101: 41.85734913 | J101: =J89/D89*100 -> 82.72232372
A102: =A$6 -> 2. Professional occupations | B102: 5.85323043 | C102: 6.487274243 | D102: 7.68537174 | E102: 8.750965427 | F102: 9.418593241 | H102: 39.25283279 | I102: 39.30040937 | J102: 78.55324217
A103: =A$7 -> 3. Associate professional and technical | B103: 5.19662686 | C103: 5.62109265 | D103: 6.39424648 | E103: 7.139283728 | F103: 7.671935611 | H103: 36.33220298 | I103: 38.29096081 | J103: 74.62316379
A104: =A$8 -> 4. Administrative and secretarial | B104: 10.57426604 | C104: 9.150827054 | D104: 7.909634933 | E104: 7.65526727 | F104: 7.301630572 | H104: 4.892948398 | I104: 44.86791339 | J104: 49.76086179
A105: =A$9 -> 5. Skilled trades occupations | B105: 53.97239404 | C105: 53.40747807 | D105: 52.90866396 | E105: 50.59464816 | F105: 49.2752467 | H105: 5.824174326 | I105: 32.91036304 | J105: 38.73453737
A106: =A$10 -> 6. Caring, leisure and other service | B106: 0.07998519109 | C106: 0.1128418777 | D106: 0.1919422029 | E106: 0.2245246024 | F106: 0.2407028309 | H106: 42.49302277 | I106: 53.38582777 | J106: 95.87885055
A107: =A$11 -> 7. Sales and customer service | B107: 1.084213957 | C107: 1.303072267 | D107: 1.829838358 | E107: 1.975570214 | F107: 2.101241452 | H107: 30.48064919 | I107: 36.09494072 | J107: 66.57558991
A108: =A$12 -> 8. Process, plant and machine operatives | B108: 9.401986545 | C108: 9.613567017 | D108: 8.337062998 | E108: 8.012842904 | F108: 7.550673962 | H108: 2.909510148 | I108: 34.45015196 | J108: 37.3596621
A109: =A$13 -> 9. Elementary occupations | B109: 7.962231589 | C109: 7.89556887 | D109: 6.022593138 | E109: 5.778971889 | F109: 5.628904646 | H109: 6.199688552 | I109: 32.40966504 | J109: 38.6093536
A110: Total | B110: 100 | C110: 100 | D110: 100 | E110: 100 | F110: 100 | H110: 13.62734949 | I110: 35.66733583 | J110: 49.29468468
A111: =$A$27 -> R:\Research Info\Individual research project info\Working Futures 2012-2022\Working Futures quant projections 2012-2022\04 Reporting and outputs\Final outputs\Workbooks\Files for gov.uk\YH\[6YHv2.xlsm]Table 6.x.3
A113: Table 6.4.4 | B113: Changing Composition of Employment by Occupation
B114: =names!A7 -> Trade, accomod. and transport | H114: =H$2 -> 2012 - 2022
A115: SOC2010 Major Groups | H115: Net Change | I115: Replacement | J115: Total
A116: Employment Levels (000s) | B116: =B$4 -> 1992 | C116: =C$4 -> 2002 | D116: =D$4 -> 2012 | E116: =E$4 -> 2017 | F116: =F$4 -> 2022 | I116: Demands | J116: Requirement
A117: =A$5 -> 1. Managers, directors and senior officials | B117: =(All!D121+All!D122)/1000 -> 75.45383 | C117: =(All!N121+All!N122)/1000 -> 79.3483 | D117: =(All!X121+All!X122)/1000 -> 95.209205 | E117: =(All!AC121+All!AC122)/1000 -> 101.012826 | F117: =(All!AH121+All!AH122)/1000 -> 109.705962 | H117: =F117-D117 -> 14.496757 | I117: =D117*I129/100 -> 41.27793666 | J117: =I117+H117 -> 55.77469366
A118: =A$6 -> 2. Professional occupations | B118: =(All!D123+All!D124+All!D125+All!D126)/1000 -> 25.110828 | C118: =(All!N123+All!N124+All!N125+All!N126)/1000 -> 29.174195 | D118: =(All!X123+All!X124+All!X125+All!X126)/1000 -> 36.127816 | E118: =(All!AC123+All!AC124+All!AC125+All!AC126)/1000 -> 42.775781 | F118: =(All!AH123+All!AH124+All!AH125+All!AH126)/1000 -> 47.849051 | H118: 11.721235 | I118: 15.05574887 | J118: 26.77698387
A119: =A$7 -> 3. Associate professional and technical | B119: =(All!D127+All!D128+All!D129+All!D130+All!D131)/1000 -> 41.35612 | C119: =(All!N127+All!N128+All!N129+All!N130+All!N131)/1000 -> 44.28998 | D119: =(All!X127+All!X128+All!X129+All!X130+All!X131)/1000 -> 48.839576 | E119: =(All!AC127+All!AC128+All!AC129+All!AC130+All!AC131)/1000 -> 55.007978 | F119: =(All!AH127+All!AH128+All!AH129+All!AH130+All!AH131)/1000 -> 60.820089 | H119: 11.980513 | I119: 18.84669528 | J119: 30.82720828
A120: =A$8 -> 4. Administrative and secretarial | B120: =(All!D132+All!D133)/1000 -> 59.741091 | C120: =(All!N132+All!N133)/1000 -> 65.008584 | D120: =(All!X132+All!X133)/1000 -> 58.039791 | E120: =(All!AC132+All!AC133)/1000 -> 60.782512 | F120: =(All!AH132+All!AH133)/1000 -> 61.721315 | H120: 3.681524 | I120: 26.34880989 | J120: 30.03033389
A121: =A$9 -> 5. Skilled trades occupations | B121: =(All!D134+All!D135+All!D136+All!D137)/1000 -> 70.879751 | C121: =(All!N134+All!N135+All!N136+All!N137)/1000 -> 66.81916 | D121: =(All!X134+All!X135+All!X136+All!X137)/1000 -> 64.274888 | E121: =(All!AC134+All!AC135+All!AC136+All!AC137)/1000 -> 57.829587 | F121: =(All!AH134+All!AH135+All!AH136+All!AH137)/1000 -> 52.453146 | H121: -11.821742 | I121: 20.70722032 | J121: 8.885478323
A122: =A$10 -> 6. Caring, leisure and other service | B122: =(All!D138+All!D139)/1000 -> 10.239931 | C122: =(All!N138+All!N139)/1000 -> 12.274167 | D122: =(All!X138+All!X139)/1000 -> 16.791093 | E122: =(All!AC138+All!AC139)/1000 -> 19.58383 | F122: =(All!AH138+All!AH139)/1000 -> 22.738306 | H122: 5.947213 | I122: 8.522670824 | J122: 14.46988382
A123: =A$11 -> 7. Sales and customer service | B123: =(All!D140+All!D141)/1000 -> 152.027507 | C123: =(All!N140+All!N141)/1000 -> 170.674493 | D123: =(All!X140+All!X141)/1000 -> 161.253049 | E123: =(All!AC140+All!AC141)/1000 -> 153.388711 | F123: =(All!AH140+All!AH141)/1000 -> 150.791586 | H123: -10.461463 | I123: 57.09900963 | J123: 46.63754663
A124: =A$12 -> 8. Process, plant and machine operatives | B124: =(All!D142+All!D143)/1000 -> 77.875904 | C124: =(All!N142+All!N143)/1000 -> 77.595573 | D124: =(All!X142+All!X143)/1000 -> 87.266247 | E124: =(All!AC142+All!AC143)/1000 -> 81.939122 | F124: =(All!AH142+All!AH143)/1000 -> 79.544665 | H124: -7.721582 | I124: 33.97214705 | J124: 26.25056505
A125: =A$13 -> 9. Elementary occupations | B125: =(All!D144+All!D145)/1000 -> 118.110037 | C125: =(All!N144+All!N145)/1000 -> 118.402548 | D125: =(All!X144+All!X145)/1000 -> 125.085334 | E125: =(All!AC144+All!AC145)/1000 -> 125.662653 | F125: =(All!AH144+All!AH145)/1000 -> 133.181883 | H125: 8.096549 | I125: 47.57276757 | J125: 55.66931657
A126: Total | B126: =All!D120/1000 -> 630.795 | C126: =All!N120/1000 -> 663.587 | D126: =All!X120/1000 -> 692.887 | E126: =All!AC120/1000 -> 697.983 | F126: =All!AH120/1000 -> 718.806 | H126: 25.919 | I126: =SUM(I117:I125) -> 269.4030061 | J126: 295.3220061
A128: Percentage Shares | B128: =B$4 -> 1992 | C128: =C$4 -> 2002 | D128: =D$4 -> 2012 | E128: =E$4 -> 2017 | F128: =F$4 -> 2022 | H128: Percentage Changes
A129: =A$5 -> 1. Managers, directors and senior officials | B129: =B117/B$126*100 -> 11.96170388 | C129: 11.95748259 | D129: 13.74094261 | E129: 14.47210405 | F129: 15.26224906 | H129: =H117/D117*100 -> 15.22621368 | I129: 43.35498512 | J129: =J117/D117*100 -> 58.5811988
A130: =A$6 -> 2. Professional occupations | B130: 3.980822296 | C130: 4.396438598 | D130: 5.214099269 | E130: 6.128484648 | F130: 6.656740623 | H130: 32.44379622 | I130: 41.67356495 | J130: 74.11736117
A131: =A$7 -> 3. Associate professional and technical | B131: 6.556190204 | C131: 6.674329063 | D131: 7.048707221 | E131: 7.880991084 | F131: 8.461266183 | H131: 24.53033786 | I131: 38.58898218 | J131: 63.11932004
A132: =A$8 -> 4. Administrative and secretarial | B132: 9.470761658 | C132: 9.796542729 | D132: 8.376516084 | E132: 8.708308369 | F132: 8.58664438 | H132: 6.343103475 | I132: 45.3978373 | J132: 51.74094077
A133: =A$9 -> 5. Skilled trades occupations | B133: 11.23657464 | C133: 10.06938955 | D133: 9.276388213 | E133: 8.285242907 | F133: 7.297260457 | H133: -18.3924739 | I133: 32.21665718 | J133: 13.82418328
A134: =A$10 -> 6. Caring, leisure and other service | B134: 1.623337376 | C134: 1.849669599 | D134: 2.423352293 | E134: 2.805774639 | F134: 3.163343934 | H134: 35.4188557 | I134: 50.7570938 | J134: 86.1759495
A135: =A$11 -> 7. Sales and customer service | B135: 24.10093723 | C135: 25.71998743 | D135: 23.27263306 | E135: 21.97599526 | F135: 20.97806446 | H135: -6.487606321 | I135: 35.40956899 | J135: 28.92196267
A136: =A$12 -> 8. Process, plant and machine operatives | B136: 12.34567554 | C136: 11.6933534 | D136: 12.5945857 | E136: 11.73941514 | F136: 11.06622162 | H136: -8.848303056 | I136: 38.92930912 | J136: 30.08100606
A137: =A$13 -> 9. Elementary occupations | B137: 18.72399702 | C137: 17.84280705 | D137: 18.05277542 | E137: 18.0036839 | F137: 18.5282097 | H137: 6.472820387 | I137: 38.03225051 | J137: 44.50507089
A138: Total | B138: 100 | C138: 100 | D138: 100 | E138: 100 | F138: 100 | H138: 3.7407254 | I138: 38.88123263 | J138: 42.621958
A139: =$A$27 -> R:\Research Info\Individual research project info\Working Futures 2012-2022\Working Futures quant projections 2012-2022\04 Reporting and outputs\Final outputs\Workbooks\Files for gov.uk\YH\[6YHv2.xlsm]Table 6.x.3
A141: Table 6.5.4 | B141: Changing Composition of Employment by Occupation
B142: =names!A8 -> Business and other services | H142: =H$2 -> 2012 - 2022
A143: SOC2010 Major Groups | H143: Net Change | I143: Replacement | J143: Total
A144: Employment Levels (000s) | B144: =B$4 -> 1992 | C144: =C$4 -> 2002 | D144: =D$4 -> 2012 | E144: =E$4 -> 2017 | F144: =F$4 -> 2022 | I144: Demands | J144: Requirement
A145: =A$5 -> 1. Managers, directors and senior officials | B145: =(All!D149+All!D150)/1000 -> 41.42564 | C145: =(All!N149+All!N150)/1000 -> 50.204583 | D145: =(All!X149+All!X150)/1000 -> 73.913774 | E145: =(All!AC149+All!AC150)/1000 -> 80.717416 | F145: =(All!AH149+All!AH150)/1000 -> 87.987846 | H145: =F145-D145 -> 14.074072 | I145: =D145*I157/100 -> 30.99582668 | J145: =I145+H145 -> 45.06989868
A146: =A$6 -> 2. Professional occupations | B146: =(All!D151+All!D152+All!D153+All!D154)/1000 -> 70.085061 | C146: =(All!N151+All!N152+All!N153+All!N154)/1000 -> 87.409629 | D146: =(All!X151+All!X152+All!X153+All!X154)/1000 -> 128.239547 | E146: =(All!AC151+All!AC152+All!AC153+All!AC154)/1000 -> 145.60069 | F146: =(All!AH151+All!AH152+All!AH153+All!AH154)/1000 -> 158.006194 | H146: 29.766647 | I146: 50.34122629 | J146: 80.10787329
A147: =A$7 -> 3. Associate professional and technical | B147: =(All!D155+All!D156+All!D157+All!D158+All!D159)/1000 -> 67.253284 | C147: =(All!N155+All!N156+All!N157+All!N158+All!N159)/1000 -> 85.503915 | D147: =(All!X155+All!X156+All!X157+All!X158+All!X159)/1000 -> 111.364679 | E147: =(All!AC155+All!AC156+All!AC157+All!AC158+All!AC159)/1000 -> 122.124079 | F147: =(All!AH155+All!AH156+All!AH157+All!AH158+All!AH159)/1000 -> 131.277837 | H147: 19.913158 | I147: 42.33031742 | J147: 62.24347542
A148: =A$8 -> 4. Administrative and secretarial | B148: =(All!D160+All!D161)/1000 -> 104.848959 | C148: =(All!N160+All!N161)/1000 -> 114.615449 | D148: =(All!X160+All!X161)/1000 -> 120.513687 | E148: =(All!AC160+All!AC161)/1000 -> 119.895067 | F148: =(All!AH160+All!AH161)/1000 -> 114.667553 | H148: -5.846134 | I148: 53.53488664 | J148: 47.68875264
A149: =A$9 -> 5. Skilled trades occupations | B149: =(All!D162+All!D163+All!D164+All!D165)/1000 -> 29.317181 | C149: =(All!N162+All!N163+All!N164+All!N165)/1000 -> 33.759443 | D149: =(All!X162+All!X163+All!X164+All!X165)/1000 -> 34.874785 | E149: =(All!AC162+All!AC163+All!AC164+All!AC165)/1000 -> 33.017212 | F149: =(All!AH162+All!AH163+All!AH164+All!AH165)/1000 -> 31.827754 | H149: -3.047031 | I149: 12.92979697 | J149: 9.88276597
A150: =A$10 -> 6. Caring, leisure and other service | B150: =(All!D166+All!D167)/1000 -> 28.063929 | C150: =(All!N166+All!N167)/1000 -> 35.68871 | D150: =(All!X166+All!X167)/1000 -> 43.282912 | E150: =(All!AC166+All!AC167)/1000 -> 49.08619 | F150: =(All!AH166+All!AH167)/1000 -> 51.089683 | H150: 7.806771 | I150: 20.8851793 | J150: 28.6919503
A151: =A$11 -> 7. Sales and customer service | B151: =(All!D168+All!D169)/1000 -> 22.084128 | C151: =(All!N168+All!N169)/1000 -> 32.876246 | D151: =(All!X168+All!X169)/1000 -> 42.51952 | E151: =(All!AC168+All!AC169)/1000 -> 45.578642 | F151: =(All!AH168+All!AH169)/1000 -> 48.051471 | H151: 5.531951 | I151: 14.74098455 | J151: 20.27293555
A152: =A$12 -> 8. Process, plant and machine operatives | B152: =(All!D170+All!D171)/1000 -> 11.911924 | C152: =(All!N170+All!N171)/1000 -> 16.526684 | D152: =(All!X170+All!X171)/1000 -> 21.160668 | E152: =(All!AC170+All!AC171)/1000 -> 21.299547 | F152: =(All!AH170+All!AH171)/1000 -> 20.863108 | H152: -0.29756 | I152: 8.544819918 | J152: 8.247259918
A153: =A$13 -> 9. Elementary occupations | B153: =(All!D172+All!D173)/1000 -> 62.149892 | C153: =(All!N172+All!N173)/1000 -> 79.307342 | D153: =(All!X172+All!X173)/1000 -> 85.603427 | E153: =(All!AC172+All!AC173)/1000 -> 84.980158 | F153: =(All!AH172+All!AH173)/1000 -> 86.242554 | H153: 0.639127 | I153: 31.46974584 | J153: 32.10887284
A154: Total | B154: =All!D148/1000 -> 437.14 | C154: =All!N148/1000 -> 535.892 | D154: =All!X148/1000 -> 661.473 | E154: =All!AC148/1000 -> 702.299 | F154: =All!AH148/1000 -> 730.014 | H154: 68.541 | I154: =SUM(I145:I153) -> 265.7727836 | J154: 334.3137836
A156: Percentage Shares | B156: =B$4 -> 1992 | C156: =C$4 -> 2002 | D156: =D$4 -> 2012 | E156: =E$4 -> 2017 | F156: =F$4 -> 2022 | H156: Percentage Changes
A157: =A$5 -> 1. Managers, directors and senior officials | B157: =B145/B$154*100 -> 9.476515533 | C157: 9.368414345 | D157: 11.17411807 | E157: 11.49331211 | F157: 12.05289844 | H157: =H145/D145*100 -> 19.04120334 | I157: 41.93511575 | J157: =J145/D145*100 -> 60.97631908
A158: =A$6 -> 2. Professional occupations | B158: 16.03263508 | C158: 16.31105316 | D158: 19.38696621 | E158: 20.73200873 | F158: 21.64426901 | H158: 23.21175308 | I158: 39.25561768 | J158: 62.46737076
A159: =A$7 -> 3. Associate professional and technical | B159: 15.38483872 | C159: 15.95543785 | D159: 16.83586163 | E159: 17.38918595 | F159: 17.98292046 | H159: 17.88103569 | I159: 38.0105414 | J159: 55.89157709
A160: =A$8 -> 4. Administrative and secretarial | B160: 23.98521275 | C160: 21.38778877 | D160: 18.21898808 | E160: 17.07179805 | F160: 15.70758273 | H160: -4.851012483 | I160: 44.42224612 | J160: 39.57123363
A161: =A$9 -> 5. Skilled trades occupations | B161: 6.706588507 | C161: 6.299672882 | D161: 5.272291537 | E161: 4.701304145 | F161: 4.359882687 | H161: -8.737060314 | I161: 37.07491522 | J161: 28.3378549
A162: =A$10 -> 6. Caring, leisure and other service | B162: 6.419894999 | C162: 6.659683294 | D162: 6.543413261 | E162: 6.989357809 | F162: 6.998452495 | H162: 18.03661223 | I162: 48.25271299 | J162: 66.28932522
A163: =A$11 -> 7. Sales and customer service | B163: 5.051957725 | C163: 6.134864114 | D163: 6.428005376 | E163: 6.48991982 | F163: 6.582267052 | H163: 13.0103797 | I163: 34.66874638 | J163: 47.67912608
A164: =A$12 -> 8. Process, plant and machine operatives | B164: 2.724967745 | C164: 3.083957962 | D164: 3.199022182 | E164: 3.032831743 | F164: 2.857905191 | H164: -1.406193793 | I164: 40.38067191 | J164: 38.97447811
A165: =A$13 -> 9. Elementary occupations | B165: 14.21738848 | C165: 14.79912781 | D165: 12.94133351 | E165: 12.10028179 | F165: 11.81382193 | H165: 0.7466138009 | I165: 36.76225 | J165: 37.5088638
A166: Total | B166: 100 | C166: 100 | D166: 100 | E166: 100 | F166: 100 | H166: 10.36187418 | I166: 40.1789316 | J166: 50.54080569
A167: =$A$27 -> R:\Research Info\Individual research project info\Working Futures 2012-2022\Working Futures quant projections 2012-2022\04 Reporting and outputs\Final outputs\Workbooks\Files for gov.uk\YH\[6YHv2.xlsm]Table 6.x.3
A169: Table 6.6.4 | B169: Changing Composition of Employment by Occupation
B170: =names!A9 -> Non-market services | H170: =H$2 -> 2012 - 2022
A171: SOC2010 Major Groups | H171: Net Change | I171: Replacement | J171: Total
A172: Employment Levels (000s) | B172: =B$4 -> 1992 | C172: =C$4 -> 2002 | D172: =D$4 -> 2012 | E172: =E$4 -> 2017 | F172: =F$4 -> 2022 | I172: Demands | J172: Requirement
A173: =A$5 -> 1. Managers, directors and senior officials | B173: =(All!D177+All!D178)/1000 -> 13.203226 | C173: =(All!N177+All!N178)/1000 -> 18.728785 | D173: =(All!X177+All!X178)/1000 -> 29.759523 | E173: =(All!AC177+All!AC178)/1000 -> 29.634153 | F173: =(All!AH177+All!AH178)/1000 -> 31.708269 | H173: =F173-D173 -> 1.948746 | I173: =D173*I185/100 -> 12.07529056 | J173: =I173+H173 -> 14.02403656
A174: =A$6 -> 2. Professional occupations | B174: =(All!D179+All!D180+All!D181+All!D182)/1000 -> 159.969612 | C174: =(All!N179+All!N180+All!N181+All!N182)/1000 -> 193.417173 | D174: =(All!X179+All!X180+All!X181+All!X182)/1000 -> 222.60482 | E174: =(All!AC179+All!AC180+All!AC181+All!AC182)/1000 -> 234.234241 | F174: =(All!AH179+All!AH180+All!AH181+All!AH182)/1000 -> 249.967326 | H174: 27.362506 | I174: 93.00983606 | J174: 120.3723421
A175: =A$7 -> 3. Associate professional and technical | B175: =(All!D183+All!D184+All!D185+All!D186+All!D187)/1000 -> 63.80835 | C175: =(All!N183+All!N184+All!N185+All!N186+All!N187)/1000 -> 76.983297 | D175: =(All!X183+All!X184+All!X185+All!X186+All!X187)/1000 -> 87.765009 | E175: =(All!AC183+All!AC184+All!AC185+All!AC186+All!AC187)/1000 -> 85.16432 | F175: =(All!AH183+All!AH184+All!AH185+All!AH186+All!AH187)/1000 -> 89.642995 | H175: 1.877986 | I175: 29.18218091 | J175: 31.06016691
A176: =A$8 -> 4. Administrative and secretarial | B176: =(All!D188+All!D189)/1000 -> 109.438507 | C176: =(All!N188+All!N189)/1000 -> 103.107022 | D176: =(All!X188+All!X189)/1000 -> 116.080754 | E176: =(All!AC188+All!AC189)/1000 -> 97.791212 | F176: =(All!AH188+All!AH189)/1000 -> 87.210804 | H176: -28.86995 | I176: 46.11621623 | J176: 17.24626623
A177: =A$9 -> 5. Skilled trades occupations | B177: =(All!D190+All!D191+All!D192+All!D193)/1000 -> 16.674305 | C177: =(All!N190+All!N191+All!N192+All!N193)/1000 -> 13.229377 | D177: =(All!X190+All!X191+All!X192+All!X193)/1000 -> 10.937243 | E177: =(All!AC190+All!AC191+All!AC192+All!AC193)/1000 -> 8.516977 | F177: =(All!AH190+All!AH191+All!AH192+All!AH193)/1000 -> 7.437898 | H177: -3.499345 | I177: 3.833507542 | J177: 0.3341625419
A178: =A$10 -> 6. Caring, leisure and other service | B178: =(All!D194+All!D195)/1000 -> 94.196257 | C178: =(All!N194+All!N195)/1000 -> 145.629259 | D178: =(All!X194+All!X195)/1000 -> 179.633679 | E178: =(All!AC194+All!AC195)/1000 -> 200.237553 | F178: =(All!AH194+All!AH195)/1000 -> 222.702327 | H178: 43.068648 | I178: 82.22466861 | J178: 125.2933166
A179: =A$11 -> 7. Sales and customer service | B179: =(All!D196+All!D197)/1000 -> 5.153372 | C179: =(All!N196+All!N197)/1000 -> 6.940368 | D179: =(All!X196+All!X197)/1000 -> 10.28617 | E179: =(All!AC196+All!AC197)/1000 -> 9.385341 | F179: =(All!AH196+All!AH197)/1000 -> 9.497912 | H179: -0.788258 | I179: 3.367539467 | J179: 2.579281467
A180: =A$12 -> 8. Process, plant and machine operatives | B180: =(All!D198+All!D199)/1000 -> 6.371197 | C180: =(All!N198+All!N199)/1000 -> 5.98265 | D180: =(All!X198+All!X199)/1000 -> 6.336268 | E180: =(All!AC198+All!AC199)/1000 -> 5.48057 | F180: =(All!AH198+All!AH199)/1000 -> 5.12856 | H180: -1.207708 | I180: 2.386330523 | J180: 1.178622523
A181: =A$13 -> 9. Elementary occupations | B181: =(All!D200+All!D201)/1000 -> 54.351173 | C181: =(All!N200+All!N201)/1000 -> 40.56107 | D181: =(All!X200+All!X201)/1000 -> 23.922532 | E181: =(All!AC200+All!AC201)/1000 -> 16.772633 | F181: =(All!AH200+All!AH201)/1000 -> 14.147911 | H181: -9.774621 | I181: 7.805441498 | J181: -1.969179502
A182: Total | B182: =All!D176/1000 -> 523.166 | C182: =All!N176/1000 -> 604.579 | D182: =All!X176/1000 -> 687.326 | E182: =All!AC176/1000 -> 687.217 | F182: =All!AH176/1000 -> 717.444 | H182: 30.118 | I182: =SUM(I173:I181) -> 280.0010114 | J182: 310.1190114
A184: Percentage Shares | B184: =B$4 -> 1992 | C184: =C$4 -> 2002 | D184: =D$4 -> 2012 | E184: =E$4 -> 2017 | F184: =F$4 -> 2022 | H184: Percentage Changes
A185: =A$5 -> 1. Managers, directors and senior officials | B185: =B173/B$182*100 -> 2.523716373 | C185: 3.097822617 | D185: 4.329753712 | E185: 4.312197312 | F185: 4.419615886 | H185: =H173/D173*100 -> 6.548310603 | I185: 40.57622349 | J185: =J173/D173*100 -> 47.1245341
A186: =A$6 -> 2. Professional occupations | B186: 30.5772187 | C186: 31.99204289 | D186: 32.38707978 | E186: 34.08446546 | F186: 34.84137103 | H186: 12.29196475 | I186: 41.78248973 | J186: 54.07445448
A187: =A$7 -> 3. Associate professional and technical | B187: 12.19657814 | C187: 12.73337264 | D187: 12.76905122 | E187: 12.39263872 | F187: 12.49477241 | H187: 2.13978899 | I187: 33.25035939 | J187: 35.39014838
A188: =A$8 -> 4. Administrative and secretarial | B188: 20.91850522 | C188: 17.05435055 | D188: 16.8887477 | E188: 14.23003389 | F188: 12.15576463 | H188: -24.87057415 | I188: 39.72770218 | J188: 14.85712802
A189: =A$9 -> 5. Skilled trades occupations | B189: 3.187192019 | C189: 2.18819658 | D189: 1.591274446 | E189: 1.239343177 | F189: 1.036721751 | H189: -31.99476321 | I189: 35.05003539 | J189: 3.055272174
A190: =A$10 -> 6. Caring, leisure and other service | B190: 18.0050418 | C190: 24.08771376 | D190: 26.1351497 | E190: 29.13745629 | F190: 31.04107456 | H190: 23.97582026 | I190: 45.77352591 | J190: 69.74934617
A191: =A$11 -> 7. Sales and customer service | B191: 0.9850357248 | C191: 1.147967098 | D191: 1.496548945 | E191: 1.365702682 | F191: 1.323854127 | H191: -7.663279919 | I191: 32.73851654 | J191: 25.07523662
A192: =A$12 -> 8. Process, plant and machine operatives | B192: 1.217815569 | C192: 0.989556369 | D192: 0.9218722993 | E192: 0.797502099 | F192: 0.7148376737 | H192: -19.06024177 | I192: 37.66145186 | J192: 18.60121009
A193: =A$13 -> 9. Elementary occupations | B193: 10.38889626 | C193: 6.708977652 | D193: 3.480521907 | E193: 2.440660374 | F193: 1.971988197 | H193: -40.85947508 | I193: 32.62799062 | J193: -8.231484452
A194: Total | B194: 100 | C194: 100 | D194: 100 | E194: 100 | F194: 100 | H194: 4.381909021 | I194: 40.7377303 | J194: 45.11963921
A195: =$A$27 -> R:\Research Info\Individual research project info\Working Futures 2012-2022\Working Futures quant projections 2012-2022\04 Reporting and outputs\Final outputs\Workbooks\Files for gov.uk\YH\[6YHv2.xlsm]Table 6.x.3

Sheet RD Charts(Occupations)
Z2: Values for the charts are written here by program RD_VBtab6x3PGeneratorWF5.xlsm
C4: ="Components of Replacement Demand, "&Z9&", "&AA9 -> Components of Replacement Demand, All occupations, 2012- 2022
Z9: All occupations | AA9: 2012- 2022
Z10: periods | AA10: 2012- 2013 | AB10: 2013- 2014 | AC10: 2014- 2015 | AD10: 2015- 2016 | AE10: 2016- 2017 | AF10: 2017- 2018 | AG10: 2018- 2019 | AH10: 2019- 2020 | AI10: 2020- 2021 | AJ10: 2021- 2022
Z11: labels
Z12: Expansion demand | AA12: 16.503003 | AB12: 2.680003 | AC12: 3.581998 | AD12: 4.486002 | AE12: 11.825004 | AF12: 15.357996 | AG12: 15.817 | AH12: 15.218998 | AI12: 13.776005 | AJ12: 13.572997
Z13: Replacement demand | AA13: 97.39849344 | AB13: 97.78026561 | AC13: 97.77430797 | AD13: 97.79977185 | AE13: 97.88472081 | AF13: 98.26266624 | AG13: 98.76866018 | AH13: 99.30004914 | AI13: 99.81331 | AJ13: 100.2642524
Z14: Net requirement | AA14: 113.9014964 | AB14: 100.4602686 | AC14: 101.356306 | AD14: 102.2857738 | AE14: 109.7097248 | AF14: 113.6206622 | AG14: 114.5856602 | AH14: 114.5190471 | AI14: 113.589315 | AJ14: 113.8372494
C29: ="Components of Replacement Demand, "&Z34&", "&AA34 -> Components of Replacement Demand, Corporate managers and directors, 2012- 2022
Z34: Corporate managers and directors | AA34: 2012- 2022
Z35: periods | AA35: 2012- 2013 | AB35: 2013- 2014 | AC35: 2014- 2015 | AD35: 2015- 2016 | AE35: 2016- 2017 | AF35: 2017- 2018 | AG35: 2018- 2019 | AH35: 2019- 2020 | AI35: 2020- 2021 | AJ35: 2021- 2022
Z36: labels
Z37: Expansion demand | AA37: 4.914821 | AB37: 3.061847 | AC37: 3.205308 | AD37: 3.229522 | AE37: 3.65197 | AF37: 3.699238 | AG37: 3.674123 | AH37: 3.655167 | AI37: 3.358209 | AJ37: 3.291469
Z38: Replacement demand | AA38: 5.471737056 | AB38: 5.651652141 | AC38: 5.767078073 | AD38: 5.887403966 | AE38: 6.006299629 | AF38: 6.140612678 | AG38: 6.276761535 | AH38: 6.411982275 | AI38: 6.5467152 | AJ38: 6.672941257
Z39: Net requirement | AA39: 10.38655806 | AB39: 8.713499141 | AC39: 8.972386073 | AD39: 9.116925966 | AE39: 9.658269629 | AF39: 9.839850678 | AG39: 9.950884535 | AH39: 10.06714927 | AI39: 9.9049242 | AJ39: 9.964410257
C54: ="Components of Replacement Demand, "&Z59&", "&AA59 -> Components of Replacement Demand, Other managers and proprietors, 2012- 2022
Z59: Other managers and proprietors | AA59: 2012- 2022
Z60: periods | AA60: 2012- 2013 | AB60: 2013- 2014 | AC60: 2014- 2015 | AD60: 2015- 2016 | AE60: 2016- 2017 | AF60: 2017- 2018 | AG60: 2018- 2019 | AH60: 2019- 2020 | AI60: 2020- 2021 | AJ60: 2021- 2022
Z61: labels
Z62: Expansion demand | AA62: -2.039525 | AB62: 0.0198 | AC62: -0.260337 | AD62: 0.560253 | AE62: 0.703118 | AF62: 0.737898 | AG62: 1.026309 | AH62: 1.117803 | AI62: 0.788525 | AJ62: 0.815912
Z63: Replacement demand | AA63: 4.167879944 | AB63: 4.078895882 | AC63: 4.085257718 | AD63: 4.076741885 | AE63: 4.105412654 | AF63: 4.140710886 | AG63: 4.177579837 | AH63: 4.228077941 | AI63: 4.282644229 | AJ63: 4.323980222
Z64: Net requirement | AA64: 2.128354944 | AB64: 4.098695882 | AC64: 3.824920718 | AD64: 4.636994885 | AE64: 4.808530654 | AF64: 4.878608886 | AG64: 5.203888837 | AH64: 5.345880941 | AI64: 5.071169229 | AJ64: 5.139892222
C79: ="Components of Replacement Demand, "&Z84&", "&AA84 -> Components of Replacement Demand, Science, research, engineering and technology professionals, 2012- 2022
Z84: Science, research, engineering and technology professionals | AA84: 2012- 2022
Z85: periods | AA85: 2012- 2013 | AB85: 2013- 2014 | AC85: 2014- 2015 | AD85: 2015- 2016 | AE85: 2016- 2017 | AF85: 2017- 2018 | AG85: 2018- 2019 | AH85: 2019- 2020 | AI85: 2020- 2021 | AJ85: 2021- 2022
Z86: labels
Z87: Expansion demand | AA87: 4.900916 | AB87: 2.261749 | AC87: 2.158673 | AD87: 2.044236 | AE87: 2.125017 | AF87: 1.914306 | AG87: 1.884476 | AH87: 1.897004 | AI87: 1.604397 | AJ87: 1.56422
Z88: Replacement demand | AA88: 3.22925375 | AB88: 3.372993577 | AC88: 3.440965765 | AD88: 3.506210858 | AE88: 3.567629131 | AF88: 3.632135013 | AG88: 3.69065036 | AH88: 3.74841633 | AI88: 3.806910579 | AJ88: 3.857086689
Z89: Net requirement | AA89: 8.13016975 | AB89: 5.634742577 | AC89: 5.599638765 | AD89: 5.550446858 | AE89: 5.692646131 | AF89: 5.546441013 | AG89: 5.57512636 | AH89: 5.64542033 | AI89: 5.411307579 | AJ89: 5.421306689
C104: ="Components of Replacement Demand, "&Z109&", "&AA109 -> Components of Replacement Demand, Health professionals, 2012- 2022
Z109: Health professionals | AA109: 2012- 2022
Z110: periods | AA110: 2012- 2013 | AB110: 2013- 2014 | AC110: 2014- 2015 | AD110: 2015- 2016 | AE110: 2016- 2017 | AF110: 2017- 2018 | AG110: 2018- 2019 | AH110: 2019- 2020 | AI110: 2020- 2021 | AJ110: 2021- 2022
Z111: labels
Z112: Expansion demand | AA112: 6.589532 | AB112: 1.821645 | AC112: 1.722649 | AD112: 0.740117 | AE112: 1.768128 | AF112: 3.082132 | AG112: 1.984694 | AH112: 1.829097 | AI112: 2.467045 | AJ112: 2.513552
Z113: Replacement demand | AA113: 3.648593027 | AB113: 3.9006306 | AC113: 3.971155236 | AD113: 4.037829542 | AE113: 4.067639479 | AF113: 4.136869409 | AG113: 4.256642603 | AH113: 4.334882205 | AI113: 4.407272578 | AJ113: 4.502941751
Z114: Net requirement | AA114: 10.23812503 | AB114: 5.7222756 | AC114: 5.693804236 | AD114: 4.777946542 | AE114: 5.835767479 | AF114: 7.219001409 | AG114: 6.241336603 | AH114: 6.163979205 | AI114: 6.874317578 | AJ114: 7.016493751
C129: ="Components of Replacement Demand, "&Z134&", "&AA134 -> Components of Replacement Demand, Teaching and educational professionals, 2012- 2022
Z134: Teaching and educational professionals | AA134: 2012- 2022
Z135: periods | AA135: 2012- 2013 | AB135: 2013- 2014 | AC135: 2014- 2015 | AD135: 2015- 2016 | AE135: 2016- 2017 | AF135: 2017- 2018 | AG135: 2018- 2019 | AH135: 2019- 2020 | AI135: 2020- 2021 | AJ135: 2021- 2022
Z136: labels
Z137: Expansion demand | AA137: 0.726891 | AB137: 1.33833 | AC137: 1.165787 | AD137: 0.311677 | AE137: 0.05191 | AF137: 0.073179 | AG137: 0.504632 | AH137: 0.805699 | AI137: 1.116647 | AJ137: 1.273842
Z138: Replacement demand | AA138: 4.527168592 | AB138: 4.561562629 | AC138: 4.622445213 | AD138: 4.675536565 | AE138: 4.691965872 | AF138: 4.697531438 | AG138: 4.703525704 | AH138: 4.728009877 | AI138: 4.765162925 | AJ138: 4.815309061
Z139: Net requirement | AA139: 5.254059592 | AB139: 5.899892629 | AC139: 5.788232213 | AD139: 4.987213565 | AE139: 4.743875872 | AF139: 4.770710438 | AG139: 5.208157704 | AH139: 5.533708877 | AI139: 5.881809925 | AJ139: 6.089151061
C154: ="Components of Replacement Demand, "&Z159&", "&AA159 -> Components of Replacement Demand, Business, media and public service professionals, 2012- 2022
Z159: Business, media and public service professionals | AA159: 2012- 2022
Z160: periods | AA160: 2012- 2013 | AB160: 2013- 2014 | AC160: 2014- 2015 | AD160: 2015- 2016 | AE160: 2016- 2017 | AF160: 2017- 2018 | AG160: 2018- 2019 | AH160: 2019- 2020 | AI160: 2020- 2021 | AJ160: 2021- 2022
Z161: labels
Z162: Expansion demand | AA162: 3.156875 | AB162: 1.65961 | AC162: 2.027622 | AD162: 1.823902 | AE162: 2.480754 | AF162: 2.357399 | AG162: 2.199398 | AH162: 2.408042 | AI162: 2.621601 | AJ162: 2.687753
Z163: Replacement demand | AA163: 4.596911697 | AB163: 4.723159312 | AC163: 4.789665663 | AD163: 4.870848457 | AE163: 4.94383614 | AF163: 5.043065924 | AG163: 5.137425543 | AH163: 5.225475501 | AI163: 5.321826282 | AJ163: 5.426713881
Z164: Net requirement | AA164: 7.753786697 | AB164: 6.382769312 | AC164: 6.817287663 | AD164: 6.694750457 | AE164: 7.42459014 | AF164: 7.400464924 | AG164: 7.336823543 | AH164: 7.633517501 | AI164: 7.943427282 | AJ164: 8.114466881
C179: ="Components of Replacement Demand, "&Z184&", "&AA184 -> Components of Replacement Demand, Science, engineering and technology associate professionals, 2012- 2022
Z184: Science, engineering and technology associate professionals | AA184: 2012- 2022
Z185: periods | AA185: 2012- 2013 | AB185: 2013- 2014 | AC185: 2014- 2015 | AD185: 2015- 2016 | AE185: 2016- 2017 | AF185: 2017- 2018 | AG185: 2018- 2019 | AH185: 2019- 2020 | AI185: 2020- 2021 | AJ185: 2021- 2022
Z186: labels
Z187: Expansion demand | AA187: 1.147595 | AB187: 0.524906 | AC187: 0.527533 | AD187: 0.278275 | AE187: 0.363562 | AF187: 0.26179 | AG187: 0.292796 | AH187: 0.308503 | AI187: 0.284264 | AJ187: 0.28666
Z188: Replacement demand | AA188: 1.302820054 | AB188: 1.336554733 | AC188: 1.351684642 | AD188: 1.36699012 | AE188: 1.375065223 | AF188: 1.385872317 | AG188: 1.393603125 | AH188: 1.40224532 | AI188: 1.411332776 | AJ188: 1.419648825
Z189: Net requirement | AA189: 2.450415054 | AB189: 1.861460733 | AC189: 1.879217642 | AD189: 1.64526512 | AE189: 1.738627223 | AF189: 1.647662317 | AG189: 1.686399125 | AH189: 1.71074832 | AI189: 1.695596776 | AJ189: 1.706308825
C204: ="Components of Replacement Demand, "&Z209&", "&AA209 -> Components of Replacement Demand, Health and social care associate professionals, 2012- 2022
Z209: Health and social care associate professionals | AA209: 2012- 2022
Z210: periods | AA210: 2012- 2013 | AB210: 2013- 2014 | AC210: 2014- 2015 | AD210: 2015- 2016 | AE210: 2016- 2017 | AF210: 2017- 2018 | AG210: 2018- 2019 | AH210: 2019- 2020 | AI210: 2020- 2021 | AJ210: 2021- 2022
Z211: labels
Z212: Expansion demand | AA212: 1.863444 | AB212: 0.464035 | AC212: 0.42845 | AD212: 0.174341 | AE212: 0.502386 | AF212: 0.898929 | AG212: 0.577907 | AH212: 0.531102 | AI212: 0.795343 | AJ212: 0.819945
Z213: Replacement demand | AA213: 0.8421103565 | AB213: 0.909452586 | AC213: 0.9268477992 | AD213: 0.9428751986 | AE213: 0.9513105317 | AF213: 0.9714584615 | AG213: 1.006137373 | AH213: 1.029536361 | AI213: 1.051271887 | AJ213: 1.080739292
Z214: Net requirement | AA214: 2.705554357 | AB214: 1.373487586 | AC214: 1.355297799 | AD214: 1.117216199 | AE214: 1.453696532 | AF214: 1.870387462 | AG214: 1.584044373 | AH214: 1.560638361 | AI214: 1.846614887 | AJ214: 1.900684292
C229: ="Components of Replacement Demand, "&Z234&", "&AA234 -> Components of Replacement Demand, Protective service occupations, 2012- 2022
Z234: Protective service occupations | AA234: 2012- 2022
Z235: periods | AA235: 2012- 2013 | AB235: 2013- 2014 | AC235: 2014- 2015 | AD235: 2015- 2016 | AE235: 2016- 2017 | AF235: 2017- 2018 | AG235: 2018- 2019 | AH235: 2019- 2020 | AI235: 2020- 2021 | AJ235: 2021- 2022
Z236: labels
Z237: Expansion demand | AA237: 0.321593 | AB237: -1.293162 | AC237: -0.604476 | AD237: -0.998089 | AE237: -0.216191 | AF237: -0.008113 | AG237: 0.007594 | AH237: -0.245572 | AI237: -0.200604 | AJ237: -0.218887
Z238: Replacement demand | AA238: 0.8603475642 | AB238: 0.869914824 | AC238: 0.8388695749 | AD238: 0.8252886565 | AE238: 0.8015619123 | AF238: 0.7979446832 | AG238: 0.799688077 | AH238: 0.802005373 | AI238: 0.7973863722 | AJ238: 0.7943542011
Z239: Net requirement | AA239: 1.181940564 | AB239: -0.423247176 | AC239: 0.2343935749 | AD239: -0.1728003435 | AE239: 0.5853709123 | AF239: 0.7898316832 | AG239: 0.807282077 | AH239: 0.556433373 | AI239: 0.5967823722 | AJ239: 0.5754672011
C254: ="Components of Replacement Demand, "&Z259&", "&AA259 -> Components of Replacement Demand, Culture, media and sports occupations, 2012- 2022
Z259: Culture, media and sports occupations | AA259: 2012- 2022
Z260: periods | AA260: 2012- 2013 | AB260: 2013- 2014 | AC260: 2014- 2015 | AD260: 2015- 2016 | AE260: 2016- 2017 | AF260: 2017- 2018 | AG260: 2018- 2019 | AH260: 2019- 2020 | AI260: 2020- 2021 | AJ260: 2021- 2022
Z261: labels
Z262: Expansion demand | AA262: 0.270334 | AB262: 0.110388 | AC262: 0.363064 | AD262: 0.640284 | AE262: 0.754391 | AF262: 0.725155 | AG262: 0.582858 | AH262: 0.561084 | AI262: 0.427699 | AJ262: 0.437811
Z263: Replacement demand | AA263: 1.280568718 | AB263: 1.29063737 | AC263: 1.297149979 | AD263: 1.314327418 | AE263: 1.340133627 | AF263: 1.370512318 | AG263: 1.399741071 | AH263: 1.42319784 | AI263: 1.44574012 | AJ263: 1.464891001
Z264: Net requirement | AA264: 1.550902718 | AB264: 1.40102537 | AC264: 1.660213979 | AD264: 1.954611418 | AE264: 2.094524627 | AF264: 2.095667318 | AG264: 1.982599071 | AH264: 1.98428184 | AI264: 1.87343912 | AJ264: 1.902702001
C279: ="Components of Replacement Demand, "&Z284&", "&AA284 -> Components of Replacement Demand, Business and public service associate professionals, 2012- 2022
Z284: Business and public service associate professionals | AA284: 2012- 2022
Z285: periods | AA285: 2012- 2013 | AB285: 2013- 2014 | AC285: 2014- 2015 | AD285: 2015- 2016 | AE285: 2016- 2017 | AF285: 2017- 2018 | AG285: 2018- 2019 | AH285: 2019- 2020 | AI285: 2020- 2021 | AJ285: 2021- 2022
Z286: labels
Z287: Expansion demand | AA287: 3.573253 | AB287: 1.364801 | AC287: 1.724106 | AD287: 2.202223 | AE287: 2.942482 | AF287: 2.951362 | AG287: 3.05413 | AH287: 3.0789 | AI287: 2.810028 | AJ287: 2.807862
Z288: Replacement demand | AA288: 5.538192175 | AB288: 5.668815961 | AC288: 5.720957777 | AD288: 5.786041572 | AE288: 5.867368751 | AF288: 5.975508619 | AG288: 6.083961801 | AH288: 6.196300792 | AI288: 6.309502496 | AJ288: 6.413755963
Z289: Net requirement | AA289: 9.111445175 | AB289: 7.033616961 | AC289: 7.445063777 | AD289: 7.988264572 | AE289: 8.809850751 | AF289: 8.926870619 | AG289: 9.138091801 | AH289: 9.275200792 | AI289: 9.119530496 | AJ289: 9.221617963
C304: ="Components of Replacement Demand, "&Z309&", "&AA309 -> Components of Replacement Demand, Administrative occupations, 2012- 2022
Z309: Administrative occupations | AA309: 2012- 2022
Z310: periods | AA310: 2012- 2013 | AB310: 2013- 2014 | AC310: 2014- 2015 | AD310: 2015- 2016 | AE310: 2016- 2017 | AF310: 2017- 2018 | AG310: 2018- 2019 | AH310: 2019- 2020 | AI310: 2020- 2021 | AJ310: 2021- 2022
Z311: labels
Z312: Expansion demand | AA312: 1.73579 | AB312: -1.935654 | AC312: -1.068669 | AD312: -2.794937 | AE312: -0.892339 | AF312: -0.820001 | AG312: -0.61825 | AH312: -0.939705 | AI312: 0.112276 | AJ312: -0.003699
Z313: Replacement demand | AA313: 10.64118714 | AB313: 10.69996245 | AC313: 10.60791308 | AD313: 10.55237433 | AE313: 10.42929547 | AF313: 10.38583752 | AG313: 10.3440143 | AH313: 10.31169132 | AI313: 10.26576 | AJ313: 10.26154181
Z314: Net requirement | AA314: 12.37697714 | AB314: 8.764308452 | AC314: 9.539244084 | AD314: 7.757437326 | AE314: 9.536956468 | AF314: 9.565836524 | AG314: 9.725764297 | AH314: 9.371986316 | AI314: 10.378036 | AJ314: 10.25784281
C329: ="Components of Replacement Demand, "&Z334&", "&AA334 -> Components of Replacement Demand, Secretarial and related occupations, 2012- 2022
Z334: Secretarial and related occupations | AA334: 2012- 2022
Z335: periods | AA335: 2012- 2013 | AB335: 2013- 2014 | AC335: 2014- 2015 | AD335: 2015- 2016 | AE335: 2016- 2017 | AF335: 2017- 2018 | AG335: 2018- 2019 | AH335: 2019- 2020 | AI335: 2020- 2021 | AJ335: 2021- 2022
Z336: labels
Z337: Expansion demand | AA337: -1.218725 | AB337: -2.32164 | AC337: -2.284717 | AD337: -3.195967 | AE337: -2.774175 | AF337: -2.794599 | AG337: -2.729707 | AH337: -2.744252 | AI337: -2.51567 | AJ337: -2.570976
Z338: Replacement demand | AA338: 4.264765707 | AB338: 4.196104174 | AC338: 4.068347952 | AD338: 3.942617035 | AE338: 3.768017736 | AF338: 3.616052976 | AG338: 3.462795407 | AH338: 3.31306397 | AI338: 3.162531433 | AJ338: 3.02364813
Z339: Net requirement | AA339: 3.046040707 | AB339: 1.874464174 | AC339: 1.783630952 | AD339: 0.7466500353 | AE339: 0.9938427361 | AF339: 0.8214539758 | AG339: 0.7330884068 | AH339: 0.5688119699 | AI339: 0.6468614334 | AJ339: 0.4526721303
C354: ="Components of Replacement Demand, "&Z359&", "&AA359 -> Components of Replacement Demand, Skilled agricultural and related trades, 2012- 2022
Z359: Skilled agricultural and related trades | AA359: 2012- 2022
Z360: periods | AA360: 2012- 2013 | AB360: 2013- 2014 | AC360: 2014- 2015 | AD360: 2015- 2016 | AE360: 2016- 2017 | AF360: 2017- 2018 | AG360: 2018- 2019 | AH360: 2019- 2020 | AI360: 2020- 2021 | AJ360: 2021- 2022
Z361: labels
Z362: Expansion demand | AA362: -4.824049 | AB362: 0.426233 | AC362: 0.361869 | AD362: 0.307995 | AE362: 0.320908 | AF362: -0.001791 | AG362: 0.009962 | AH362: -0.101404 | AI362: -0.066986 | AJ362: -0.014829
Z363: Replacement demand | AA363: 1.960293389 | AB363: 1.692697113 | AC363: 1.717307086 | AD363: 1.737728059 | AE363: 1.755101442 | AF363: 1.773362731 | AG363: 1.773592398 | AH363: 1.774317177 | AI363: 1.768378499 | AJ363: 1.765365999
Z364: Net requirement | AA364: -2.863755611 | AB364: 2.118930113 | AC364: 2.079176086 | AD364: 2.045723059 | AE364: 2.076009442 | AF364: 1.771571731 | AG364: 1.783554398 | AH364: 1.672913177 | AI364: 1.701392499 | AJ364: 1.750536999
C379: ="Components of Replacement Demand, "&Z384&", "&AA384 -> Components of Replacement Demand, Skilled metal, electrical and electronic trades, 2012- 2022
Z384: Skilled metal, electrical and electronic trades | AA384: 2012- 2022
Z385: periods | AA385: 2012- 2013 | AB385: 2013- 2014 | AC385: 2014- 2015 | AD385: 2015- 2016 | AE385: 2016- 2017 | AF385: 2017- 2018 | AG385: 2018- 2019 | AH385: 2019- 2020 | AI385: 2020- 2021 | AJ385: 2021- 2022
Z386: labels
Z387: Expansion demand | AA387: 2.02542 | AB387: -0.820819 | AC387: -1.215194 | AD387: -1.001165 | AE387: -1.06146 | AF387: -1.024716 | AG387: -0.841386 | AH387: -0.990208 | AI387: -2.224102 | AJ387: -2.19959
Z388: Replacement demand | AA388: 3.560368014 | AB388: 3.62504243 | AC388: 3.600121291 | AD388: 3.562871849 | AE388: 3.532386299 | AF388: 3.500148628 | AG388: 3.468956945 | AH388: 3.443537488 | AI388: 3.413558759 | AJ388: 3.344763719
Z389: Net requirement | AA389: 5.585788014 | AB389: 2.80422343 | AC389: 2.384927291 | AD389: 2.561706849 | AE389: 2.470926299 | AF389: 2.475432628 | AG389: 2.627570945 | AH389: 2.453329488 | AI389: 1.189456759 | AJ389: 1.145173719
C404: ="Components of Replacement Demand, "&Z409&", "&AA409 -> Components of Replacement Demand, Skilled construction and building trades, 2012- 2022
Z409: Skilled construction and building trades | AA409: 2012- 2022
Z410: periods | AA410: 2012- 2013 | AB410: 2013- 2014 | AC410: 2014- 2015 | AD410: 2015- 2016 | AE410: 2016- 2017 | AF410: 2017- 2018 | AG410: 2018- 2019 | AH410: 2019- 2020 | AI410: 2020- 2021 | AJ410: 2021- 2022
Z411: labels
Z412: Expansion demand | AA412: -1.778364 | AB412: 0.404391 | AC412: 0.563855 | AD412: 0.892928 | AE412: 0.429335 | AF412: 0.55901 | AG412: 1.170505 | AH412: 1.089001 | AI412: 0.053465 | AJ412: -0.035729
Z413: Replacement demand | AA413: 3.096912478 | AB413: 3.040389033 | AC413: 3.05384137 | AD413: 3.07252444 | AE413: 3.102224936 | AF413: 3.116957399 | AG413: 3.135897126 | AH413: 3.174773259 | AI413: 3.211133254 | AJ413: 3.213606417
Z414: Net requirement | AA414: 1.318548478 | AB414: 3.444780033 | AC414: 3.61769637 | AD414: 3.96545244 | AE414: 3.531559936 | AF414: 3.675967399 | AG414: 4.306402126 | AH414: 4.263774259 | AI414: 3.264598254 | AJ414: 3.177877417
C429: ="Components of Replacement Demand, "&Z434&", "&AA434 -> Components of Replacement Demand, Textiles, printing and other skilled trades, 2012- 2022
Z434: Textiles, printing and other skilled trades | AA434: 2012- 2022
Z435: periods | AA435: 2012- 2013 | AB435: 2013- 2014 | AC435: 2014- 2015 | AD435: 2015- 2016 | AE435: 2016- 2017 | AF435: 2017- 2018 | AG435: 2018- 2019 | AH435: 2019- 2020 | AI435: 2020- 2021 | AJ435: 2021- 2022
Z436: labels
Z437: Expansion demand | AA437: -5.306255 | AB437: -2.401479 | AC437: -2.567908 | AD437: -1.867303 | AE437: -1.822849 | AF437: -1.793002 | AG437: -1.605409 | AH437: -1.501383 | AI437: -1.726999 | AJ437: -1.708131
Z438: Replacement demand | AA438: 2.070841182 | AB438: 1.867570134 | AC438: 1.768335836 | AD438: 1.663684003 | AE438: 1.587516209 | AF438: 1.513142111 | AG438: 1.439370032 | AH438: 1.372968576 | AI438: 1.309943268 | AJ438: 1.236702666
Z439: Net requirement | AA439: -3.235413818 | AB439: -0.533908866 | AC439: -0.7995721636 | AD439: -0.2036189966 | AE439: -0.2353327906 | AF439: -0.2798598889 | AG439: -0.1660389676 | AH439: -0.1284144241 | AI439: -0.4170557322 | AJ439: -0.4714283339
C454: ="Components of Replacement Demand, "&Z459&", "&AA459 -> Components of Replacement Demand, Caring personal service occupations, 2012- 2022
Z459: Caring personal service occupations | AA459: 2012- 2022
Z460: periods | AA460: 2012- 2013 | AB460: 2013- 2014 | AC460: 2014- 2015 | AD460: 2015- 2016 | AE460: 2016- 2017 | AF460: 2017- 2018 | AG460: 2018- 2019 | AH460: 2019- 2020 | AI460: 2020- 2021 | AJ460: 2021- 2022
Z461: labels
Z462: Expansion demand | AA462: 11.891202 | AB462: 4.766665 | AC462: 4.458557 | AD462: 2.459231 | AE462: 4.094416 | AF462: 6.198442 | AG462: 4.852304 | AH462: 4.491072 | AI462: 5.975855 | AJ462: 6.260937
Z463: Replacement demand | AA463: 7.77352406 | AB463: 8.25758055 | AC463: 8.451861374 | AD463: 8.633342853 | AE463: 8.731724991 | AF463: 8.897065772 | AG463: 9.147979237 | AH463: 9.345057315 | AI463: 9.527635284 | AJ463: 9.766619194
Z464: Net requirement | AA464: 19.66472606 | AB464: 13.02424555 | AC464: 12.91041837 | AD464: 11.09257385 | AE464: 12.82614099 | AF464: 15.09550777 | AG464: 14.00028324 | AH464: 13.83612932 | AI464: 15.50349028 | AJ464: 16.02755619
C479: ="Components of Replacement Demand, "&Z484&", "&AA484 -> Components of Replacement Demand, Leisure, travel and related personal service occupations, 2012- 2022
Z484: Leisure, travel and related personal service occupations | AA484: 2012- 2022
Z485: periods | AA485: 2012- 2013 | AB485: 2013- 2014 | AC485: 2014- 2015 | AD485: 2015- 2016 | AE485: 2016- 2017 | AF485: 2017- 2018 | AG485: 2018- 2019 | AH485: 2019- 2020 | AI485: 2020- 2021 | AJ485: 2021- 2022
Z486: labels
Z487: Expansion demand | AA487: 1.431437 | AB487: -0.005366 | AC487: 0.212047 | AD487: 0.16971 | AE487: 0.124848 | AF487: 0.126925 | AG487: 0.205011 | AH487: 0.028393 | AI487: -0.091304 | AJ487: -0.180741
Z488: Replacement demand | AA488: 2.409691316 | AB488: 2.474427693 | AC488: 2.475019428 | AD488: 2.485670915 | AE488: 2.494090231 | AF488: 2.500187996 | AG488: 2.506374755 | AH488: 2.51597514 | AI488: 2.51779887 | AJ488: 2.514338265
Z489: Net requirement | AA489: 3.841128316 | AB489: 2.469061693 | AC489: 2.687066428 | AD489: 2.655380915 | AE489: 2.618938231 | AF489: 2.627112996 | AG489: 2.711385755 | AH489: 2.54436814 | AI489: 2.42649487 | AJ489: 2.333597265
C504: ="Components of Replacement Demand, "&Z509&", "&AA509 -> Components of Replacement Demand, Sales occupations, 2012- 2022
Z509: Sales occupations | AA509: 2012- 2022
Z510: periods | AA510: 2012- 2013 | AB510: 2013- 2014 | AC510: 2014- 2015 | AD510: 2015- 2016 | AE510: 2016- 2017 | AF510: 2017- 2018 | AG510: 2018- 2019 | AH510: 2019- 2020 | AI510: 2020- 2021 | AJ510: 2021- 2022
Z511: labels
Z512: Expansion demand | AA512: -2.366099 | AB512: -3.887742 | AC512: -4.319634 | AD512: -0.883632 | AE512: -0.906996 | AF512: -0.889651 | AG512: -0.630319 | AH512: -0.413097 | AI512: -1.975747 | AJ512: -2.381197
Z513: Replacement demand | AA513: 6.458218458 | AB513: 6.338749158 | AC513: 6.159645801 | AD513: 5.964048828 | AE513: 5.911103041 | AF513: 5.857221412 | AG513: 5.803092133 | AH513: 5.761081696 | AI513: 5.728972602 | AJ513: 5.630893412
Z514: Net requirement | AA514: 4.092119458 | AB514: 2.451007158 | AC514: 1.840011801 | AD514: 5.080416828 | AE514: 5.004107041 | AF514: 4.967570412 | AG514: 5.172773133 | AH514: 5.347984696 | AI514: 3.753225602 | AJ514: 3.249696412
C529: ="Components of Replacement Demand, "&Z534&", "&AA534 -> Components of Replacement Demand, Customer service occupations, 2012- 2022
Z534: Customer service occupations | AA534: 2012- 2022
Z535: periods | AA535: 2012- 2013 | AB535: 2013- 2014 | AC535: 2014- 2015 | AD535: 2015- 2016 | AE535: 2016- 2017 | AF535: 2017- 2018 | AG535: 2018- 2019 | AH535: 2019- 2020 | AI535: 2020- 2021 | AJ535: 2021- 2022
Z536: labels
Z537: Expansion demand | AA537: 1.76672 | AB537: 1.282743 | AC537: 1.439903 | AD537: 1.173291 | AE537: 1.293367 | AF537: 1.25293 | AG537: 1.320573 | AH537: 1.279914 | AI537: 1.480687 | AJ537: 1.445367
Z538: Replacement demand | AA538: 1.810476001 | AB538: 1.857695974 | AC538: 1.891890032 | AD538: 1.930769884 | AE538: 1.964379161 | AF538: 2.002090074 | AG538: 2.037819176 | AH538: 2.076080805 | AI538: 2.113249102 | AJ538: 2.153795138
Z539: Net requirement | AA539: 3.577196001 | AB539: 3.140438974 | AC539: 3.331793032 | AD539: 3.104060884 | AE539: 3.257746161 | AF539: 3.255020074 | AG539: 3.358392176 | AH539: 3.355994805 | AI539: 3.593936102 | AJ539: 3.599162138
C554: ="Components of Replacement Demand, "&Z559&", "&AA559 -> Components of Replacement Demand, Process, plant and machine operatives, 2012- 2022
Z559: Process, plant and machine operatives | AA559: 2012- 2022
Z560: periods | AA560: 2012- 2013 | AB560: 2013- 2014 | AC560: 2014- 2015 | AD560: 2015- 2016 | AE560: 2016- 2017 | AF560: 2017- 2018 | AG560: 2018- 2019 | AH560: 2019- 2020 | AI560: 2020- 2021 | AJ560: 2021- 2022
Z561: labels
Z562: Expansion demand | AA562: -2.905575 | AB562: -1.968007 | AC562: -2.621309 | AD562: -2.147661 | AE562: -2.35736 | AF562: -2.511476 | AG562: -2.469713 | AH562: -2.419503 | AI562: -2.94759 | AJ562: -2.823626
Z563: Replacement demand | AA563: 2.932244759 | AB563: 2.830305572 | AC563: 2.75838262 | AD563: 2.666084288 | AE563: 2.58882744 | AF563: 2.505486306 | AG563: 2.416416943 | AH563: 2.32839667 | AI563: 2.242039294 | AJ563: 2.139500545
Z564: Net requirement | AA564: 0.02666975949 | AB564: 0.8622985715 | AC564: 0.1370736201 | AD564: 0.5184232884 | AE564: 0.2314674398 | AF564: -0.005989694469 | AG564: -0.05329605697 | AH564: -0.09110632958 | AI564: -0.7055507061 | AJ564: -0.684125455
C579: ="Components of Replacement Demand, "&Z584&", "&AA584 -> Components of Replacement Demand, Transport and mobile machine drivers and operatives, 2012- 2022
Z584: Transport and mobile machine drivers and operatives | AA584: 2012- 2022
Z585: periods | AA585: 2012- 2013 | AB585: 2013- 2014 | AC585: 2014- 2015 | AD585: 2015- 2016 | AE585: 2016- 2017 | AF585: 2017- 2018 | AG585: 2018- 2019 | AH585: 2019- 2020 | AI585: 2020- 2021 | AJ585: 2021- 2022
Z586: labels
Z587: Expansion demand | AA587: -1.080159 | AB587: -1.103557 | AC587: -0.730474 | AD587: 0.0289 | AE587: 0.280205 | AF587: 0.401456 | AG587: 0.468008 | AH587: 0.552855 | AI587: 0.081702 | AJ587: -0.075783
Z588: Replacement demand | AA588: 4.502836163 | AB588: 4.457131127 | AC588: 4.410286407 | AD588: 4.379557158 | AE588: 4.3816009 | AF588: 4.394518815 | AG588: 4.412768955 | AH588: 4.433870446 | AI588: 4.458712426 | AJ588: 4.463234435
Z589: Net requirement | AA589: 3.422677163 | AB589: 3.353574127 | AC589: 3.679812407 | AD589: 4.408457158 | AE589: 4.6618059 | AF589: 4.795974815 | AG589: 4.880776955 | AH589: 4.986725446 | AI589: 4.540414426 | AJ589: 4.387451435
C604: ="Components of Replacement Demand, "&Z609&", "&AA609 -> Components of Replacement Demand, Elementary trades and related occupations, 2012- 2022
Z609: Elementary trades and related occupations | AA609: 2012- 2022
Z610: periods | AA610: 2012- 2013 | AB610: 2013- 2014 | AC610: 2014- 2015 | AD610: 2015- 2016 | AE610: 2016- 2017 | AF610: 2017- 2018 | AG610: 2018- 2019 | AH610: 2019- 2020 | AI610: 2020- 2021 | AJ610: 2021- 2022
Z611: labels
Z612: Expansion demand | AA612: -0.861558 | AB612: 0.136644 | AC612: 0.010913 | AD612: 0.084734 | AE612: 0.023598 | AF612: -0.058825 | AG612: 0.011233 | AH612: 0.014954 | AI612: 0.143249 | AJ612: 0.116484
Z613: Replacement demand | AA613: 2.128063825 | AB613: 2.1023547 | AC613: 2.111979995 | AD613: 2.117094217 | AE613: 2.124954532 | AF613: 2.130725095 | AG613: 2.132661514 | AH613: 2.13726443 | AI613: 2.142091446 | AJ613: 2.15218021
Z614: Net requirement | AA614: 1.266505825 | AB614: 2.2389987 | AC614: 2.122892995 | AD614: 2.201828217 | AE614: 2.148552532 | AF614: 2.071900095 | AG614: 2.143894514 | AH614: 2.15221843 | AI614: 2.285340446 | AJ614: 2.26866421
C629: ="Components of Replacement Demand, "&Z634&", "&AA634 -> Components of Replacement Demand, Elementary administration and service occupations, 2012- 2022
Z634: Elementary administration and service occupations | AA634: 2012- 2022
Z635: periods | AA635: 2012- 2013 | AB635: 2013- 2014 | AC635: 2014- 2015 | AD635: 2015- 2016 | AE635: 2016- 2017 | AF635: 2017- 2018 | AG635: 2018- 2019 | AH635: 2019- 2020 | AI635: 2020- 2021 | AJ635: 2021- 2022
Z636: labels
Z637: Expansion demand | AA637: -7.432511 | AB637: -1.226358 | AC637: -1.11562 | AD637: 0.253137 | AE637: -0.054021 | AF637: 0.020019 | AG637: 0.885271 | AH637: 0.925532 | AI637: 1.404015 | AJ637: 1.464371
Z638: Replacement demand | AA638: 8.323488011 | AB638: 7.975985887 | AC638: 7.88729825 | AD638: 7.801309754 | AE638: 7.795275474 | AF638: 7.777647658 | AG638: 7.761204232 | AH638: 7.781841034 | AI638: 7.805740317 | AJ638: 7.825700323
Z639: Net requirement | AA639: 0.8909770112 | AB639: 6.749627887 | AC639: 6.77167825 | AD639: 8.054446754 | AE639: 7.741254474 | AF639: 7.797666658 | AG639: 8.646475232 | AH639: 8.707373034 | AI639: 9.209755317 | AJ639: 9.290071323

Sheet TableQ
A1: =Info!A1 -> Yorkshire and the Humber | F1: 000s | I1: The results in this sheet provide illustrative
A2: Total | I2: projections of the implications of changing
A3: QCF group | B3: Base year level | C3: Change | D3: Projected level | E3: Replacement | F3: Total requirement | I3: occupational employment structure for the
B4: ='Table 7.x.1'!D4 -> 2012 | C4: =B4&"-"&D4 -> 2012-2022 | D4: ='Table 7.x.1'!F4 -> 2022 | E4: Demand | F4: =C4 -> 2012-2022 | I4: numbers employed by qualification.
A5: QCF 7-8 | B5: =('Table 7.x.1'!D5+'Table 7.x.1'!D6)*0.001 -> 217.8838224 | C5: =D5-B5 -> 124.8833235 | D5: =('Table 7.x.1'!F5+'Table 7.x.1'!F6)*0.001 -> 342.767146 | E5: =F5-C5 -> 84.79110218 | F5: =C5+('Table 6.x.3'!I26/100*TableQ!B5) -> 209.6744257
A6: QCF 4-6 | B6: =SUM('Table 7.x.1'!D7:D9)*0.001 -> 694.4686665 | C6: 180.5523845 | D6: =SUM('Table 7.x.1'!F7:F9)*0.001 -> 875.021051 | E6: =F6-C6 -> 270.2576217 | F6: =C6+('Table 6.x.3'!I26/100*TableQ!B6) -> 450.8100062
A7: QCF 3 | B7: ='Table 7.x.1'!D10*0.001 -> 529.6223764 | C7: -43.40520405 | D7: ='Table 7.x.1'!F10*0.001 -> 486.2171724 | E7: 206.1064678 | F7: =C7+('Table 6.x.3'!I26/100*TableQ!B7) -> 162.7012638
A8: QCF 2 | B8: ='Table 7.x.1'!D11*0.001 -> 580.0092072 | C8: -2.392333929 | D8: ='Table 7.x.1'!F11*0.001 -> 577.6168733 | E8: 225.714876 | F8: =C8+('Table 6.x.3'!I26/100*TableQ!B8) -> 223.322542
A9: QCF 1 | B9: ='Table 7.x.1'!D12*0.001 -> 368.9543865 | C9: -83.90098959 | D9: ='Table 7.x.1'!F12*0.001 -> 285.0533969 | E9: 143.5813304 | F9: =C9+('Table 6.x.3'!I26/100*TableQ!B9) -> 59.68034076
A10: No Qual | B10: ='Table 7.x.1'!D13*0.001 -> 140.2905409 | C10: -62.91818042 | D10: ='Table 7.x.1'!F13*0.001 -> 77.37236045 | E10: 54.59510235 | F10: =C10+('Table 6.x.3'!I26/100*TableQ!B10) -> -8.323078076
A12: Total | B12: =SUM(B5:B11) -> 2531.229 | C12: =SUM(C5:C11) -> 112.819 | D12: =SUM(D5:D11) -> 2644.048 | E12: =F12-C12 -> 985.0465004 | F12: =SUM(F5:F11) -> 1097.8655
B14: % share | C14: % change | D14: % share | E14: % share | F14: % of base year level
A15: =A5 -> QCF 7-8 | B15: =(B5/B12)*100 -> 8.607827362 | C15: =IF(B5>0,C5/B5*100,0) -> 57.31647357 | D15: =IF(D12>0,D5/D12*100,0) -> 12.9637263 | E15: =IF(E12>0,E5/E12*100,0) -> 8.607827362 | F15: =IF(B5>1,F5/B5*100,0) -> 96.23221372
A16: QCF 4-6 | B16: =(B6/B12)*100 -> 27.43602679 | C16: =IF(B6>0,C6/B6*100,0) -> 25.99863654 | D16: =IF(D12>0,D6/D12*100,0) -> 33.09399266 | E16: =IF(E12>0,E6/E12*100,0) -> 27.43602679 | F16: =IF(B6>1,F6/B6*100,0) -> 64.9143767
A17: QCF 3 | B17: =(B7/B12)*100 -> 20.92352673 | C17: -8.195500413 | D17: =IF(D12>0,D7/D12*100,0) -> 18.38912048 | E17: =IF(E12>0,E7/E12*100,0) -> 20.92352673 | F17: 30.72023974
A18: QCF 2 | B18: =(B8/B12)*100 -> 22.91413409 | C18: -0.4124648194 | D18: =IF(D12>0,D8/D12*100,0) -> 21.84592993 | E18: =IF(E12>0,E8/E12*100,0) -> 22.91413409 | F18: 38.50327534
A19: QCF 1 | B19: =(B9/B12)*100 -> 14.57609669 | C19: -22.74020655 | D19: =IF(D12>0,D9/D12*100,0) -> 10.78094637 | E19: =IF(E12>0,E9/E12*100,0) -> 14.57609669 | F19: 16.1755336
A20: No Qual | B20: =(B10/B12)*100 -> 5.542388337 | C20: -44.84848375 | D20: =IF(D12>0,D10/D12*100,0) -> 2.92628426 | E20: =IF(E12>0,E10/E12*100,0) -> 5.542388337 | F20: -5.932743593
A22: =A12 -> Total | B22: =(B12/B12)*100 -> 100 | C22: 4.457083891 | D22: =IF(D12>0,D12/D12*100,0) -> 100 | E22: =IF(E12>0,E12/E12*100,0) -> 100 | F22: 43.37282405
A29: =A1 -> Yorkshire and the Humber
A30: ='Table 7.x.1'!B30 -> Primary sector and utilities
A31: =$A$3 -> QCF group | B31: Base year level | C31: Change | D31: Projected level | E31: Replacement | F31: Total requirement
B32: =B$4 -> 2012 | C32: =C$4 -> 2012-2022 | D32: =D$4 -> 2022 | E32: Demand | F32: =F$4 -> 2012-2022
A33: =A5 -> QCF 7-8 | B33: =('Table 7.x.1'!D33+'Table 7.x.1'!D34)*0.001 -> 3.326599257 | C33: =D33-B33 -> 1.853466792 | D33: =('Table 7.x.1'!F33+'Table 7.x.1'!F34)*0.001 -> 5.180066049 | E33: =F33-C33 -> 1.296939186 | F33: =C33+('Table 6.x.3'!I54/100*TableQ!B33) -> 3.150405978
A34: =A6 -> QCF 4-6 | B34: =SUM('Table 7.x.1'!D35:D37)*0.001 -> 16.17960113 | C34: 2.186262631 | D34: =SUM('Table 7.x.1'!F35:F37)*0.001 -> 18.36586376 | E34: =F34-C34 -> 6.307931044 | F34: =C34+('Table 6.x.3'!I54/100*TableQ!B34) -> 8.494193675
A35: QCF 3 | B35: ='Table 7.x.1'!D38*0.001 -> 12.19758353 | C35: -1.961739671 | D35: ='Table 7.x.1'!F38*0.001 -> 10.23584386 | E35: 4.755464315 | F35: =C35+('Table 6.x.3'!I54/100*TableQ!B35) -> 2.793724644
A36: QCF 2 | B36: ='Table 7.x.1'!D39*0.001 -> 14.08513093 | C36: -1.02942763 | D36: ='Table 7.x.1'!F39*0.001 -> 13.0557033 | E36: 5.491361248 | F36: =C36+('Table 6.x.3'!I54/100*TableQ!B36) -> 4.461933618
A37: QCF 1 | B37: ='Table 7.x.1'!D40*0.001 -> 10.25453941 | C37: -2.840724859 | D37: ='Table 7.x.1'!F40*0.001 -> 7.413814556 | E37: 3.997930913 | F37: =C37+('Table 6.x.3'!I54/100*TableQ!B37) -> 1.157206054
A38: No Qual | B38: ='Table 7.x.1'!D41*0.001 -> 6.717545736 | C38: -2.574837263 | D38: ='Table 7.x.1'!F41*0.001 -> 4.142708473 | E38: 2.618965384 | F38: =C38+('Table 6.x.3'!I54/100*TableQ!B38) -> 0.04412812135
A40: Total | B40: =SUM(B33:B39) -> 62.761 | C40: =SUM(C33:C39) -> -4.367 | D40: =SUM(D33:D39) -> 58.394 | E40: =F40-C40 -> 24.46859209 | F40: =SUM(F33:F39) -> 20.10159209
B42: % share | C42: % change | D42: % share | E42: % share | F42: % of base year level
A43: =A33 -> QCF 7-8 | B43: =(B33/B40)*100 -> 5.30042424 | C43: =IF(B33>0,C33/B33*100,0) -> 55.71656363 | D43: =IF(D40>0,D33/D40*100,0) -> 8.870887503 | E43: =IF(E40>0,E33/E40*100,0) -> 5.30042424 | F43: =IF(B33>1,F33/B33*100,0) -> 94.70350152
A44: QCF 4-6 | B44: =(B34/B40)*100 -> 25.77970576 | C44: =IF(B34>0,C34/B34*100,0) -> 13.51246309 | D44: =IF(D40>0,D34/D40*100,0) -> 31.45162819 | E44: =IF(E40>0,E34/E40*100,0) -> 25.77970576 | F44: 52.49940098
A45: QCF 3 | B45: =(B35/B40)*100 -> 19.4349732 | C45: -16.08301895 | D45: =IF(D40>0,D35/D40*100,0) -> 17.52893081 | E45: =IF(E40>0,E35/E40*100,0) -> 19.4349732 | F45: 22.90391894
A46: QCF 2 | B46: =(B36/B40)*100 -> 22.44248965 | C46: -7.308612429 | D46: =IF(D40>0,D36/D40*100,0) -> 22.35795339 | E46: =IF(E40>0,E36/E40*100,0) -> 22.44248965 | F46: 31.67832546
A47: QCF 1 | B47: =(B37/B40)*100 -> 16.33903127 | C47: -27.70212044 | D47: =IF(D40>0,D37/D40*100,0) -> 12.69619234 | E47: =IF(E40>0,E37/E40*100,0) -> 16.33903127 | F47: 11.28481745
A48: No Qual | B48: =(B38/B40)*100 -> 10.70337588 | C48: -38.33002951 | D48: =IF(D40>0,D38/D40*100,0) -> 7.09440777 | E48: =IF(E40>0,E38/E40*100,0) -> 10.70337588 | F48: 0.6569083872
A50: =A22 -> Total | B50: =(B40/B40)*100 -> 100 | C50: -6.958142796 | D50: =IF(D40>0,D40/D40*100,0) -> 100 | E50: =IF(E40>0,E40/E40*100,0) -> 100 | F50: =IF(B40>1,F40/B40*100,0) -> 32.0287951
A57: =A29 -> Yorkshire and the Humber
A58: ='Table 7.x.1'!B58 -> Manufacturing
A59: =$A$3 -> QCF group | B59: Base year level | C59: Change | D59: Projected level | E59: Replacement | F59: Total requirement
B60: =B$4 -> 2012 | C60: =C$4 -> 2012-2022 | D60: =D$4 -> 2022 | E60: Demand | F60: =F$4 -> 2012-2022
A61: =A33 -> QCF 7-8 | B61: =('Table 7.x.1'!D61+'Table 7.x.1'!D62)*0.001 -> 12.21635083 | C61: =D61-B61 -> 6.462322724 | D61: =('Table 7.x.1'!F61+'Table 7.x.1'!F62)*0.001 -> 18.67867356 | E61: =F61-C61 -> 4.044503461 | F61: =C61+('Table 6.x.3'!I82/100*TableQ!B61) -> 10.50682619
A62: =A34 -> QCF 4-6 | B62: =SUM('Table 7.x.1'!D63:D65)*0.001 -> 58.20669923 | C62: 8.435180203 | D62: =SUM('Table 7.x.1'!F63:F65)*0.001 -> 66.64187944 | E62: =F62-C62 -> 19.27066435 | F62: =C62+('Table 6.x.3'!I82/100*TableQ!B62) -> 27.70584456
A63: QCF 3 | B63: ='Table 7.x.1'!D66*0.001 -> 64.82926995 | C63: -13.04427565 | D63: ='Table 7.x.1'!F66*0.001 -> 51.7849943 | E63: 21.46321846 | F63: =C63+('Table 6.x.3'!I82/100*TableQ!B63) -> 8.418942806
A64: QCF 2 | B64: ='Table 7.x.1'!D67*0.001 -> 64.41940787 | C64: -7.453858862 | D64: ='Table 7.x.1'!F67*0.001 -> 56.96554901 | E64: 21.32752421 | F64: =C64+('Table 6.x.3'!I82/100*TableQ!B64) -> 13.87366534
A65: QCF 1 | B65: ='Table 7.x.1'!D68*0.001 -> 46.72099139 | C65: -12.41150833 | D65: ='Table 7.x.1'!F68*0.001 -> 34.30948306 | E65: 15.46805703 | F65: =C65+('Table 6.x.3'!I82/100*TableQ!B65) -> 3.056548703
A66: No Qual | B66: ='Table 7.x.1'!D69*0.001 -> 20.03528073 | C66: -11.23186009 | D66: ='Table 7.x.1'!F69*0.001 -> 8.803420643 | E66: 6.633139745 | F66: =C66+('Table 6.x.3'!I82/100*TableQ!B66) -> -4.59872034
A68: Total | B68: =SUM(B61:B67) -> 266.428 | C68: =SUM(C61:C67) -> -29.244 | D68: =SUM(D61:D67) -> 237.184 | E68: =F68-C68 -> 88.20710725 | F68: =SUM(F61:F67) -> 58.96310725
B70: % share | C70: % change | D70: % share | E70: % share | F70: % of base year level
A71: =A61 -> QCF 7-8 | B71: =(B61/B68)*100 -> 4.585235347 | C71: =IF(B61>0,C61/B61*100,0) -> 52.89896151 | D71: =IF(D68>0,D61/D68*100,0) -> 7.875182793 | E71: =IF(E68>0,E61/E68*100,0) -> 4.585235347 | F71: =IF(B61>1,F61/B61*100,0) -> 86.00625776
A72: QCF 4-6 | B72: =(B62/B68)*100 -> 21.84706534 | C72: =IF(B62>0,C62/B62*100,0) -> 14.49176867 | D72: =IF(D68>0,D62/D68*100,0) -> 28.09712267 | E72: =IF(E68>0,E62/E68*100,0) -> 21.84706534 | F72: 47.59906492
A73: QCF 3 | B73: =(B63/B68)*100 -> 24.33275405 | C73: -20.12096644 | D73: =IF(D68>0,D63/D68*100,0) -> 21.83325785 | E73: =IF(E68>0,E63/E68*100,0) -> 24.33275405 | F73: 12.98632981
A74: QCF 2 | B74: =(B64/B68)*100 -> 24.17891808 | C74: -11.57082797 | D74: =IF(D68>0,D64/D68*100,0) -> 24.01745017 | E74: =IF(E68>0,E64/E68*100,0) -> 24.17891808 | F74: 21.53646828
A75: QCF 1 | B75: =(B65/B68)*100 -> 17.53606655 | C75: -26.56516473 | D75: =IF(D68>0,D65/D68*100,0) -> 14.46534465 | E75: =IF(E68>0,E65/E68*100,0) -> 17.53606655 | F75: 6.542131518
A76: No Qual | B76: =(B66/B68)*100 -> 7.519960638 | C76: -56.06040783 | D76: =IF(D68>0,D66/D68*100,0) -> 3.711641866 | E76: =IF(E68>0,E66/E68*100,0) -> 7.519960638 | F76: -22.95311158
A78: =A50 -> Total | B78: =(B68/B68)*100 -> 100 | C78: -10.97632381 | D78: =IF(D68>0,D68/D68*100,0) -> 100 | E78: =IF(E68>0,E68/E68*100,0) -> 100 | F78: =IF(B68>1,F68/B68*100,0) -> 22.13097244
A85: =A57 -> Yorkshire and the Humber
A86: ='Table 7.x.1'!B86 -> Construction
A87: =$A$3 -> QCF group | B87: Base year level | C87: Change | D87: Projected level | E87: Replacement | F87: Total requirement
B88: =B$4 -> 2012 | C88: =C$4 -> 2012-2022 | D88: =D$4 -> 2022 | E88: Demand | F88: =F$4 -> 2012-2022
A89: =A61 -> QCF 7-8 | B89: =('Table 7.x.1'!D89+'Table 7.x.1'!D90)*0.001 -> 4.876588496 | C89: =D89-B89 -> 6.653179222 | D89: =('Table 7.x.1'!F89+'Table 7.x.1'!F90)*0.001 -> 11.52976772 | E89: =F89-C89 -> 1.739349196 | F89: =C89+('Table 6.x.3'!I110/100*TableQ!B89) -> 8.392528418
A90: =A62 -> QCF 4-6 | B90: =SUM('Table 7.x.1'!D91:D93)*0.001 -> 25.76564043 | C90: 11.89316438 | D90: =SUM('Table 7.x.1'!F91:F93)*0.001 -> 37.65880481 | E90: =F90-C90 -> 9.1899175 | F90: =C90+('Table 6.x.3'!I110/100*TableQ!B90) -> 21.08308188
A91: QCF 3 | B91: ='Table 7.x.1'!D94*0.001 -> 50.42647709 | C91: -2.68696613 | D91: ='Table 7.x.1'!F94*0.001 -> 47.73951096 | E91: 17.98578093 | F91: =C91+('Table 6.x.3'!I110/100*TableQ!B91) -> 15.2988148
A92: QCF 2 | B92: ='Table 7.x.1'!D95*0.001 -> 43.74652876 | C92: 8.648374816 | D92: ='Table 7.x.1'!F95*0.001 -> 52.39490358 | E92: 15.60322133 | F92: =C92+('Table 6.x.3'!I110/100*TableQ!B92) -> 24.25159614
A93: QCF 1 | B93: ='Table 7.x.1'!D96*0.001 -> 25.34829981 | C93: 1.681847948 | D93: ='Table 7.x.1'!F96*0.001 -> 27.03014776 | E93: 9.041063221 | F93: =C93+('Table 6.x.3'!I110/100*TableQ!B93) -> 10.72291117
A94: No Qual | B94: ='Table 7.x.1'!D97*0.001 -> 10.19046541 | C94: -4.337600237 | D94: ='Table 7.x.1'!F97*0.001 -> 5.85286517 | E94: 3.634667519 | F94: =C94+('Table 6.x.3'!I110/100*TableQ!B94) -> -0.7029327178
A96: Total | B96: =SUM(B89:B95) -> 160.354 | C96: =SUM(C89:C95) -> 21.852 | D96: =SUM(D89:D95) -> 182.206 | E96: =F96-C96 -> 57.19399969 | F96: =SUM(F89:F95) -> 79.04599969
B98: % share | C98: % change | D98: % share | E98: % share | F98: % of base year level
A99: =A89 -> QCF 7-8 | B99: =(B89/B96)*100 -> 3.04113929 | C99: =IF(B89>0,C89/B89*100,0) -> 136.4310158 | D99: =IF(D96>0,D89/D96*100,0) -> 6.327874888 | E99: =IF(E96>0,E89/E96*100,0) -> 3.04113929 | F99: =IF(B89>1,F89/B89*100,0) -> 172.0983516
A100: QCF 4-6 | B100: =(B90/B96)*100 -> 16.06797487 | C100: =IF(B90>0,C90/B90*100,0) -> 46.15900938 | D100: =IF(D96>0,D90/D96*100,0) -> 20.66825725 | E100: =IF(E96>0,E90/E96*100,0) -> 16.06797487 | F100: 81.8263452
A101: QCF 3 | B101: =(B91/B96)*100 -> 31.44697176 | C101: -5.328482744 | D101: =IF(D96>0,D91/D96*100,0) -> 26.20084463 | E101: =IF(E96>0,E91/E96*100,0) -> 31.44697176 | F101: 30.33885308
A102: QCF 2 | B102: =(B92/B96)*100 -> 27.28122077 | C102: 19.76928241 | D102: =IF(D96>0,D92/D96*100,0) -> 28.75586072 | E102: =IF(E96>0,E92/E96*100,0) -> 27.28122077 | F102: 55.43661824
A103: QCF 1 | B103: =(B93/B96)*100 -> 15.80771282 | C103: 6.634953665 | D103: =IF(D96>0,D93/D96*100,0) -> 14.83493834 | E103: =IF(E96>0,E93/E96*100,0) -> 15.80771282 | F103: 42.30228949
A104: No Qual | B104: =(B94/B96)*100 -> 6.354980485 | C104: -42.56528101 | D104: =IF(D96>0,D94/D96*100,0) -> 3.212224169 | E104: =IF(E96>0,E94/E96*100,0) -> 6.354980485 | F104: -6.897945185
A106: =A78 -> Total | B106: =(B96/B96)*100 -> 100 | C106: 13.62734949 | D106: =IF(D96>0,D96/D96*100,0) -> 100 | E106: =IF(E96>0,E96/E96*100,0) -> 100 | F106: =IF(B96>1,F96/B96*100,0) -> 49.29468532
A113: =A85 -> Yorkshire and the Humber
A114: ='Table 7.x.1'!B114 -> Trade, accomod. and transport
A115: =$A$3 -> QCF group | B115: Base year level | C115: Change | D115: Projected level | E115: Replacement | F115: Total requirement
B116: =B$4 -> 2012 | C116: =C$4 -> 2012-2022 | D116: =D$4 -> 2022 | E116: Demand | F116: =F$4 -> 2012-2022
A117: =A89 -> QCF 7-8 | B117: =('Table 7.x.1'!D117+'Table 7.x.1'!D118)*0.001 -> 18.95660435 | C117: =D117-B117 -> 17.87669092 | D117: =('Table 7.x.1'!F117+'Table 7.x.1'!F118)*0.001 -> 36.83329527 | E117: =F117-C117 -> 7.370561437 | F117: =C117+('Table 6.x.3'!I138/100*TableQ!B117) -> 25.24725236
A118: =A90 -> QCF 4-6 | B118: =SUM('Table 7.x.1'!D119:D121)*0.001 -> 120.9252882 | C118: 62.55981594 | D118: =SUM('Table 7.x.1'!F119:F121)*0.001 -> 183.4851041 | E118: =F118-C118 -> 47.01724259 | F118: =C118+('Table 6.x.3'!I138/100*TableQ!B118) -> 109.5770585
A119: QCF 3 | B119: ='Table 7.x.1'!D122*0.001 -> 158.5803803 | C119: -9.308893031 | D119: ='Table 7.x.1'!F122*0.001 -> 149.2714872 | E119: 61.65800655 | F119: =C119+('Table 6.x.3'!I138/100*TableQ!B119) -> 52.34911352
A120: QCF 2 | B120: ='Table 7.x.1'!D123*0.001 -> 201.6275847 | C120: 5.44266631 | D120: ='Table 7.x.1'!F123*0.001 -> 207.070251 | E120: 78.39529026 | F120: =C120+('Table 6.x.3'!I138/100*TableQ!B120) -> 83.83795656
A121: QCF 1 | B121: ='Table 7.x.1'!D124*0.001 -> 137.3675864 | C121: -27.61656888 | D121: ='Table 7.x.1'!F124*0.001 -> 109.7510175 | E121: 53.41021081 | F121: =C121+('Table 6.x.3'!I138/100*TableQ!B121) -> 25.79364192
A122: No Qual | B122: ='Table 7.x.1'!D125*0.001 -> 55.42955615 | C122: -23.03471125 | D122: ='Table 7.x.1'!F125*0.001 -> 32.3948449 | E122: 21.55169467 | F122: =C122+('Table 6.x.3'!I138/100*TableQ!B122) -> -1.483016577
A124: Total | B124: =SUM(B117:B123) -> 692.887 | C124: =SUM(C117:C123) -> 25.919 | D124: =SUM(D117:D123) -> 718.806 | E124: =F124-C124 -> 269.4030063 | F124: =SUM(F117:F123) -> 295.3220063
B126: % share | C126: % change | D126: % share | E126: % share | F126: % of base year level
A127: =A117 -> QCF 7-8 | B127: =(B117/B124)*100 -> 2.735886855 | C127: =IF(B117>0,C117/B117*100,0) -> 94.30323377 | D127: =IF(D124>0,D117/D124*100,0) -> 5.124233141 | E127: =IF(E124>0,E117/E124*100,0) -> 2.735886855 | F127: =IF(B117>1,F117/B117*100,0) -> 133.1844664
A128: QCF 4-6 | B128: =(B118/B124)*100 -> 17.4523823 | C128: =IF(B118>0,C118/B118*100,0) -> 51.73427072 | D128: =IF(D124>0,D118/D124*100,0) -> 25.52637347 | E128: =IF(E124>0,E118/E124*100,0) -> 17.4523823 | F128: 90.61550334
A129: QCF 3 | B129: =(B119/B124)*100 -> 22.88690368 | C129: -5.870141701 | D129: =IF(D124>0,D119/D124*100,0) -> 20.76658893 | E129: =IF(E124>0,E119/E124*100,0) -> 22.88690368 | F129: 33.01109093
A130: QCF 2 | B130: =(B120/B124)*100 -> 29.09963453 | C130: 2.699365921 | D130: =IF(D124>0,D120/D124*100,0) -> 28.80752957 | E130: =IF(E124>0,E120/E124*100,0) -> 29.09963453 | F130: 41.58059855
A131: QCF 1 | B131: =(B121/B124)*100 -> 19.82539525 | C131: -20.10413782 | D131: =IF(D124>0,D121/D124*100,0) -> 15.26851716 | E131: =IF(E124>0,E121/E124*100,0) -> 19.82539525 | F131: 18.77709481
A132: No Qual | B132: =(B122/B124)*100 -> 7.999797392 | C132: -41.55673047 | D132: =IF(D124>0,D122/D124*100,0) -> 4.506757721 | E132: =IF(E124>0,E122/E124*100,0) -> 7.999797392 | F132: -2.675497839
A134: =A106 -> Total | B134: =(B124/B124)*100 -> 100 | C134: 3.7407254 | D134: =IF(D124>0,D124/D124*100,0) -> 100 | E134: =IF(E124>0,E124/E124*100,0) -> 100 | F134: =IF(B124>1,F124/B124*100,0) -> 42.62195803
A141: =A113 -> Yorkshire and the Humber
A142: ='Table 7.x.1'!B142 -> Business and other services
A143: =$A$3 -> QCF group | B143: Base year level | C143: Change | D143: Projected level | E143: Replacement | F143: Total requirement
B144: =B$4 -> 2012 | C144: =C$4 -> 2012-2022 | D144: =D$4 -> 2022 | E144: Demand | F144: =F$4 -> 2012-2022
A145: =A117 -> QCF 7-8 | B145: =('Table 7.x.1'!D145+'Table 7.x.1'!D146)*0.001 -> 68.94422439 | C145: =D145-B145 -> 50.41674451 | D145: =('Table 7.x.1'!F145+'Table 7.x.1'!F146)*0.001 -> 119.3609689 | E145: =F145-C145 -> 27.70105276 | F145: =C145+('Table 6.x.3'!I166/100*TableQ!B145) -> 78.11779727
A146: =A118 -> QCF 4-6 | B146: =SUM('Table 7.x.1'!D147:D149)*0.001 -> 219.6822789 | C146: 61.37508144 | D146: =SUM('Table 7.x.1'!F147:F149)*0.001 -> 281.0573603 | E146: =F146-C146 -> 88.26599257 | F146: =C146+('Table 6.x.3'!I166/100*TableQ!B146) -> 149.641074
A147: QCF 3 | B147: ='Table 7.x.1'!D150*0.001 -> 118.665525 | C147: -21.51276612 | D147: ='Table 7.x.1'!F150*0.001 -> 97.15275891 | E147: 47.67854014 | F147: =C147+('Table 6.x.3'!I166/100*TableQ!B147) -> 26.16577402
A148: QCF 2 | B148: ='Table 7.x.1'!D151*0.001 -> 132.2883441 | C148: -0.6279759419 | D148: ='Table 7.x.1'!F151*0.001 -> 131.6603682 | E148: 53.15204329 | F148: =C148+('Table 6.x.3'!I166/100*TableQ!B148) -> 52.52406735
A149: QCF 1 | B149: ='Table 7.x.1'!D152*0.001 -> 88.89363688 | C149: -9.259412426 | D149: ='Table 7.x.1'!F152*0.001 -> 79.63422445 | E149: 35.71651356 | F149: =C149+('Table 6.x.3'!I166/100*TableQ!B149) -> 26.45710113
A150: No Qual | B150: ='Table 7.x.1'!D153*0.001 -> 32.99899075 | C150: -11.85067146 | D150: ='Table 7.x.1'!F153*0.001 -> 21.14831929 | E150: 13.25864192 | F150: =C150+('Table 6.x.3'!I166/100*TableQ!B150) -> 1.407970462
A152: Total | B152: =SUM(B145:B151) -> 661.473 | C152: =SUM(C145:C151) -> 68.541 | D152: =SUM(D145:D151) -> 730.014 | E152: =F152-C152 -> 265.7727842 | F152: =SUM(F145:F151) -> 334.3137842
B154: % share | C154: % change | D154: % share | E154: % share | F154: % of base year level
A155: =A145 -> QCF 7-8 | B155: =(B145/B152)*100 -> 10.42283274 | C155: =IF(B145>0,C145/B145*100,0) -> 73.12685718 | D155: =IF(D152>0,D145/D152*100,0) -> 16.35050409 | E155: =IF(E152>0,E145/E152*100,0) -> 10.42283274 | F155: =IF(B145>1,F145/B145*100,0) -> 113.3057888
A156: QCF 4-6 | B156: =(B146/B152)*100 -> 33.21107269 | C156: =IF(B146>0,C146/B146*100,0) -> 27.93811215 | D156: =IF(D152>0,D146/D152*100,0) -> 38.5002699 | E156: =IF(E152>0,E146/E152*100,0) -> 33.21107269 | F156: 68.11704375
A157: QCF 3 | B157: =(B147/B152)*100 -> 17.93958711 | C157: -18.1289099 | D157: =IF(D152>0,D147/D152*100,0) -> 13.30834188 | E157: =IF(E152>0,E147/E152*100,0) -> 17.93958711 | F157: 22.0500217
A158: QCF 2 | B158: =(B148/B152)*100 -> 19.99905425 | C158: -0.4747023982 | D158: =IF(D152>0,D148/D152*100,0) -> 18.03532099 | E158: =IF(E152>0,E148/E152*100,0) -> 19.99905425 | F158: 39.70422921
A159: QCF 1 | B159: =(B149/B152)*100 -> 13.43874004 | C159: -10.4162826 | D159: =IF(D152>0,D149/D152*100,0) -> 10.90858866 | E159: =IF(E152>0,E149/E152*100,0) -> 13.43874004 | F159: 29.76264901
A160: No Qual | B160: =(B150/B152)*100 -> 4.988713183 | C160: -35.91222396 | D160: =IF(D152>0,D150/D152*100,0) -> 2.896974481 | E160: =IF(E152>0,E150/E152*100,0) -> 4.988713183 | F160: 4.266707647
A162: =A134 -> Total | B162: =(B152/B152)*100 -> 100 | C162: 10.36187418 | D162: =IF(D152>0,D152/D152*100,0) -> 100 | E162: =IF(E152>0,E152/E152*100,0) -> 100 | F162: =IF(B152>1,F152/B152*100,0) -> 50.54080578
A169: =A141 -> Yorkshire and the Humber
A170: ='Table 7.x.1'!B170 -> Non-market services
A171: =$A$3 -> QCF group | B171: Base year level | C171: Change | D171: Projected level | E171: Replacement | F171: Total requirement
B172: =B$4 -> 2012 | C172: =C$4 -> 2012-2022 | D172: =D$4 -> 2022 | E172: Demand | F172: =F$4 -> 2012-2022
A173: =A145 -> QCF 7-8 | B173: =('Table 7.x.1'!D173+'Table 7.x.1'!D174)*0.001 -> 109.5634551 | C173: =D173-B173 -> 41.62091934 | D173: =('Table 7.x.1'!F173+'Table 7.x.1'!F174)*0.001 -> 151.1843745 | E173: =F173-C173 -> 44.63366486 | F173: =C173+('Table 6.x.3'!I194/100*TableQ!B173) -> 86.2545842
A174: =A146 -> QCF 4-6 | B174: =SUM('Table 7.x.1'!D175:D177)*0.001 -> 253.7091587 | C174: 34.10287989 | D174: =SUM('Table 7.x.1'!F175:F177)*0.001 -> 287.8120386 | E174: =F174-C174 -> 103.3553528 | F174: =C174+('Table 6.x.3'!I194/100*TableQ!B174) -> 137.4582327
A175: QCF 3 | B175: ='Table 7.x.1'!D178*0.001 -> 124.9231406 | C175: 5.109436552 | D175: ='Table 7.x.1'!F178*0.001 -> 130.0325771 | E175: 50.89085209 | F175: =C175+('Table 6.x.3'!I194/100*TableQ!B175) -> 56.00028865
A176: QCF 2 | B176: ='Table 7.x.1'!D179*0.001 -> 123.8422109 | C176: -7.372112621 | D176: ='Table 7.x.1'!F179*0.001 -> 116.4700982 | E176: 50.45050586 | F176: =C176+('Table 6.x.3'!I194/100*TableQ!B176) -> 43.07839324
A177: QCF 1 | B177: ='Table 7.x.1'!D180*0.001 -> 60.36933268 | C177: -33.45462304 | D177: ='Table 7.x.1'!F180*0.001 -> 26.91470964 | E177: 24.59309593 | F177: =C177+('Table 6.x.3'!I194/100*TableQ!B177) -> -8.861527109
A178: No Qual | B178: ='Table 7.x.1'!D181*0.001 -> 14.9187021 | C178: -9.888500127 | D178: ='Table 7.x.1'!F181*0.001 -> 5.030201969 | E178: 6.077540624 | F178: =C178+('Table 6.x.3'!I194/100*TableQ!B178) -> -3.810959502
A180: Total | B180: =SUM(B173:B179) -> 687.326 | C180: =SUM(C173:C179) -> 30.118 | D180: =SUM(D173:D179) -> 717.444 | E180: =F180-C180 -> 280.0010122 | F180: =SUM(F173:F179) -> 310.1190122
B182: % share | C182: % change | D182: % share | E182: % share | F182: % of base year level
A183: =A173 -> QCF 7-8 | B183: =(B173/B180)*100 -> 15.94053697 | C183: =IF(B173>0,C173/B173*100,0) -> 37.98795802 | D183: =IF(D180>0,D173/D180*100,0) -> 21.07263765 | E183: =IF(E180>0,E173/E180*100,0) -> 15.94053697 | F183: =IF(B173>1,F173/B173*100,0) -> 78.72568833
A184: QCF 4-6 | B184: =(B174/B180)*100 -> 36.91249257 | C184: =IF(B174>0,C174/B174*100,0) -> 13.44172204 | D184: =IF(D180>0,D174/D180*100,0) -> 40.11630713 | E184: =IF(E180>0,E174/E180*100,0) -> 36.91249257 | F184: 54.17945234
A185: QCF 3 | B185: =(B175/B180)*100 -> 18.17523862 | C185: 4.090064121 | D185: =IF(D180>0,D175/D180*100,0) -> 18.12442185 | E185: =IF(E180>0,E175/E180*100,0) -> 18.17523862 | F185: 44.82779442
A186: QCF 2 | B186: =(B176/B180)*100 -> 18.01797267 | C186: -5.952827044 | D186: =IF(D180>0,D176/D180*100,0) -> 16.23403335 | E186: =IF(E180>0,E176/E180*100,0) -> 18.01797267 | F186: 34.78490326
A187: QCF 1 | B187: =(B177/B180)*100 -> 8.783216796 | C187: -55.4165858 | D187: =IF(D180>0,D177/D180*100,0) -> 3.751471841 | E187: =IF(E180>0,E177/E180*100,0) -> 8.783216796 | F187: -14.6788555
A188: No Qual | B188: =(B178/B180)*100 -> 2.170542377 | C188: -66.28257648 | D188: =IF(D180>0,D178/D180*100,0) -> 0.7011281674 | E188: =IF(E180>0,E178/E180*100,0) -> 2.170542377 | F188: -25.54484618
A190: =A162 -> Total | B190: =(B180/B180)*100 -> 100 | C190: 4.381909021 | D190: =IF(D180>0,D180/D180*100,0) -> 100 | E190: =IF(E180>0,E180/E180*100,0) -> 100 | F190: =IF(B180>1,F180/B180*100,0) -> 45.11963932

Sheet Figure 7.1
AT1: Share of all occupations, 1992-2022 | DA1: Data is written here by the initial setup process and the appropriate occupation copied to BL116 when an occupation is selected
AT2: Qualification shares, 2012 | AZ2: When an occupation is selected, data for that occupation is written here.
F3: Click on an occupation from the list and the charts will be customised for that occupation | BB3: Chart data | CJ3: Employment by broad ind sector for current occupation | DA3: Emp x qualification for occupation 1 for every industry
BB4: Shares of total employment for selected occupation for every sector | CJ4: (obviously not reproduced for every industry - that wouldn't make sense) | DA4: 2012 | DB4: =LEFT(names!$D$4,4) -> QCF8 | DC4: =LEFT(names!$D$5,4) -> QCF7 | DD4: =LEFT(names!$D$6,4) -> QCF6 | DE4: =LEFT(names!$D$7,4) -> QCF5 | DF4: =LEFT(names!$D$8,4) -> QCF4 | DG4: =LEFT(names!$D$9,4) -> QCF3 | DH4: =LEFT(names!$D$10,4) -> QCF2 | DI4: =LEFT(names!$D$11,4) -> QCF1 | DJ4: =LEFT(names!$D$12,7) -> No Qual
BB5: 1992 | BC5: 1993 | BD5: 1994 | BE5: 1995 | BF5: 1996 | BG5: 1997 | BH5: 1998 | BI5: 1999 | BJ5: 2000 | BK5: 2001 | BL5: 2002 | BM5: 2003 | BN5: 2004 | BO5: 2005 | BP5: 2006 | BQ5: 2007 | BR5: 2008 | BS5: 2009 | BT5: 2010 | BU5: 2011 | BV5: 2012 | BW5: 2013 | BX5: 2014 | BY5: 2015 | BZ5: 2016 | CA5: 2017 | CB5: 2018 | CC5: 2019 | CD5: 2020 | CE5: 2021 | CF5: 2022 | CJ5: Industries, 2012 | DA5: =names!$A$3 -> All industries | DB5: 1836.435856 | DC5: 16994.90409 | DD5: 41938.54384 | DE5: 9774.25053 | DF5: 13135.33429 | DG5: 30174.2266 | DH5: 27688.37046 | DI5: 17511.50644 | DJ5: 3245.404993
AZ6: =names!$A$3 -> All industries | BA6: Males | BB6: 84.27267278 | BC6: 83.27631437 | BD6: 82.5208928 | BE6: 81.81896784 | BF6: 80.90853509 | BG6: 80.23076975 | BH6: 79.07731738 | BI6: 77.70311945 | BJ6: 77.18254596 | BK6: 76.18663601 | BL6: 76.63299537 | BM6: 75.02362312 | BN6: 74.77948804 | BO6: 74.52266445 | BP6: 73.3937129 | BQ6: 73.77156532 | BR6: 73.72346837 | BS6: 72.78808978 | BT6: 72.21064693 | BU6: 71.65367894 | BV6: 71.22149938 | BW6: 70.77060136 | BX6: 70.34721754 | BY6: 69.96360933 | BZ6: 69.57048746 | CA6: 69.16559163 | CB6: 68.74996954 | CC6: 68.33231022 | CD6: 67.92836756 | CE6: 68.33231022 | CF6: 67.92836756 | CJ6: Primary sector and utilities | CK6: 33244.42 | DA6: =names!$A$4 -> Primary sector and utilities | DB6: 30.65745248 | DC6: 433.6761854 | DD6: 813.4798978 | DE6: 92.41350352 | DF6: 317.8789538 | DG6: 310.5075321 | DH6: 326.9609993 | DI6: 280.1727005 | DJ6: 86.9330407
BA7: Females | BB7: 15.72732722 | BC7: 16.72368563 | BD7: 17.47910727 | BE7: 18.18103223 | BF7: 19.09146498 | BG7: 19.76923032 | BH7: 20.92268262 | BI7: 22.29688055 | BJ7: 22.81745411 | BK7: 23.81336405 | BL7: 23.36700463 | BM7: 24.97637693 | BN7: 25.22051201 | BO7: 25.4773356 | BP7: 26.60628715 | BQ7: 26.22843468 | BR7: 26.27653163 | BS7: 27.21191022 | BT7: 27.78935307 | BU7: 28.34632106 | BV7: 28.77850067 | BW7: 29.22939869 | BX7: 29.65278251 | BY7: 30.03639072 | BZ7: 30.42951258 | CA7: 30.83440837 | CB7: 31.25003046 | CC7: 31.66768978 | CD7: 32.07163248 | CE7: 31.66768978 | CF7: 32.07163248 | CJ7: Manufacturing | CK7: 240909.521 | DA7: =names!$A$5 -> Manufacturing | DB7: 308.3828902 | DC7: 2248.306684 | DD7: 6297.300003 | DE7: 1270.387389 | DF7: 3168.488403 | DG7: 4599.823633 | DH7: 4098.926729 | DI7: 2303.717518 | DJ7: 488.9048411
AZ8: =names!$A$4 -> Primary sector and utilities | BA8: =BA6 -> Males | BB8: 89.79847307 | BC8: 88.89295889 | BD8: 88.9538962 | BE8: 89.43985242 | BF8: 89.80050262 | BG8: 88.79715572 | BH8: 86.2639995 | BI8: 86.18084411 | BJ8: 85.25411128 | BK8: 83.66738706 | BL8: 83.07249839 | BM8: 83.69039967 | BN8: 82.37109864 | BO8: 83.24776625 | BP8: 84.27965714 | BQ8: 85.51186929 | BR8: 85.06015738 | BS8: 85.04830952 | BT8: 82.52008318 | BU8: 82.06528098 | BV8: 81.65338424 | BW8: 81.33072025 | BX8: 80.98231484 | BY8: 80.5257939 | BZ8: 80.05968565 | CA8: 79.52795164 | CB8: 78.91194821 | CC8: 78.25859193 | CD8: 77.77869969 | CE8: 78.25859193 | CF8: 77.77869969 | CJ8: Construction | CK8: 159563.316 | DA8: =names!$A$6 -> Construction | DB8: 33.4903551 | DC8: 1169.626871 | DD8: 2169.676673 | DE8: 635.1310782 | DF8: 1631.477785 | DG8: 2979.288744 | DH8: 2307.836641 | DI8: 1340.888539 | DJ8: 380.3157396
BA9: =BA7 -> Females | BB9: 10.20152693 | BC9: 11.10704111 | BD9: 11.0461038 | BE9: 10.56014392 | BF9: 10.19949359 | BG9: 11.20284066 | BH9: 13.7360005 | BI9: 13.81915589 | BJ9: 14.74588872 | BK9: 16.33260912 | BL9: 16.92749786 | BM9: 16.30960033 | BN9: 17.62890136 | BO9: 16.75223375 | BP9: 15.72033946 | BQ9: 14.48813071 | BR9: 14.93984262 | BS9: 14.95169048 | BT9: 17.47991682 | BU9: 17.93471902 | BV9: 18.34661576 | BW9: 18.66927975 | BX9: 19.01768516 | BY9: 19.4742061 | BZ9: 19.94031435 | CA9: 20.47204836 | CB9: 21.08804892 | CC9: 21.74140807 | CD9: 22.22130031 | CE9: 21.74140807 | CF9: 22.22130031 | CJ9: Distribution, transport etc | CK9: 566760.586 | DA9: =names!$A$7 -> Trade, accomod. and transport | DB9: 102.0938677 | DC9: 2410.886552 | DD9: 9816.613203 | DE9: 1942.021997 | DF9: 3100.867663 | DG9: 10621.90071 | DH9: 11168.5147 | DI9: 8687.507484 | DJ9: 1349.687231
AZ10: =names!$A$5 -> Manufacturing | BA10: =BA6 -> Males | BB10: 91.02162705 | BC10: 90.43270863 | BD10: 90.06397393 | BE10: 89.83261408 | BF10: 89.72663729 | BG10: 89.15860076 | BH10: 88.28732986 | BI10: 88.30433582 | BJ10: 88.28318372 | BK10: 87.78584532 | BL10: 88.14292234 | BM10: 87.28140921 | BN10: 86.73428205 | BO10: 86.02202292 | BP10: 86.90716154 | BQ10: 85.69122282 | BR10: 85.7513806 | BS10: 86.21545117 | BT10: 84.71938646 | BU10: 84.40414328 | BV10: 84.06286483 | BW10: 83.70755397 | BX10: 83.38936362 | BY10: 83.06740163 | BZ10: 82.752417 | CA10: 82.43899557 | CB10: 82.11018571 | CC10: 81.77191524 | CD10: 81.41897018 | CE10: 81.77191524 | CF10: 81.41897018 | CJ10: Business and other services | CK10: 790592.76 | DA10: =names!$A$8 -> Business and other services | DB10: 924.0653655 | DC10: 6882.755503 | DD10: 16437.34281 | DE10: 1929.827155 | DF10: 3967.053808 | DG10: 8500.675425 | DH10: 7600.144278 | DI10: 4096.78827 | DJ10: 662.9629571
BA11: =BA7 -> Females | BB11: 8.978373322 | BC11: 9.567291367 | BD11: 9.936026065 | BE11: 10.16738592 | BF11: 10.27336271 | BG11: 10.84139924 | BH11: 11.71267046 | BI11: 11.69566418 | BJ11: 11.71681628 | BK11: 12.21415468 | BL11: 11.85707766 | BM11: 12.71859045 | BN11: 13.26571795 | BO11: 13.97797708 | BP11: 13.09283811 | BQ11: 14.30877718 | BR11: 14.24861905 | BS11: 13.78454883 | BT11: 15.28061396 | BU11: 15.59585715 | BV11: 15.93713476 | BW11: 16.29244643 | BX11: 16.61063638 | BY11: 16.93259837 | BZ11: 17.247583 | CA11: 17.56100443 | CB11: 17.88981467 | CC11: 18.22808476 | CD11: 18.58102982 | CE11: 18.22808476 | CF11: 18.58102982 | CJ11: Non-market services | CK11: 284874.551 | DA11: =names!$A$9 -> Non-market services | DB11: 437.7459252 | DC11: 3849.652293 | DD11: 6404.131258 | DE11: 3904.469408 | DF11: 949.5676821 | DG11: 3162.030557 | DH11: 2185.98712 | DI11: 802.4319272 | DJ11: 276.6011834
AZ12: =names!$A$6 -> Construction | BA12: =BA6 -> Males | BB12: 95.14541092 | BC12: 94.48102249 | BD12: 93.77148184 | BE12: 93.80763259 | BF12: 92.7400337 | BG12: 93.75126572 | BH12: 92.28727795 | BI12: 91.9633511 | BJ12: 91.82687739 | BK12: 91.14560937 | BL12: 90.69629405 | BM12: 88.80011611 | BN12: 89.46346888 | BO12: 88.47032985 | BP12: 88.40360788 | BQ12: 88.640802 | BR12: 88.31462157 | BS12: 90.00424871 | BT12: 88.00014336 | BU12: 87.66412408 | BV12: 87.3761805 | BW12: 86.98792684 | BX12: 86.61733909 | BY12: 86.27809285 | BZ12: 86.00690308 | CA12: 85.71607607 | CB12: 85.41028578 | CC12: 85.10658815 | CD12: 84.81679227 | CE12: 85.10658815 | CF12: 84.81679227
BA13: =BA7 -> Females | BB13: 4.854589081 | BC13: 5.518977509 | BD13: 6.228518164 | BE13: 6.192367409 | BF13: 7.259966298 | BG13: 6.248734282 | BH13: 7.712722954 | BI13: 8.036648896 | BJ13: 8.173121766 | BK13: 8.854391459 | BL13: 9.303705951 | BM13: 11.19988389 | BN13: 10.53653112 | BO13: 11.52967088 | BP13: 11.59639212 | BQ13: 11.35919865 | BR13: 11.68537905 | BS13: 9.995751288 | BT13: 11.99985599 | BU13: 12.33587527 | BV13: 12.6238195 | BW13: 13.01207316 | BX13: 13.38266091 | BY13: 13.72190772 | BZ13: 13.99309747 | CA13: 14.2839234 | CB13: 14.58971473 | CC13: 14.89341235 | CD13: 15.18320773 | CE13: 14.89341235 | CF13: 15.18320773
G14: Charts all refer to the selected occupation - current selection is :- | AZ14: =names!$A$7 -> Trade, accomod. and transport | BA14: =BA6 -> Males | BB14: 85.75455724 | BC14: 84.88897337 | BD14: 84.49117658 | BE14: 84.10962294 | BF14: 82.89628305 | BG14: 82.14830639 | BH14: 80.1262631 | BI14: 77.04637985 | BJ14: 76.7415325 | BK14: 75.62627684 | BL14: 76.22867044 | BM14: 75.49290633 | BN14: 74.07104909 | BO14: 74.28418406 | BP14: 72.88087573 | BQ14: 74.37707398 | BR14: 73.6217254 | BS14: 72.5231615 | BT14: 75.36560661 | BU14: 74.56389908 | BV14: 73.70021757 | BW14: 72.74077324 | BX14: 71.80955763 | BY14: 70.97038011 | BZ14: 70.38166045 | CA14: 69.77612891 | CB14: 69.15151838 | CC14: 68.53172572 | CD14: 67.95321695 | CE14: 68.53172572 | CF14: 67.95321695 | CJ14: Employment change by broad industrial sector
BA15: =BA7 -> Females | BB15: 14.2454425 | BC15: 15.11102637 | BD15: 15.50882342 | BE15: 15.89037706 | BF15: 17.10371695 | BG15: 17.85169361 | BH15: 19.8737369 | BI15: 22.95362015 | BJ15: 23.2584675 | BK15: 24.37372296 | BL15: 23.77132938 | BM15: 24.50709386 | BN15: 25.92895091 | BO15: 25.71581594 | BP15: 27.11912427 | BQ15: 25.62292585 | BR15: 26.3782746 | BS15: 27.4768385 | BT15: 24.63439321 | BU15: 25.43610092 | BV15: 26.29978243 | BW15: 27.25922676 | BX15: 28.19044237 | BY15: 29.02962005 | BZ15: 29.61833955 | CA15: 30.22387125 | CB15: 30.84848147 | CC15: 31.46827443 | CD15: 32.04678305 | CE15: 31.46827443 | CF15: 32.04678305 | CJ15: Industries, 2012 - 2022
B16: 11 Corporate managers and directors | AZ16: =names!$A$8 -> Business and other services | BA16: =BA6 -> Males | BB16: 80.68662799 | BC16: 79.92480492 | BD16: 78.82264754 | BE16: 77.44602468 | BF16: 76.70618692 | BG16: 75.92881931 | BH16: 75.56872404 | BI16: 74.87918806 | BJ16: 73.98286822 | BK16: 73.3177044 | BL16: 75.02898593 | BM16: 73.28950523 | BN16: 73.90652229 | BO16: 73.86474143 | BP16: 72.60374087 | BQ16: 72.80199886 | BR16: 73.27474178 | BS16: 72.01505112 | BT16: 70.47180938 | BU16: 70.10903776 | BV16: 69.67098826 | BW16: 69.22527962 | BX16: 68.78515048 | BY16: 68.36863727 | BZ16: 67.95405141 | CA16: 67.55618413 | CB16: 67.15999449 | CC16: 66.78568311 | CD16: 66.40496921 | CE16: 66.78568311 | CF16: 66.40496921 | CJ16: Non-market services | CK16: 17.054493
BA17: =BA7 -> Females | BB17: 19.31337201 | BC17: 20.07519508 | BD17: 21.17735246 | BE17: 22.55397506 | BF17: 23.29381282 | BG17: 24.07118045 | BH17: 24.43127596 | BI17: 25.12081194 | BJ17: 26.01713178 | BK17: 26.6822956 | BL17: 24.97101424 | BM17: 26.71049477 | BN17: 26.09347771 | BO17: 26.13525857 | BP17: 27.39625913 | BQ17: 27.19800127 | BR17: 26.7252581 | BS17: 27.98494888 | BT17: 29.52819062 | BU17: 29.89096224 | BV17: 30.32901174 | BW17: 30.77472038 | BX17: 31.21484964 | BY17: 31.63136273 | BZ17: 32.04594859 | CA17: 32.44381587 | CB17: 32.84000551 | CC17: 33.21431689 | CD17: 33.59503079 | CE17: 33.21431689 | CF17: 33.59503079 | CJ17: Business and other services | CK17: 140.092236
J18: All industries | AZ18: =names!$A$9 -> Non-market services | BA18: =BA6 -> Males | BB18: 66.55106914 | BC18: 64.51740993 | BD18: 63.00896069 | BE18: 61.59908856 | BF18: 59.10411727 | BG18: 57.50676914 | BH18: 56.71412424 | BI18: 56.79761989 | BJ18: 56.8072316 | BK18: 55.96517691 | BL18: 54.49610299 | BM18: 51.41976135 | BN18: 51.69156883 | BO18: 54.76166168 | BP18: 50.01123528 | BQ18: 49.93291434 | BR18: 50.84932849 | BS18: 49.63661675 | BT18: 50.21951079 | BU18: 49.80870187 | BV18: 49.46764093 | BW18: 49.23946565 | BX18: 48.98116294 | BY18: 48.85983705 | BZ18: 48.65615971 | CA18: 48.50311767 | CB18: 48.3906934 | CC18: 48.29117602 | CD18: 48.17183603 | CE18: 48.29117602 | CF18: 48.17183603 | CJ18: Distribution, transport etc | CK18: 103.381583
BA19: =BA7 -> Females | BB19: 33.44893158 | BC19: 35.48258935 | BD19: 36.99103931 | BE19: 38.40091213 | BF19: 40.89588205 | BG19: 42.49323019 | BH19: 43.28587576 | BI19: 43.20238011 | BJ19: 43.1927684 | BK19: 44.03482254 | BL19: 45.50389701 | BM19: 48.58023865 | BN19: 48.30843117 | BO19: 45.23833832 | BP19: 49.9887643 | BQ19: 50.06708566 | BR19: 49.15067151 | BS19: 50.36338325 | BT19: 49.78048921 | BU19: 50.19129849 | BV19: 50.53235907 | BW19: 50.76053435 | BX19: 51.0188367 | BY19: 51.14016331 | BZ19: 51.34383993 | CA19: 51.49688233 | CB19: 51.6093066 | CC19: 51.70882432 | CD19: 51.82816364 | CE19: 51.70882432 | CF19: 51.82816364 | CJ19: Construction | CK19: 44.856419
CJ20: Manufacturing | CK20: 23.593515
CJ21: Primary sector and utilities | CK21: 1.839598
CJ25: =TableQ!A3 -> QCF group | CK25: Base year level
CK26: 2012
CJ27: =TableQ!A5 -> QCF 7-8 | CK27: 1878259.585
CJ28: =TableQ!A6 -> QCF 4-6 | CK28: 7417568.277
CJ29: =TableQ!A7 -> QCF 3 | CK29: 5973784.73
CJ30: =TableQ!A8 -> QCF 2 | CK30: 6685148.396
CJ31: =TableQ!A9 -> QCF 1 | CK31: 5357778.981
CJ32: =TableQ!A10 -> No Qual | CK32: 3124402.429
DA33: Emp x qualification for occupation 2 for every industry
DA34: 2012 | DB34: =DB4 -> QCF8 | DC34: =DC4 -> QCF7 | DD34: QCF6 | DE34: QCF5 | DF34: QCF4 | DG34: QCF3 | DH34: QCF2 | DI34: QCF1 | DJ34: No Qual
DA35: =names!$A$3 -> All industries | DB35: 813.2833159 | DC35: 6627.71444 | DD35: 15242.47606 | DE35: 5600.100109 | DF35: 5469.046745 | DG35: 16487.03036 | DH35: 19667.70886 | DI35: 12367.12153 | DJ35: 4312.778289
DA36: =names!$A$4 -> Primary sector and utilities | DB36: 84.49038242 | DC36: 387.9445103 | DD36: 238.3664258 | DE36: 160.4699991 | DF36: 218.8027227 | DG36: 400.3251096 | DH36: 579.7432326 | DI36: 234.8794894 | DJ36: 312.4084265
DA37: =names!$A$5 -> Manufacturing | DB37: 65.39175026 | DC37: 198.3746938 | DD37: 727.5030778 | DE37: 268.3635298 | DF37: 349.0087826 | DG37: 729.9920684 | DH37: 249.4382 | DI37: 350.0672291 | DJ37: 129.7429184
DA38: =names!$A$6 -> Construction | DB38: 16.65767552 | DC38: 183.7813631 | DD38: 343.493978 | DE38: 140.3263114 | DF38: 86.29863278 | DG38: 329.2754016 | DH38: 327.3848283 | DI38: 98.67084787 | DJ38: 117.3338457
DA39: =names!$A$7 -> Trade, accomod. and transport | DB39: 305.1320696 | DC39: 2237.334852 | DD39: 7007.210862 | DE39: 2250.446702 | DF39: 2577.141927 | DG39: 8839.602818 | DH39: 13090.84724 | DI39: 8158.032481 | DJ39: 2483.649685
DA40: =names!$A$8 -> Business and other services | DB40: 297.6043005 | DC40: 2635.245471 | DD40: 5206.203264 | DE40: 1377.084549 | DF40: 1685.674444 | DG40: 4401.628094 | DH40: 4597.894684 | DI40: 3010.542119 | DJ40: 1131.632948
DA41: =names!$A$9 -> Non-market services | DB41: 44.00713759 | DC41: 985.0335495 | DD41: 1719.698449 | DE41: 1403.409018 | DF41: 552.1202352 | DG41: 1786.206872 | DH41: 822.4006802 | DI41: 514.9293678 | DJ41: 138.0104662
BB59: Selected occupation as % of all occupations, separately for men and women
BB60: 1992 | BC60: 1993 | BD60: 1994 | BE60: 1995 | BF60: 1996 | BG60: 1997 | BH60: 1998 | BI60: 1999 | BJ60: 2000 | BK60: 2001 | BL60: 2002 | BM60: 2003 | BN60: 2004 | BO60: 2005 | BP60: 2006 | BQ60: 2007 | BR60: 2008 | BS60: 2009 | BT60: 2010 | BU60: 2011 | BV60: 2012 | BW60: 2013 | BX60: 2014 | BY60: 2015 | BZ60: 2016 | CA60: 2017 | CB60: 2018 | CC60: 2019 | CD60: 2020 | CE60: 2021 | CF60: 2022
AZ61: =names!$A$3 -> All industries | BA61: Males | BB61: 7.539115394 | BC61: 7.611604693 | BD61: 7.619693542 | BE61: 7.675710471 | BF61: 7.697782521 | BG61: 7.775482772 | BH61: 7.872591098 | BI61: 7.863378136 | BJ61: 8.074644843 | BK61: 8.168683585 | BL61: 8.572284682 | BM61: 8.479979108 | BN61: 8.61635402 | BO61: 8.786344685 | BP61: 8.581268794 | BQ61: 8.931649487 | BR61: 9.093185181 | BS61: 9.103173604 | BT61: 9.024293131 | BU61: 9.103499532 | BV61: 9.181781155 | BW61: 9.26073374 | BX61: 9.342535195 | BY61: 9.428548668 | BZ61: 9.491583631 | CA61: 9.55231562 | CB61: 9.611524737 | CC61: 9.670236996 | CD61: 9.72816541 | CE61: 9.670236996 | CF61: 9.72816541
BA62: Females | BB62: 1.587500801 | BC62: 1.686287302 | BD62: 1.776967007 | BE62: 1.879646264 | BF62: 1.96245367 | BG62: 2.105153934 | BH62: 2.326579549 | BI62: 2.582752892 | BJ62: 2.683602314 | BK62: 2.889024192 | BL62: 2.928491704 | BM62: 3.202843707 | BN62: 3.281028395 | BO62: 3.360820691 | BP62: 3.500565753 | BQ62: 3.595962363 | BR62: 3.723721095 | BS62: 3.848506868 | BT62: 3.908126251 | BU62: 4.022137177 | BV62: 4.152773528 | BW62: 4.289727583 | BX62: 4.428842193 | BY62: 4.561704031 | BZ62: 4.666900644 | CA62: 4.769108248 | CB62: 4.873825846 | CC62: 4.975978052 | CD62: 5.077307502 | CE62: 4.975978052 | CF62: 5.077307502
AZ63: =names!$A$4 -> Primary sector and utilities | BA63: =BA61 -> Males | BB63: 3.629825763 | BC63: 3.648227366 | BD63: 3.64651541 | BE63: 3.69042325 | BF63: 3.648208564 | BG63: 3.596466858 | BH63: 3.671842306 | BI63: 3.785689981 | BJ63: 4.042282944 | BK63: 4.131384823 | BL63: 4.236814353 | BM63: 4.497159935 | BN63: 3.798590829 | BO63: 4.513104259 | BP63: 4.73421872 | BQ63: 5.051959221 | BR63: 5.040558671 | BS63: 5.264727419 | BT63: 4.428449287 | BU63: 4.504900746 | BV63: 4.590105261 | BW63: 4.650165699 | BX63: 4.710154263 | BY63: 4.776230649 | BZ63: 4.821875245 | CA63: 4.858199162 | CB63: 4.897752258 | CC63: 4.935464907 | CD63: 4.969232268 | CE63: 4.935464907 | CF63: 4.969232268 | DA63: Emp x qualification for occupation 3 for every industry
BA64: =BA62 -> Females | BB64: 1.408432671 | BC64: 1.485225951 | BD64: 1.568172214 | BE64: 1.573142941 | BF64: 1.552114897 | BG64: 1.697533784 | BH64: 1.863755739 | BI64: 1.976121519 | BJ64: 2.259735959 | BK64: 2.298180774 | BL64: 2.441622043 | BM64: 2.712024876 | BN64: 2.685960988 | BO64: 2.729657755 | BP64: 2.79918161 | BQ64: 2.873764361 | BR64: 2.846596015 | BS64: 3.145202278 | BT64: 3.02334922 | BU64: 3.132926732 | BV64: 3.243061626 | BW64: 3.331226083 | BX64: 3.416382732 | BY64: 3.528314967 | BZ64: 3.614827405 | CA64: 3.699199912 | CB64: 3.795333002 | CC64: 3.889879118 | CD64: 3.975059401 | CE64: 3.889879118 | CF64: 3.975059401 | DA64: 2012 | DB64: =DB34 -> QCF8 | DC64: =DC34 -> QCF7 | DD64: QCF6 | DE64: QCF5 | DF64: QCF4 | DG64: QCF3 | DH64: QCF2 | DI64: QCF1 | DJ64: No Qual
AZ65: =names!$A$5 -> Manufacturing | BA65: =BA62 -> Females | BB65: 8.19326554 | BC65: 8.353147642 | BD65: 8.438374804 | BE65: 8.576978858 | BF65: 8.72990394 | BG65: 8.834658673 | BH65: 8.964960965 | BI65: 9.128551272 | BJ65: 9.381915421 | BK65: 9.54170806 | BL65: 10.10948219 | BM65: 10.09597328 | BN65: 10.17650606 | BO65: 10.27946584 | BP65: 10.89256404 | BQ65: 10.70521973 | BR65: 10.94802834 | BS65: 11.44700036 | BT65: 10.46948249 | BU65: 10.61031599 | BV65: 10.77153664 | BW65: 10.94765332 | BX65: 11.1264738 | BY65: 11.30968462 | BZ65: 11.45662705 | CA65: 11.60252462 | CB65: 11.74899524 | CC65: 11.89711444 | CD65: 12.05266926 | CE65: 11.89711444 | CF65: 12.05266926 | DA65: =names!$A$3 -> All industries | DB65: 5477.311533 | DC65: 20109.56934 | DD65: 38429.76821 | DE65: 4529.802466 | DF65: 11070.92377 | DG65: 15555.31983 | DH65: 12772.99879 | DI65: 6809.853247 | DJ65: 1288.510291
BA66: =BA62 -> Females | BB66: 1.841348402 | BC66: 2.002196715 | BD66: 2.15644791 | BE66: 2.321296783 | BF66: 2.477184998 | BG66: 2.643968469 | BH66: 2.996963459 | BI66: 3.242375431 | BJ66: 3.426725759 | BK66: 3.684287046 | BL66: 3.790912805 | BM66: 4.367087011 | BN66: 4.704725668 | BO66: 5.154435149 | BP66: 5.181487423 | BQ66: 5.540320436 | BR66: 5.779210792 | BS66: 5.992660197 | BT66: 6.091197598 | BU66: 6.30572226 | BV66: 6.564391401 | BW66: 6.844504915 | BX66: 7.127291977 | BY66: 7.410274851 | BZ66: 7.671472598 | CA66: 7.93625437 | CB66: 8.211218882 | CC66: 8.483886454 | CD66: 8.76730149 | CE66: 8.483886454 | CF66: 8.76730149 | DA66: =names!$A$4 -> Primary sector and utilities | DB66: 88.80348821 | DC66: 385.9317679 | DD66: 884.9865676 | DE66: 99.19771725 | DF66: 487.7981218 | DG66: 334.2415692 | DH66: 282.258941 | DI66: 146.7049285 | DJ66: 92.82399664
AZ67: =names!$A$6 -> Construction | BA67: =BA61 -> Males | BB67: 5.955776775 | BC67: 5.931300206 | BD67: 5.930960624 | BE67: 5.932488804 | BF67: 5.942193492 | BG67: 6.319267181 | BH67: 6.351478238 | BI67: 6.211943745 | BJ67: 6.392214067 | BK67: 6.41607762 | BL67: 6.023580053 | BM67: 5.679198362 | BN67: 6.570966963 | BO67: 6.304098311 | BP67: 6.537921358 | BQ67: 6.628126577 | BR67: 7.036133407 | BS67: 7.82722256 | BT67: 7.306201186 | BU67: 7.347339792 | BV67: 7.491890217 | BW67: 7.591497582 | BX67: 7.713715151 | BY67: 7.8460038 | BZ67: 7.970285355 | CA67: 8.089023256 | CB67: 8.196625175 | CC67: 8.297168757 | CD67: 8.400824373 | CE67: 8.297168757 | CF67: 8.400824373 | DA67: =names!$A$5 -> Manufacturing | DB67: 722.9600133 | DC67: 1980.738682 | DD67: 5041.279221 | DE67: 615.073028 | DF67: 2958.470444 | DG67: 3305.456801 | DH67: 1940.454119 | DI67: 1151.366145 | DJ67: 158.316701
BA68: =BA62 -> Females | BB68: 2.270888643 | BC68: 2.52444729 | BD68: 2.760090411 | BE68: 2.913434111 | BF68: 3.251805374 | BG68: 3.461482717 | BH68: 3.723138275 | BI68: 3.80280048 | BJ68: 3.979016351 | BK68: 4.356553404 | BL68: 4.631158477 | BM68: 5.309873358 | BN68: 5.829544767 | BO68: 6.107079561 | BP68: 6.222415393 | BQ68: 6.635636808 | BR68: 7.083991151 | BS68: 7.233166677 | BT68: 8.27064347 | BU68: 8.543536907 | BV68: 8.893778368 | BW68: 9.276189257 | BX68: 9.673731637 | BY68: 10.06656862 | BZ68: 10.39475454 | CA68: 10.72872831 | CB68: 11.06514834 | CC68: 11.39385361 | CD68: 11.71835635 | CE68: 11.39385361 | CF68: 11.71835635 | DA68: =names!$A$6 -> Construction | DB68: 76.33201676 | DC68: 886.264132 | DD68: 1610.540719 | DE68: 257.0563298 | DF68: 876.8714351 | DG68: 1820.825203 | DH68: 1192.028069 | DI68: 350.5321599 | DJ68: 142.8357912
AZ69: =names!$A$7 -> Trade, accomod. and transport | BA69: =BA61 -> Males | BB69: 8.32885649 | BC69: 8.412466094 | BD69: 8.443238655 | BE69: 8.496848695 | BF69: 8.593829072 | BG69: 8.609063329 | BH69: 8.577793946 | BI69: 8.410803973 | BJ69: 8.690501432 | BK69: 8.809881532 | BL69: 9.287553672 | BM69: 9.229022482 | BN69: 9.04540253 | BO69: 9.007512615 | BP69: 8.541045579 | BQ69: 9.07468779 | BR69: 8.85253053 | BS69: 8.834540102 | BT69: 9.249269582 | BU69: 9.357096224 | BV69: 9.421635574 | BW69: 9.497521922 | BX69: 9.572811522 | BY69: 9.658085641 | BZ69: 9.719050761 | CA69: 9.773497244 | CB69: 9.821810502 | CC69: 9.868822531 | CD69: 9.92602207 | CE69: 9.868822531 | CF69: 9.92602207 | DA69: =names!$A$7 -> Trade, accomod. and transport | DB69: 238.867473 | DC69: 1124.22094 | DD69: 3591.972372 | DE69: 449.5221194 | DF69: 1372.263329 | DG69: 2876.941562 | DH69: 2804.010203 | DI69: 1728.387879 | DJ69: 456.3165329
BA70: =BA62 -> Females | BB70: 1.582203936 | BC70: 1.6935619 | BD70: 1.747996837 | BE70: 1.81202745 | BF70: 1.921339877 | BG70: 2.084730539 | BH70: 2.394957001 | BI70: 2.8434337 | BJ70: 2.922881712 | BK70: 3.229983681 | BL70: 3.279498742 | BM70: 3.465804852 | BN70: 3.66496619 | BO70: 3.651599116 | BP70: 3.807707804 | BQ70: 3.893511933 | BR70: 4.069575629 | BS70: 4.166984984 | BT70: 3.89275846 | BU70: 4.074400932 | BV70: 4.269767103 | BW70: 4.492586011 | BX70: 4.713013147 | BY70: 4.923119433 | BZ70: 5.067373571 | CA70: 5.210257257 | CB70: 5.35509757 | CC70: 5.499059857 | CD70: 5.645525475 | CE70: 5.499059857 | CF70: 5.645525475 | DA70: =names!$A$8 -> Business and other services | DB70: 2926.555337 | DC70: 10739.86209 | DD70: 21804.26574 | DE70: 1813.183051 | DF70: 4397.655531 | DG70: 6095.242897 | DH70: 5569.043643 | DI70: 2953.073824 | DJ70: 365.7458223
AZ71: =names!$A$8 -> Business and other services | BA71: =BA61 -> Males | BB71: 9.16700183 | BC71: 9.140498109 | BD71: 9.004441012 | BE71: 8.9230226 | BF71: 8.753038987 | BG71: 8.777323702 | BH71: 8.902257653 | BI71: 9.057046658 | BJ71: 9.190194117 | BK71: 9.238358181 | BL71: 10.05726273 | BM71: 10.09582554 | BN71: 10.50000046 | BO71: 10.56241432 | BP71: 10.2669295 | BQ71: 11.02410661 | BR71: 11.44326922 | BS71: 11.04476841 | BT71: 10.93264904 | BU71: 10.96533163 | BV71: 10.99000966 | BW71: 11.02780107 | BX71: 11.06343276 | BY71: 11.10698526 | BZ71: 11.137928 | CA71: 11.17491173 | CB71: 11.21534507 | CC71: 11.25702854 | CD71: 11.28689777 | CE71: 11.25702854 | CF71: 11.28689777 | DA71: =names!$A$9 -> Non-market services | DB71: 1423.793205 | DC71: 4992.551724 | DD71: 5496.723589 | DE71: 1295.77022 | DF71: 977.8649112 | DG71: 1122.611794 | DH71: 985.2038202 | DI71: 479.7883103 | DJ71: 72.47144679
BA72: =BA62 -> Females | BB72: 2.250725613 | BC72: 2.362804166 | BD72: 2.50459165 | BE72: 2.672549437 | BF72: 2.671108766 | BG72: 2.853966929 | BH72: 3.125585697 | BI72: 3.404052868 | BJ72: 3.584202612 | BK72: 3.81927679 | BL72: 3.833335838 | BM72: 4.361503931 | BN72: 4.402010124 | BO72: 4.426174489 | BP72: 4.62662156 | BQ72: 4.794369368 | BR72: 4.938431841 | BS72: 5.180574814 | BT72: 5.602697097 | BU72: 5.699244388 | BV72: 5.813660707 | BW72: 5.94049192 | BX72: 6.063532931 | BY72: 6.187890056 | BZ72: 6.301390254 | CA72: 6.414703537 | CB72: 6.534363119 | CC72: 6.649396757 | CD72: 6.756156515 | CE72: 6.649396757 | CF72: 6.756156515
AZ73: =names!$A$9 -> Non-market services | BA73: =BA61 -> Males | BB73: 5.123722647 | BC73: 5.098496364 | BD73: 5.036057567 | BE73: 5.00875673 | BF73: 4.948861013 | BG73: 4.877050378 | BH73: 4.981573017 | BI73: 4.863667974 | BJ73: 5.06046773 | BK73: 5.111282902 | BL73: 5.075305588 | BM73: 4.79583613 | BN73: 4.848241103 | BO73: 6.105286593 | BP73: 5.345116879 | BQ73: 5.280897141 | BR73: 5.489149375 | BS73: 5.540558598 | BT73: 5.957070219 | BU73: 6.040657326 | BV73: 6.061330441 | BW73: 6.0651867 | BX73: 6.063422204 | BY73: 6.071411171 | BZ73: 6.090182387 | CA73: 6.117161832 | CB73: 6.143074388 | CC73: 6.17692374 | CD73: 6.209081936 | CE73: 6.17692374 | CF73: 6.209081936
BA74: =BA62 -> Females | BB74: 1.038161377 | BC74: 1.095699671 | BD74: 1.150273423 | BE74: 1.205076375 | BF74: 1.290574402 | BG74: 1.369292437 | BH74: 1.441511235 | BI74: 1.535066599 | BJ74: 1.573819845 | BK74: 1.66675416 | BL74: 1.723852058 | BM74: 1.859667941 | BN74: 1.856889227 | BO74: 2.020121101 | BP74: 2.139104925 | BQ74: 2.115002912 | BR74: 2.182999311 | BS74: 2.343934136 | BT74: 2.389728303 | BU74: 2.45457805 | BV74: 2.494277453 | BW74: 2.518586146 | BX74: 2.541517616 | BY74: 2.557635101 | BZ74: 2.590670025 | CA74: 2.624385982 | CB74: 2.65538942 | CC74: 2.688180157 | CD74: 2.721821215 | CE74: 2.688180157 | CF74: 2.721821215
DA93: Emp x qualification for occupation 4 for every industry
DA94: 2012 | DB94: =DB64 -> QCF8 | DC94: =DC64 -> QCF7 | DD94: QCF6 | DE94: QCF5 | DF94: QCF4 | DG94: QCF3 | DH94: QCF2 | DI94: QCF1 | DJ94: No Qual
DA95: =names!$A$3 -> All industries | DB95: 5528.885708 | DC95: 16815.0914 | DD95: 34649.47318 | DE95: 21862.8155 | DF95: 2462.498239 | DG95: 9149.552287 | DH95: 7563.95397 | DI95: 4104.78797 | DJ95: 411.9272536
DA96: =names!$A$4 -> Primary sector and utilities | DB96: 6.623341172 | DC96: 65.91712352 | DD96: 54.11275726 | DE96: 13.14289706 | DF96: 25.49154011 | DG96: 22.64732506 | DH96: 24.40089443 | DI96: 32.50569309 | DJ96: 19.10528874
DA97: =names!$A$5 -> Manufacturing | DB97: 120.5629396 | DC97: 206.149022 | DD97: 321.8181791 | DE97: 61.17176316 | DF97: 43.01347954 | DG97: 185.5633321 | DH97: 102.2709297 | DI97: 20.31294434 | DJ97: 41.39927651
DA98: =names!$A$6 -> Construction | DB98: 0.210537282 | DC98: 97.03938332 | DD98: 165.3012592 | DE98: 3.13404601 | DF98: 17.93057016 | DG98: 48.59983749 | DH98: 46.91373243 | DI98: 71.94830453 | DJ98: 19.22427617
DA99: =names!$A$7 -> Trade, accomod. and transport | DB99: 31.47692062 | DC99: 1360.670993 | DD99: 2480.837541 | DE99: 480.3050585 | DF99: 199.5627497 | DG99: 1423.630572 | DH99: 1319.015306 | DI99: 655.5442421 | DJ99: 137.5803476
DA100: =names!$A$8 -> Business and other services | DB100: 427.2803954 | DC100: 1974.169081 | DD100: 3112.970629 | DE100: 953.261624 | DF100: 408.2674068 | DG100: 1479.129023 | DH100: 1011.809486 | DI100: 620.8034379 | DJ100: 90.04800532
DA101: =names!$A$9 -> Non-market services | DB101: 4942.731574 | DC101: 13111.1458 | DD101: 28514.43282 | DE101: 20351.80011 | DF101: 1768.232493 | DG101: 5989.982197 | DH101: 5059.543622 | DI101: 2703.673348 | DJ101: 104.5700592
B114: 11 Corporate managers and directors | I114: 34 Culture, media and sports occupations | O114: 62 Leisure, travel and related personal service occupations | BA114: Emp x gender-status for selected occupation for every industry | BK114: Emp x qualification for selected occupation for every industry
B115: 12 Other managers and proprietors | I115: 35 Business and public service associate professionals | O115: 71 Sales occupations | BA115: 2012 | BB115: MFT | BC115: MPT | BD115: MSE | BE115: FSE | BF115: FPT | BG115: FFT | BK115: 2010 | BL115: =DB4 -> QCF8 | BM115: =DC4 -> QCF7 | BN115: QCF6 | BO115: QCF5 | BP115: QCF4 | BQ115: QCF3 | BR115: QCF2 | BS115: QCF1 | BT115: No Qual
B116: 21 Science, research, engineering and technology professionals | I116: 41 Administrative occupations | O116: 72 Customer service occupations | BA116: =names!$A$3 -> All industries | BB116: 1227165.77 | BC116: 71318.499 | BD116: 180034.996 | BE116: 44219.164 | BF116: 118045.245 | BG116: 435161.481 | BK116: =names!$A$3 -> All industries | BL116: 29802.48004 | BM116: 244595.6726 | BN116: 527485.1956 | BO116: 117379.4378 | BP116: 160989.3651 | BQ116: 369141.6555 | BR116: 337483.021 | BS116: 261967.0581 | BT116: 70585.19651
B117: 22 Health professionals | I117: 42 Secretarial and related occupations | O117: 81 Process, plant and machine operatives | BA117: =names!$A$4 -> Primary sector and utilities | BB117: 22756.972 | BC117: 395.403 | BD117: 3992.818 | BE117: 247.113 | BF117: 1284.022 | BG117: 4568.092 | BK117: =names!$A$4 -> Primary sector and utilities | BL117: 428.1362178 | BM117: 5586.823732 | BN117: 9443.356476 | BO117: 1196.18371 | BP117: 3811.548481 | BQ117: 3933.725594 | BR117: 4108.207841 | BS117: 3630.30901 | BT117: 1600.316649
B118: 23 Teaching and educational professionals | I118: 51 Skilled agricultural and related trades | O118: 82 Transport and mobile machine drivers and operatives | BA118: =names!$A$5 -> Manufacturing | BB118: 179574.337 | BC118: 3895.883 | BD118: 19045.226 | BE118: 2363.62 | BF118: 5118.406 | BG118: 30912.049 | BK118: =names!$A$5 -> Manufacturing | BL118: 3317.019497 | BM118: 23685.58053 | BN118: 59204.95555 | BO118: 11630.95043 | BP118: 29598.56288 | BQ118: 44353.78461 | BR118: 39127.493 | BS118: 25965.77145 | BT118: 8280.960307
B119: 24 Business, media and public service professionals | I119: 52 Skilled metal, electrical and electronic trades | O119: 91 Elementary trades and related occupations | BA119: =names!$A$6 -> Construction | BB119: 106696.213 | BC119: 2488.043 | BD119: 30236.075 | BE119: 1978.156 | BF119: 4951.134 | BG119: 13213.694 | BK119: =names!$A$6 -> Construction | BL119: 524.4213088 | BM119: 14572.71099 | BN119: 25051.35506 | BO119: 7744.321123 | BP119: 20122.66444 | BQ119: 39835.80521 | BR119: 28709.92158 | BS119: 19269.94703 | BT119: 8371.156387
B120: 31 Science, engineering and technology associate professionals | I120: 53 Skilled construction and building trades | O120: 92 Elementary administration and service occupations | BA120: =names!$A$7 -> Trade, accomod. and transport | BB120: 356342.719 | BC120: 15115.935 | BD120: 46245.131 | BE120: 14206.531 | BF120: 25517.987 | BG120: 109332.283 | BK120: =names!$A$7 -> Trade, accomod. and transport | BL120: 1372.271305 | BM120: 28273.65802 | BN120: 107603.1244 | BO120: 21299.9469 | BP120: 34645.84399 | BQ120: 116935.983 | BR120: 125855.7569 | BS120: 120173.5957 | BT120: 28000.2695
B121: 32 Health and social care associate professionals | I121: 54 Textiles, printing and other skilled trades | BA121: =names!$A$8 -> Business and other services | BB121: 443691.574 | BC121: 35648.254 | BD121: 71473.961 | BE121: 19289.786 | BF121: 49027.404 | BG121: 171461.78 | BK121: =names!$A$8 -> Business and other services | BL121: 18056.33063 | BM121: 120226.2741 | BN121: 247881.0749 | BO121: 29094.06276 | BP121: 60684.2218 | BQ121: 124165.124 | BR121: 110764.4489 | BS121: 79919.04146 | BT121: 18497.18228
B122: 33 Protective service occupations | I122: 61 Caring personal service occupations | BA122: =names!$A$9 -> Non-market services | BB122: 118103.954 | BC122: 13774.981 | BD122: 9041.785 | BE122: 6133.958 | BF122: 32146.291 | BG122: 105673.582 | BK122: =names!$A$9 -> Non-market services | BL122: 6104.301082 | BM122: 52250.62525 | BN122: 78301.32919 | BO122: 46413.97292 | BP122: 12126.52347 | BQ122: 39917.2331 | BR122: 28917.19273 | BS122: 13008.3935 | BT122: 5835.311376
DA123: Emp x qualification for occupation 5 for every industry
DA124: 2012 | DB124: =DB94 -> QCF8 | DC124: =DC94 -> QCF7 | DD124: QCF6 | DE124: QCF5 | DF124: QCF4 | DG124: QCF3 | DH124: QCF2 | DI124: QCF1 | DJ124: No Qual
DA125: =names!$A$3 -> All industries | DB125: 8153.857139 | DC125: 48516.66407 | DD125: 32490.01415 | DE125: 7567.835698 | DF125: 1363.076137 | DG125: 3933.212051 | DH125: 3736.078469 | DI125: 2480.434694 | DJ125: 417.6200099
DA126: =names!$A$4 -> Primary sector and utilities | DB126: 14.59765908 | DC126: 65.05667902 | DD126: 53.36353765 | DE126: 14.07250116 | DF126: 10.02702515 | DG126: 25.30898205 | DH126: 26.14976067 | DI126: 11.96802461 | DJ126: 17.08623042
DA127: =names!$A$5 -> Manufacturing | DB127: 56.76478874 | DC127: 142.9907593 | DD127: 143.0013138 | DE127: 56.35537243 | DF127: 17.55048737 | DG127: 202.5971318 | DH127: 91.0449796 | DI127: 48.94580146 | DJ127: 59.4121042
DA128: =names!$A$6 -> Construction | DB128: 14.73024163 | DC128: 53.26809244 | DD128: 4.384413539 | DE128: 3.270029237 | DF128: 2.033678994 | DG128: 35.49548763 | DH128: 18.43739204 | DI128: 16.53737861 | DJ128: 4.597302831
DA129: =names!$A$7 -> Trade, accomod. and transport | DB129: 80.16554916 | DC129: 155.9739089 | DD129: 384.3774709 | DE129: 146.3873922 | DF129: 91.71738914 | DG129: 280.5669524 | DH129: 523.379883 | DI129: 348.9308445 | DJ129: 77.40360384
DA130: =names!$A$8 -> Business and other services | DB130: 256.3488831 | DC130: 1055.639198 | DD130: 1228.4677 | DE130: 254.4015939 | DF130: 188.7875638 | DG130: 429.3279288 | DH130: 329.4492612 | DI130: 202.714965 | DJ130: 42.94051631
DA131: =names!$A$9 -> Non-market services | DB131: 7731.250018 | DC131: 47043.73543 | DD131: 30676.41972 | DE131: 7093.348809 | DF131: 1052.959993 | DG131: 2959.915568 | DH131: 2747.617193 | DI131: 1851.33768 | DJ131: 216.1802523
B137: =B16&" in "&names!A4 -> 11 Corporate managers and directors in Primary sector and utilities
BB144: Replacement Demand etc 2010-2020 for selected occupation | BI144: Males | BJ144: -- (as % 2010) -- | BL144: Females
BB145: job openings | BC145: replacement | BD145: net change | BH145: Ex dem | BI145: RD | BK145: Ex dem | BL145: RD
AZ146: =names!$A$3 -> All industries | BA146: Females | BB146: 437.3966908 | BC146: 262.9343978 | BD146: 174.462293 | BH146: 16.44645223 | BI146: 32.33393789 | BK146: 28.64685793 | BL146: 43.06564131
BA147: Males | BB147: 753.5286666 | BC147: 597.1731166 | BD147: 156.35555 | BH147: 9.372266515 | BI147: 38.11491921 | BK147: 4.76224199 | BL147: 47.62828221
AZ148: =names!$A$4 -> Primary sector and utilities | BA148: =BA146 -> Females | BB148: 4.358225136 | BC148: 2.661326136 | BD148: 1.696899 | BH148: 16.1663655 | BI148: 28.7046654 | BK148: 26.62853437 | BL148: 39.24537257
BA149: =BA147 -> Males | BB149: 10.92573963 | BC149: 10.78304063 | BD149: 0.142699 | BH149: 9.710670724 | BI149: 34.52005166 | BK149: 9.367810641 | BL149: 45.64390242
AZ150: =names!$A$5 -> Manufacturing | BA150: =BA146 -> Females | BB150: 27.63224042 | BC150: 16.87892742 | BD150: 10.753313 | BH150: 4.034236021 | BI150: 36.85389384 | BK150: 19.72584153 | BL150: 47.92804911
BA151: =BA147 -> Males | BB151: 93.94338291 | BC151: 81.10317991 | BD151: 12.840203 | BH151: 11.3916492 | BI151: 34.56867237 | BK151: 25.29520329 | BL151: 46.42393718
AZ152: =names!$A$6 -> Construction | BA152: =BA146 -> Females | BB152: 19.77811994 | BC152: 8.883631943 | BD152: 10.894488 | BH152: 9.640963711 | BI152: 28.32200613 | BK152: -1.084924056 | BL152: 40.10666833
BA153: =BA147 -> Males | BB153: 90.84357553 | BC153: 56.88164453 | BD153: 33.961931 | BH153: 12.14022355 | BI153: 29.3738464 | BK153: 12.9163257 | BL153: 41.62224763 | DA153: Emp x qualification for occupation 6 for every industry
AZ154: =names!$A$7 -> Trade, accomod. and transport | BA154: =BA146 -> Females | BB154: 130.8794195 | BC154: 65.1772135 | BD154: 65.702206 | BH154: -7.021478225 | BI154: 24.51626922 | BK154: 49.74495341 | BL154: 35.63498738 | DA154: 2012 | DB154: =DB124 -> QCF8 | DC154: =DC124 -> QCF7 | DD154: QCF6 | DE154: QCF5 | DF154: QCF4 | DG154: QCF3 | DH154: QCF2 | DI154: QCF1 | DJ154: No Qual
BA155: =BA147 -> Males | BB155: 203.6958172 | BC155: 166.0164402 | BD155: 37.679377 | BH155: 26.84572256 | BI155: 29.94868471 | BK155: 16.08853816 | BL155: 40.37318816 | DA155: =names!$A$3 -> All industries | DB155: 1927.98617 | DC155: 25006.99462 | DD155: 46053.46965 | DE155: 5318.741767 | DF155: 6946.525578 | DG155: 14624.10123 | DH155: 11060.22967 | DI155: 6221.183835 | DJ155: 1277.208624
AZ156: =names!$A$8 -> Business and other services | BA156: =BA146 -> Females | BB156: 178.4512245 | BC156: 105.5662845 | BD156: 72.88494 | BH156: 10.01456366 | BI156: 31.59551349 | BK156: 26.62670104 | BL156: 42.69691049 | DA156: =names!$A$4 -> Primary sector and utilities | DB156: 36.59117649 | DC156: 333.1546875 | DD156: 676.9558195 | DE156: 9.610240065 | DF156: 192.1712745 | DG156: 192.1382897 | DH156: 169.2334139 | DI156: 115.9333677 | DJ156: 37.50775381
BA157: =BA147 -> Males | BB157: 289.5733723 | BC157: 222.3660763 | BD157: 67.207296 | BH157: 2.657811079 | BI157: 29.31891312 | BK157: -8.289034631 | BL157: 42.13414284 | DA157: =names!$A$5 -> Manufacturing | DB157: 144.5949348 | DC157: 1132.740753 | DD157: 2279.777749 | DE157: 229.4628533 | DF157: 666.7156901 | DG157: 1032.876432 | DH157: 825.432746 | DI157: 495.0503308 | DJ157: 93.44671161
AZ158: =names!$A$9 -> Non-market services | BA158: =BA146 -> Females | BB158: 75.83030568 | BC158: 63.29985768 | BD158: 12.530448 | BH158: 8.846898747 | BI158: 41.16089809 | BK158: -29.44797713 | BL158: 47.9680203 | DA158: =names!$A$6 -> Construction | DB158: 0.366969423 | DC158: 581.6059742 | DD158: 1398.069768 | DE158: 344.2084374 | DF158: 610.4712735 | DG158: 987.4507977 | DH158: 560.9644646 | DI158: 343.0446765 | DJ158: 63.230485
BA159: =BA147 -> Males | BB159: 61.6623772 | BC159: 57.1383332 | BD159: 4.524044 | BH159: -9.728911476 | BI159: 39.27068156 | BK159: -17.90852638 | BL159: 50.7603827 | DA159: =names!$A$7 -> Trade, accomod. and transport | DB159: 111.261298 | DC159: 811.3780061 | DD159: 3676.925389 | DE159: 741.6674625 | DF159: 758.5727493 | DG159: 3099.594879 | DH159: 2432.765902 | DI159: 1666.836432 | DJ159: 357.1271325
BH160: -11.44655611 | BI160: 30.77581019 | BK160: -27.90960157 | BL160: 43.10099261 | DA160: =names!$A$8 -> Business and other services | DB160: 1151.695462 | DC160: 15282.54875 | DD160: 27612.02059 | DE160: 1709.131397 | DF160: 3251.596483 | DG160: 6362.500498 | DH160: 4837.314073 | DI160: 2520.534976 | DJ160: 527.0218007
BH161: 7.151409519 | BI161: 30.94506425 | BK161: 23.37931467 | BL161: 43.25168803 | DA161: =names!$A$9 -> Non-market services | DB161: 483.4763293 | DC161: 6865.566451 | DD161: 10409.72033 | DE161: 2284.661377 | DF161: 1466.998107 | DG161: 2949.540333 | DH161: 2234.519071 | DI161: 1079.784052 | DJ161: 198.8747402
BH162: -14.19510593 | BI162: 29.77399679 | BK162: -38.87161354 | BL162: 41.80801052
BH163: 50.79930329 | BI163: 27.24188006 | BK163: 18.48072611 | BL163: 39.4834001
BH164: 11.481574 | BI164: 36.23657762 | BK164: 1.16626638 | BL164: 49.35325316
BH165: 7.984849334 | BI165: 24.27686307 | BK165: -3.83617877 | BL165: 37.8935252
BH166: 35.15879142 | BI166: 20.77198112 | BK166: 17.88830149 | BL166: 35.30435213
BH167: -15.09977571 | BI167: 29.99081043 | BK167: -39.438946 | BL167: 41.65407433
BH168: 8.321701516 | BI168: 37.62633014 | BK168: 16.18806061 | BL168: 47.62372213
BH169: -6.777363694 | BI169: 28.99591485 | BK169: 10.01913932 | BL169: 41.74011747
BH170: 20.50411155 | BI170: 29.20383484 | BK170: -13.07615903 | BL170: 43.44601236
BG171: All occs | BH171: 7.258293363 | BI171: 31.36931632 | BK171: 5.098813149 | BL171: 42.69230701 | BM171: not currently used
BH173: These are 'all industry values & will need updating
BH174: ? Use values for every industry separately when available?
DA183: Emp x qualification for occupation 7 for every industry
DA184: 2012 | DB184: =DB154 -> QCF8 | DC184: =DC154 -> QCF7 | DD184: QCF6 | DE184: QCF5 | DF184: QCF4 | DG184: QCF3 | DH184: QCF2 | DI184: QCF1 | DJ184: No Qual
DA185: All industries | DB185: 712.2559701 | DC185: 4350.202293 | DD185: 10643.82667 | DE185: 1961.23849 | DF185: 5491.4322 | DG185: 9172.338126 | DH185: 7033.082268 | DI185: 4723.396062 | DJ185: 781.2526598
B186: =B16&" in "&names!A5 -> 11 Corporate managers and directors in Manufacturing | DA186: =names!$A$3 -> All industries | DB186: 28.72561506 | DC186: 45.79460138 | DD186: 235.6892319 | DE186: 36.68696428 | DF186: 118.0833771 | DG186: 374.3826718 | DH186: 201.8889735 | DI186: 106.2708263 | DJ186: 27.58775977
DA187: =names!$A$4 -> Primary sector and utilities | DB187: 63.12599725 | DC187: 376.3119935 | DD187: 1037.879225 | DE187: 168.2896295 | DF187: 958.0536142 | DG187: 1983.575063 | DH187: 1284.729162 | DI187: 934.597646 | DJ187: 162.093905
DA188: =names!$A$5 -> Manufacturing | DB188: 9.794267322 | DC188: 203.7197683 | DD188: 439.5906051 | DE188: 110.5119771 | DF188: 689.2647039 | DG188: 761.5970108 | DH188: 699.5487702 | DI188: 413.8735314 | DJ188: 72.14221402
DA189: =names!$A$6 -> Construction | DB189: 36.20446846 | DC189: 196.7565598 | DD189: 614.9945218 | DE189: 130.0082152 | DF189: 328.9655445 | DG189: 1180.760649 | DH189: 789.6917291 | DI189: 613.6480032 | DJ189: 181.8180223
DA190: =names!$A$7 -> Trade, accomod. and transport | DB190: 409.2722444 | DC190: 2063.379859 | DD190: 6088.908813 | DE190: 817.5439905 | DF190: 2380.232337 | DG190: 2799.658416 | DH190: 2265.236592 | DI190: 1893.675349 | DJ190: 257.6426171
DA191: =names!$A$8 -> Business and other services | DB191: 165.1333776 | DC191: 1464.239511 | DD191: 2226.764269 | DE191: 698.1977129 | DF191: 1016.832623 | DG191: 2072.364316 | DH191: 1791.98704 | DI191: 761.330706 | DJ191: 79.96814154
DA192: =names!$A$9 -> Non-market services | DB192: 4936.25 | DC192: 27381.25 | DD192: 99437.5 | DE192: 20852.5 | DF192: 71200 | DG192: 111186.25 | DH192: 72447.5 | DI192: 56460 | DJ192: 8827.5
DA213: Emp x qualification for occupation 8 for every industry
DA214: 2012 | DB214: =DB184 -> QCF8 | DC214: =DC184 -> QCF7 | DD214: QCF6 | DE214: QCF5 | DF214: QCF4 | DG214: QCF3 | DH214: QCF2 | DI214: QCF1 | DJ214: No Qual
DA215: =names!$A$3 -> All industries | DB215: 99.89587012 | DC215: 2630.179483 | DD215: 7966.387766 | DE215: 7046.248911 | DF215: 1107.398086 | DG215: 3035.09378 | DH215: 2779.323505 | DI215: 1309.825217 | DJ215: 143.6811315
DA216: =names!$A$4 -> Primary sector and utilities | DB216: 0.7975916849 | DC216: 9.292829356 | DD216: 17.54120594 | DE216: 2.307411034 | DF216: 2.885100331 | DG216: 7.219007577 | DH216: 5.407340646 | DI216: 6.065828107 | DJ216: 4.102755454
DA217: =names!$A$5 -> Manufacturing | DB217: 1.609711054 | DC217: 9.975831197 | DD217: 35.28645473 | DE217: 19.08274987 | DF217: 13.86534916 | DG217: 62.30845503 | DH217: 37.35027661 | DI217: 12.39317859 | DJ217: 18.30740788
DA218: =names!$A$6 -> Construction | DB218: 0.09344305813 | DC218: 23.40516147 | DD218: 35.75401083 | DE218: 1.862386577 | DF218: 1.07230943 | DG218: 17.79734279 | DH218: 11.61150037 | DI218: 14.68049238 | DJ218: 4.690348705
DA219: =names!$A$7 -> Trade, accomod. and transport | DB219: 30.22700774 | DC219: 41.08930899 | DD219: 101.6729144 | DE219: 84.5291661 | DF219: 130.2025115 | DG219: 419.8126154 | DH219: 529.2813701 | DI219: 159.6229863 | DJ219: 27.92902412
DA220: =names!$A$8 -> Business and other services | DB220: 12.84290333 | DC220: 350.6751137 | DD220: 730.477014 | DE220: 304.1410622 | DF220: 156.5675499 | DG220: 375.4809573 | DH220: 264.1464059 | DI220: 193.6186698 | DJ220: 38.48022693
DA221: =names!$A$9 -> Non-market services | DB221: 54.32521325 | DC221: 2195.741238 | DD221: 7045.656166 | DE221: 6634.326136 | DF221: 802.8052654 | DG221: 2152.475402 | DH221: 1931.526611 | DI221: 923.4440618 | DJ221: 50.1713684
B235: =B16&" in "&names!A6 -> 11 Corporate managers and directors in Construction
DA243: Emp x qualification for occupation 9 for every industry
DA244: 2012 | DB244: =DB214 -> QCF8 | DC244: =DC214 -> QCF7 | DD244: QCF6 | DE244: QCF5 | DF244: QCF4 | DG244: QCF3 | DH244: QCF2 | DI244: QCF1 | DJ244: No Qual
DA245: =names!$A$3 -> All industries | DB245: 91.70107782 | DC245: 1545.728266 | DD245: 7349.681659 | DE245: 2003.253705 | DF245: 1934.47629 | DG245: 7345.388177 | DH245: 8722.800592 | DI245: 4463.562386 | DJ245: 663.6743748
DA246: =names!$A$4 -> Primary sector and utilities | DB246: 5.840198691 | DC246: 43.32776435 | DD246: 77.17457652 | DE246: 9.26973115 | DF246: 83.57834343 | DG246: 51.1244642 | DH246: 50.21821115 | DI246: 30.36722481 | DJ246: 21.97825707
DA247: =names!$A$5 -> Manufacturing | DB247: 13.24256872 | DC247: 83.39737334 | DD247: 317.5120659 | DE247: 223.2339874 | DF247: 172.6375554 | DG247: 129.4280682 | DH247: 287.5120603 | DI247: 90.67615642 | DJ247: 23.74054125
DA248: =names!$A$6 -> Construction | DB248: 0.4091046687 | DC248: 19.543165 | DD248: 37.85387689 | DE248: 9.084307836 | DF248: 37.61848016 | DG248: 49.04596555 | DH248: 52.61709494 | DI248: 45.01042501 | DJ248: 9.778099221
DA249: =names!$A$7 -> Trade, accomod. and transport | DB249: 2.385336196 | DC249: 113.0101887 | DD249: 528.5111966 | DE249: 197.4252013 | DF249: 167.7078736 | DG249: 922.5763536 | DH249: 1173.754528 | DI249: 715.009485 | DJ249: 164.4679289
DA250: =names!$A$8 -> Business and other services | DB250: 53.83068457 | DC250: 517.3179657 | DD250: 1509.21659 | DE250: 371.3324495 | DF250: 289.7026027 | DG250: 1629.562949 | DH250: 1628.625497 | DI250: 938.2771981 | DJ250: 129.9256262
DA251: =names!$A$9 -> Non-market services | DB251: 15.99318497 | DC251: 769.1318085 | DD251: 4879.413354 | DE251: 1192.908028 | DF251: 1183.231435 | DG251: 4563.650376 | DH251: 5530.073201 | DI251: 2644.221896 | DJ251: 313.7839222
DA273: Emp x qualification for occupation 10 for every industry
DA274: 2012 | DB274: =DB244 -> QCF8 | DC274: =DC244 -> QCF7 | DD274: QCF6 | DE274: QCF5 | DF274: QCF4 | DG274: QCF3 | DH274: QCF2 | DI274: QCF1 | DJ274: No Qual
DA275: =names!$A$3 -> All industries | DB275: 383.3432959 | DC275: 4368.057861 | DD275: 11876.22053 | DE275: 1715.999663 | DF275: 2068.918668 | DG275: 5272.804152 | DH275: 3229.215745 | DI275: 2365.454608 | DJ275: 670.6861091
DA276: =names!$A$4 -> Primary sector and utilities | DB276: 2.780220573 | DC276: 32.70133512 | DD276: 82.4162678 | DE276: 10.14306263 | DF276: 23.96607528 | DG276: 30.02562147 | DH276: 18.99521287 | DI276: 15.48776233 | DJ276: 12.92876465
DA277: =names!$A$5 -> Manufacturing | DB277: 52.23882712 | DC277: 389.402447 | DD277: 715.4315318 | DE277: 58.90248706 | DF277: 66.27531348 | DG277: 326.646053 | DH277: 181.5160996 | DI277: 104.2752406 | DJ277: 36.92574296
DA278: =names!$A$6 -> Construction | DB278: 0.008379519128 | DC278: 13.20710901 | DD278: 40.71741373 | DE278: 2.564427633 | DF278: 37.09757047 | DG278: 51.056281 | DH278: 52.29603052 | DI278: 12.17812067 | DJ278: 4.980385786
DA279: =names!$A$7 -> Trade, accomod. and transport | DB279: 0.05176252422 | DC279: 70.90807366 | DD279: 634.6852532 | DE279: 178.2146656 | DF279: 60.59242526 | DG279: 338.8580978 | DH279: 182.6099507 | DI279: 227.4331482 | DJ279: 46.76035128
DA280: =names!$A$8 -> Business and other services | DB280: 261.176709 | DC280: 3232.715829 | DD280: 8665.913217 | DE280: 1178.925162 | DF280: 1369.227054 | DG280: 3789.709263 | DH280: 2326.742941 | DI280: 1528.500849 | DJ280: 512.2678798
DA281: =names!$A$9 -> Non-market services | DB281: 67.08739718 | DC281: 629.123068 | DD281: 1737.056844 | DE281: 287.2498587 | DF281: 511.76023 | DG281: 736.5088353 | DH281: 467.0555106 | DI281: 477.5794866 | DJ281: 56.82298458
B284: =B16&" in "&names!A7 -> 11 Corporate managers and directors in Trade, accomod. and transport
DA303: Emp x qualification for occupation 11 for every industry
DA304: 2012 | DB304: =DB274 -> QCF8 | DC304: =DC274 -> QCF7 | DD304: QCF6 | DE304: QCF5 | DF304: QCF4 | DG304: QCF3 | DH304: QCF2 | DI304: QCF1 | DJ304: No Qual
DA305: =names!$A$3 -> All industries | DB305: 1667.807337 | DC305: 17491.32424 | DD305: 40131.66094 | DE305: 11421.75496 | DF305: 10372.66513 | DG305: 31269.38632 | DH305: 27706.78303 | DI305: 15522.31062 | DJ305: 3159.467175
DA306: =names!$A$4 -> Primary sector and utilities | DB306: 20.0537342 | DC306: 231.814266 | DD306: 703.8229173 | DE306: 109.7259215 | DF306: 398.7534351 | DG306: 407.7209977 | DH306: 283.1984971 | DI306: 237.5407981 | DJ306: 59.03856371
DA307: =names!$A$5 -> Manufacturing | DB307: 183.807228 | DC307: 1163.449784 | DD307: 4233.524644 | DE307: 1157.236641 | DF307: 1540.37193 | DG307: 3334.447708 | DH307: 2832.550726 | DI307: 1294.51551 | DJ307: 157.8711711
DA308: =names!$A$6 -> Construction | DB308: 7.734430918 | DC308: 424.0961542 | DD308: 1145.524434 | DE308: 550.9926799 | DF308: 755.5057209 | DG308: 1505.294724 | DH308: 1187.420567 | DI308: 797.0144941 | DJ308: 134.5582447
DA309: =names!$A$7 -> Trade, accomod. and transport | DB309: 178.2276894 | DC309: 1996.525369 | DD309: 7092.683937 | DE309: 1612.153036 | DF309: 2253.437813 | DG309: 9191.15474 | DH309: 9940.429961 | DI309: 5768.611769 | DJ309: 1531.207517
DA310: =names!$A$8 -> Business and other services | DB310: 836.8429411 | DC310: 8697.080363 | DD310: 19053.92848 | DE310: 4031.827747 | DF310: 3457.536075 | DG310: 10533.08004 | DH310: 10043.66343 | DI310: 5677.049642 | DJ310: 960.0456358
DA311: =names!$A$9 -> Non-market services | DB311: 441.1413133 | DC311: 4978.358305 | DD311: 7902.176531 | DE311: 3959.818931 | DF311: 1967.060154 | DG311: 6297.688116 | DH311: 3419.519849 | DI311: 1747.578408 | DJ311: 316.7460426
B333: =B16&" in "&names!A8 -> 11 Corporate managers and directors in Business and other services | DA333: Emp x qualification for occupation 12 for every industry
DA334: 2012 | DB334: =DB304 -> QCF8 | DC334: =DC304 -> QCF7 | DD334: QCF6 | DE334: QCF5 | DF334: QCF4 | DG334: QCF3 | DH334: QCF2 | DI334: QCF1 | DJ334: No Qual
DA335: =names!$A$3 -> All industries | DB335: 1241.79744 | DC335: 12897.98257 | DD335: 44142.05877 | DE335: 15913.62536 | DF335: 15575.36525 | DG335: 54414.85693 | DH335: 67628.27161 | DI335: 33880.81272 | DJ335: 6541.77799
DA336: =names!$A$4 -> Primary sector and utilities | DB336: 11.92955961 | DC336: 150.6110662 | DD336: 579.7874467 | DE336: 95.88414166 | DF336: 240.6831387 | DG336: 610.9755442 | DH336: 757.6340812 | DI336: 337.0919163 | DJ336: 174.213327
DA337: =names!$A$5 -> Manufacturing | DB337: 51.78093422 | DC337: 543.3237679 | DD337: 2027.92921 | DE337: 798.9933697 | DF337: 983.9000535 | DG337: 3280.862763 | DH337: 5018.52999 | DI337: 2494.283031 | DJ337: 354.4722475
DA338: =names!$A$6 -> Construction | DB338: 61.98580535 | DC338: 443.385368 | DD338: 1364.016548 | DE338: 764.1462896 | DF338: 504.3705681 | DG338: 1840.444177 | DH338: 2203.021111 | DI338: 2368.721986 | DJ338: 482.2006173
DA339: =names!$A$7 -> Trade, accomod. and transport | DB339: 50.14334216 | DC339: 1651.535097 | DD339: 5745.074328 | DE339: 1994.115321 | DF339: 2284.588829 | DG339: 12133.64476 | DH339: 15740.68818 | DI339: 7860.096797 | DJ339: 1697.22321
DA340: =names!$A$8 -> Business and other services | DB340: 414.3745542 | DC340: 5451.715661 | DD340: 19045.4068 | DE340: 5028.585909 | DF340: 6010.800099 | DG340: 19697.39669 | DH340: 24480.64769 | DI340: 11315.41113 | DJ340: 2555.290349
DA341: =names!$A$9 -> Non-market services | DB341: 651.5832449 | DC341: 4657.411613 | DD341: 15379.84444 | DE341: 7231.900329 | DF341: 5551.022559 | DG341: 16851.533 | DH341: 19427.75056 | DI341: 9505.207859 | DJ341: 1278.37824
DA363: Emp x qualification for occupation 13 for every industry
DA364: 2012 | DB364: =DB334 -> QCF8 | DC364: =DC334 -> QCF7 | DD364: QCF6 | DE364: QCF5 | DF364: QCF4 | DG364: QCF3 | DH364: QCF2 | DI364: QCF1 | DJ364: No Qual
DA365: =names!$A$3 -> All industries | DB365: 104.0052467 | DC365: 2605.813492 | DD365: 9097.061981 | DE365: 4799.155444 | DF365: 3805.791306 | DG365: 15497.03208 | DH365: 21825.52953 | DI365: 17066.66556 | DJ365: 3326.405301
DA366: =names!$A$4 -> Primary sector and utilities | DB366: 0.8779003045 | DC366: 8.692661349 | DD366: 100.808575 | DE366: 44.24664402 | DF366: 92.66479594 | DG366: 182.8156162 | DH366: 163.484234 | DI366: 156.1800624 | DJ366: 46.63975254
DA367: =names!$A$5 -> Manufacturing | DB367: 1.762275441 | DC367: 56.57840548 | DD367: 303.5185884 | DE367: 161.1533832 | DF367: 147.7245233 | DG367: 506.9989129 | DH367: 813.5894644 | DI367: 684.0820853 | DJ367: 226.3037893
DA368: =names!$A$6 -> Construction | DB368: 1.969409217 | DC368: 110.7204209 | DD368: 309.8463733 | DE368: 149.4409531 | DF368: 103.7315228 | DG368: 482.210608 | DH368: 721.7272281 | DI368: 477.2244316 | DJ368: 152.3586194
DA369: =names!$A$7 -> Trade, accomod. and transport | DB369: 43.05707624 | DC369: 361.8094809 | DD369: 1208.800063 | DE369: 534.4554084 | DF369: 296.917625 | DG369: 2079.045925 | DH369: 3676.600411 | DI369: 2072.529085 | DJ369: 318.5483017
DA370: =names!$A$8 -> Business and other services | DB370: 23.49559765 | DC370: 899.8585081 | DD370: 3929.764139 | DE370: 1311.422241 | DF370: 1131.002059 | DG370: 4933.547491 | DH370: 7447.465403 | DI370: 6510.881451 | DJ370: 1532.223865
DA371: =names!$A$9 -> Non-market services | DB371: 32.84298779 | DC371: 1168.154015 | DD371: 3244.324242 | DE371: 2598.436814 | DF371: 2033.75078 | DG371: 7312.413532 | DH371: 9002.662792 | DI371: 7165.768446 | DJ371: 1050.330973
B382: =B16&" in "&names!A9 -> 11 Corporate managers and directors in Non-market services
DA393: Emp x qualification for occupation 14 for every industry
DA394: 2012 | DB394: =DB364 -> QCF8 | DC394: =DC364 -> QCF7 | DD394: QCF6 | DE394: QCF5 | DF394: QCF4 | DG394: QCF3 | DH394: QCF2 | DI394: QCF1 | DJ394: No Qual
DA395: =names!$A$3 -> All industries | DB395: 70.22960429 | DC395: 533.8316907 | DD395: 3110.430667 | DE395: 1623.228337 | DF395: 2352.903209 | DG395: 4936.088999 | DH395: 8464.290852 | DI395: 5447.393956 | DJ395: 3542.882161
DA396: =names!$A$4 -> Primary sector and utilities | DB396: 44.30010074 | DC396: 264.4968434 | DD396: 2047.91541 | DE396: 778.2448286 | DF396: 1403.454468 | DG396: 2769.968372 | DH396: 4008.719445 | DI396: 3274.08021 | DJ396: 2450.564618
DA397: =names!$A$5 -> Manufacturing | DB397: 1.461414056 | DC397: 37.84554031 | DD397: 319.6173194 | DE397: 33.74284775 | DF397: 309.5040483 | DG397: 330.7482613 | DH397: 1338.574608 | DI397: 155.5548393 | DJ397: 69.11335759
DA398: =names!$A$6 -> Construction | DB398: 0 | DC398: 11.02356394 | DD398: 9.016469439 | DE398: 61.74085824 | DF398: 77.85514241 | DG398: 49.56402944 | DH398: 116.6880253 | DI398: 202.6496806 | DJ398: 58.1212328
DA399: =names!$A$7 -> Trade, accomod. and transport | DB399: 6.115559538 | DC399: 47.79216828 | DD399: 243.9493669 | DE399: 94.89544275 | DF399: 140.6287949 | DG399: 396.8380992 | DH399: 667.2075686 | DI399: 431.479785 | DJ399: 86.74893718
DA400: =names!$A$8 -> Business and other services | DB400: 18.35252996 | DC400: 122.0974328 | DD400: 418.1036119 | DE400: 558.7753996 | DF400: 387.1128883 | DG400: 899.9132631 | DH400: 1810.946289 | DI400: 862.8812242 | DJ400: 783.7641012
DA401: =names!$A$9 -> Non-market services | DB401: 0 | DC401: 50.57614183 | DD401: 71.82848932 | DE401: 95.82896052 | DF401: 34.3478675 | DG401: 489.0569733 | DH401: 522.1549156 | DI401: 520.7482172 | DJ401: 94.56991438
DA423: Emp x qualification for occupation 15 for every industry
DA424: 2012 | DB424: =DB394 -> QCF8 | DC424: =DC394 -> QCF7 | DD424: QCF6 | DE424: QCF5 | DF424: QCF4 | DG424: QCF3 | DH424: QCF2 | DI424: QCF1 | DJ424: No Qual
DA425: =names!$A$3 -> All industries | DB425: 80.19039843 | DC425: 2647.494432 | DD425: 6285.827269 | DE425: 1986.932398 | DF425: 8456.826907 | DG425: 44553.98927 | DH425: 28505.3119 | DI425: 15425.71156 | DJ425: 6327.224164
DA426: =names!$A$4 -> Primary sector and utilities | DB426: 8.434524712 | DC426: 38.45751829 | DD426: 154.9239298 | DE426: 50.0287856 | DF426: 451.9012719 | DG426: 1036.348845 | DH426: 573.6473905 | DI426: 374.5727844 | DJ426: 61.21444802
DA427: =names!$A$5 -> Manufacturing | DB427: 1.16698711 | DC427: 880.3168822 | DD427: 1685.265991 | DE427: 767.8030365 | DF427: 3897.31832 | DG427: 18279.31227 | DH427: 10835.09288 | DI427: 5927.426731 | DJ427: 2623.301982
DA428: =names!$A$6 -> Construction | DB428: 3.15129263 | DC428: 104.262877 | DD428: 565.6566398 | DE428: 169.6641361 | DF428: 1202.798061 | DG428: 8091.640807 | DH428: 5478.990357 | DI428: 1989.227548 | DJ428: 377.3523088
DA429: =names!$A$7 -> Trade, accomod. and transport | DB429: 9.27637754 | DC429: 376.126069 | DD429: 1425.644649 | DE429: 576.9122908 | DF429: 1535.306392 | DG429: 12700.21047 | DH429: 7834.621955 | DI429: 4577.536067 | DJ429: 2137.637896
DA430: =names!$A$8 -> Business and other services | DB430: 44.89653042 | DC430: 1122.790284 | DD430: 1965.002638 | DE430: 329.1967721 | DF430: 1248.746967 | DG430: 3772.369873 | DH430: 3072.050928 | DI430: 2243.675598 | DJ430: 991.8210541
DA431: =names!$A$9 -> Non-market services | DB431: 13.26468602 | DC431: 125.5408016 | DD431: 489.333422 | DE431: 93.32737658 | DF431: 120.7558958 | DG431: 674.1070044 | DH431: 710.9083966 | DI431: 313.2728331 | DJ431: 135.8964742
DA453: Emp x qualification for occupation 16 for every industry
DA454: 2012 | DB454: =DB424 -> QCF8 | DC454: =DC424 -> QCF7 | DD454: QCF6 | DE454: QCF5 | DF454: QCF4 | DG454: QCF3 | DH454: QCF2 | DI454: QCF1 | DJ454: No Qual
DA455: =names!$A$3 -> All industries | DB455: 36.42166593 | DC455: 802.5112584 | DD455: 3181.200543 | DE455: 1697.566234 | DF455: 3022.107318 | DG455: 32387.71568 | DH455: 28931.71439 | DI455: 15692.07895 | DJ455: 7197.562655
... 87 more rows

Sheet Table 7.x.1
A1: Table 7.1.0 | B1: ="Industry Employment, "&B4&" to "&F4&", by Qualification Level" -> Industry Employment, 1992 to 2022, by Qualification Level
B2: All industries
A3: Qualification categories | H3: Change
A4: Employment Levels (000s) | B4: =All!D7 -> 1992 | C4: =All!N7 -> 2002 | D4: =All!X7 -> 2012 | E4: =All!AC7 -> 2017 | F4: =All!AH7 -> 2022 | H4: =D4&" - "&F4 -> 2012 - 2022
A5: =names!D4 -> QCF8 Doctorate | B5: 17811.72775 | C5: 15647.80756 | D5: 27375.0416 | E5: 35651.75573 | F5: 43946.66911 | H5: =F5-D5 -> 16571.62751
A6: =names!D5 -> QCF7 Other higher degree | B6: 77125.4241 | C6: 94526.69128 | D6: 190508.7808 | E6: 245852.142 | F6: 298820.4768 | H6: =F6-D6 -> 108311.696
A7: =names!D6 -> QCF6 First degree | B7: 172971.6407 | C7: 237271.3869 | D7: 414004.2429 | E7: 485675.0166 | F7: 562011.3145 | H7: 148007.0716
A8: =names!D7 -> QCF5 Foundation degree;Nursing;Teaching | B8: 170879.7113 | C8: 144060.2648 | D8: 147980.3158 | E8: 150131.0328 | F8: 155645.2256 | H8: 7664.909811
A9: =names!D8 -> QCF4 HE below degree level | B9: 124596.3767 | C9: 97396.27676 | D9: 132484.1078 | E9: 143879.6299 | F9: 157364.5109 | H9: 24880.4031
A10: =names!D9 -> QCF3 A level & equivalent | B10: 474478.4406 | C10: 509176.7518 | D10: 529622.3764 | E10: 510758.9222 | F10: 486217.1724 | H10: -43405.20405
A11: =names!D10 -> QCF2 GCSE(A-C) & equivalent | B11: 480045.7948 | C11: 554398.1812 | D11: 580009.2072 | E11: 580187.8424 | F11: 577616.8733 | H11: -2392.333929
A12: =names!D11 -> QCF1 GCSE(below grade C) & equivalent | B12: 444715.7015 | C12: 425730.4916 | D12: 368954.3865 | E12: 325175.9245 | F12: 285053.3969 | H12: -83900.98959
A13: =names!D12 -> No Qualification | B13: 287115.1825 | C13: 297890.1481 | D13: 140290.5409 | E13: 92992.73391 | F13: 77372.36045 | H13: -62918.18042
A14: Total | B14: =SUM(B5:B13) -> 2249740 | C14: =SUM(C5:C13) -> 2376098 | D14: =SUM(D5:D13) -> 2531229 | E14: 2570305 | F14: 2644048 | H14: =SUM(H5:H13) -> 112819
A16: Percentage Shares | B16: =B$4 -> 1992 | C16: =C$4 -> 2002 | D16: =D$4 -> 2012 | E16: =E$4 -> 2017 | F16: =F$4 -> 2022 | H16: % change
A17: =$A$5 -> QCF8 Doctorate | B17: =B5/B$14*100 -> 0.7917238324 | C17: 0.6585505968 | D17: 1.081492097 | E17: 1.387063237 | F17: 1.662098007 | H17: =IF(D5>0,H5/D5*100,0) -> 60.5355336
A18: =$A$6 -> QCF7 Other higher degree | B18: 3.428192773 | C18: 3.978232012 | D18: 7.526335264 | E18: 9.565096048 | F18: 11.30162829 | H18: =IF(D6>0,H6/D6*100,0) -> 56.85391273
A19: =$A$7 -> QCF6 First degree | B19: 7.688516925 | C19: 9.98575761 | D19: 16.35585887 | E19: 18.89561809 | F19: 21.25571527 | H19: 35.75013399
A20: =$A$8 -> QCF5 Foundation degree;Nursing;Teaching | B20: 7.595531543 | C20: 6.062892391 | D20: 5.846184434 | E20: 5.840981238 | F20: 5.886626325 | H20: 5.17968202
A21: =$A$9 -> QCF4 HE below degree level | B21: 5.538256719 | C21: 4.099000831 | D21: 5.233983483 | E21: 5.597764853 | F21: 5.951651062 | H21: 18.77991521
A22: =$A$10 -> QCF3 A level & equivalent | B22: 21.0903678 | C22: 21.42911411 | D22: 20.92352673 | E22: 19.87152973 | F22: 18.38912048 | H22: -8.195500413
A23: =$A$11 -> QCF2 GCSE(A-C) & equivalent | B23: 21.33783436 | C23: 23.33229442 | D23: 22.91413409 | E23: 22.57272356 | F23: 21.84592993 | H23: -0.4124648194
A24: =$A$12 -> QCF1 GCSE(below grade C) & equivalent | B24: 19.76742653 | C24: 17.91721097 | D24: 14.57609669 | E24: 12.65125829 | F24: 10.78094637 | H24: -22.74020655
A25: =$A$13 -> No Qualification | B25: 12.76214951 | C25: 12.53694705 | D25: 5.542388337 | E25: 3.617964946 | F25: 2.92628426 | H25: -44.84848375
A26: Total | B26: 100 | C26: 100 | D26: 100 | E26: 100 | F26: 100 | H26: 4.457083891
A27: =CELL("filename",$A$1) -> R:\Research Info\Individual research project info\Working Futures 2012-2022\Working Futures quant projections 2012-2022\04 Reporting and outputs\Final outputs\Workbooks\Files for gov.uk\YH\[6YHv2.xlsm]Table 7.x.1
A29: Table 7.1.1 | B29: =$B$1 -> Industry Employment, 1992 to 2022, by Qualification Level
B30: =names!A4 -> Primary sector and utilities
A31: =$A$3 -> Qualification categories | H31: Change
A32: Employment Levels (000s) | B32: =B$4 -> 1992 | C32: =C$4 -> 2002 | D32: =D$4 -> 2012 | E32: =E$4 -> 2017 | F32: =F$4 -> 2022 | H32: =D32&" - "&F32 -> 2012 - 2022
A33: =$A$5 -> QCF8 Doctorate | B33: 763.2840218 | C33: 231.8020408 | D33: 385.5833471 | E33: 527.5209263 | F33: 661.4867795 | H33: =F33-D33 -> 275.9034325
A34: =$A$6 -> QCF7 Other higher degree | B34: 3868.906979 | C34: 1014.253776 | D34: 2941.01591 | E34: 3692.236228 | F34: 4518.579269 | H34: =F34-D34 -> 1577.563359
A35: =$A$7 -> QCF6 First degree | B35: 6134.54659 | C35: 3750.637278 | D35: 8480.403117 | E35: 9258.53249 | F35: 10276.92198 | H35: 1796.518858
A36: =$A$8 -> QCF5 Foundation degree;Nursing;Teaching | B36: 3860.838724 | C36: 1626.119257 | D36: 2243.433512 | E36: 2281.773746 | F36: 2482.220176 | H36: 238.7866637
A37: =$A$9 -> QCF4 HE below degree level | B37: 8086.353653 | C37: 2874.327224 | D37: 5455.764502 | E37: 5402.305935 | F37: 5606.721611 | H37: 150.957109
A38: =$A$10 -> QCF3 A level & equivalent | B38: 17755.19927 | C38: 10422.25397 | D38: 12197.58353 | E38: 11029.66808 | F38: 10235.84386 | H38: -1961.739671
A39: =$A$11 -> QCF2 GCSE(A-C) & equivalent | B39: 16034.48699 | C39: 11577.60502 | D39: 14085.13093 | E39: 13166.16357 | F39: 13055.7033 | H39: -1029.42763
A40: =$A$12 -> QCF1 GCSE(below grade C) & equivalent | B40: 15265.04202 | C40: 8747.659835 | D40: 10254.53941 | E40: 8617.159381 | F40: 7413.814556 | H40: -2840.724859
A41: =$A$13 -> No Qualification | B41: 12426.34176 | C41: 8493.341604 | D41: 6717.545736 | E41: 4575.639651 | F41: 4142.708473 | H41: -2574.837263
A42: Total | B42: =SUM(B33:B41) -> 84195 | C42: =SUM(C33:C41) -> 48738 | D42: =SUM(D33:D41) -> 62761 | E42: =SUM(E33:E41) -> 58551 | F42: =SUM(F33:F41) -> 58394 | H42: =SUM(H33:H41) -> -4367
A44: Percentage Shares | B44: =B$4 -> 1992 | C44: =C$4 -> 2002 | D44: =D$4 -> 2012 | E44: =E$4 -> 2017 | F44: =F$4 -> 2022 | H44: % change
A45: =$A$5 -> QCF8 Doctorate | B45: =B33/B$42*100 -> 0.9065669241 | C45: 0.4756084386 | D45: 0.6143677556 | E45: 0.9009597211 | F45: 1.132799225 | H45: =IF(D33>0,H33/D33*100,0) -> 71.55481028
A46: =$A$6 -> QCF7 Other higher degree | B46: 4.595174273 | C46: 2.081032821 | D46: 4.686056484 | E46: 6.306017366 | F46: 7.738088278 | H46: =IF(D34>0,H34/D34*100,0) -> 53.64008246
A47: =$A$7 -> QCF6 First degree | B47: 7.286117454 | C47: 7.695509208 | D47: 13.51221796 | E47: 15.81276578 | F47: 17.59927728 | H47: 21.18435685
A48: =$A$8 -> QCF5 Foundation degree;Nursing;Teaching | B48: 4.585591453 | C48: 3.336450526 | D48: 3.574566231 | E48: 3.897070496 | F48: 4.250813741 | H48: 10.6438039
A49: =$A$9 -> QCF4 HE below degree level | B49: 9.604315759 | C49: 5.897507538 | D49: 8.692921563 | E49: 9.226667239 | F49: 9.601537164 | H49: 2.766928612
A50: =$A$10 -> QCF3 A level & equivalent | B50: 21.08818726 | C50: 21.38424632 | D50: 19.4349732 | E50: 18.83771084 | F50: 17.52893081 | H50: -16.08301895
A51: =$A$11 -> QCF2 GCSE(A-C) & equivalent | B51: 19.04446462 | C51: 23.7547807 | D51: 22.44248965 | E51: 22.48665875 | F51: 22.35795339 | H51: -7.308612429
A52: =$A$12 -> QCF1 GCSE(below grade C) & equivalent | B52: 18.13058022 | C52: 17.94833566 | D52: 16.33903127 | E52: 14.71735646 | F52: 12.69619234 | H52: -27.70212044
A53: =$A$13 -> No Qualification | B53: 14.75900204 | C53: 17.42652879 | D53: 10.70337588 | E53: 7.814793345 | F53: 7.09440777 | H53: -38.33002951
A54: Total | B54: 100 | C54: 100 | D54: 100 | E54: 100 | F54: 100 | H54: -6.958142796
A55: =$A$27 -> R:\Research Info\Individual research project info\Working Futures 2012-2022\Working Futures quant projections 2012-2022\04 Reporting and outputs\Final outputs\Workbooks\Files for gov.uk\YH\[6YHv2.xlsm]Table 7.x.1
A57: Table 7.1.2 | B57: =$B$1 -> Industry Employment, 1992 to 2022, by Qualification Level
B58: =names!A5 -> Manufacturing
A59: =$A$3 -> Qualification categories | H59: Change
A60: Employment Levels (000s) | B60: =B$4 -> 1992 | C60: =C$4 -> 2002 | D60: =D$4 -> 2012 | E60: =E$4 -> 2017 | F60: =F$4 -> 2022 | H60: =D60&" - "&F60 -> 2012 - 2022
A61: =$A$5 -> QCF8 Doctorate | B61: 3410.236484 | C61: 1807.231212 | D61: 1873.188092 | E61: 2366.10882 | F61: 2795.427283 | H61: =F61-D61 -> 922.2391917
A62: =$A$6 -> QCF7 Other higher degree | B62: 8338.277302 | C62: 7239.386624 | D62: 10343.16274 | E62: 13450.73118 | F62: 15883.24627 | H62: =F62-D62 -> 5540.083533
A63: =$A$7 -> QCF6 First degree | B63: 24024.0834 | C63: 26051.20612 | D63: 30331.09429 | E63: 33726.39784 | F63: 36241.41552 | H63: 5910.32123
A64: =$A$8 -> QCF5 Foundation degree;Nursing;Teaching | B64: 11079.19731 | C64: 7206.035478 | D64: 8428.184596 | E64: 9214.408154 | F64: 9900.927066 | H64: 1472.742469
A65: =$A$9 -> QCF4 HE below degree level | B65: 26710.99272 | C65: 19184.40449 | D65: 19447.42035 | E65: 20220.74853 | F65: 20499.53685 | H65: 1052.116504
A66: =$A$10 -> QCF3 A level & equivalent | B66: 96909.25411 | C66: 88641.28009 | D66: 64829.26995 | E66: 59131.74887 | F66: 51784.9943 | H66: -13044.27565
A67: =$A$11 -> QCF2 GCSE(A-C) & equivalent | B67: 87087.72342 | C67: 84722.18899 | D67: 64419.40787 | E67: 61916.51962 | F67: 56965.54901 | H67: -7453.858862
A68: =$A$12 -> QCF1 GCSE(below grade C) & equivalent | B68: 86085.82655 | C68: 67605.81341 | D68: 46720.99139 | E68: 41219.09338 | F68: 34309.48306 | H68: -12411.50833
A69: =$A$13 -> No Qualification | B69: 72785.4087 | C69: 58944.4536 | D69: 20035.28073 | E69: 12152.24361 | F69: 8803.420643 | H69: -11231.86009
A70: Total | B70: =SUM(B61:B69) -> 416431 | C70: =SUM(C61:C69) -> 361402 | D70: =SUM(D61:D69) -> 266428 | E70: =SUM(E61:E69) -> 253398 | F70: =SUM(F61:F69) -> 237184 | H70: =SUM(H61:H69) -> -29244
A72: Percentage Shares | B72: =B$4 -> 1992 | C72: =C$4 -> 2002 | D72: =D$4 -> 2012 | E72: =E$4 -> 2017 | F72: =F$4 -> 2022 | H72: % change
A73: =$A$5 -> QCF8 Doctorate | B73: =B61/B$70*100 -> 0.8189199373 | C73: 0.5000612093 | D73: 0.7030747863 | E73: 0.9337519712 | F73: 1.178590159 | H73: =IF(D61>0,H61/D61*100,0) -> 49.23366723
A74: =$A$6 -> QCF7 Other higher degree | B74: 2.002319064 | C74: 2.003139613 | D74: 3.882160561 | E74: 5.308144176 | F74: 6.696592634 | H74: =IF(D62>0,H62/D62*100,0) -> 53.56276095
A75: =$A$7 -> QCF6 First degree | B75: 5.769042987 | C75: 7.208373533 | D75: 11.38434935 | E75: 13.30965431 | F75: 15.27987365 | H75: 19.48601384
A76: =$A$8 -> QCF5 Foundation degree;Nursing;Teaching | B76: 2.660512141 | C76: 1.993911345 | D76: 3.163400467 | E76: 3.636338153 | F76: 4.174365499 | H76: 17.47401771
A77: =$A$9 -> QCF4 HE below degree level | B77: 6.414266161 | C77: 5.308328256 | D77: 7.299315519 | E77: 7.979837461 | F77: 8.642883523 | H77: 5.410056888
A78: =$A$10 -> QCF3 A level & equivalent | B78: 23.27138328 | C78: 24.52705854 | D78: 24.33275405 | E78: 23.33552312 | F78: 21.83325785 | H78: -20.12096644
A79: =$A$11 -> QCF2 GCSE(A-C) & equivalent | B79: 20.91288195 | C79: 23.44264531 | D79: 24.17891808 | E79: 24.4344942 | F79: 24.01745017 | H79: -11.57082797
A80: =$A$12 -> QCF1 GCSE(below grade C) & equivalent | B80: 20.67229062 | C80: 18.70654103 | D80: 17.53606655 | E80: 16.26654251 | F80: 14.46534465 | H80: -26.56516473
A81: =$A$13 -> No Qualification | B81: 17.47838386 | C81: 16.30994117 | D81: 7.519960638 | E81: 4.795714097 | F81: 3.711641866 | H81: -56.06040783
A82: Total | B82: 100 | C82: 100 | D82: 100 | E82: 100 | F82: 100 | H82: -10.97632381
A83: =$A$27 -> R:\Research Info\Individual research project info\Working Futures 2012-2022\Working Futures quant projections 2012-2022\04 Reporting and outputs\Final outputs\Workbooks\Files for gov.uk\YH\[6YHv2.xlsm]Table 7.x.1
A85: Table 7.1.3 | B85: =$B$1 -> Industry Employment, 1992 to 2022, by Qualification Level
B86: =names!A6 -> Construction
A87: =$A$3 -> Qualification categories | H87: Change
A88: Employment Levels (000s) | B88: =B$4 -> 1992 | C88: =C$4 -> 2002 | D88: =D$4 -> 2012 | E88: =E$4 -> 2017 | F88: =F$4 -> 2022 | H88: =D88&" - "&F88 -> 2012 - 2022
A89: =$A$5 -> QCF8 Doctorate | B89: 247.0897927 | C89: 63.10476234 | D89: 244.5562013 | E89: 417.4210569 | F89: 626.1134376 | H89: =F89-D89 -> 381.5572363
A90: =$A$6 -> QCF7 Other higher degree | B90: 1099.155041 | C90: 1256.772233 | D90: 4632.032295 | E90: 7580.160278 | F90: 10903.65428 | H90: =F90-D90 -> 6271.621985
A91: =$A$7 -> QCF6 First degree | B91: 5867.452049 | C91: 7097.402627 | D91: 11639.49596 | E91: 15084.99686 | F91: 18621.4565 | H91: 6981.960531
A92: =$A$8 -> QCF5 Foundation degree;Nursing;Teaching | B92: 3587.141346 | C92: 3318.36078 | D92: 4431.3817 | E92: 5357.201779 | F92: 6360.601028 | H92: 1929.219328
A93: =$A$9 -> QCF4 HE below degree level | B93: 8370.312023 | C93: 6936.579177 | D93: 9694.762765 | E93: 11180.67383 | F93: 12676.74729 | H93: 2981.984523
A94: =$A$10 -> QCF3 A level & equivalent | B94: 59174.33738 | C94: 55695.82944 | D94: 50426.47709 | E94: 49113.30964 | F94: 47739.51096 | H94: -2686.96613
A95: =$A$11 -> QCF2 GCSE(A-C) & equivalent | B95: 34686.08239 | C95: 40972.62016 | D95: 43746.52876 | E95: 48106.56245 | F95: 52394.90358 | H95: 8648.374816
A96: =$A$12 -> QCF1 GCSE(below grade C) & equivalent | B96: 25286.48619 | C96: 25415.66012 | D96: 25348.29981 | E96: 26708.61157 | F96: 27030.14776 | H96: 1681.847948
A97: =$A$13 -> No Qualification | B97: 19694.94379 | C97: 21143.6707 | D97: 10190.46541 | E97: 7308.062531 | F97: 5852.86517 | H97: -4337.600237
A98: Total | B98: =SUM(B89:B97) -> 158013 | C98: =SUM(C89:C97) -> 161900 | D98: =SUM(D89:D97) -> 160354 | E98: =SUM(E89:E97) -> 170857 | F98: =SUM(F89:F97) -> 182206 | H98: =SUM(H89:H97) -> 21852
A100: Percentage Shares | B100: =B$4 -> 1992 | C100: =C$4 -> 2002 | D100: =D$4 -> 2012 | E100: =E$4 -> 2017 | F100: =F$4 -> 2022 | H100: % change
A101: =$A$5 -> QCF8 Doctorate | B101: =B89/B$98*100 -> 0.1563730786 | C101: 0.03897761726 | D101: 0.152510197 | E101: 0.2443101874 | F101: 0.3436294291 | H101: =IF(D89>0,H89/D89*100,0) -> 156.0202663
A102: =$A$6 -> QCF7 Other higher degree | B102: 0.6956105135 | C102: 0.7762645045 | D102: 2.888629093 | E102: 4.436552367 | F102: 5.984245459 | H102: =IF(D90>0,H90/D90*100,0) -> 135.3967672
A103: =$A$7 -> QCF6 First degree | B103: 3.713271724 | C103: 4.383818794 | D103: 7.258625269 | E103: 8.829018922 | F103: 10.22000181 | H103: 59.98507626
A104: =$A$8 -> QCF5 Foundation degree;Nursing;Teaching | B104: 2.270155839 | C104: 2.04963606 | D104: 2.76349932 | E104: 3.135488612 | F104: 3.490884509 | H104: 43.5353905
A105: =$A$9 -> QCF4 HE below degree level | B105: 5.29722999 | C105: 4.284483741 | D105: 6.045850285 | E105: 6.543878116 | F105: 6.957370936 | H105: 30.75871576
A106: =$A$10 -> QCF3 A level & equivalent | B106: 37.44903102 | C106: 34.40137705 | D106: 31.44697176 | E106: 28.74527215 | F106: 26.20084463 | H106: -5.328482744
A107: =$A$11 -> QCF2 GCSE(A-C) & equivalent | B107: 21.95141057 | C107: 25.30736267 | D107: 27.28122077 | E107: 28.15603835 | F107: 28.75586072 | H107: 19.76928241
A108: =$A$12 -> QCF1 GCSE(below grade C) & equivalent | B108: 16.0027885 | C108: 15.69836944 | D108: 15.80771282 | E108: 15.63214359 | F108: 14.83493834 | H108: 6.634953665
A109: =$A$13 -> No Qualification | B109: 12.46412877 | C109: 13.05971013 | D109: 6.354980485 | E109: 4.2772977 | F109: 3.212224169 | H109: -42.56528101
A110: Total | B110: 100 | C110: 100 | D110: 100 | E110: 100 | F110: 100 | H110: 13.62734949
A111: =$A$27 -> R:\Research Info\Individual research project info\Working Futures 2012-2022\Working Futures quant projections 2012-2022\04 Reporting and outputs\Final outputs\Workbooks\Files for gov.uk\YH\[6YHv2.xlsm]Table 7.x.1
A113: Table 7.1.4 | B113: =$B$1 -> Industry Employment, 1992 to 2022, by Qualification Level
B114: =names!A7 -> Trade, accomod. and transport
A115: =$A$3 -> Qualification categories | H115: Change
A116: Employment Levels (000s) | B116: =B$4 -> 1992 | C116: =C$4 -> 2002 | D116: =D$4 -> 2012 | E116: =E$4 -> 2017 | F116: =F$4 -> 2022 | H116: =D116&" - "&F116 -> 2012 - 2022
A117: =$A$5 -> QCF8 Doctorate | B117: 1313.706055 | C117: 383.4791561 | D117: 1437.169813 | E117: 2194.423147 | F117: 3021.954754 | H117: =F117-D117 -> 1584.784942
A118: =$A$6 -> QCF7 Other higher degree | B118: 6408.905325 | C118: 6242.770369 | D118: 17519.43454 | E118: 25367.45933 | F118: 33811.34052 | H118: =F118-D118 -> 16291.90598
A119: =$A$7 -> QCF6 First degree | B119: 20412.57108 | C119: 32103.59069 | D119: 70019.2267 | E119: 89805.86219 | F119: 112358.3155 | H119: 42339.08879
A120: =$A$8 -> QCF5 Foundation degree;Nursing;Teaching | B120: 16491.69974 | C120: 15093.56104 | D120: 22484.04514 | E120: 27222.85996 | F120: 33170.70472 | H120: 10686.65958
A121: =$A$9 -> QCF4 HE below degree level | B121: 28445.75298 | C121: 20894.85876 | D121: 28422.01631 | E121: 32465.01238 | F121: 37956.08388 | H121: 9534.067574
A122: =$A$10 -> QCF3 A level & equivalent | B122: 149226.2887 | C122: 149050.1288 | D122: 158580.3803 | E122: 154130.6651 | F122: 149271.4872 | H122: -9308.893031
A123: =$A$11 -> QCF2 GCSE(A-C) & equivalent | B123: 163879.0764 | C123: 187711.9208 | D123: 201627.5847 | E123: 204701.8014 | F123: 207070.251 | H123: 5442.66631
A124: =$A$12 -> QCF1 GCSE(below grade C) & equivalent | B124: 154396.6464 | C124: 149188.9558 | D124: 137367.5864 | E124: 123893.8574 | F124: 109751.0175 | H124: -27616.56888
A125: =$A$13 -> No Qualification | B125: 90220.35329 | C125: 102917.7346 | D125: 55429.55615 | E125: 38201.0591 | F125: 32394.8449 | H125: -23034.71125
A126: Total | B126: =SUM(B117:B125) -> 630795 | C126: =SUM(C117:C125) -> 663587 | D126: =SUM(D117:D125) -> 692887 | E126: =SUM(E117:E125) -> 697983 | F126: =SUM(F117:F125) -> 718806 | H126: =SUM(H117:H125) -> 25919
A128: Percentage Shares | B128: =B$4 -> 1992 | C128: =C$4 -> 2002 | D128: =D$4 -> 2012 | E128: =E$4 -> 2017 | F128: =F$4 -> 2022 | H128: % change
A129: =$A$5 -> QCF8 Doctorate | B129: =B117/B$126*100 -> 0.2082619638 | C129: 0.05778882892 | D129: 0.2074176327 | E129: 0.3143949276 | F129: 0.4204131232 | H129: =IF(D117>0,H117/D117*100,0) -> 110.2712378
A130: =$A$6 -> QCF7 Other higher degree | B130: 1.016004459 | C130: 0.9407614026 | D130: 2.528469223 | E130: 3.634395011 | F130: 4.703820018 | H130: =IF(D118>0,H118/D118*100,0) -> 92.99333228
A131: =$A$7 -> QCF6 First degree | B131: 3.236007115 | C131: 4.837887224 | D131: 10.1054323 | E131: 12.86648274 | F131: 15.63124341 | H131: 60.46780403
A132: =$A$8 -> QCF5 Foundation degree;Nursing;Teaching | B132: 2.614430955 | C132: 2.2745414 | D132: 3.244980082 | E132: 3.900218195 | F132: 4.614695025 | H132: 47.52996851
A133: =$A$9 -> QCF4 HE below degree level | B133: 4.509508315 | C133: 3.148774578 | D133: 4.101969918 | E133: 4.651261189 | F133: 5.280435038 | H133: 33.54465591
A134: =$A$10 -> QCF3 A level & equivalent | B134: 23.65685978 | C134: 22.4612792 | D134: 22.88690368 | E134: 22.082295 | F134: 20.76658893 | H134: -5.870141701
A135: =$A$11 -> QCF2 GCSE(A-C) & equivalent | B135: 25.97976782 | C135: 28.28746206 | D135: 29.09963453 | E135: 29.32761993 | F135: 28.80752957 | H135: 2.699365921
A136: =$A$12 -> QCF1 GCSE(below grade C) & equivalent | B136: 24.47651716 | C136: 22.48219989 | D136: 19.82539525 | E136: 17.75026862 | F136: 15.26851716 | H136: -20.10413782
A137: =$A$13 -> No Qualification | B137: 14.30264243 | C137: 15.50930542 | D137: 7.999797392 | E137: 5.473064401 | F137: 4.506757721 | H137: -41.55673047
A138: Total | B138: 100 | C138: 100 | D138: 100 | E138: 100 | F138: 100 | H138: 3.7407254
A139: =$A$27 -> R:\Research Info\Individual research project info\Working Futures 2012-2022\Working Futures quant projections 2012-2022\04 Reporting and outputs\Final outputs\Workbooks\Files for gov.uk\YH\[6YHv2.xlsm]Table 7.x.1
A141: Table 7.1.5 | B141: =$B$1 -> Industry Employment, 1992 to 2022, by Qualification Level
B142: =names!A8 -> Business and other services
A143: =$A$3 -> Qualification categories | H143: Change
A144: Employment Levels (000s) | B144: =B$4 -> 1992 | C144: =C$4 -> 2002 | D144: =D$4 -> 2012 | E144: =E$4 -> 2017 | F144: =F$4 -> 2022 | H144: =D144&" - "&F144 -> 2012 - 2022
A145: =$A$5 -> QCF8 Doctorate | B145: 4712.365024 | C145: 3836.498074 | D145: 7775.449194 | E145: 10722.00843 | F145: 13583.27886 | H145: =F145-D145 -> 5807.829663
A146: =$A$6 -> QCF7 Other higher degree | B146: 17812.54553 | C146: 24796.13434 | D146: 61168.7752 | E146: 84742.8414 | F146: 105777.69 | H146: =F146-D146 -> 44608.91484
A147: =$A$7 -> QCF6 First degree | B147: 55369.8938 | C147: 78553.36322 | D147: 151245.8193 | E147: 177306.1398 | F147: 197952.3545 | H147: 46706.53516
A148: =$A$8 -> QCF5 Foundation degree;Nursing;Teaching | B148: 36528.58344 | C148: 28013.1151 | D148: 30612.53364 | E148: 33535.35813 | F148: 37910.13 | H148: 7297.596366
A149: =$A$9 -> QCF4 HE below degree level | B149: 25744.46052 | C149: 23581.92036 | D149: 37823.92594 | E149: 41811.47002 | F149: 45194.87585 | H149: 7370.949912
A150: =$A$10 -> QCF3 A level & equivalent | B150: 96958.72474 | C150: 116777.2 | D150: 118665.525 | E150: 109655.8031 | F150: 97152.75891 | H150: -21512.76612
A151: =$A$11 -> QCF2 GCSE(A-C) & equivalent | B151: 92290.27533 | C151: 120224.5176 | D151: 132288.3441 | E151: 134111.0372 | F151: 131660.3682 | H151: -627.9759419
A152: =$A$12 -> QCF1 GCSE(below grade C) & equivalent | B152: 66777.46478 | C152: 82772.4456 | D152: 88893.63688 | E152: 86226.95608 | F152: 79634.22445 | H152: -9259.412426
A153: =$A$13 -> No Qualification | B153: 40945.68683 | C153: 57336.80565 | D153: 32998.99075 | E153: 24187.3859 | F153: 21148.31929 | H153: -11850.67146
A154: Total | B154: =SUM(B145:B153) -> 437140 | C154: =SUM(C145:C153) -> 535892 | D154: =SUM(D145:D153) -> 661473 | E154: =SUM(E145:E153) -> 702299 | F154: =SUM(F145:F153) -> 730014 | H154: =SUM(H145:H153) -> 68541
A156: Percentage Shares | B156: =B$4 -> 1992 | C156: =C$4 -> 2002 | D156: =D$4 -> 2012 | E156: =E$4 -> 2017 | F156: =F$4 -> 2022 | H156: % change
A157: =$A$5 -> QCF8 Doctorate | B157: =B145/B$154*100 -> 1.077999045 | C157: 0.7159088163 | D157: 1.175474916 | E157: 1.526701367 | F157: 1.860687447 | H157: =IF(D145>0,H145/D145*100,0) -> 74.69445839
A158: =$A$6 -> QCF7 Other higher degree | B158: 4.074791951 | C158: 4.627076788 | D158: 9.24735782 | E158: 12.0664904 | F158: 14.48981664 | H158: =IF(D146>0,H146/D146*100,0) -> 72.92759206
A159: =$A$7 -> QCF6 First degree | B159: 12.66639836 | C159: 14.65843178 | D159: 22.8650027 | E159: 25.24653171 | F159: 27.11624085 | H159: 30.88120742
A160: =$A$8 -> QCF5 Foundation degree;Nursing;Teaching | B160: 8.356266515 | C160: 5.227380722 | D160: 4.627933965 | E160: 4.775082711 | F160: 5.193068901 | H160: 23.83858994
A161: =$A$9 -> QCF4 HE below degree level | B161: 5.889294168 | C161: 4.400498676 | D161: 5.718136029 | E161: 5.953514105 | F161: 6.190960152 | H161: 19.48753264
A162: =$A$10 -> QCF3 A level & equivalent | B162: 22.1802454 | C162: 21.79118181 | D162: 17.93958711 | E162: 15.61383443 | F162: 13.30834188 | H162: -18.1289099
A163: =$A$11 -> QCF2 GCSE(A-C) & equivalent | B163: 21.11229248 | C163: 22.4344677 | D163: 19.99905425 | E163: 19.09600287 | F163: 18.03532099 | H163: -0.4747023982
A164: =$A$12 -> QCF1 GCSE(below grade C) & equivalent | B164: 15.27599048 | C164: 15.44573265 | D164: 13.43874004 | E164: 12.27781274 | F164: 10.90858866 | H164: -10.4162826
A165: =$A$13 -> No Qualification | B165: 9.366721606 | C165: 10.69932107 | D165: 4.988713183 | E165: 3.444029665 | F165: 2.896974481 | H165: -35.91222396
A166: Total | B166: 100 | C166: 100 | D166: 100 | E166: 100 | F166: 100 | H166: 10.36187418
A167: =$A$27 -> R:\Research Info\Individual research project info\Working Futures 2012-2022\Working Futures quant projections 2012-2022\04 Reporting and outputs\Final outputs\Workbooks\Files for gov.uk\YH\[6YHv2.xlsm]Table 7.x.1
A169: Table 7.1.6 | B169: =$B$1 -> Industry Employment, 1992 to 2022, by Qualification Level
B170: =names!A9 -> Non-market services
A171: =$A$3 -> Qualification categories | H171: Change
A172: Employment Levels (000s) | B172: =B$4 -> 1992 | C172: =C$4 -> 2002 | D172: =D$4 -> 2012 | E172: =E$4 -> 2017 | F172: =F$4 -> 2022 | H172: =D172&" - "&F172 -> 2012 - 2022
A173: =$A$5 -> QCF8 Doctorate | B173: 7365.04637 | C173: 9325.692314 | D173: 15659.09495 | E173: 19424.27335 | F173: 23258.408 | H173: =F173-D173 -> 7599.313041
A174: =$A$6 -> QCF7 Other higher degree | B174: 39597.63392 | C174: 53977.37393 | D174: 93904.36017 | E174: 111018.7136 | F174: 127925.9665 | H174: =F174-D174 -> 34021.6063
A175: =$A$7 -> QCF6 First degree | B175: 61163.09374 | C175: 89715.18692 | D175: 142288.2035 | E175: 160493.0874 | F175: 186560.8505 | H175: 44272.64701
A176: =$A$8 -> QCF5 Foundation degree;Nursing;Teaching | B176: 99332.25077 | C176: 88803.07319 | D176: 79780.73721 | E176: 72519.43105 | F176: 65820.64262 | H176: -13960.09459
A177: =$A$9 -> QCF4 HE below degree level | B177: 27238.5048 | C177: 23924.18675 | D177: 31640.21792 | E177: 32799.41919 | F177: 35430.5454 | H177: 3790.32748
A178: =$A$10 -> QCF3 A level & equivalent | B178: 54454.63648 | C178: 88590.0595 | D178: 124923.1406 | E178: 127697.7274 | F178: 130032.5771 | H178: 5109.436552
A179: =$A$11 -> QCF2 GCSE(A-C) & equivalent | B179: 86068.15026 | C179: 109189.3285 | D179: 123842.2109 | E179: 118185.7582 | F179: 116470.0982 | H179: -7372.112621
A180: =$A$12 -> QCF1 GCSE(below grade C) & equivalent | B180: 96904.23556 | C180: 91999.95684 | D180: 60369.33268 | E180: 38510.24668 | F180: 26914.70964 | H180: -33454.62304
A181: =$A$13 -> No Qualification | B181: 51042.44809 | C181: 49054.14201 | D181: 14918.7021 | E181: 6568.343128 | F181: 5030.201969 | H181: -9888.500127
A182: Total | B182: =SUM(B173:B181) -> 523166 | C182: =SUM(C173:C181) -> 604579 | D182: =SUM(D173:D181) -> 687326 | E182: =SUM(E173:E181) -> 687217 | F182: =SUM(F173:F181) -> 717444 | H182: =SUM(H173:H181) -> 30118
A184: Percentage Shares | B184: =B$4 -> 1992 | C184: =C$4 -> 2002 | D184: =D$4 -> 2012 | E184: =E$4 -> 2017 | F184: =F$4 -> 2022 | H184: % change
A185: =$A$5 -> QCF8 Doctorate | B185: =B173/B$182*100 -> 1.407783833 | C185: 1.542510129 | D185: 2.278263146 | E185: 2.826512347 | F185: 3.241842986 | H185: =IF(D173>0,H173/D173*100,0) -> 48.5297079
A186: =$A$6 -> QCF7 Other higher degree | B186: 7.568846966 | C186: 8.928092761 | D186: 13.66227382 | E186: 16.15482643 | F186: 17.83079466 | H186: =IF(D174>0,H174/D174*100,0) -> 36.23006029
A187: =$A$7 -> QCF6 First degree | B187: 11.69095349 | C187: 14.83928269 | D187: 20.70170538 | E187: 23.35406246 | F187: 26.00354182 | H187: 31.11476982
A188: =$A$8 -> QCF5 Foundation degree;Nursing;Teaching | B188: 18.98675578 | C188: 14.68841511 | D188: 11.6074086 | E188: 10.55262472 | F188: 9.174324772 | H188: -17.49807671
A189: =$A$9 -> QCF4 HE below degree level | B189: 5.206474581 | C189: 3.957164697 | D189: 4.603378589 | E189: 4.772789264 | F189: 4.938440547 | H189: 11.97946073
A190: =$A$10 -> QCF3 A level & equivalent | B190: 10.40867267 | C190: 14.65318172 | D190: 18.17523862 | E190: 18.58186387 | F190: 18.12442185 | H190: 4.090064121
A191: =$A$11 -> QCF2 GCSE(A-C) & equivalent | B191: 16.45140362 | C191: 18.06039054 | D191: 18.01797267 | E191: 17.19773495 | F191: 16.23403335 | H191: -5.952827044
A192: =$A$12 -> QCF1 GCSE(below grade C) & equivalent | B192: 18.52265544 | C192: 15.21719359 | D192: 8.783216796 | E192: 5.603797152 | F192: 3.751471841 | H192: -55.4165858
A193: =$A$13 -> No Qualification | B193: 9.75645361 | C193: 8.113768757 | D193: 2.170542377 | E193: 0.9557888016 | F193: 0.7011281674 | H193: -66.28257648
A194: Total | B194: 100 | C194: 100 | D194: 100 | E194: 100 | F194: 100 | H194: 4.381909021
A195: =$A$27 -> R:\Research Info\Individual research project info\Working Futures 2012-2022\Working Futures quant projections 2012-2022\04 Reporting and outputs\Final outputs\Workbooks\Files for gov.uk\YH\[6YHv2.xlsm]Table 7.x.1

Sheet Table 7.x.2
A1: Table 7.2.0 | B1: ="Occupational Employment, "&B4&" to "&F4&", by Qualification Level" -> Occupational Employment, 1992 to 2022, by Qualification Level
B2: All Occupations
A3: Qualification categories | H3: Change
A4: Employment Levels (000s) | B4: =All!D7 -> 1992 | C4: =All!N7 -> 2002 | D4: =All!X7 -> 2012 | E4: =All!AC7 -> 2017 | F4: =All!AH7 -> 2022 | H4: =D4&" - "&F4 -> 2012 - 2022
A5: =names!D4 -> QCF8 Doctorate | B5: 17811.72775 | C5: 15647.80756 | D5: 27375.0416 | E5: 35651.75573 | F5: 43946.66911 | H5: =F5-D5 -> 16571.62751
A6: =names!D5 -> QCF7 Other higher degree | B6: 77125.4241 | C6: 94526.69128 | D6: 190508.7808 | E6: 245852.142 | F6: 298820.4768 | H6: =F6-D6 -> 108311.696
A7: =names!D6 -> QCF6 First degree | B7: 172971.6407 | C7: 237271.3869 | D7: 414004.2429 | E7: 485675.0166 | F7: 562011.3145 | H7: 148007.0716
A8: =names!D7 -> QCF5 Foundation degree;Nursing;Teaching | B8: 170879.7113 | C8: 144060.2648 | D8: 147980.3158 | E8: 150131.0328 | F8: 155645.2256 | H8: 7664.909811
A9: =names!D8 -> QCF4 HE below degree level | B9: 124596.3767 | C9: 97396.27676 | D9: 132484.1078 | E9: 143879.6299 | F9: 157364.5109 | H9: 24880.4031
A10: =names!D9 -> QCF3 A level & equivalent | B10: 474478.4406 | C10: 509176.7518 | D10: 529622.3764 | E10: 510758.9222 | F10: 486217.1724 | H10: -43405.20405
A11: =names!D10 -> QCF2 GCSE(A-C) & equivalent | B11: 480045.7948 | C11: 554398.1812 | D11: 580009.2072 | E11: 580187.8424 | F11: 577616.8733 | H11: -2392.333929
A12: =names!D11 -> QCF1 GCSE(below grade C) & equivalent | B12: 444715.7015 | C12: 425730.4916 | D12: 368954.3865 | E12: 325175.9245 | F12: 285053.3969 | H12: -83900.98959
A13: =names!D12 -> No Qualification | B13: 287115.1825 | C13: 297890.1481 | D13: 140290.5409 | E13: 92992.73391 | F13: 77372.36045 | H13: -62918.18042
A14: Total | B14: =SUM(B5:B13) -> 2249740 | C14: =SUM(C5:C13) -> 2376098 | D14: =SUM(D5:D13) -> 2531229 | E14: 2570305 | F14: 2644048 | H14: =SUM(H5:H13) -> 112819
A16: Percentage Shares | B16: =B$4 -> 1992 | C16: =C$4 -> 2002 | D16: =D$4 -> 2012 | E16: =E$4 -> 2017 | F16: =F$4 -> 2022 | H16: % change
A17: =$A$5 -> QCF8 Doctorate | B17: =B5/B$14*100 -> 0.7917238324 | C17: 0.6585505968 | D17: 1.081492097 | E17: 1.387063237 | F17: 1.662098007 | H17: =IF(D5>0,H5/D5*100,0) -> 60.5355336
A18: =$A$6 -> QCF7 Other higher degree | B18: 3.428192773 | C18: 3.978232012 | D18: 7.526335264 | E18: 9.565096048 | F18: 11.30162829 | H18: =IF(D6>0,H6/D6*100,0) -> 56.85391273
A19: =$A$7 -> QCF6 First degree | B19: 7.688516925 | C19: 9.98575761 | D19: 16.35585887 | E19: 18.89561809 | F19: 21.25571527 | H19: 35.75013399
A20: =$A$8 -> QCF5 Foundation degree;Nursing;Teaching | B20: 7.595531543 | C20: 6.062892391 | D20: 5.846184434 | E20: 5.840981238 | F20: 5.886626325 | H20: 5.17968202
A21: =$A$9 -> QCF4 HE below degree level | B21: 5.538256719 | C21: 4.099000831 | D21: 5.233983483 | E21: 5.597764853 | F21: 5.951651062 | H21: 18.77991521
A22: =$A$10 -> QCF3 A level & equivalent | B22: 21.0903678 | C22: 21.42911411 | D22: 20.92352673 | E22: 19.87152973 | F22: 18.38912048 | H22: -8.195500413
A23: =$A$11 -> QCF2 GCSE(A-C) & equivalent | B23: 21.33783436 | C23: 23.33229442 | D23: 22.91413409 | E23: 22.57272356 | F23: 21.84592993 | H23: -0.4124648194
A24: =$A$12 -> QCF1 GCSE(below grade C) & equivalent | B24: 19.76742653 | C24: 17.91721097 | D24: 14.57609669 | E24: 12.65125829 | F24: 10.78094637 | H24: -22.74020655
A25: =$A$13 -> No Qualification | B25: 12.76214951 | C25: 12.53694705 | D25: 5.542388337 | E25: 3.617964946 | F25: 2.92628426 | H25: -44.84848375
A26: Total | B26: 100 | C26: 100 | D26: 100 | E26: 100 | F26: 100 | H26: 4.457083891
A27: =CELL("filename",$A$1) -> R:\Research Info\Individual research project info\Working Futures 2012-2022\Working Futures quant projections 2012-2022\04 Reporting and outputs\Final outputs\Workbooks\Files for gov.uk\YH\[6YHv2.xlsm]Table 7.x.2
A29: Table 7.2.1 | B29: =$B$1 -> Occupational Employment, 1992 to 2022, by Qualification Level
B30: =names!C4 -> 11 Corporate managers and directors
A31: =$A$3 -> Qualification categories | H31: Change
A32: Employment Levels (000s) | B32: =B$4 -> 1992 | C32: =C$4 -> 2002 | D32: =D$4 -> 2012 | E32: =E$4 -> 2017 | F32: =F$4 -> 2022 | H32: =D32&" - "&F32 -> 2012 - 2022
A33: =$A$5 -> QCF8 Doctorate | B33: 1769.952023 | C33: 1206.362552 | D33: 1710.61683 | E33: 2326.325116 | F33: 3040.880494 | H33: =F33-D33 -> 1330.263664
A34: =$A$6 -> QCF7 Other higher degree | B34: 5792.812914 | C34: 7790.721555 | D34: 15790.94566 | E34: 21418.24164 | F34: 27452.03444 | H34: =F34-D34 -> 11661.08878
A35: =$A$7 -> QCF6 First degree | B35: 14759.08494 | C35: 21145.29606 | D35: 40809.71151 | E35: 49973.16488 | F35: 59697.30331 | H35: 18887.5918
A36: =$A$8 -> QCF5 Foundation degree;Nursing;Teaching | B36: 8292.359035 | C36: 8085.036268 | D36: 9835.355763 | E36: 10446.69771 | F36: 11311.58101 | H36: 1476.225244
A37: =$A$9 -> QCF4 HE below degree level | B37: 9472.854988 | C37: 9720.690105 | D37: 13138.40554 | E37: 14336.76354 | F37: 15641.38812 | H37: 2502.982577
A38: =$A$10 -> QCF3 A level & equivalent | B38: 23153.40711 | C38: 28926.79386 | D38: 29733.86331 | E38: 29472.85237 | F38: 28377.88404 | H38: -1355.979278
A39: =$A$11 -> QCF2 GCSE(A-C) & equivalent | B39: 17685.07613 | C39: 24954.23554 | D39: 26714.92806 | E39: 28221.75687 | F39: 28641.38973 | H39: 1926.461666
A40: =$A$12 -> QCF1 GCSE(below grade C) & equivalent | B40: 11170.51683 | C40: 15801.32697 | D40: 16275.10703 | E40: 17032.29054 | F40: 16768.41446 | H40: 493.3074346
A41: =$A$13 -> No Qualification | B41: 5157.560604 | C41: 6862.209569 | D41: 3375.22284 | E41: 2219.530574 | F41: 2194.954572 | H41: -1180.268268
A42: Total | B42: =SUM(B33:B41) -> 97253.62458 | C42: =SUM(C33:C41) -> 124492.6725 | D42: =SUM(D33:D41) -> 157384.1565 | E42: =SUM(E33:E41) -> 175447.6233 | F42: =SUM(F33:F41) -> 193125.8302 | H42: =SUM(H33:H41) -> 35741.67362
A44: Percentage Shares | B44: =B$4 -> 1992 | C44: =C$4 -> 2002 | D44: =D$4 -> 2012 | E44: =E$4 -> 2017 | F44: =F$4 -> 2022 | H44: % change
A45: =$A$5 -> QCF8 Doctorate | B45: =B33/B$42*100 -> 1.81993425 | C45: 0.9690229375 | D45: 1.086905358 | E45: 1.325937093 | F45: 1.574559183 | H45: =IF(D33>0,H33/D33*100,0) -> 77.76514531
A46: =$A$6 -> QCF7 Other higher degree | B46: 5.956397964 | C46: 6.257975991 | D46: 10.03337693 | E46: 12.20776961 | F46: 14.21458456 | H46: =IF(D34>0,H34/D34*100,0) -> 73.84667789
A47: =$A$7 -> QCF6 First degree | B47: 15.17587134 | C47: 16.98517322 | D47: 25.92999982 | E47: 28.48323844 | F47: 30.91109214 | H47: 46.28210077
A48: =$A$8 -> QCF5 Foundation degree;Nursing;Teaching | B48: 8.526529547 | C48: 6.494387265 | D48: 6.249266749 | E48: 5.954311332 | F48: 5.857104147 | H48: 15.00937312
A49: =$A$9 -> QCF4 HE below degree level | B49: 9.740361893 | C49: 7.808242775 | D49: 8.34798485 | E49: 8.171534773 | F49: 8.099065831 | H49: 19.05088535
A50: =$A$10 -> QCF3 A level & equivalent | B50: 23.80724339 | C50: 23.23574013 | D50: 18.8925391 | E50: 16.79866152 | F50: 14.69398682 | H50: -4.560387136
A51: =$A$11 -> QCF2 GCSE(A-C) & equivalent | B51: 18.18449051 | C51: 20.04474243 | D51: 16.97434395 | E51: 16.08557377 | F51: 14.83042931 | H51: 7.211180436
A52: =$A$12 -> QCF1 GCSE(below grade C) & equivalent | B52: 11.48596454 | C52: 12.69257592 | D52: 10.34100724 | E52: 9.707906113 | F52: 8.682636831 | H52: 3.031054935
A53: =$A$13 -> No Qualification | B53: 5.303206566 | C53: 5.512139335 | D53: 2.144575994 | E53: 1.265067336 | F53: 1.136541171 | H53: -34.96860279
A54: Total | B54: 100 | C54: 100 | D54: 100 | E54: 100 | F54: 100 | H54: 22.70982951
A55: =$A$27 -> R:\Research Info\Individual research project info\Working Futures 2012-2022\Working Futures quant projections 2012-2022\04 Reporting and outputs\Final outputs\Workbooks\Files for gov.uk\YH\[6YHv2.xlsm]Table 7.x.2
A57: Table 7.2.2 | B57: =$B$1 -> Occupational Employment, 1992 to 2022, by Qualification Level
B58: =names!C5 -> 12 Other managers and proprietors
A59: =$A$3 -> Qualification categories | H59: Change
A60: Employment Levels (000s) | B60: =B$4 -> 1992 | C60: =C$4 -> 2002 | D60: =D$4 -> 2012 | E60: =E$4 -> 2017 | F60: =F$4 -> 2022 | H60: =D60&" - "&F60 -> 2012 - 2022
A61: =$A$5 -> QCF8 Doctorate | B61: 443.4212637 | C61: 110.5122508 | D61: 770.108078 | E61: 1060.214327 | F61: 1392.713075 | H61: =F61-D61 -> 622.6049967
A62: =$A$6 -> QCF7 Other higher degree | B62: 2518.986241 | C62: 2348.340823 | D62: 6404.391402 | E62: 8169.720178 | F62: 10086.15521 | H62: =F62-D62 -> 3681.763805
A63: =$A$7 -> QCF6 First degree | B63: 5295.957183 | C63: 6501.521878 | D63: 15503.40799 | E63: 17768.81302 | F63: 20783.54369 | H63: 5280.135701
A64: =$A$8 -> QCF5 Foundation degree;Nursing;Teaching | B64: 5054.568141 | C64: 3377.284634 | D64: 5759.140571 | E64: 6295.624576 | F64: 7299.505352 | H64: 1540.364781
A65: =$A$9 -> QCF4 HE below degree level | B65: 4827.450643 | C65: 3755.316577 | D65: 5720.980404 | E65: 5950.620383 | F65: 6528.778007 | H65: 807.7976029
A66: =$A$10 -> QCF3 A level & equivalent | B66: 18820.57386 | C66: 15884.30763 | D66: 17360.41007 | E66: 14617.43452 | F66: 12800.7791 | H66: -4559.630968
A67: =$A$11 -> QCF2 GCSE(A-C) & equivalent | B67: 16181.57306 | C67: 17459.0092 | D67: 19948.05369 | E67: 19735.16976 | F67: 20498.02491 | H67: 549.9712233
A68: =$A$12 -> QCF1 GCSE(below grade C) & equivalent | B68: 12892.09503 | C68: 12061.14987 | D68: 12534.32726 | E68: 10866.94536 | F68: 9771.00427 | H68: -2763.322989
A69: =$A$13 -> No Qualification | B69: 9535.835376 | C69: 7993.936836 | D69: 4625.965701 | E69: 3145.552055 | F69: 2936.036953 | H69: -1689.928749
A70: Total | B70: =SUM(B61:B69) -> 75570.4608 | C70: =SUM(C61:C69) -> 69491.3797 | D70: =SUM(D61:D69) -> 88626.78515 | E70: =SUM(E61:E69) -> 87610.09418 | F70: =SUM(F61:F69) -> 92096.54056 | H70: =SUM(H61:H69) -> 3469.755404
A72: Percentage Shares | B72: =B$4 -> 1992 | C72: =C$4 -> 2002 | D72: =D$4 -> 2012 | E72: =E$4 -> 2017 | F72: =F$4 -> 2022 | H72: % change
A73: =$A$5 -> QCF8 Doctorate | B73: =B61/B$70*100 -> 0.58676533 | C73: 0.1590301578 | D73: 0.8689337842 | E73: 1.210150881 | F73: 1.512231693 | H73: =IF(D61>0,H61/D61*100,0) -> 80.84644409
A74: =$A$6 -> QCF7 Other higher degree | B74: 3.333294802 | C74: 3.379326807 | D74: 7.226248127 | E74: 9.325090053 | F74: 10.95171995 | H74: =IF(D62>0,H62/D62*100,0) -> 57.48811361
A75: =$A$7 -> QCF6 First degree | B75: 7.007972596 | C75: 9.355868175 | D75: 17.49291476 | E75: 20.28169607 | F75: 22.56712745 | H75: 34.0579033
A76: =$A$8 -> QCF5 Foundation degree;Nursing;Teaching | B76: 6.688550113 | C76: 4.860005152 | D76: 6.498194153 | E76: 7.185958005 | F76: 7.925927845 | H76: 26.74643486
A77: =$A$9 -> QCF4 HE below degree level | B77: 6.388012713 | C77: 5.404003479 | D77: 6.455137004 | E77: 6.79216298 | F77: 7.089058902 | H77: 14.11991557
A78: =$A$10 -> QCF3 A level & equivalent | B78: 24.90466997 | C78: 22.85795404 | D78: 19.58822047 | E78: 16.6846465 | F78: 13.89930504 | H78: -26.26453494
A79: =$A$11 -> QCF2 GCSE(A-C) & equivalent | B79: 21.4125637 | C79: 25.12399275 | D79: 22.50792878 | E79: 22.52613691 | F79: 22.25710628 | H79: 2.75701696
A80: =$A$12 -> QCF1 GCSE(below grade C) & equivalent | B80: 17.0597015 | C80: 17.35632523 | D80: 14.14282063 | E80: 12.40375948 | F80: 10.60952367 | H80: -22.0460415
A81: =$A$13 -> No Qualification | B81: 12.61846927 | C81: 11.5034942 | D81: 5.219602283 | E81: 3.590399125 | F81: 3.187999174 | H81: -36.53137221
A82: Total | B82: 100 | C82: 100 | D82: 100 | E82: 100 | F82: 100 | H82: 3.915018916
A83: =$A$27 -> R:\Research Info\Individual research project info\Working Futures 2012-2022\Working Futures quant projections 2012-2022\04 Reporting and outputs\Final outputs\Workbooks\Files for gov.uk\YH\[6YHv2.xlsm]Table 7.x.2
A85: Table 7.2.3 | B85: =$B$1 -> Occupational Employment, 1992 to 2022, by Qualification Level
B86: =names!C6 -> 21 Science, research, engineering and technology professionals
A87: =$A$3 -> Qualification categories | H87: Change
A88: Employment Levels (000s) | B88: =B$4 -> 1992 | C88: =C$4 -> 2002 | D88: =D$4 -> 2012 | E88: =E$4 -> 2017 | F88: =F$4 -> 2022 | H88: =D88&" - "&F88 -> 2012 - 2022
A89: =$A$5 -> QCF8 Doctorate | B89: 2988.411381 | C89: 2615.090839 | D89: 5092.772785 | E89: 6614.693182 | F89: 8097.795784 | H89: =F89-D89 -> 3005.022999
A90: =$A$6 -> QCF7 Other higher degree | B90: 5735.325714 | C90: 8689.17773 | D90: 18289.29077 | E90: 25244.87706 | F90: 31968.46092 | H90: =F90-D90 -> 13679.17016
A91: =$A$7 -> QCF6 First degree | B91: 19263.07609 | C91: 22845.3927 | D91: 37353.96167 | E91: 42070.06021 | F91: 44828.3065 | H91: 7474.34483
A92: =$A$8 -> QCF5 Foundation degree;Nursing;Teaching | B92: 4918.268261 | C92: 4400.219428 | D92: 4583.0087 | E92: 4539.843662 | F92: 4711.917422 | H92: 128.9087225
A93: =$A$9 -> QCF4 HE below degree level | B93: 10409.79682 | C93: 8564.641736 | D93: 11024.23577 | E93: 11310.13621 | F93: 11118.15879 | H93: 93.92302024
A94: =$A$10 -> QCF3 A level & equivalent | B94: 12916.17869 | C94: 16221.54176 | D94: 15236.54299 | E94: 14434.96817 | F94: 12645.89273 | H94: -2590.650251
A95: =$A$11 -> QCF2 GCSE(A-C) & equivalent | B95: 7449.418939 | C95: 11196.65735 | D95: 12115.00399 | E95: 12899.11171 | F95: 12907.87053 | H95: 792.8665451
A96: =$A$12 -> QCF1 GCSE(below grade C) & equivalent | B96: 4383.903524 | C96: 5944.347189 | D96: 6211.350818 | E96: 6413.176831 | F96: 6008.534204 | H96: -202.816614
A97: =$A$13 -> No Qualification | B97: 1186.211394 | C97: 1634.037113 | D97: 1236.973443 | E97: 1106.867259 | F97: 1211.199298 | H97: -25.77414482
A98: Total | B98: =SUM(B89:B97) -> 69250.59081 | C98: =SUM(C89:C97) -> 82111.10585 | D98: =SUM(D89:D97) -> 111143.1409 | E98: =SUM(E89:E97) -> 124633.7343 | F98: =SUM(F89:F97) -> 133498.1362 | H98: =SUM(H89:H97) -> 22354.99526
A100: Percentage Shares | B100: =B$4 -> 1992 | C100: =C$4 -> 2002 | D100: =D$4 -> 2012 | E100: =E$4 -> 2017 | F100: =F$4 -> 2022 | H100: % change
A101: =$A$5 -> QCF8 Doctorate | B101: =B89/B$98*100 -> 4.315358678 | C101: 3.184819901 | D101: 4.58217461 | E101: 5.307305618 | F101: 6.065849318 | H101: =IF(D89>0,H89/D89*100,0) -> 59.00563653
A102: =$A$6 -> QCF7 Other higher degree | B102: 8.281988135 | C102: 10.58221983 | D102: 16.45561806 | E102: 20.25525208 | F102: 23.946747 | H102: =IF(D90>0,H90/D90*100,0) -> 74.79333305
A103: =$A$7 -> QCF6 First degree | B103: 27.81647906 | C103: 27.82253687 | D103: 33.60887713 | E103: 33.75495442 | F103: 33.57972462 | H103: 20.00951036
A104: =$A$8 -> QCF5 Foundation degree;Nursing;Teaching | B104: 7.102131842 | C104: 5.358860269 | D104: 4.12351915 | E104: 3.642548053 | F104: 3.529575436 | H104: 2.812753169
A105: =$A$9 -> QCF4 HE below degree level | B105: 15.03206933 | C105: 10.43055217 | D105: 9.918952872 | E105: 9.074698979 | F105: 8.328325104 | H105: 0.8519685374
A106: =$A$10 -> QCF3 A level & equivalent | B106: 18.65136245 | C106: 19.75560016 | D106: 13.70893683 | E106: 11.58191099 | F106: 9.472711077 | H106: -17.0028743
A107: =$A$11 -> QCF2 GCSE(A-C) & equivalent | B107: 10.75719189 | C107: 13.63598412 | D107: 10.90036136 | E107: 10.34961504 | F107: 9.668951867 | H107: 6.544500902
A108: =$A$12 -> QCF1 GCSE(below grade C) & equivalent | B108: 6.330492596 | C108: 7.239394875 | D108: 5.588604718 | E108: 5.145618774 | F108: 4.500837521 | H108: -3.265257751
A109: =$A$13 -> No Qualification | B109: 1.712926027 | C109: 1.990031795 | D109: 1.112955269 | E109: 0.8880960402 | F109: 0.9072780585 | H109: -2.08364577
A110: Total | B110: 100 | C110: 100 | D110: 100 | E110: 100 | F110: 100 | H110: 20.11369759
A111: =$A$27 -> R:\Research Info\Individual research project info\Working Futures 2012-2022\Working Futures quant projections 2012-2022\04 Reporting and outputs\Final outputs\Workbooks\Files for gov.uk\YH\[6YHv2.xlsm]Table 7.x.2
A113: Table 7.2.4 | B113: =$B$1 -> Occupational Employment, 1992 to 2022, by Qualification Level
B114: =names!C7 -> 22 Health professionals
A115: =$A$3 -> Qualification categories | H115: Change
A116: Employment Levels (000s) | B116: =B$4 -> 1992 | C116: =C$4 -> 2002 | D116: =D$4 -> 2012 | E116: =E$4 -> 2017 | F116: =F$4 -> 2022 | H116: =D116&" - "&F116 -> 2012 - 2022
A117: =$A$5 -> QCF8 Doctorate | B117: 1139.074941 | C117: 2478.137693 | D117: 4951.931103 | E117: 6710.626445 | F117: 8445.934275 | H117: =F117-D117 -> 3494.003172
A118: =$A$6 -> QCF7 Other higher degree | B118: 6817.624737 | C118: 9752.028404 | D118: 15110.5617 | E118: 19831.99808 | F118: 24186.71605 | H118: =F118-D118 -> 9076.154351
A119: =$A$7 -> QCF6 First degree | B119: 13232.08237 | C119: 24827.31314 | D119: 32119.8483 | E119: 40258.12775 | F119: 49663.69148 | H119: 17543.84318
A120: =$A$8 -> QCF5 Foundation degree;Nursing;Teaching | B120: 43931.62131 | C120: 33967.91034 | D120: 22052.92131 | E120: 17649.92915 | F120: 11977.72943 | H120: -10075.19188
A121: =$A$9 -> QCF4 HE below degree level | B121: 2462.163862 | C121: 2223.055143 | D121: 2338.491097 | E121: 2604.063143 | F121: 2868.362213 | H121: 529.8711156
A122: =$A$10 -> QCF3 A level & equivalent | B122: 2869.311175 | C122: 5623.257752 | D122: 8302.76208 | E122: 9764.47313 | F122: 11065.54837 | H122: 2762.786286
A123: =$A$11 -> QCF2 GCSE(A-C) & equivalent | B123: 3654.205743 | C123: 4985.889489 | D123: 6910.273638 | E123: 7768.835966 | F123: 8617.069532 | H123: 1706.795893
A124: =$A$12 -> QCF1 GCSE(below grade C) & equivalent | B124: 2966.208823 | C124: 4635.043482 | D124: 3776.889288 | E124: 3650.265555 | F124: 3189.625935 | H124: -587.2633525
A125: =$A$13 -> No Qualification | B125: 569.6339602 | C125: 682.4137877 | D125: 395.7744042 | E125: 363.2047512 | F125: 463.3693676 | H125: 67.59496345
A126: Total | B126: =SUM(B117:B125) -> 77641.92692 | C126: =SUM(C117:C125) -> 89175.04922 | D126: =SUM(D117:D125) -> 95959.45292 | E126: =SUM(E117:E125) -> 108601.524 | F126: =SUM(F117:F125) -> 120478.0466 | H126: =SUM(H117:H125) -> 24518.59373
A128: Percentage Shares | B128: =B$4 -> 1992 | C128: =C$4 -> 2002 | D128: =D$4 -> 2012 | E128: =E$4 -> 2017 | F128: =F$4 -> 2022 | H128: % change
A129: =$A$5 -> QCF8 Doctorate | B129: =B117/B$126*100 -> 1.467087418 | C129: 2.778958593 | D129: 5.160441158 | E129: 6.179127328 | F129: 7.010351272 | H129: =IF(D117>0,H117/D117*100,0) -> 70.55839629
A130: =$A$6 -> QCF7 Other higher degree | B130: 8.780854634 | C130: 10.93582621 | D130: 15.74681935 | E130: 18.2612521 | F130: 20.07562101 | H130: =IF(D118>0,H118/D118*100,0) -> 60.06497001
A131: =$A$7 -> QCF6 First degree | B131: 17.04244458 | C131: 27.84109833 | D131: 33.47231286 | E131: 37.06957902 | F131: 41.22219181 | H131: 54.61994407
A132: =$A$8 -> QCF5 Foundation degree;Nursing;Teaching | B132: 56.58234288 | C132: 38.09127175 | D132: 22.98149963 | E132: 16.25200872 | F132: 9.941835684 | H132: -45.68642738
A133: =$A$9 -> QCF4 HE below degree level | B133: 3.171178202 | C133: 2.492911596 | D133: 2.436957513 | E133: 2.39781455 | F133: 2.380817329 | H133: 22.65867577
A134: =$A$10 -> QCF3 A level & equivalent | B134: 3.695569248 | C134: 6.305864478 | D134: 8.652364959 | E134: 8.991101389 | F134: 9.184701009 | H134: 33.27550832
A135: =$A$11 -> QCF2 GCSE(A-C) & equivalent | B135: 4.706485128 | C135: 5.591126142 | D135: 7.201243263 | E135: 7.153523894 | F135: 7.15239811 | H135: 24.69939662
A136: =$A$12 -> QCF1 GCSE(below grade C) & equivalent | B136: 3.820369922 | C136: 5.197690972 | D136: 3.935922072 | E136: 3.361155002 | F136: 2.647474809 | H136: -15.54886331
A137: =$A$13 -> No Qualification | B137: 0.7336679843 | C137: 0.7652519327 | D137: 0.4124392044 | E137: 0.3344379875 | F137: 0.3846089645 | H137: 17.07916498
A138: Total | B138: 100 | C138: 100 | D138: 100 | E138: 100 | F138: 100 | H138: 25.55099365
A139: =$A$27 -> R:\Research Info\Individual research project info\Working Futures 2012-2022\Working Futures quant projections 2012-2022\04 Reporting and outputs\Final outputs\Workbooks\Files for gov.uk\YH\[6YHv2.xlsm]Table 7.x.2
A141: Table 7.2.5 | B141: =$B$1 -> Occupational Employment, 1992 to 2022, by Qualification Level
B142: =names!C8 -> 23 Teaching and educational professionals
A143: =$A$3 -> Qualification categories | H143: Change
A144: Employment Levels (000s) | B144: =B$4 -> 1992 | C144: =C$4 -> 2002 | D144: =D$4 -> 2012 | E144: =E$4 -> 2017 | F144: =F$4 -> 2022 | H144: =D144&" - "&F144 -> 2012 - 2022
A145: =$A$5 -> QCF8 Doctorate | B145: 3919.351236 | C145: 5742.489457 | D145: 7794.340971 | E145: 9209.480842 | F145: 10430.62149 | H145: =F145-D145 -> 2636.280522
A146: =$A$6 -> QCF7 Other higher degree | B146: 19773.0655 | C146: 28740.39212 | D146: 46336.70406 | E146: 54744.25897 | F146: 61445.07402 | H146: =F146-D146 -> 15108.36996
A147: =$A$7 -> QCF6 First degree | B147: 26284.36944 | C147: 30390.66472 | D147: 33133.77902 | E147: 31978.66689 | F147: 30971.74743 | H147: -2162.03159
A148: =$A$8 -> QCF5 Foundation degree;Nursing;Teaching | B148: 18782.17647 | C148: 18305.06384 | D148: 8778.290283 | E148: 4398.416008 | F148: 1654.794793 | H148: -7123.49549
A149: =$A$9 -> QCF4 HE below degree level | B149: 2585.699491 | C149: 1967.408633 | D149: 1479.753299 | E149: 1215.19935 | F149: 1130.273628 | H149: -349.479671
A150: =$A$10 -> QCF3 A level & equivalent | B150: 2658.823919 | C150: 3472.901508 | D150: 3981.73076 | E150: 3475.668695 | F150: 3023.161832 | H150: -958.568928
A151: =$A$11 -> QCF2 GCSE(A-C) & equivalent | B151: 2603.727299 | C151: 3998.059684 | D151: 3632.155624 | E151: 3788.195 | F151: 3991.114898 | H151: 358.9592746
A152: =$A$12 -> QCF1 GCSE(below grade C) & equivalent | B152: 1776.872633 | C152: 2792.277109 | D152: 2387.337048 | E152: 2329.616563 | F152: 2218.665709 | H152: -168.6713393
A153: =$A$13 -> No Qualification | B153: 397.5744543 | C153: 489.9866443 | D153: 407.8102184 | E153: 386.9935708 | F153: 435.0416906 | H153: 27.23147224
A154: Total | B154: =SUM(B145:B153) -> 78781.66044 | C154: =SUM(C145:C153) -> 95899.24371 | D154: =SUM(D145:D153) -> 107931.9013 | E154: =SUM(E145:E153) -> 111526.4959 | F154: =SUM(F145:F153) -> 115300.4955 | H154: =SUM(H145:H153) -> 7368.59421
A156: Percentage Shares | B156: =B$4 -> 1992 | C156: =C$4 -> 2002 | D156: =D$4 -> 2012 | E156: =E$4 -> 2017 | F156: =F$4 -> 2022 | H156: % change
A157: =$A$5 -> QCF8 Doctorate | B157: =B145/B$154*100 -> 4.974953833 | C157: 5.988044572 | D157: 7.221535874 | E157: 8.257661795 | F157: 9.046467188 | H157: =IF(D145>0,H145/D145*100,0) -> 33.82300739
A158: =$A$6 -> QCF7 Other higher degree | B158: 25.09856404 | C158: 29.96936264 | D158: 42.93142575 | E158: 49.08632566 | F158: 53.29124889 | H158: =IF(D146>0,H146/D146*100,0) -> 32.60562068
A159: =$A$7 -> QCF6 First degree | B159: 33.36356367 | C159: 31.6902027 | D159: 30.69878194 | E159: 28.67360499 | F159: 26.86176438 | H159: -6.525158475
A160: =$A$8 -> QCF5 Foundation degree;Nursing;Teaching | B160: 23.84079792 | C160: 19.08780834 | D160: 8.13317488 | E160: 3.943830543 | F160: 1.435201805 | H160: -81.14900807
A161: =$A$9 -> QCF4 HE below degree level | B161: 3.282108395 | C161: 2.051537173 | D161: 1.371006423 | E161: 1.089605963 | F161: 0.9802851438 | H161: -23.61742807
A162: =$A$10 -> QCF3 A level & equivalent | B162: 3.374927494 | C162: 3.621406565 | D162: 3.689113888 | E162: 3.116451089 | F162: 2.621985117 | H162: -24.07417743
A163: =$A$11 -> QCF2 GCSE(A-C) & equivalent | B163: 3.304991649 | C163: 4.169021078 | D163: 3.365228983 | E163: 3.396677148 | F163: 3.461489806 | H163: 9.882816481
A164: =$A$12 -> QCF1 GCSE(below grade C) & equivalent | B164: 2.25543943 | C164: 2.911677924 | D164: 2.211891961 | E164: 2.088845834 | F164: 1.924246465 | H164: -7.065250355
A165: =$A$13 -> No Qualification | B165: 0.5046535603 | C165: 0.5109390077 | D165: 0.3778402989 | E165: 0.3469969784 | F165: 0.3773112065 | H165: 6.677486491
A166: Total | B166: 100 | C166: 100 | D166: 100 | E166: 100 | F166: 100 | H166: 6.827077187
A167: =$A$27 -> R:\Research Info\Individual research project info\Working Futures 2012-2022\Working Futures quant projections 2012-2022\04 Reporting and outputs\Final outputs\Workbooks\Files for gov.uk\YH\[6YHv2.xlsm]Table 7.x.2
A169: Table 7.2.6 | B169: =$B$1 -> Occupational Employment, 1992 to 2022, by Qualification Level
B170: =names!C9 -> 24 Business, media and public service professionals
A171: =$A$3 -> Qualification categories | H171: Change
A172: Employment Levels (000s) | B172: =B$4 -> 1992 | C172: =C$4 -> 2002 | D172: =D$4 -> 2012 | E172: =E$4 -> 2017 | F172: =F$4 -> 2022 | H172: =D172&" - "&F172 -> 2012 - 2022
A173: =$A$5 -> QCF8 Doctorate | B173: 790.8178634 | C173: 764.0744749 | D173: 1769.64982 | E173: 2451.039455 | F173: 3155.066832 | H173: =F173-D173 -> 1385.417012
A174: =$A$6 -> QCF7 Other higher degree | B174: 6636.441304 | C174: 10479.07988 | D174: 23227.66755 | E174: 30168.24098 | F174: 36520.91122 | H174: =F174-D174 -> 13293.24368
A175: =$A$7 -> QCF6 First degree | B175: 19301.97288 | C175: 25342.10022 | D175: 45121.68825 | E175: 51185.15204 | F175: 57450.80786 | H175: 12329.11961
A176: =$A$8 -> QCF5 Foundation degree;Nursing;Teaching | B176: 18786.40967 | C176: 13196.68063 | D176: 6114.084965 | E176: 3976.728292 | F176: 3324.891447 | H176: -2789.193517
A177: =$A$9 -> QCF4 HE below degree level | B177: 5008.789798 | C177: 4936.930306 | D177: 6918.1025 | E177: 7183.893226 | F177: 7682.225378 | H177: 764.1228787
A178: =$A$10 -> QCF3 A level & equivalent | B178: 8482.252039 | C178: 12921.84518 | D178: 14237.64868 | E178: 14406.50196 | F178: 14236.43417 | H178: -1.214514359
A179: =$A$11 -> QCF2 GCSE(A-C) & equivalent | B179: 7182.901748 | C179: 10828.48047 | D179: 10760.10816 | E179: 10402.84424 | F179: 10056.85686 | H179: -703.2513005
A180: =$A$12 -> QCF1 GCSE(below grade C) & equivalent | B180: 4298.67056 | C180: 5994.88367 | D180: 5871.222734 | E180: 5566.024369 | F180: 5104.230068 | H180: -766.9926667
A181: =$A$13 -> No Qualification | B181: 1279.235591 | C181: 1890.770134 | D181: 1259.394149 | E181: 1087.903926 | F181: 1171.099113 | H181: -88.29503538
A182: Total | B182: =SUM(B173:B181) -> 71767.49145 | C182: =SUM(C173:C181) -> 86354.84496 | D182: =SUM(D173:D181) -> 115279.5668 | E182: =SUM(E173:E181) -> 126428.3285 | F182: =SUM(F173:F181) -> 138702.523 | H182: =SUM(H173:H181) -> 23422.95614
A184: Percentage Shares | B184: =B$4 -> 1992 | C184: =C$4 -> 2002 | D184: =D$4 -> 2012 | E184: =E$4 -> 2017 | F184: =F$4 -> 2022 | H184: % change
A185: =$A$5 -> QCF8 Doctorate | B185: =B173/B$182*100 -> 1.101916547 | C185: 0.8848078822 | D185: 1.535094093 | E185: 1.938679001 | F185: 2.274700391 | H185: =IF(D173>0,H173/D173*100,0) -> 78.28763611
A186: =$A$6 -> QCF7 Other higher degree | B186: 9.247141248 | C186: 12.13490671 | D186: 20.14898927 | E186: 23.86193138 | F186: 26.33038711 | H186: =IF(D174>0,H174/D174*100,0) -> 57.23021328
A187: =$A$7 -> QCF6 First degree | B187: 26.89514777 | C187: 29.34647179 | D187: 39.14109803 | E187: 40.48550879 | F187: 41.42016067 | H187: 27.32415404
A188: =$A$8 -> QCF5 Foundation degree;Nursing;Teaching | B188: 26.1767679 | C188: 15.28192267 | D188: 5.303702238 | E188: 3.145440851 | F188: 2.397138406 | H188: -45.61914879
A189: =$A$9 -> QCF4 HE below degree level | B189: 6.979190294 | C189: 5.717027584 | D189: 6.001152408 | E189: 5.682186352 | F189: 5.538634204 | H189: 11.0452668
A190: =$A$10 -> QCF3 A level & equivalent | B190: 11.81907277 | C190: 14.96365976 | D190: 12.35053971 | E190: 11.3949952 | F190: 10.2640052 | H190: -0.008530301499
A191: =$A$11 -> QCF2 GCSE(A-C) & equivalent | B191: 10.00857297 | C191: 12.539517 | D191: 9.333924877 | E191: 8.228254191 | F191: 7.250666138 | H191: -6.535727055
A192: =$A$12 -> QCF1 GCSE(below grade C) & equivalent | B192: 5.989718287 | C192: 6.942150927 | D192: 5.093029837 | E192: 4.40251361 | F192: 3.679983578 | H192: -13.06359342
A193: =$A$13 -> No Qualification | B193: 1.78247221 | C193: 2.189535671 | D193: 1.092469536 | E193: 0.8604906345 | F193: 0.8443243053 | H193: -7.010913578
A194: Total | B194: 100 | C194: 100 | D194: 100 | E194: 100 | F194: 100 | H194: 20.31839361
A195: =$A$27 -> R:\Research Info\Individual research project info\Working Futures 2012-2022\Working Futures quant projections 2012-2022\04 Reporting and outputs\Final outputs\Workbooks\Files for gov.uk\YH\[6YHv2.xlsm]Table 7.x.2
A197: Table 7.2.7 | B197: =$B$1 -> Occupational Employment, 1992 to 2022, by Qualification Level
B198: =names!C10 -> 31 Science, engineering and technology associate professionals
A199: =$A$3 -> Qualification categories | H199: Change
A200: Employment Levels (000s) | B200: =B$4 -> 1992 | C200: =C$4 -> 2002 | D200: =D$4 -> 2012 | E200: =E$4 -> 2017 | F200: =F$4 -> 2022 | H200: =D200&" - "&F200 -> 2012 - 2022
A201: =$A$5 -> QCF8 Doctorate | B201: 568.6827867 | C201: 245.3955758 | D201: 655.2785038 | E201: 918.8792896 | F201: 1162.592432 | H201: =F201-D201 -> 507.3139281
A202: =$A$6 -> QCF7 Other higher degree | B202: 1958.907002 | C202: 2085.147215 | D202: 3998.435374 | E202: 5499.793673 | F202: 6859.194588 | H202: =F202-D202 -> 2860.759214
A203: =$A$7 -> QCF6 First degree | B203: 4753.769425 | C203: 5389.177182 | D203: 10356.28459 | E203: 12109.07969 | F203: 13192.23591 | H203: 2835.951319
A204: =$A$8 -> QCF5 Foundation degree;Nursing;Teaching | B204: 1734.126824 | C204: 1317.453586 | D204: 1920.549115 | E204: 2179.159561 | F204: 2500.012983 | H204: 579.4638685
A205: =$A$9 -> QCF4 HE below degree level | B205: 9055.510602 | C205: 6657.259317 | D205: 5676.031801 | E205: 5218.764835 | F205: 4967.810305 | H205: -708.2214957
A206: =$A$10 -> QCF3 A level & equivalent | B206: 10239.13911 | C206: 12606.13453 | D206: 9218.07776 | E206: 8174.021222 | F206: 6914.560044 | H206: -2303.517716
A207: =$A$11 -> QCF2 GCSE(A-C) & equivalent | B207: 6113.42139 | C207: 6547.760928 | D207: 6835.603949 | E207: 6904.909189 | F207: 6764.357682 | H207: -71.24626707
A208: =$A$12 -> QCF1 GCSE(below grade C) & equivalent | B208: 2782.982369 | C208: 3906.662357 | D208: 4291.658137 | E208: 4823.671312 | F208: 4800.377615 | H208: 508.7194779
A209: =$A$13 -> No Qualification | B209: 1538.454919 | C209: 2055.114781 | D209: 769.5106761 | E209: 735.021431 | F209: 836.1711284 | H209: 66.66045233
A210: Total | B210: =SUM(B201:B209) -> 38744.99443 | C210: =SUM(C201:C209) -> 40810.10547 | D210: =SUM(D201:D209) -> 43721.4299 | E210: =SUM(E201:E209) -> 46563.3002 | F210: =SUM(F201:F209) -> 47997.31268 | H210: =SUM(H201:H209) -> 4275.882781
A212: Percentage Shares | B212: =B$4 -> 1992 | C212: =C$4 -> 2002 | D212: =D$4 -> 2012 | E212: =E$4 -> 2017 | F212: =F$4 -> 2022 | H212: % change
A213: =$A$5 -> QCF8 Doctorate | B213: =B201/B$210*100 -> 1.467758081 | C213: 0.6013108102 | D213: 1.498758172 | E213: 1.973398118 | F213: 2.422203175 | H213: =IF(D201>0,H201/D201*100,0) -> 77.41958956
A214: =$A$6 -> QCF7 Other higher degree | B214: 5.055896977 | C214: 5.10938943 | D214: 9.145252986 | E214: 11.81143443 | F214: 14.29078881 | H214: =IF(D202>0,H202/D202*100,0) -> 71.54696643
A215: =$A$7 -> QCF6 First degree | B215: 12.26937697 | C215: 13.20549683 | D215: 23.68697595 | E215: 26.00563026 | F215: 27.48536359 | H215: 27.38386818
... 475 more rows

Sheet Figure 7.2
AA4: ="Qualification structure, "&AC5&" - "&BG5&", "&CHAR(13)&names!A3 -> Qualification structure, 1992 - 2022, All industries
AA5: 1990 | AB5: 1991 | AC5: 1992 | AD5: 1993 | AE5: 1994 | AF5: 1995 | AG5: 1996 | AH5: 1997 | AI5: 1998 | AJ5: 1999 | AK5: 2000 | AL5: 2001 | AM5: 2002 | AN5: 2003 | AO5: 2004 | AP5: 2005 | AQ5: 2006 | AR5: 2007 | AS5: 2008 | AT5: 2009 | AU5: 2010 | AV5: 2011 | AW5: 2012 | AX5: 2013 | AY5: 2014 | AZ5: 2015 | BA5: 2016 | BB5: 2017 | BC5: 2018 | BD5: 2019 | BE5: 2020 | BF5: 2021 | BG5: 2022
Z6: =LEFT(names!D4,4) -> QCF8 | AA6: 20793.58572 | AB6: 19200.02343 | AC6: 17811.72775 | AD6: 17181.21994 | AE6: 16890.90071 | AF6: 16982.68633 | AG6: 16694.52145 | AH6: 16027.15088 | AI6: 15436.76396 | AJ6: 14871.16517 | AK6: 14439.03473 | AL6: 14401.23949 | AM6: 15647.80756 | AN6: 15659.26671 | AO6: 18749.53558 | AP6: 18074.62875 | AQ6: 22593.90016 | AR6: 19310.65581 | AS6: 21837.07154 | AT6: 26466.47448 | AU6: 23523.10178 | AV6: 24733.07365 | AW6: 27375.0416 | AX6: 29422.47737 | AY6: 31016.59571 | AZ6: 32626.09021 | BA6: 34099.10859 | BB6: 35651.75573 | BC6: 37276.29007 | BD6: 38873.91406 | BE6: 40417.90926 | BF6: 42220.41755 | BG6: 43946.66911
Z7: =LEFT(names!D5,4) -> QCF7 | AA7: 78563.43652 | AB7: 77263.80589 | AC7: 77125.4241 | AD7: 76922.52928 | AE7: 78222.82786 | AF7: 80555.16107 | AG7: 81893.82004 | AH7: 82676.14729 | AI7: 83247.00673 | AJ7: 83506.05564 | AK7: 85712.22867 | AL7: 86424.60691 | AM7: 94526.69128 | AN7: 99898.96773 | AO7: 121111.0553 | AP7: 136954.0914 | AQ7: 138593.4886 | AR7: 142466.8621 | AS7: 153694.2017 | AT7: 181113.5157 | AU7: 166149.8876 | AV7: 168873.7594 | AW7: 190508.7808 | AX7: 203826.6167 | AY7: 214677.3958 | AZ7: 225586.4325 | BA7: 235587.9825 | BB7: 245852.142 | BC7: 256345.464 | BD7: 266643.7456 | BE7: 276479.9211 | BF7: 287923.6054 | BG7: 298820.4768
Z8: =LEFT(names!D6,4) -> QCF6 | AA8: 171318.7427 | AB8: 169950.1991 | AC8: 172971.6407 | AD8: 176892.1511 | AE8: 184449.656 | AF8: 195746.596 | AG8: 201564.0773 | AH8: 206087.5969 | AI8: 213653.2565 | AJ8: 220409.9272 | AK8: 230242.1356 | AL8: 245347.5193 | AM8: 237271.3869 | AN8: 246204.4605 | AO8: 295849.8637 | AP8: 267912.3446 | AQ8: 293601.5385 | AR8: 324961.1789 | AS8: 327855.6999 | AT8: 371730.6488 | AU8: 357650.6793 | AV8: 381867.5514 | AW8: 414004.2429 | AX8: 422513.7968 | AY8: 439284.0768 | AZ8: 455759.6492 | BA8: 470479.6579 | BB8: 485675.0166 | BC8: 501121.0549 | BD8: 516128.1132 | BE8: 532032.7823 | BF8: 546638.2188 | BG8: 562011.3145
Z9: =LEFT(names!D7,4) -> QCF5 | AA9: 179002.7292 | AB9: 174463.9166 | AC9: 170879.7113 | AD9: 166275.943 | AE9: 164462.4179 | AF9: 163320.141 | AG9: 161359.6015 | AH9: 158166.0411 | AI9: 152944.451 | AJ9: 147235.1291 | AK9: 148931.667 | AL9: 142093.5899 | AM9: 144060.2648 | AN9: 141486.7314 | AO9: 148425.003 | AP9: 132849.5626 | AQ9: 145590.3464 | AR9: 143344.457 | AS9: 138882.3017 | AT9: 151538.1995 | AU9: 142883.6909 | AV9: 146353.6919 | AW9: 147980.3158 | AX9: 146168.0719 | AY9: 147169.9071 | AZ9: 148090.757 | BA9: 148945.2348 | BB9: 150131.0328 | BC9: 151438.4977 | BD9: 152455.2648 | BE9: 153548.72 | BF9: 154316.0475 | BG9: 155645.2256
Z10: =LEFT(names!D8,4) -> QCF4 | AA10: 140294.9525 | AB10: 131117.741 | AC10: 124596.3767 | AD10: 121436.6657 | AE10: 119938.9287 | AF10: 120588.8164 | AG10: 121126.9376 | AH10: 118079.5846 | AI10: 115208.0945 | AJ10: 110806.9293 | AK10: 107680.1749 | AL10: 103623.4051 | AM10: 97396.27676 | AN10: 104261.3314 | AO10: 119987.0031 | AP10: 103058.8035 | AQ10: 105855.3081 | AR10: 117141.0077 | AS10: 108317.302 | AT10: 128536.6177 | AU10: 118650.9095 | AV10: 125636.9341 | AW10: 132484.1078 | AX10: 131622.4094 | AY10: 134909.8432 | AZ10: 138205.7585 | BA10: 141069.5877 | BB10: 143879.6299 | BC10: 146663.7656 | BD10: 149361.1252 | BE10: 152245.398 | BF10: 154636.8801 | BG10: 157364.5109
Z11: =LEFT(names!D9,4) -> QCF3 | AA11: 503738.8732 | AB11: 485102.3642 | AC11: 474478.4406 | AD11: 469162.0697 | AE11: 473827.3164 | AF11: 485950.6968 | AG11: 486549.1833 | AH11: 486177.9951 | AI11: 491805.3573 | AJ11: 491748.138 | AK11: 497603.7481 | AL11: 497642.9398 | AM11: 509176.7518 | AN11: 504265.6828 | AO11: 502094.3548 | AP11: 497471.6619 | AQ11: 543298.0225 | AR11: 531735.9671 | AS11: 539981.8573 | AT11: 493815.5654 | AU11: 529682.7301 | AV11: 532537.8975 | AW11: 529622.3764 | AX11: 527978.5235 | AY11: 523500.2678 | AZ11: 518933.1138 | BA11: 514483.9822 | BB11: 510758.9222 | BC11: 507438.8794 | BD11: 503131.8541 | BE11: 497591.5391 | BF11: 492201.957 | BG11: 486217.1724
Z12: =LEFT(names!D10,4) -> QCF2 | AA12: 503646.5117 | AB12: 487759.9746 | AC12: 480045.7948 | AD12: 476011.6791 | AE12: 480825.61 | AF12: 490904.2 | AG12: 495258.285 | AH12: 494421.6398 | AI12: 495296.6098 | AJ12: 489389.697 | AK12: 498588.1234 | AL12: 501631.8673 | AM12: 554398.1812 | AN12: 550761.0234 | AO12: 568020.4407 | AP12: 608498.0234 | AQ12: 567685.2089 | AR12: 582060.1557 | AS12: 567157.7088 | AT12: 597393.9306 | AU12: 550255.8289 | AV12: 576583.7346 | AW12: 580009.2072 | AX12: 584082.185 | AY12: 582640.9689 | AZ12: 580704.8288 | BA12: 579375.9824 | BB12: 580187.8424 | BC12: 581825.303 | BD12: 583321.7425 | BE12: 583943.3902 | BF12: 581512.344 | BG12: 577616.8733
Z13: =LEFT(names!D11,4) -> QCF1 | AA13: 463112.3849 | AB13: 450684.2429 | AC13: 444715.7015 | AD13: 441086.2278 | AE13: 445867.5839 | AF13: 454195.1167 | AG13: 459514.3928 | AH13: 459710.1001 | AI13: 458438.8619 | AJ13: 452648.9998 | AK13: 461922.9319 | AL13: 466347.9244 | AM13: 425730.4916 | AN13: 478814.2804 | AO13: 484421.3539 | AP13: 506395.5224 | AQ13: 476824.6216 | AR13: 479484.1006 | AS13: 464373.2708 | AT13: 424352.4682 | AU13: 424456.6982 | AV13: 375257.2041 | AW13: 368954.3865 | AX13: 372207.4493 | AY13: 359458.444 | AZ13: 346556.6933 | BA13: 334884.5921 | BB13: 325175.9245 | BC13: 316215.0201 | BD13: 308141.0786 | BE13: 300359.0598 | BF13: 292587.1339 | BG13: 285053.3969
Z14: =LEFT(names!D12,7) -> No Qual | AA14: 299394.7835 | AB14: 290988.7322 | AC14: 287115.1825 | AD14: 285632.5145 | AE14: 287339.7585 | AF14: 292262.5856 | AG14: 296013.1809 | AH14: 295776.7441 | AI14: 296182.5983 | AJ14: 292310.9588 | AK14: 299027.9557 | AL14: 301590.9079 | AM14: 297890.1481 | AN14: 290167.2557 | AO14: 253671.3898 | AP14: 247958.3616 | AQ14: 237934.5654 | AR14: 218416.615 | AS14: 214944.5863 | AT14: 147998.5797 | AU14: 184906.4737 | AV14: 156012.1532 | AW14: 140290.5409 | AX14: 129910.4699 | AY14: 117754.5007 | AZ14: 107530.6768 | BA14: 99553.87179 | BB14: 92992.73391 | BC14: 87338.72519 | BD14: 83423.16188 | BE14: 80080.28023 | BF14: 78438.39576 | BG14: 77372.36045
C29: =CELL("filename",$A$1)&", "&names!#REF! -> 
AA34: ="Qualification structure, "&AC35&" - "&BG35&", "&CHAR(13)&names!A4 -> Qualification structure, 1992 - 2022, Primary sector and utilities
AA35: 1990 | AB35: 1991 | AC35: 1992 | AD35: 1993 | AE35: 1994 | AF35: 1995 | AG35: 1996 | AH35: 1997 | AI35: 1998 | AJ35: 1999 | AK35: 2000 | AL35: 2001 | AM35: 2002 | AN35: 2003 | AO35: 2004 | AP35: 2005 | AQ35: 2006 | AR35: 2007 | AS35: 2008 | AT35: 2009 | AU35: 2010 | AV35: 2011 | AW35: 2012 | AX35: 2013 | AY35: 2014 | AZ35: 2015 | BA35: 2016 | BB35: 2017 | BC35: 2018 | BD35: 2019 | BE35: 2020 | BF35: 2021 | BG35: 2022
Z36: =$Z$6 -> QCF8 | AA36: 1003.199987 | AB36: 824.0548841 | AC36: 763.2840218 | AD36: 737.8399697 | AE36: 575.2674063 | AF36: 503.9977253 | AG36: 496.1303598 | AH36: 402.2530752 | AI36: 379.6460314 | AJ36: 238.9395555 | AK36: 189.0940452 | AL36: 130.0570079 | AM36: 231.8020408 | AN36: 135.0474032 | AO36: 104.6491465 | AP36: 213.2064504 | AQ36: 354.5211576 | AR36: 135.3023406 | AS36: 283.5515604 | AT36: 321.3399369 | AU36: 330.7870721 | AV36: 390.2847923 | AW36: 385.5833471 | AX36: 399.0089816 | AY36: 431.4703726 | AZ36: 464.989585 | BA36: 496.4958088 | BB36: 527.5209263 | BC36: 554.0720363 | BD36: 579.9248767 | BE36: 604.539622 | BF36: 633.4094528 | BG36: 661.4867795
Z37: =$Z$7 -> QCF7 | AA37: 4876.203182 | AB37: 4545.118482 | AC37: 3868.906979 | AD37: 3495.274685 | AE37: 2737.958961 | AF37: 2279.783717 | AG37: 2147.198501 | AH37: 1921.936601 | AI37: 1857.43148 | AJ37: 1543.825142 | AK37: 1240.679039 | AL37: 1308.020208 | AM37: 1014.253776 | AN37: 1068.279608 | AO37: 935.6227133 | AP37: 1725.013555 | AQ37: 1775.073381 | AR37: 1497.59692 | AS37: 1553.112919 | AT37: 2107.174898 | AU37: 2294.828351 | AV37: 2711.416083 | AW37: 2941.01591 | AX37: 2952.064124 | AY37: 3129.30107 | AZ37: 3323.776994 | BA37: 3509.511569 | BB37: 3692.236228 | BC37: 3850.250191 | BD37: 4013.423793 | BE37: 4175.361389 | BF37: 4348.342121 | BG37: 4518.579269
Z38: =$Z$8 -> QCF6 | AA38: 7530.18835 | AB38: 6463.903605 | AC38: 6134.54659 | AD38: 6018.362497 | AE38: 4536.763371 | AF38: 4042.473188 | AG38: 4481.13659 | AH38: 4428.920725 | AI38: 4284.488017 | AJ38: 4383.626004 | AK38: 3956.674501 | AL38: 4388.76401 | AM38: 3750.637278 | AN38: 3046.689687 | AO38: 3556.691271 | AP38: 4336.194156 | AQ38: 3648.505776 | AR38: 4798.002796 | AS38: 4533.245858 | AT38: 6690.480227 | AU38: 6781.90059 | AV38: 8476.453504 | AW38: 8480.403117 | AX38: 7920.566786 | AY38: 8294.658971 | AZ38: 8649.836264 | BA38: 8962.218963 | BB38: 9258.53249 | BC38: 9460.238524 | BD38: 9674.450871 | BE38: 9925.297339 | BF38: 10091.15516 | BG38: 10276.92198
Z39: =$Z$9 -> QCF5 | AA39: 4661.958988 | AB39: 4208.412285 | AC39: 3860.838724 | AD39: 3707.166641 | AE39: 3004.141937 | AF39: 2539.147474 | AG39: 2740.183047 | AH39: 2602.490065 | AI39: 2559.974449 | AJ39: 2209.713895 | AK39: 1900.143954 | AL39: 1662.178843 | AM39: 1626.119257 | AN39: 1276.73439 | AO39: 1075.998375 | AP39: 1218.390542 | AQ39: 1853.070998 | AR39: 1862.835077 | AS39: 1364.439037 | AT39: 1497.676085 | AU39: 1741.554191 | AV39: 2444.274256 | AW39: 2243.433512 | AX39: 1982.255605 | AY39: 2058.75532 | AZ39: 2139.053977 | BA39: 2213.451626 | BB39: 2281.773746 | BC39: 2321.723255 | BD39: 2362.024868 | BE39: 2405.357237 | BF39: 2440.256597 | BG39: 2482.220176
Z40: =$Z$10 -> QCF4 | AA40: 9921.153785 | AB40: 8635.771945 | AC40: 8086.353653 | AD40: 7792.680109 | AE40: 5441.058063 | AF40: 4995.860933 | AG40: 4939.545055 | AH40: 4495.509903 | AI40: 4385.213013 | AJ40: 4041.466785 | AK40: 3783.881746 | AL40: 4130.766631 | AM40: 2874.327224 | AN40: 3045.640394 | AO40: 3092.453928 | AP40: 3094.002542 | AQ40: 3102.662979 | AR40: 3338.103199 | AS40: 2455.197723 | AT40: 4502.583334 | AU40: 4663.449738 | AV40: 5615.864502 | AW40: 5455.764502 | AX40: 4938.690143 | AY40: 5070.362609 | AZ40: 5206.827653 | BA40: 5311.188824 | BB40: 5402.305935 | BC40: 5455.279747 | BD40: 5514.057388 | BE40: 5537.566616 | BF40: 5565.086048 | BG40: 5606.721611
Z41: =$Z$11 -> QCF3 | AA41: 19014.45766 | AB41: 18088.29712 | AC41: 17755.19927 | AD41: 17291.72422 | AE41: 13639.08245 | AF41: 12299.90024 | AG41: 12653.72409 | AH41: 13157.5654 | AI41: 13552.40217 | AJ41: 11757.25938 | AK41: 11415.74046 | AL41: 11670.75889 | AM41: 10422.25397 | AN41: 7742.565425 | AO41: 7103.635209 | AP41: 10464.97352 | AQ41: 10857.27553 | AR41: 9677.599792 | AS41: 8199.793135 | AT41: 8945.153233 | AU41: 11896.6804 | AV41: 13420.06839 | AW41: 12197.58353 | AX41: 11216.34087 | AY41: 11168.88834 | AZ41: 11121.40591 | BA41: 11075.54621 | BB41: 11029.66808 | BC41: 10889.31685 | BD41: 10743.17355 | BE41: 10556.40742 | BF41: 10397.54637 | BG41: 10235.84386
Z42: =$Z$12 -> QCF2 | AA42: 17630.60023 | AB42: 16518.10122 | AC42: 16034.48699 | AD42: 16003.11375 | AE42: 12693.18172 | AF42: 11442.93773 | AG42: 12180.13056 | AH42: 12295.84519 | AI42: 12813.32193 | AJ42: 11227.15963 | AK42: 10865.75646 | AL42: 10881.29173 | AM42: 11577.60502 | AN42: 8715.411207 | AO42: 8555.3855 | AP42: 13315.23507 | AQ42: 10053.808 | AR42: 9677.797516 | AS42: 9643.554191 | AT42: 12216.00723 | AU42: 11612.85181 | AV42: 15334.41326 | AW42: 14085.13093 | AX42: 12975.58606 | AY42: 13000.62337 | AZ42: 13033.64879 | BA42: 13070.21729 | BB42: 13166.16357 | BC42: 13179.70216 | BD42: 13206.06655 | BE42: 13175.6421 | BF42: 13124.39256 | BG42: 13055.7033
Z43: =$Z$13 -> QCF1 | AA43: 16181.83942 | AB43: 15531.99655 | AC43: 15265.04202 | AD43: 15908.85164 | AE43: 13577.48773 | AF43: 12033.57368 | AG43: 12687.4101 | AH43: 13188.22585 | AI43: 13516.76934 | AJ43: 11479.14413 | AK43: 10979.17183 | AL43: 10912.56225 | AM43: 8747.659835 | AN43: 8707.443931 | AO43: 7654.986436 | AP43: 13465.0572 | AQ43: 9634.062964 | AR43: 9426.23187 | AS43: 8818.221435 | AT43: 8418.78772 | AU43: 10513.93804 | AV43: 11109.09291 | AW43: 10254.53941 | AX43: 9634.863056 | AY43: 9412.894452 | AZ43: 9152.599464 | BA43: 8859.854149 | BB43: 8617.159381 | BC43: 8323.527622 | BD43: 8085.876946 | BE43: 7863.297718 | BF43: 7618.23362 | BG43: 7413.814556
Z44: =$Z$14 -> No Qual | AA44: 12459.3984 | AB44: 11938.34391 | AC44: 12426.34176 | AD44: 13303.98648 | AE44: 11692.05836 | AF44: 10526.32532 | AG44: 11126.5417 | AH44: 11342.25319 | AI44: 11793.75357 | AJ44: 9217.865473 | AK44: 8803.857951 | AL44: 9679.60043 | AM44: 8493.341604 | AN44: 6498.187955 | AO44: 5710.57742 | AP44: 7958.926969 | AQ44: 7160.019211 | AR44: 6616.530489 | AS44: 5697.884142 | AT44: 4932.797333 | AU44: 6272.009808 | AV44: 7352.13231 | AW44: 6717.545736 | AX44: 5821.62438 | AY44: 5440.045493 | AZ44: 5083.861364 | BA44: 4802.515558 | BB44: 4575.639651 | BC44: 4333.889607 | BD44: 4214.001161 | BE44: 4121.530558 | BF44: 4120.578069 | BG44: 4142.708473
AA64: ="Qualification structure, "&AC65&" - "&BG65&", "&CHAR(13)&names!A5 -> Qualification structure, 1992 - 2022, Manufacturing
AA65: 1990 | AB65: 1991 | AC65: 1992 | AD65: 1993 | AE65: 1994 | AF65: 1995 | AG65: 1996 | AH65: 1997 | AI65: 1998 | AJ65: 1999 | AK65: 2000 | AL65: 2001 | AM65: 2002 | AN65: 2003 | AO65: 2004 | AP65: 2005 | AQ65: 2006 | AR65: 2007 | AS65: 2008 | AT65: 2009 | AU65: 2010 | AV65: 2011 | AW65: 2012 | AX65: 2013 | AY65: 2014 | AZ65: 2015 | BA65: 2016 | BB65: 2017 | BC65: 2018 | BD65: 2019 | BE65: 2020 | BF65: 2021 | BG65: 2022
Z66: =$Z$6 -> QCF8 | AA66: 4224.293093 | AB66: 3774.911891 | AC66: 3410.236484 | AD66: 3240.092837 | AE66: 3135.683776 | AF66: 3067.93422 | AG66: 3112.975328 | AH66: 3078.521023 | AI66: 2793.206767 | AJ66: 2473.092751 | AK66: 2088.988151 | AL66: 1749.807867 | AM66: 1807.231212 | AN66: 1813.85997 | AO66: 2353.552829 | AP66: 1677.954552 | AQ66: 1755.371021 | AR66: 2037.771526 | AS66: 2085.76373 | AT66: 1737.552268 | AU66: 1595.278617 | AV66: 1663.189747 | AW66: 1873.188092 | AX66: 1969.052716 | AY66: 2075.301778 | AZ66: 2177.243607 | BA66: 2276.720944 | BB66: 2366.10882 | BC66: 2452.797205 | BD66: 2533.906599 | BE66: 2610.886435 | BF66: 2705.656522 | BG66: 2795.427283
Z67: =$Z$7 -> QCF7 | AA67: 10195.95021 | AB67: 9101.238138 | AC67: 8338.277302 | AD67: 8005.251355 | AE67: 7863.998737 | AF67: 7817.055024 | AG67: 8084.343421 | AH67: 8077.192007 | AI67: 8013.155285 | AJ67: 7519.427786 | AK67: 7101.533486 | AL67: 6081.895037 | AM67: 7239.386624 | AN67: 7194.91725 | AO67: 7000.487482 | AP67: 9264.952751 | AQ67: 9139.603962 | AR67: 9507.706891 | AS67: 8889.715582 | AT67: 9633.929273 | AU67: 8691.644853 | AV67: 9085.730002 | AW67: 10343.16274 | AX67: 10959.78779 | AY67: 11632.27885 | AZ67: 12257.7435 | BA67: 12891.83543 | BB67: 13450.73118 | BC67: 13965.22661 | BD67: 14434.86698 | BE67: 14877.78467 | BF67: 15394.90643 | BG67: 15883.24627
Z68: =$Z$8 -> QCF6 | AA68: 25553.9991 | AB68: 24445.7663 | AC68: 24024.0834 | AD68: 24731.55791 | AE68: 25731.53423 | AF68: 27099.56691 | AG68: 29106.94624 | AH68: 30246.38453 | AI68: 30427.97731 | AJ68: 29915.6332 | AK68: 28175.16436 | AL68: 29024.37559 | AM68: 26051.20612 | AN68: 25810.87384 | AO68: 28764.00628 | AP68: 23686.15479 | AQ68: 25563.31494 | AR68: 28807.16726 | AS68: 28266.12802 | AT68: 28234.00175 | AU68: 26326.8665 | AV68: 28293.76541 | AW68: 30331.09429 | AX68: 30196.33863 | AY68: 31251.33527 | AZ68: 32124.9207 | BA68: 33003.57987 | BB68: 33726.39784 | BC68: 34307.1667 | BD68: 34789.90841 | BE68: 35345.74527 | BF68: 35757.17172 | BG68: 36241.41552
Z69: =$Z$9 -> QCF5 | AA69: 12812.67001 | AB69: 11844.92356 | AC69: 11079.19731 | AD69: 10816.18923 | AE69: 10582.30505 | AF69: 10540.62365 | AG69: 10965.99706 | AH69: 11009.27601 | AI69: 10553.507 | AJ69: 10313.79036 | AK69: 9333.179944 | AL69: 8854.339669 | AM69: 7206.035478 | AN69: 8220.466673 | AO69: 9143.423045 | AP69: 6667.178374 | AQ69: 8065.348594 | AR69: 8197.771881 | AS69: 6547.880489 | AT69: 8002.728933 | AU69: 7196.314666 | AV69: 7767.069292 | AW69: 8428.184596 | AX69: 8317.953791 | AY69: 8577.649088 | AZ69: 8800.181748 | BA69: 9033.035936 | BB69: 9214.408154 | BC69: 9358.877431 | BD69: 9482.563323 | BE69: 9633.212622 | BF69: 9754.814868 | BG69: 9900.927066
Z70: =$Z$10 -> QCF4 | AA70: 31570.49466 | AB70: 28715.82467 | AC70: 26710.99272 | AD70: 26065.25316 | AE70: 25887.31363 | AF70: 26128.21679 | AG70: 27119.11953 | AH70: 26907.52322 | AI70: 26063.69345 | AJ70: 24731.73319 | AK70: 22313.58869 | AL70: 20193.2861 | AM70: 19184.40449 | AN70: 19610.21976 | AO70: 22640.48716 | AP70: 18365.79017 | AQ70: 18464.02767 | AR70: 19911.56165 | AS70: 16392.05284 | AT70: 18610.53361 | AU70: 17315.35128 | AV70: 18556.03568 | AW70: 19447.42035 | AX70: 19070.94378 | AY70: 19467.83584 | AZ70: 19749.77425 | BA70: 20029.07531 | BB70: 20220.74853 | BC70: 20324.13292 | BD70: 20360.86141 | BE70: 20449.13563 | BF70: 20441.68205 | BG70: 20499.53685
Z71: =$Z$11 -> QCF3 | AA71: 106711.0973 | AB71: 99917.36726 | AC71: 96909.25411 | AD71: 95304.99675 | AE71: 95225.86578 | AF71: 96693.10794 | AG71: 97786.34159 | AH71: 99223.10826 | AI71: 101063.8135 | AJ71: 100311.3773 | AK71: 95085.8956 | AL71: 92246.42408 | AM71: 88641.28009 | AN71: 79465.88461 | AO71: 73506.73546 | AP71: 68243.71626 | AQ71: 73813.92196 | AR71: 69549.25742 | AS71: 71405.33178 | AT71: 59308.33989 | AU71: 63500.40487 | AV71: 63530.56789 | AW71: 64829.26995 | AX71: 63325.60904 | AY71: 62496.43745 | AZ71: 61323.45541 | BA71: 60324.65525 | BB71: 59131.74887 | BC71: 57786.6706 | BD71: 56296.72195 | BE71: 54671.86386 | BF71: 53242.11933 | BG71: 51784.9943
Z72: =$Z$12 -> QCF2 | AA72: 96387.46061 | AB72: 90172.22573 | AC72: 87087.72342 | AD72: 86027.30647 | AE72: 85330.32238 | AF72: 85546.00658 | AG72: 87292.41108 | AH72: 88248.90872 | AI72: 87452.04583 | AJ72: 85322.24886 | AK72: 81104.80045 | AL72: 78358.98351 | AM72: 84722.18899 | AN72: 77406.78232 | AO72: 74274.00026 | AP72: 78946.83726 | AQ72: 66628.3952 | AR72: 66990.58444 | AS72: 67459.74685 | AT72: 63278.87729 | AU72: 57605.10089 | AV72: 63737.14659 | AW72: 64419.40787 | AX72: 63688.58645 | AY72: 63416.02392 | AZ72: 62813.09365 | BA72: 62436.23779 | BB72: 61916.51962 | BC72: 61174.11357 | BD72: 60311.5114 | BE72: 59380.99503 | BF72: 58195.22123 | BG72: 56965.54901
Z73: =$Z$13 -> QCF1 | AA73: 95102.22209 | AB73: 89094.36991 | AC73: 86085.82655 | AD73: 85130.94748 | AE73: 84492.18691 | AF73: 84820.56718 | AG73: 86608.2172 | AH73: 88070.88794 | AI73: 86587.30954 | AJ73: 83909.30682 | AK73: 80002.72766 | AL73: 78989.88262 | AM73: 67605.81341 | AN73: 72493.33541 | AO73: 67451.89773 | AP73: 66311.14682 | AQ73: 64507.54633 | AR73: 60974.27663 | AS73: 57355.81506 | AT73: 57058.68231 | AU73: 53661.86153 | AV73: 47626.09381 | AW73: 46720.99139 | AX73: 46994.45314 | AY73: 45639.3335 | AZ73: 44004.36743 | BA73: 42602.62364 | BB73: 41219.09338 | BC73: 39692.29002 | BD73: 38225.62196 | BE73: 36827.80257 | BF73: 35525.4605 | BG73: 34309.48306
Z74: =$Z$14 -> No Qual | AA74: 79705.81295 | AB74: 74575.37255 | AC74: 72785.4087 | AD74: 71585.4048 | AE74: 70259.7895 | AF74: 70012.9217 | AG74: 70248.64856 | AH74: 70223.1983 | AI74: 69274.29128 | AJ74: 66700.38974 | AK74: 64280.12165 | AL74: 60644.00552 | AM74: 58944.4536 | AN74: 54411.66018 | AO74: 45733.40974 | AP74: 39172.26903 | AQ74: 37102.47032 | AR74: 34940.90231 | AS74: 33298.56565 | AT74: 20553.35467 | AU74: 25536.1768 | AV74: 22151.40158 | AW74: 20035.28073 | AX74: 18248.27467 | AY74: 16335.8043 | AZ74: 14602.2197 | BA74: 13290.23583 | BB74: 12152.24361 | BC74: 11132.72494 | BD74: 10336.03797 | BE74: 9641.57391 | BF74: 9166.967352 | BG74: 8803.420643
AA94: ="Qualification structure, "&AC95&" - "&BG95&", "&CHAR(13)&names!A6 -> Qualification structure, 1992 - 2022, Construction
AA95: 1990 | AB95: 1991 | AC95: 1992 | AD95: 1993 | AE95: 1994 | AF95: 1995 | AG95: 1996 | AH95: 1997 | AI95: 1998 | AJ95: 1999 | AK95: 2000 | AL95: 2001 | AM95: 2002 | AN95: 2003 | AO95: 2004 | AP95: 2005 | AQ95: 2006 | AR95: 2007 | AS95: 2008 | AT95: 2009 | AU95: 2010 | AV95: 2011 | AW95: 2012 | AX95: 2013 | AY95: 2014 | AZ95: 2015 | BA95: 2016 | BB95: 2017 | BC95: 2018 | BD95: 2019 | BE95: 2020 | BF95: 2021 | BG95: 2022
Z96: =$Z$6 -> QCF8 | AA96: 347.9972336 | AB96: 297.496813 | AC96: 247.0897927 | AD96: 229.4962145 | AE96: 218.9442688 | AF96: 190.9535321 | AG96: 206.394068 | AH96: 167.9253568 | AI96: 154.6207508 | AJ96: 141.6239228 | AK96: 128.6493815 | AL96: 87.9883347 | AM96: 63.10476234 | AN96: 207.7504136 | AO96: 198.6742871 | AP96: 203.4652278 | AQ96: 87.09055292 | AR96: 0 | AS96: 143.990002 | AT96: 466.7633422 | AU96: 212.0136853 | AV96: 218.1110134 | AW96: 244.5562013 | AX96: 268.2258551 | AY96: 302.8886464 | AZ96: 342.9069559 | BA96: 380.9560201 | BB96: 417.4210569 | BC96: 455.2467661 | BD96: 494.6430595 | BE96: 534.7379978 | BF96: 579.6141765 | BG96: 626.1134376
Z97: =$Z$7 -> QCF7 | AA97: 1419.478344 | AB97: 1251.042743 | AC97: 1099.155041 | AD97: 1024.068192 | AE97: 996.0436477 | AF97: 976.3271613 | AG97: 1111.230579 | AH97: 879.064668 | AI97: 963.6234545 | AJ97: 997.5599737 | AK97: 1137.386403 | AL97: 1296.286764 | AM97: 1256.772233 | AN97: 1944.381361 | AO97: 2088.451971 | AP97: 2933.626937 | AQ97: 2879.493121 | AR97: 4521.181717 | AS97: 3038.288686 | AT97: 4930.048231 | AU97: 4046.370912 | AV97: 4175.811672 | AW97: 4632.032295 | AX97: 5065.989128 | AY97: 5658.713389 | AZ97: 6342.309216 | BA97: 6975.748599 | BB97: 7580.160278 | BC97: 8196.176943 | BD97: 8834.836687 | BE97: 9472.758185 | BF97: 10190.03553 | BG97: 10903.65428
Z98: =$Z$8 -> QCF6 | AA98: 7018.877627 | AB98: 6549.003002 | AC98: 5867.452049 | AD98: 5974.806692 | AE98: 6198.227557 | AF98: 5783.306715 | AG98: 7248.799746 | AH98: 6083.221024 | AI98: 6408.321936 | AJ98: 6822.561284 | AK98: 7082.32278 | AL98: 7570.38474 | AM98: 7097.402627 | AN98: 7430.657205 | AO98: 10300.78902 | AP98: 8117.274301 | AQ98: 10030.7163 | AR98: 12147.49179 | AS98: 10371.88 | AT98: 12071.87296 | AU98: 11241.4452 | AV98: 11372.97897 | AW98: 11639.49596 | AX98: 11740.42986 | AY98: 12570.37282 | AZ98: 13525.49062 | BA98: 14352.33079 | BB98: 15084.99686 | BC98: 15794.11188 | BD98: 16509.18692 | BE98: 17259.80465 | BF98: 17923.12228 | BG98: 18621.4565
Z99: =$Z$9 -> QCF5 | AA99: 4310.093541 | AB99: 3926.672757 | AC99: 3587.141346 | AD99: 3460.248561 | AE99: 3436.765031 | AF99: 3100.124774 | AG99: 3776.192312 | AH99: 3233.462676 | AI99: 3316.730407 | AJ99: 3353.154191 | AK99: 3347.738942 | AL99: 2884.471801 | AM99: 3318.36078 | AN99: 3316.646688 | AO99: 3954.568994 | AP99: 4150.787259 | AQ99: 4647.495619 | AR99: 3738.758945 | AS99: 3812.10606 | AT99: 4686.190171 | AU99: 4306.958431 | AV99: 4416.47456 | AW99: 4431.3817 | AX99: 4391.920837 | AY99: 4633.910295 | AZ99: 4910.543066 | BA99: 5151.581627 | BB99: 5357.201779 | BC99: 5549.916863 | BD99: 5749.778387 | BE99: 5959.593553 | BF99: 6142.961823 | BG99: 6360.601028
Z100: =$Z$10 -> QCF4 | AA100: 10385.55102 | AB100: 9481.31277 | AC100: 8370.312023 | AD100: 8257.796355 | AE100: 8433.526863 | AF100: 7489.852126 | AG100: 9156.836707 | AH100: 7460.321142 | AI100: 7634.773607 | AJ100: 7983.093679 | AK100: 7909.645744 | AL100: 8031.631236 | AM100: 6936.579177 | AN100: 8727.617125 | AO100: 8995.624854 | AP100: 8993.332983 | AQ100: 9495.793232 | AR100: 10556.42459 | AS100: 8124.804617 | AT100: 11238.63203 | AU100: 9891.160932 | AV100: 9821.193553 | AW100: 9694.762765 | AX100: 9502.38366 | AY100: 9923.097182 | AZ100: 10428.01631 | BA100: 10839.89792 | BB100: 11180.67383 | BC100: 11501.10118 | BD100: 11820.97789 | BE100: 12159.06764 | BF100: 12399.85582 | BG100: 12676.74729
Z101: =$Z$11 -> QCF3 | AA101: 74095.00707 | AB101: 67528.29563 | AC101: 59174.33738 | AD101: 58374.59854 | AE101: 58314.60297 | AF101: 55090.96613 | AG101: 62165.95993 | AH101: 52536.35852 | AI101: 50337.62244 | AJ101: 53657.56219 | AK101: 56119.28853 | AL101: 60977.56142 | AM101: 55695.82944 | AN101: 56235.26611 | AO101: 54464.10769 | AP101: 60121.85511 | AQ101: 63504.79898 | AR101: 63909.69406 | AS101: 60288.35817 | AT101: 51733.02464 | AU101: 58517.73416 | AV101: 53516.92737 | AW101: 50426.47709 | AX101: 48764.23471 | AY101: 48686.62748 | AZ101: 48931.53693 | BA101: 49168.70022 | BB101: 49113.30964 | BC101: 49059.16989 | BD101: 49002.04269 | BE101: 48720.97395 | BF101: 48302.17625 | BG101: 47739.51096
